Workbook

Sheet 打印
A1: 梅州昌盛豪生大酒店节能改造每日能耗统计表
A2: 2025年 月 日
A3: 名称 | B3: 位置 | C3: 编号 | D3: 昨日读数 | E3: 今日读数 | F3: 倍率 | G3: 合计 | H3: 单价 | I3: 费用
A4: 电表 | B4: 磁悬浮3号空调主机 | F4: 1 | H4: 0.689
A5: 电表 | B5: 变频5号冷冻泵 | F5: 1 | H5: 0.689
A6: 电表 | B6: 4号冷冻泵 | F6: 1 | H6: 0.689
A7: 电表 | B7: 变频5号冷却泵 | F7: 1 | H7: 0.689
A8: 电表 | B8: 4号冷却泵 | F8: 1 | H8: 0.689
A9: 电表 | B9: 变频1号冷却塔 | F9: 1 | H9: 0.689
A10: 电表 | B10: 变频2号冷却塔 | F10: 1 | H10: 0.689
A11: 电表 | B11: 变频3号冷却塔 | F11: 1 | H11: 0.689
A12: 空调系统用电总合计： | H12: 0.689
A14: 电表 | B14: 三楼热泵控制柜 | C14: 2025020 50017 | F14: 80 | H14: 0.689
A15: 电表 | B15: 三楼变频水泵控制柜 | C15: 2024085 00211 | F15: 20 | H15: 0.689
A16: 电表 | B16: 洗衣房热泵 控制柜 | C16: 202502 05102 | F16: 20 | H16: 0.689
A17: 电表 | B17: 生活水机房变频水泵控制柜 | C17: 2025020 50063 | F17: 20 | H17: 0.689
A18: 热水热泵系统用电总合计： | H18: 0.689
A20: 水表 | B20: 三楼中、高区 热水 | C20: M9A25024017786 | F20: 1 | H20: 4.39
A21: 水表 | B21: 生活水机房群楼、厨房热水 | C21: M9A25024017857 | F21: 1 | H21: 4.39
A22: 热水热泵系统用水总合计: | H22: 4.39
A24: 燃气表（常用） | B24: 热水锅炉房蒸汽发生器 | F24: 1 | H24: 5.54
A25: 燃气表（备用） | B25: 热水锅炉房蒸汽发生器 | F25: 1 | H25: 5.54
A26: 蒸汽发生器用气总合计： | H26: 5.54
A27: 电表 | B27: 热水锅炉房蒸汽发生器 | C27: 202011 500026 | F27: 1 | H27: 0.689
A28: 蒸汽发生器用电总合计： | H28: 0.689
A29: 水表 | B29: 热水锅炉房蒸汽发生器 | C29: F1A150610796 | F29: 1 | H29: 4.39
A30: 蒸汽发生器用水总合计: | H30: 4.39
A31: 电、水、气费用总合计：

Sheet 2025.4.12
A1: 梅州昌盛豪生大酒店节能改造每日能耗统计表
A2: 2025年4 月 12 日
A3: 名称 | B3: 位置 | C3: 编号 | D3: 昨日读数 | E3: 今日读数 | F3: 倍率 | G3: 合计 | H3: 单价 | I3: 费用
A4: 电表 | B4: 磁悬浮3号空调主机 | G4: =(E4-D4)*F4 -> 0 | H4: 0.689 | I4: =G4*H4 -> 0
A5: 电表 | B5: 变频5号冷冻泵 | E5: 298069.9 | G5: 0 | H5: 0.689 | I5: 0
A6: 电表 | B6: 变频5号冷却泵 | E6: 111055.2 | G6: 0 | H6: 0.689 | I6: 0
A7: 电表 | B7: 变频1号冷却塔 | E7: 142973 | G7: 0 | H7: 0.689 | I7: 0
A8: 电表 | B8: 变频2号冷却塔 | E8: 313655.3 | G8: 0 | H8: 0.689 | I8: 0
A9: 电表 | B9: 变频3号冷却塔 | E9: 293215.2 | G9: 0 | H9: 0.689 | I9: 0
A10: 电表 | B10: 三楼热泵控制柜 | C10: 2025020 50017 | E10: 16.1 | F10: 80 | G10: 1288 | H10: 0.689 | I10: 887.432
A11: 电表 | B11: 三楼变频水泵控制柜 | C11: 2024085 00211 | E11: 17.7 | F11: 20 | G11: 354 | H11: 0.689 | I11: 243.906
A12: 电表 | B12: 洗衣房热泵 控制柜 | C12: 202502 05102 | E12: 12.2 | F12: 20 | G12: 244 | H12: 0.689 | I12: 168.116
A13: 电表 | B13: 生活水机房变频水泵控制柜 | C13: 2025020 50063 | E13: 2 | F13: 20 | G13: 40 | H13: 0.689 | I13: 27.56
A14: 用电总合计： | G14: =G4+G5+G6+G7+G8+G9+G10+G11+G12+G13 -> 1926 | H14: 0.689 | I14: =I4+I5+I6+I7+I8+I9+I10+I11+I12+I13 -> 1327.014
A16: 水表 | B16: 三楼中、高区 热水 | C16: M9A25024017786 | E16: 171 | G16: =E16-D16 -> 171 | H16: 4.39 | I16: =G16*H16 -> 750.69
A17: 水表 | B17: 生活水机房群楼、厨房热水 | C17: M9A25024017857 | E17: 45 | G17: =E17-D17 -> 45 | H17: 4.39 | I17: =G17*H17 -> 197.55
A18: 用水总合计: | G18: =G16+G17 -> 216 | H18: 4.39 | I18: =I16+I17 -> 948.24
A20: 燃气表 | B20: 热水锅炉房蒸汽发生器 | E20: 8850 | G20: =E20-D20 -> 8850 | H20: 5.54 | I20: =G20*H20 -> 49029
A21: 用气总合计： | G21: =G20 -> 8850 | H21: 5.54 | I21: =I20 -> 49029
A22: 电、水、气费用总合计： | G22: =I14+I18+I21 -> 51304.254

Sheet 2025.4.13
A1: 梅州昌盛豪生大酒店节能改造每日能耗统计表
A2: 2025年4 月 12 日
A3: 名称 | B3: 位置 | C3: 编号 | D3: 昨日读数 | E3: 今日读数 | F3: 倍率 | G3: 合计 | H3: 单价 | I3: 费用
A4: 电表 | B4: 磁悬浮3号空调主机 | F4: 160 | G4: =(E4-D4)*F4 -> 0 | H4: 0.689 | I4: =G4*H4 -> 0
A5: 电表 | B5: 变频5号冷冻泵 | D5: 298069.9 | E5: 298069.9 | F5: 30 | G5: 0 | H5: 0.689 | I5: 0
A6: 电表 | B6: 4号冷冻泵 | F6: 30 | G6: =(E6-D6)*F6 -> 0 | H6: 0.689 | I6: =G6*H6 -> 0
A7: 电表 | B7: 变频5号冷却泵 | D7: 111055.2 | E7: 111055.2 | F7: 30 | G7: 0 | H7: 0.689 | I7: 0
A8: 电表 | B8: 4号冷却泵 | F8: 30 | G8: =(E8-D8)*F8 -> 0 | H8: 0.689 | I8: =G8*H8 -> 0
A9: 电表 | B9: 变频1号冷却塔 | D9: 142973 | E9: 142975.1 | F9: 1 | G9: 2.1 | H9: 0.689 | I9: 1.4469
A10: 电表 | B10: 变频2号冷却塔 | D10: 313655.3 | E10: 313727.2 | F10: 1 | G10: 71.9 | H10: 0.689 | I10: 49.5391
A11: 电表 | B11: 变频3号冷却塔 | D11: 293215.2 | E11: 293215.5 | F11: 1 | G11: 0.3 | H11: 0.689 | I11: 0.2067
A12: 电表 | B12: 三楼热泵控制柜 | C12: 2025020 50017 | D12: 16.1 | E12: 20.9 | F12: 80 | G12: 384 | H12: 0.689 | I12: 264.576
A13: 电表 | B13: 三楼变频水泵控制柜 | C13: 2024085 00211 | D13: 17.7 | E13: 24 | F13: 20 | G13: 126 | H13: 0.689 | I13: 86.814
A14: 电表 | B14: 洗衣房热泵 控制柜 | C14: 202502 05102 | D14: 12.2 | E14: 27.1 | F14: 20 | G14: 298 | H14: 0.689 | I14: 205.322
A15: 电表 | B15: 生活水机房变频水泵控制柜 | C15: 2025020 50063 | D15: 2 | E15: 5.7 | F15: 20 | G15: 74 | H15: 0.689 | I15: 50.986
A16: 用电总合计： | G16: =G4+G5+G7+G9+G10+G11+G12+G13+G14+G15 -> 956.3 | H16: 0.689 | I16: =I4+I5+I7+I9+I10+I11+I12+I13+I14+I15+I6+I8 -> 658.8907
A18: 水表 | B18: 三楼中、高区 热水 | C18: M9A25024017786 | D18: 171 | E18: 201 | F18: 1 | G18: =E18-D18 -> 30 | H18: 4.39 | I18: =G18*H18 -> 131.7
A19: 水表 | B19: 生活水机房群楼、厨房热水 | C19: M9A25024017857 | D19: 45 | E19: 82 | F19: 1 | G19: =E19-D19 -> 37 | H19: 4.39 | I19: =G19*H19 -> 162.43
A20: 用水总合计: | G20: =G18+G19 -> 67 | H20: 4.39 | I20: =I18+I19 -> 294.13
A22: 燃气表 | B22: 热水锅炉房蒸汽发生器 | D22: 8850 | E22: 8850 | F22: 1 | G22: =E22-D22 -> 0 | H22: 5.54 | I22: =G22*H22 -> 0
A23: 用气总合计： | G23: =G22 -> 0 | H23: 5.54 | I23: =I22 -> 0
A24: 电、水、气费用总合计： | G24: =I16+I20+I23 -> 953.0207

Sheet 2025.4.18
A1: 梅州昌盛豪生大酒店节能改造每日能耗统计表
A2: 2025年 4 月 17 日
A3: 名称 | B3: 位置 | C3: 编号 | D3: 昨日读数 | E3: 今日读数 | F3: 倍率 | G3: 合计 | H3: 单价 | I3: 费用
A4: 电表 | B4: 磁悬浮3号空调主机 | D4: 93853 | E4: 94187 | F4: 1 | G4: =(E4-D4)*F4 -> 334 | H4: 0.689 | I4: =G4*H4 -> 230.126
A5: 电表 | B5: 变频5号冷冻泵 | D5: 20220.2 | E5: 20221.8 | F5: 1 | G5: 1.6 | H5: 0.689 | I5: 1.1024
A6: 电表 | B6: 4号冷冻泵 | D6: 196207.1 | E6: 197346.8 | F6: 1 | G6: =(E6-D6)*F6 -> 1139.7 | H6: 0.689 | I6: =G6*H6 -> 785.2533
A7: 电表 | B7: 变频5号冷却泵 | D7: 45706.9 | E7: 45718.8 | F7: 1 | G7: 11.9 | H7: 0.689 | I7: 8.1991
A8: 电表 | B8: 4号冷却泵 | D8: 245181.7 | E8: 246270.6 | F8: 1 | G8: =(E8-D8)*F8 -> 1088.9 | H8: 0.689 | I8: =G8*H8 -> 750.2521
A9: 电表 | B9: 变频1号冷却塔 | D9: 142982.7 | E9: 142984.4 | F9: 1 | G9: 1.7 | H9: 0.689 | I9: 1.1713
A10: 电表 | B10: 变频2号冷却塔 | D10: 313964.9 | E10: 314040.2 | F10: 1 | G10: 75.3 | H10: 0.689 | I10: 51.8817
A11: 电表 | B11: 变频3号冷却塔 | D11: 293231.9 | E11: 293232.2 | F11: 1 | G11: 0.3 | H11: 0.689 | I11: 0.2067
A12: 空调系统用电总合计： | G12: =G4+G5+G6+G7+G8+G9+G10+G11 -> 2653.4 | H12: 0.689 | I12: =I4+I5+I6+I7+I8+I9+I10+I11 -> 1828.1926
A14: 电表 | B14: 三楼热泵控制柜 | C14: 2025020 50017 | D14: 31.6 | E14: 33.9 | F14: 80 | G14: 184 | H14: 0.689 | I14: 126.776
A15: 电表 | B15: 三楼变频水泵控制柜 | C15: 2024085 00211 | D15: 48.8 | E15: 55 | F15: 20 | G15: 124 | H15: 0.689 | I15: 85.436
A16: 电表 | B16: 洗衣房热泵 控制柜 | C16: 202502 05102 | D16: 73 | E16: 80.7 | F16: 20 | G16: 154 | H16: 0.689 | I16: 106.106
A17: 电表 | B17: 生活水机房变频水泵控制柜 | C17: 2025020 50063 | D17: 18.6 | E17: 21.8 | F17: 20 | G17: 64 | H17: 0.689 | I17: 44.096
A18: 热水热泵系统用电总合计： | G18: =G14+G15+G16+G17 -> 526 | H18: 0.689 | I18: =I14+I15+I16+I17 -> 362.414
A20: 水表 | B20: 三楼中、高区 热水 | C20: M9A25024017786 | D20: 272 | E20: 286 | F20: 1 | G20: =E20-D20 -> 14 | H20: 4.39 | I20: =G20*H20 -> 61.46
A21: 水表 | B21: 生活水机房群楼、厨房热水 | C21: M9A25024017857 | D21: 177 | E21: 195 | F21: 1 | G21: =E21-D21 -> 18 | H21: 4.39 | I21: =G21*H21 -> 79.02
A22: 热水热泵系统用水总合计: | G22: =G20+G21 -> 32 | H22: 4.39 | I22: =I20+I21 -> 140.48
A24: 燃气表（常用） | B24: 热水锅炉房蒸汽发生器 | D24: 8850 | E24: 8850 | F24: 1 | G24: =E24-D24 -> 0 | H24: 5.54 | I24: =G24*H24 -> 0
A25: 燃气表（备用） | B25: 热水锅炉房蒸汽发生器 | D25: 18871 | E25: 18871 | F25: 1 | G25: =(E25-D25)*F25 -> 0 | H25: 5.54 | I25: =G25*H25 -> 0
A26: 蒸汽发生器用气总合计： | G26: =G24+G25 -> 0 | H26: 5.54 | I26: =I24+I25 -> 0
A27: 电、水、气费用总合计： | G27: =I12++I18+I22+I26 -> 2331.0866

Sheet 2025.4.14
A1: 梅州昌盛豪生大酒店节能改造每日能耗统计表
A2: 2025年 4 月 13 日
A3: 名称 | B3: 位置 | C3: 编号 | D3: 昨日读数 | E3: 今日读数 | F3: 倍率 | G3: 合计 | H3: 单价 | I3: 费用
A4: 电表 | B4: 磁悬浮3号空调主机 | C4: 4月13日18:20 | D4: 92819 | E4: 92935 | F4: 1 | G4: =(E4-D4)*F4 -> 116 | H4: 0.689 | I4: =G4*H4 -> 79.924
A5: 电表 | B5: 变频5号冷冻泵 | C5: 4月13日18:30 | D5: 20217.5 | E5: 20217.5 | F5: 1 | G5: 0 | H5: 0.689 | I5: 0
A6: 电表 | B6: 4号冷冻泵 | C6: 4月13日18:30 | D6: 192614.7 | E6: 192972.2 | F6: 1 | G6: =(E6-D6)*F6 -> 357.5 | H6: 0.689 | I6: =G6*H6 -> 246.3175
A7: 电表 | B7: 变频5号冷却泵 | C7: 4月13日18:30 | D7: 45684.8 | E7: 45684.9 | F7: 1 | G7: 0.1 | H7: 0.689 | I7: 0.0689
A8: 电表 | B8: 4号冷却泵 | C8: 4月13日18:30 | D8: 241805 | E8: 242094.4 | F8: 1 | G8: =(E8-D8)*F8 -> 289.4 | H8: 0.689 | I8: =G8*H8 -> 199.3966
A9: 电表 | B9: 变频1号冷却塔 | D9: 142975.1 | E9: 142977 | F9: 1 | G9: 1.9 | H9: 0.689 | I9: 1.3091
A10: 电表 | B10: 变频2号冷却塔 | D10: 313727.2 | E10: 313757 | F10: 1 | G10: 29.8 | H10: 0.689 | I10: 20.5322
A11: 电表 | B11: 变频3号冷却塔 | D11: 293215.5 | E11: 293215.8 | F11: 1 | G11: 0.3 | H11: 0.689 | I11: 0.2067
A12: 空调系统用电总合计： | G12: =G4+G5+G6+G7+G8+G9+G10+G11 -> 795 | H12: 0.689 | I12: =I4+I5+I6+I7+I8+I9+I10+I11 -> 547.755
A14: 电表 | B14: 三楼热泵控制柜 | C14: 2025020 50017 | D14: 20.9 | E14: 23.9 | F14: 80 | G14: 240 | H14: 0.689 | I14: 165.36
A15: 电表 | B15: 三楼变频水泵控制柜 | C15: 2024085 00211 | D15: 24 | E15: 30.2 | F15: 20 | G15: 124 | H15: 0.689 | I15: 85.436
A16: 电表 | B16: 洗衣房热泵 控制柜 | C16: 202502 05102 | D16: 27.1 | E16: 43.5 | F16: 20 | G16: 328 | H16: 0.689 | I16: 225.992
A17: 电表 | B17: 生活水机房变频水泵控制柜 | C17: 2025020 50063 | D17: 5.7 | E17: 9.3 | F17: 20 | G17: 72 | H17: 0.689 | I17: 49.608
A18: 热水热泵系统用电总合计： | G18: =G14+G15+G16+G17 -> 764 | H18: 0.689 | I18: =I14+I15+I16+I17 -> 526.396
A20: 水表 | B20: 三楼中、高区 热水 | C20: M9A25024017786 | D20: 201 | E20: 218 | F20: 1 | G20: =E20-D20 -> 17 | H20: 4.39 | I20: =G20*H20 -> 74.63
A21: 水表 | B21: 生活水机房群楼、厨房热水 | C21: M9A25024017857 | D21: 82 | E21: 123 | F21: 1 | G21: =E21-D21 -> 41 | H21: 4.39 | I21: =G21*H21 -> 179.99
A22: 热水热泵系统用水总合计: | G22: =G20+G21 -> 58 | H22: 4.39 | I22: =I20+I21 -> 254.62
A24: 燃气表（常用） | B24: 热水锅炉房蒸汽发生器 | D24: 8850 | E24: 8850 | F24: 1 | G24: =E24-D24 -> 0 | H24: 5.54 | I24: =G24*H24 -> 0
A25: 燃气表（备用） | B25: 热水锅炉房蒸汽发生器 | D25: 18871 | E25: 18871 | F25: 1 | G25: =(E25-D25)*F25 -> 0 | H25: 5.54 | I25: =G25*H25 -> 0
A26: 蒸汽发生器用气总合计： | G26: =G24+G25 -> 0 | H26: 5.54 | I26: =I24+I25 -> 0
A27: 电、水、气费用总合计： | G27: =I12++I18+I22+I26 -> 1328.771

Sheet 2025.4.15
A1: 梅州昌盛豪生大酒店节能改造每日能耗统计表
A2: 2025年 4 月 15 日
A3: 名称 | B3: 位置 | C3: 编号 | D3: 昨日读数 | E3: 今日读数 | F3: 倍率 | G3: 合计 | H3: 单价 | I3: 费用
A4: 电表 | B4: 磁悬浮3号空调主机 | D4: 92935 | E4: 93201 | F4: 1 | G4: =(E4-D4)*F4 -> 266 | H4: 0.689 | I4: =G4*H4 -> 183.274
A5: 电表 | B5: 变频5号冷冻泵 | D5: 20217.5 | E5: 20217.5 | F5: 1 | G5: 0 | H5: 0.689 | I5: 0
A6: 电表 | B6: 4号冷冻泵 | D6: 192972.2 | E6: 193924.3 | F6: 1 | G6: =(E6-D6)*F6 -> 952.1 | H6: 0.689 | I6: =G6*H6 -> 655.9969
A7: 电表 | B7: 变频5号冷却泵 | D7: 45684.9 | E7: 45684.9 | F7: 1 | G7: 0 | H7: 0.689 | I7: 0
A8: 电表 | B8: 4号冷却泵 | D8: 242094.4 | E8: 243002.4 | F8: 1 | G8: =(E8-D8)*F8 -> 908 | H8: 0.689 | I8: =G8*H8 -> 625.612
A9: 电表 | B9: 变频1号冷却塔 | D9: 142977 | E9: 142978.9 | F9: 1 | G9: 1.9 | H9: 0.689 | I9: 1.3091
A10: 电表 | B10: 变频2号冷却塔 | D10: 313757 | E10: 313801.5 | F10: 1 | G10: 44.5 | H10: 0.689 | I10: 30.6605
A11: 电表 | B11: 变频3号冷却塔 | D11: 293215.8 | E11: 293231.4 | F11: 1 | G11: 15.6 | H11: 0.689 | I11: 10.7484
A12: 空调系统用电总合计： | G12: =G4+G5+G6+G7+G8+G9+G10+G11 -> 2188.1 | H12: 0.689 | I12: =I4+I5+I6+I7+I8+I9+I10+I11 -> 1507.6009
A14: 电表 | B14: 三楼热泵控制柜 | C14: 2025020 50017 | D14: 23.9 | E14: 26.7 | F14: 80 | G14: 224 | H14: 0.689 | I14: 154.336
A15: 电表 | B15: 三楼变频水泵控制柜 | C15: 2024085 00211 | D15: 30.2 | E15: 36.5 | F15: 20 | G15: 126 | H15: 0.689 | I15: 86.814
A16: 电表 | B16: 洗衣房热泵 控制柜 | C16: 202502 05102 | D16: 43.5 | E16: 52.1 | F16: 20 | G16: 172 | H16: 0.689 | I16: 118.508
A17: 电表 | B17: 生活水机房变频水泵控制柜 | C17: 2025020 50063 | D17: 9.3 | E17: 12.3 | F17: 20 | G17: 60 | H17: 0.689 | I17: 41.34
A18: 热水热泵系统用电总合计： | G18: =G14+G15+G16+G17 -> 582 | H18: 0.689 | I18: =I14+I15+I16+I17 -> 400.998
A20: 水表 | B20: 三楼中、高区 热水 | C20: M9A25024017786 | D20: 218 | E20: 237 | F20: 1 | G20: =E20-D20 -> 19 | H20: 4.39 | I20: =G20*H20 -> 83.41
A21: 水表 | B21: 生活水机房群楼、厨房热水 | C21: M9A25024017857 | D21: 123 | E21: 137 | F21: 1 | G21: =E21-D21 -> 14 | H21: 4.39 | I21: =G21*H21 -> 61.46
A22: 热水热泵系统用水总合计: | G22: =G20+G21 -> 33 | H22: 4.39 | I22: =I20+I21 -> 144.87
A24: 燃气表（常用） | B24: 热水锅炉房蒸汽发生器 | D24: 8850 | E24: 8850 | F24: 1 | G24: =E24-D24 -> 0 | H24: 5.54 | I24: =G24*H24 -> 0
A25: 燃气表（备用） | B25: 热水锅炉房蒸汽发生器 | D25: 18871 | E25: 18871 | F25: 1 | G25: =(E25-D25)*F25 -> 0 | H25: 5.54 | I25: =G25*H25 -> 0
A26: 蒸汽发生器用气总合计： | G26: =G24+G25 -> 0 | H26: 5.54 | I26: =I24+I25 -> 0
A27: 电、水、气费用总合计： | G27: =I12++I18+I22+I26 -> 2053.4689

Sheet 2025.4.16
A1: 梅州昌盛豪生大酒店节能改造每日能耗统计表
A2: 2025年 4 月 15 日
A3: 名称 | B3: 位置 | C3: 编号 | D3: 昨日读数 | E3: 今日读数 | F3: 倍率 | G3: 合计 | H3: 单价 | I3: 费用
A4: 电表 | B4: 磁悬浮3号空调主机 | D4: 93201 | E4: 93531 | F4: 1 | G4: =(E4-D4)*F4 -> 330 | H4: 0.689 | I4: =G4*H4 -> 227.37
A5: 电表 | B5: 变频5号冷冻泵 | D5: 20217.5 | E5: 20218.5 | F5: 1 | G5: 1 | H5: 0.689 | I5: 0.689
A6: 电表 | B6: 4号冷冻泵 | D6: 193924.3 | E6: 194960.3 | F6: 1 | G6: =(E6-D6)*F6 -> 1036 | H6: 0.689 | I6: =G6*H6 -> 713.804
A7: 电表 | B7: 变频5号冷却泵 | D7: 45684.9 | E7: 45695.3 | F7: 1 | G7: 10.4 | H7: 0.689 | I7: 7.1656
A8: 电表 | B8: 4号冷却泵 | D8: 243002.4 | E8: 243991.4 | F8: 1 | G8: =(E8-D8)*F8 -> 989 | H8: 0.689 | I8: =G8*H8 -> 681.421
A9: 电表 | B9: 变频1号冷却塔 | D9: 142978.9 | E9: 142980.7 | F9: 1 | G9: 1.8 | H9: 0.689 | I9: 1.2402
A10: 电表 | B10: 变频2号冷却塔 | D10: 313801.5 | E10: 313881.9 | F10: 1 | G10: 80.4 | H10: 0.689 | I10: 55.3956
A11: 电表 | B11: 变频3号冷却塔 | D11: 293231.4 | E11: 293231.6 | F11: 1 | G11: 0.2 | H11: 0.689 | I11: 0.1378
A12: 空调系统用电总合计： | G12: =G4+G5+G6+G7+G8+G9+G10+G11 -> 2448.8 | H12: 0.689 | I12: =I4+I5+I6+I7+I8+I9+I10+I11 -> 1687.2232
A14: 电表 | B14: 三楼热泵控制柜 | C14: 2025020 50017 | D14: 26.7 | E14: 29.4 | F14: 80 | G14: 216 | H14: 0.689 | I14: 148.824
A15: 电表 | B15: 三楼变频水泵控制柜 | C15: 2024085 00211 | D15: 36.5 | E15: 42.7 | F15: 20 | G15: 124 | H15: 0.689 | I15: 85.436
A16: 电表 | B16: 洗衣房热泵 控制柜 | C16: 202502 05102 | D16: 52.1 | E16: 63.6 | F16: 20 | G16: 230 | H16: 0.689 | I16: 158.47
A17: 电表 | B17: 生活水机房变频水泵控制柜 | C17: 2025020 50063 | D17: 12.3 | E17: 15.5 | F17: 20 | G17: 64 | H17: 0.689 | I17: 44.096
A18: 热水热泵系统用电总合计： | G18: =G14+G15+G16+G17 -> 634 | H18: 0.689 | I18: =I14+I15+I16+I17 -> 436.826
A20: 水表 | B20: 三楼中、高区 热水 | C20: M9A25024017786 | D20: 237 | E20: 256 | F20: 1 | G20: =E20-D20 -> 19 | H20: 4.39 | I20: =G20*H20 -> 83.41
A21: 水表 | B21: 生活水机房群楼、厨房热水 | C21: M9A25024017857 | D21: 137 | E21: 161 | F21: 1 | G21: =E21-D21 -> 24 | H21: 4.39 | I21: =G21*H21 -> 105.36
A22: 热水热泵系统用水总合计: | G22: =G20+G21 -> 43 | H22: 4.39 | I22: =I20+I21 -> 188.77
A24: 燃气表（常用） | B24: 热水锅炉房蒸汽发生器 | D24: 8850 | E24: 8850 | F24: 1 | G24: =E24-D24 -> 0 | H24: 5.54 | I24: =G24*H24 -> 0
A25: 燃气表（备用） | B25: 热水锅炉房蒸汽发生器 | D25: 18871 | E25: 18871 | F25: 1 | G25: =(E25-D25)*F25 -> 0 | H25: 5.54 | I25: =G25*H25 -> 0
A26: 蒸汽发生器用气总合计： | G26: =G24+G25 -> 0 | H26: 5.54 | I26: =I24+I25 -> 0
A27: 电、水、气费用总合计： | G27: =I12++I18+I22+I26 -> 2312.8192

Sheet 2025.4.19
A1: 梅州昌盛豪生大酒店节能改造每日能耗统计表
A2: 2025年 4 月 18 日
A3: 名称 | B3: 位置 | C3: 编号 | D3: 昨日读数 | E3: 今日读数 | F3: 倍率 | G3: 合计 | H3: 单价 | I3: 费用
A4: 电表 | B4: 磁悬浮3号空调主机 | D4: 94187 | E4: 95069 | F4: 1 | G4: =(E4-D4)*F4 -> 882 | H4: 0.689 | I4: =G4*H4 -> 607.698
A5: 电表 | B5: 变频5号冷冻泵 | D5: 20221.8 | E5: 20223.6 | F5: 1 | G5: 1.8 | H5: 0.689 | I5: 1.2402
A6: 电表 | B6: 4号冷冻泵 | D6: 197346.8 | E6: 198454.7 | F6: 1 | G6: =(E6-D6)*F6 -> 1107.9 | H6: 0.689 | I6: =G6*H6 -> 763.3431
A7: 电表 | B7: 变频5号冷却泵 | D7: 45718.8 | E7: 45731.5 | F7: 1 | G7: 12.7 | H7: 0.689 | I7: 8.7503
A8: 电表 | B8: 4号冷却泵 | D8: 246270.6 | E8: 247287.4 | F8: 1 | G8: =(E8-D8)*F8 -> 1016.8 | H8: 0.689 | I8: =G8*H8 -> 700.5752
A9: 电表 | B9: 变频1号冷却塔 | D9: 142984.4 | E9: 142986.3 | F9: 1 | G9: 1.9 | H9: 0.689 | I9: 1.3091
A10: 电表 | B10: 变频2号冷却塔 | D10: 314040.2 | E10: 314046.5 | F10: 1 | G10: 6.3 | H10: 0.689 | I10: 4.3407
A11: 电表 | B11: 变频3号冷却塔 | D11: 293232.2 | E11: 293340.2 | F11: 1 | G11: 108 | H11: 0.689 | I11: 74.412
A12: 空调系统用电总合计： | G12: =G4+G5+G6+G7+G8+G9+G10+G11 -> 3137.4 | H12: 0.689 | I12: =I4+I5+I6+I7+I8+I9+I10+I11 -> 2161.6686
A14: 电表 | B14: 三楼热泵控制柜 | C14: 2025020 50017 | D14: 33.9 | E14: 36.4 | F14: 80 | G14: 200 | H14: 0.689 | I14: 137.8
A15: 电表 | B15: 三楼变频水泵控制柜 | C15: 2024085 00211 | D15: 55 | E15: 61.2 | F15: 20 | G15: 124 | H15: 0.689 | I15: 85.436
A16: 电表 | B16: 洗衣房热泵 控制柜 | C16: 202502 05102 | D16: 80.7 | E16: 88.5 | F16: 20 | G16: 156 | H16: 0.689 | I16: 107.484
A17: 电表 | B17: 生活水机房变频水泵控制柜 | C17: 2025020 50063 | D17: 21.8 | E17: 25.1 | F17: 20 | G17: 66 | H17: 0.689 | I17: 45.474
A18: 热水热泵系统用电总合计： | G18: =G14+G15+G16+G17 -> 546 | H18: 0.689 | I18: =I14+I15+I16+I17 -> 376.194
A20: 水表 | B20: 三楼中、高区 热水 | C20: M9A25024017786 | D20: 286 | E20: 312 | F20: 1 | G20: =E20-D20 -> 26 | H20: 4.39 | I20: =G20*H20 -> 114.14
A21: 水表 | B21: 生活水机房群楼、厨房热水 | C21: M9A25024017857 | D21: 195 | E21: 218 | F21: 1 | G21: =E21-D21 -> 23 | H21: 4.39 | I21: =G21*H21 -> 100.97
A22: 热水热泵系统用水总合计: | G22: =G20+G21 -> 49 | H22: 4.39 | I22: =I20+I21 -> 215.11
A24: 燃气表（常用） | B24: 热水锅炉房蒸汽发生器 | D24: 8850 | E24: 8850 | F24: 1 | G24: =E24-D24 -> 0 | H24: 5.54 | I24: =G24*H24 -> 0
A25: 燃气表（备用） | B25: 热水锅炉房蒸汽发生器 | D25: 18871 | E25: 18871 | F25: 1 | G25: =(E25-D25)*F25 -> 0 | H25: 5.54 | I25: =G25*H25 -> 0
A26: 蒸汽发生器用气总合计： | G26: =G24+G25 -> 0 | H26: 5.54 | I26: =I24+I25 -> 0
A27: 电、水、气费用总合计： | G27: =I12++I18+I22+I26 -> 2752.9726

Sheet 2025.4.17
A1: 梅州昌盛豪生大酒店节能改造每日能耗统计表
A2: 2025年 4 月 16 日
A3: 名称 | B3: 位置 | C3: 编号 | D3: 昨日读数 | E3: 今日读数 | F3: 倍率 | G3: 合计 | H3: 单价 | I3: 费用
A4: 电表 | B4: 磁悬浮3号空调主机 | D4: 93531 | E4: 93853 | F4: 1 | G4: =(E4-D4)*F4 -> 322 | H4: 0.689 | I4: =G4*H4 -> 221.858
A5: 电表 | B5: 变频5号冷冻泵 | D5: 20218.5 | E5: 20220.2 | F5: 1 | G5: 1.7 | H5: 0.689 | I5: 1.1713
A6: 电表 | B6: 4号冷冻泵 | D6: 194960.3 | E6: 196207.1 | F6: 1 | G6: =(E6-D6)*F6 -> 1246.8 | H6: 0.689 | I6: =G6*H6 -> 859.0452
A7: 电表 | B7: 变频5号冷却泵 | D7: 45695.3 | E7: 45706.9 | F7: 1 | G7: 11.6 | H7: 0.689 | I7: 7.9924
A8: 电表 | B8: 4号冷却泵 | D8: 243991.4 | E8: 245181.7 | F8: 1 | G8: =(E8-D8)*F8 -> 1190.3 | H8: 0.689 | I8: =G8*H8 -> 820.1167
A9: 电表 | B9: 变频1号冷却塔 | D9: 142980.7 | E9: 142982.7 | F9: 1 | G9: 2 | H9: 0.689 | I9: 1.378
A10: 电表 | B10: 变频2号冷却塔 | D10: 313881.9 | E10: 313964.9 | F10: 1 | G10: 83 | H10: 0.689 | I10: 57.187
A11: 电表 | B11: 变频3号冷却塔 | D11: 293231.6 | E11: 293231.9 | F11: 1 | G11: 0.3 | H11: 0.689 | I11: 0.2067
A12: 空调系统用电总合计： | G12: =G4+G5+G6+G7+G8+G9+G10+G11 -> 2857.7 | H12: 0.689 | I12: =I4+I5+I6+I7+I8+I9+I10+I11 -> 1968.9553
A14: 电表 | B14: 三楼热泵控制柜 | C14: 2025020 50017 | D14: 29.4 | E14: 31.6 | F14: 80 | G14: 176 | H14: 0.689 | I14: 121.264
A15: 电表 | B15: 三楼变频水泵控制柜 | C15: 2024085 00211 | D15: 42.7 | E15: 48.8 | F15: 20 | G15: 122 | H15: 0.689 | I15: 84.058
A16: 电表 | B16: 洗衣房热泵 控制柜 | C16: 202502 05102 | D16: 63.6 | E16: 73 | F16: 20 | G16: 188 | H16: 0.689 | I16: 129.532
A17: 电表 | B17: 生活水机房变频水泵控制柜 | C17: 2025020 50063 | D17: 15.5 | E17: 18.6 | F17: 20 | G17: 62 | H17: 0.689 | I17: 42.718
A18: 热水热泵系统用电总合计： | G18: =G14+G15+G16+G17 -> 548 | H18: 0.689 | I18: =I14+I15+I16+I17 -> 377.572
A20: 水表 | B20: 三楼中、高区 热水 | C20: M9A25024017786 | D20: 256 | E20: 272 | F20: 1 | G20: =E20-D20 -> 16 | H20: 4.39 | I20: =G20*H20 -> 70.24
A21: 水表 | B21: 生活水机房群楼、厨房热水 | C21: M9A25024017857 | D21: 161 | E21: 177 | F21: 1 | G21: =E21-D21 -> 16 | H21: 4.39 | I21: =G21*H21 -> 70.24
A22: 热水热泵系统用水总合计: | G22: =G20+G21 -> 32 | H22: 4.39 | I22: =I20+I21 -> 140.48
A24: 燃气表（常用） | B24: 热水锅炉房蒸汽发生器 | D24: 8850 | E24: 8850 | F24: 1 | G24: =E24-D24 -> 0 | H24: 5.54 | I24: =G24*H24 -> 0
A25: 燃气表（备用） | B25: 热水锅炉房蒸汽发生器 | D25: 18871 | E25: 18871 | F25: 1 | G25: =(E25-D25)*F25 -> 0 | H25: 5.54 | I25: =G25*H25 -> 0
A26: 蒸汽发生器用气总合计： | G26: =G24+G25 -> 0 | H26: 5.54 | I26: =I24+I25 -> 0
A27: 电、水、气费用总合计： | G27: =I12++I18+I22+I26 -> 2487.0073

Sheet 2025.4.20
A1: 梅州昌盛豪生大酒店节能改造每日能耗统计表
A2: 2025年 4 月 19 日
A3: 名称 | B3: 位置 | C3: 编号 | D3: 昨日读数 | E3: 今日读数 | F3: 倍率 | G3: 合计 | H3: 单价 | I3: 费用
A4: 电表 | B4: 磁悬浮3号空调主机 | D4: 95069 | E4: 96782 | F4: 1 | G4: =(E4-D4)*F4 -> 1713 | H4: 0.689 | I4: =G4*H4 -> 1180.257
A5: 电表 | B5: 变频5号冷冻泵 | D5: 20223.6 | E5: 20225.5 | F5: 1 | G5: 1.9 | H5: 0.689 | I5: 1.3091
A6: 电表 | B6: 4号冷冻泵 | D6: 198454.7 | E6: 199592.2 | F6: 1 | G6: =(E6-D6)*F6 -> 1137.5 | H6: 0.689 | I6: =G6*H6 -> 783.7375
A7: 电表 | B7: 变频5号冷却泵 | D7: 45731.5 | E7: 45732.2 | F7: 1 | G7: 0.7 | H7: 0.689 | I7: 0.4823
A8: 电表 | B8: 4号冷却泵 | D8: 247287.4 | E8: 248317.9 | F8: 1 | G8: =(E8-D8)*F8 -> 1030.5 | H8: 0.689 | I8: =G8*H8 -> 710.0145
A9: 电表 | B9: 变频1号冷却塔 | D9: 142986.3 | E9: 143007.3 | F9: 1 | G9: 21 | H9: 0.689 | I9: 14.469
A10: 电表 | B10: 变频2号冷却塔 | D10: 314046.5 | E10: 314144 | F10: 1 | G10: 97.5 | H10: 0.689 | I10: 67.1775
A11: 电表 | B11: 变频3号冷却塔 | D11: 293340.2 | E11: 293451.8 | F11: 1 | G11: 111.6 | H11: 0.689 | I11: 76.8924
A12: 空调系统用电总合计： | G12: =G4+G5+G6+G7+G8+G9+G10+G11 -> 4113.7 | H12: 0.689 | I12: =I4+I5+I6+I7+I8+I9+I10+I11 -> 2834.3393
A14: 电表 | B14: 三楼热泵控制柜 | C14: 2025020 50017 | D14: 36.4 | E14: 39.1 | F14: 80 | G14: 216 | H14: 0.689 | I14: 148.824
A15: 电表 | B15: 三楼变频水泵控制柜 | C15: 2024085 00211 | D15: 61.2 | E15: 67.4 | F15: 20 | G15: 124 | H15: 0.689 | I15: 85.436
A16: 电表 | B16: 洗衣房热泵 控制柜 | C16: 202502 05102 | D16: 88.5 | E16: 98.8 | F16: 20 | G16: 206 | H16: 0.689 | I16: 141.934
A17: 电表 | B17: 生活水机房变频水泵控制柜 | C17: 2025020 50063 | D17: 25.1 | E17: 28.5 | F17: 20 | G17: 68 | H17: 0.689 | I17: 46.852
A18: 热水热泵系统用电总合计： | G18: =G14+G15+G16+G17 -> 614 | H18: 0.689 | I18: =I14+I15+I16+I17 -> 423.046
A20: 水表 | B20: 三楼中、高区 热水 | C20: M9A25024017786 | D20: 286 | E20: 338 | F20: 1 | G20: =E20-D20 -> 52 | H20: 4.39 | I20: =G20*H20 -> 228.28
A21: 水表 | B21: 生活水机房群楼、厨房热水 | C21: M9A25024017857 | D21: 195 | E21: 251 | F21: 1 | G21: =E21-D21 -> 56 | H21: 4.39 | I21: =G21*H21 -> 245.84
A22: 热水热泵系统用水总合计: | G22: =G20+G21 -> 108 | H22: 4.39 | I22: =I20+I21 -> 474.12
A24: 燃气表（常用） | B24: 热水锅炉房蒸汽发生器 | D24: 8850 | E24: 8850 | F24: 1 | G24: =E24-D24 -> 0 | H24: 5.54 | I24: =G24*H24 -> 0
A25: 燃气表（备用） | B25: 热水锅炉房蒸汽发生器 | D25: 18871 | E25: 18871 | F25: 1 | G25: =(E25-D25)*F25 -> 0 | H25: 5.54 | I25: =G25*H25 -> 0
A26: 蒸汽发生器用气总合计： | G26: =G24+G25 -> 0 | H26: 5.54 | I26: =I24+I25 -> 0
A27: 电、水、气费用总合计： | G27: =I12++I18+I22+I26 -> 3731.5053

Sheet 2025.4.21
A1: 梅州昌盛豪生大酒店节能改造每日能耗统计表
A2: 2025年 4 月 20 日
A3: 名称 | B3: 位置 | C3: 编号 | D3: 昨日读数 | E3: 今日读数 | F3: 倍率 | G3: 合计 | H3: 单价 | I3: 费用
A4: 电表 | B4: 磁悬浮3号空调主机 | D4: 96782 | E4: 97878 | F4: 1 | G4: =(E4-D4)*F4 -> 1096 | H4: 0.689 | I4: =G4*H4 -> 755.144
A5: 电表 | B5: 变频5号冷冻泵 | D5: 20225.5 | E5: 20227.3 | F5: 1 | G5: 1.8 | H5: 0.689 | I5: 1.2402
A6: 电表 | B6: 4号冷冻泵 | D6: 199592.2 | E6: 200828.5 | F6: 1 | G6: =(E6-D6)*F6 -> 1236.3 | H6: 0.689 | I6: =G6*H6 -> 851.8107
A7: 电表 | B7: 变频5号冷却泵 | D7: 45732.2 | E7: 45746.9 | F7: 1 | G7: 14.7 | H7: 0.689 | I7: 10.1283
A8: 电表 | B8: 4号冷却泵 | D8: 248317.9 | E8: 249497.5 | F8: 1 | G8: =(E8-D8)*F8 -> 1179.6 | H8: 0.689 | I8: =G8*H8 -> 812.7444
A9: 电表 | B9: 变频1号冷却塔 | D9: 143007.3 | E9: 143010.7 | F9: 1 | G9: 3.4 | H9: 0.689 | I9: 2.3426
A10: 电表 | B10: 变频2号冷却塔 | D10: 314144 | E10: 314322 | F10: 1 | G10: 178 | H10: 0.689 | I10: 122.642
A11: 电表 | B11: 变频3号冷却塔 | D11: 293451.8 | E11: 293452 | F11: 1 | G11: 0.2 | H11: 0.689 | I11: 0.1378
A12: 空调系统用电总合计： | G12: =G4+G5+G6+G7+G8+G9+G10+G11 -> 3710 | H12: 0.689 | I12: =I4+I5+I6+I7+I8+I9+I10+I11 -> 2556.19
A14: 电表 | B14: 三楼热泵控制柜 | C14: 2025020 50017 | D14: 39.1 | E14: 41.2 | F14: 80 | G14: 168 | H14: 0.689 | I14: 115.752
A15: 电表 | B15: 三楼变频水泵控制柜 | C15: 2024085 00211 | D15: 67.4 | E15: 73.4 | F15: 20 | G15: 120 | H15: 0.689 | I15: 82.68
A16: 电表 | B16: 洗衣房热泵 控制柜 | C16: 202502 05102 | D16: 98.8 | E16: 105.5 | F16: 20 | G16: 134 | H16: 0.689 | I16: 92.326
A17: 电表 | B17: 生活水机房变频水泵控制柜 | C17: 2025020 50063 | D17: 28.5 | E17: 31.7 | F17: 20 | G17: 64 | H17: 0.689 | I17: 44.096
A18: 热水热泵系统用电总合计： | G18: =G14+G15+G16+G17 -> 486 | H18: 0.689 | I18: =I14+I15+I16+I17 -> 334.854
A20: 水表 | B20: 三楼中、高区 热水 | C20: M9A25024017786 | D20: 338 | E20: 355 | F20: 1 | G20: =E20-D20 -> 17 | H20: 4.39 | I20: =G20*H20 -> 74.63
A21: 水表 | B21: 生活水机房群楼、厨房热水 | C21: M9A25024017857 | D21: 251 | E21: 275 | F21: 1 | G21: =E21-D21 -> 24 | H21: 4.39 | I21: =G21*H21 -> 105.36
A22: 热水热泵系统用水总合计: | G22: =G20+G21 -> 41 | H22: 4.39 | I22: =I20+I21 -> 179.99
A24: 燃气表（常用） | B24: 热水锅炉房蒸汽发生器 | D24: 8850 | E24: 8850 | F24: 1 | G24: =E24-D24 -> 0 | H24: 5.54 | I24: =G24*H24 -> 0
A25: 燃气表（备用） | B25: 热水锅炉房蒸汽发生器 | D25: 18871 | E25: 18871 | F25: 1 | G25: =(E25-D25)*F25 -> 0 | H25: 5.54 | I25: =G25*H25 -> 0
A26: 蒸汽发生器用气总合计： | G26: =G24+G25 -> 0 | H26: 5.54 | I26: =I24+I25 -> 0
A27: 电、水、气费用总合计： | G27: =I12++I18+I22+I26 -> 3071.034

Sheet 2025.4.22
A1: 梅州昌盛豪生大酒店节能改造每日能耗统计表
A2: 2025年 4 月 21 日
A3: 名称 | B3: 位置 | C3: 编号 | D3: 昨日读数 | E3: 今日读数 | F3: 倍率 | G3: 合计 | H3: 单价 | I3: 费用
A4: 电表 | B4: 磁悬浮3号空调主机 | D4: 97878 | E4: 98500 | F4: 1 | G4: =(E4-D4)*F4 -> 622 | H4: 0.689 | I4: =G4*H4 -> 428.558
A5: 电表 | B5: 变频5号冷冻泵 | D5: 20227.3 | E5: 20229 | F5: 1 | G5: 1.7 | H5: 0.689 | I5: 1.1713
A6: 电表 | B6: 4号冷冻泵 | D6: 200828.5 | E6: 201955.1 | F6: 1 | G6: =(E6-D6)*F6 -> 1126.6 | H6: 0.689 | I6: =G6*H6 -> 776.2274
A7: 电表 | B7: 变频5号冷却泵 | D7: 45746.9 | E7: 45759.9 | F7: 1 | G7: 13 | H7: 0.689 | I7: 8.957
A8: 电表 | B8: 4号冷却泵 | D8: 249497.5 | E8: 250576.3 | F8: 1 | G8: =(E8-D8)*F8 -> 1078.8 | H8: 0.689 | I8: =G8*H8 -> 743.2932
A9: 电表 | B9: 变频1号冷却塔 | D9: 143010.7 | E9: 143012.5 | F9: 1 | G9: 1.8 | H9: 0.689 | I9: 1.2402
A10: 电表 | B10: 变频2号冷却塔 | D10: 314322 | E10: 314501.5 | F10: 1 | G10: 179.5 | H10: 0.689 | I10: 123.6755
A11: 电表 | B11: 变频3号冷却塔 | D11: 293452 | E11: 293452.5 | F11: 1 | G11: 0.5 | H11: 0.689 | I11: 0.3445
A12: 空调系统用电总合计： | G12: =G4+G5+G6+G7+G8+G9+G10+G11 -> 3023.9 | H12: 0.689 | I12: =I4+I5+I6+I7+I8+I9+I10+I11 -> 2083.4671
A14: 电表 | B14: 三楼热泵控制柜 | C14: 2025020 50017 | D14: 41.2 | E14: 42.9 | F14: 80 | G14: 136 | H14: 0.689 | I14: 93.704
A15: 电表 | B15: 三楼变频水泵控制柜 | C15: 2024085 00211 | D15: 73.4 | E15: 79.6 | F15: 20 | G15: 124 | H15: 0.689 | I15: 85.436
A16: 电表 | B16: 洗衣房热泵 控制柜 | C16: 202502 05102 | D16: 105.5 | E16: 112.8 | F16: 20 | G16: 146 | H16: 0.689 | I16: 100.594
A17: 电表 | B17: 生活水机房变频水泵控制柜 | C17: 2025020 50063 | D17: 31.7 | E17: 35.7 | F17: 20 | G17: 80 | H17: 0.689 | I17: 55.12
A18: 热水热泵系统用电总合计： | G18: =G14+G15+G16+G17 -> 486 | H18: 0.689 | I18: =I14+I15+I16+I17 -> 334.854
A20: 水表 | B20: 三楼中、高区 热水 | C20: M9A25024017786 | D20: 355 | E20: 367 | F20: 1 | G20: =E20-D20 -> 12 | H20: 4.39 | I20: =G20*H20 -> 52.68
A21: 水表 | B21: 生活水机房群楼、厨房热水 | C21: M9A25024017857 | D21: 275 | E21: 292 | F21: 1 | G21: =E21-D21 -> 17 | H21: 4.39 | I21: =G21*H21 -> 74.63
A22: 热水热泵系统用水总合计: | G22: =G20+G21 -> 29 | H22: 4.39 | I22: =I20+I21 -> 127.31
A24: 燃气表（常用） | B24: 热水锅炉房蒸汽发生器 | D24: 8850 | E24: 8850 | F24: 1 | G24: =E24-D24 -> 0 | H24: 5.54 | I24: =G24*H24 -> 0
A25: 燃气表（备用） | B25: 热水锅炉房蒸汽发生器 | D25: 18871 | E25: 18871 | F25: 1 | G25: =(E25-D25)*F25 -> 0 | H25: 5.54 | I25: =G25*H25 -> 0
A26: 蒸汽发生器用气总合计： | G26: =G24+G25 -> 0 | H26: 5.54 | I26: =I24+I25 -> 0
A27: 电、水、气费用总合计： | G27: =I12++I18+I22+I26 -> 2545.6311

Sheet 2025.4.23
A1: 梅州昌盛豪生大酒店节能改造每日能耗统计表
A2: 2025年 4 月 22 日
A3: 名称 | B3: 位置 | C3: 编号 | D3: 昨日读数 | E3: 今日读数 | F3: 倍率 | G3: 合计 | H3: 单价 | I3: 费用
A4: 电表 | B4: 磁悬浮3号空调主机 | D4: 98500 | E4: 99416 | F4: 1 | G4: =(E4-D4)*F4 -> 916 | H4: 0.689 | I4: =G4*H4 -> 631.124
A5: 电表 | B5: 变频5号冷冻泵 | D5: 20229 | E5: 20231.1 | F5: 1 | G5: 2.1 | H5: 0.689 | I5: 1.4469
A6: 电表 | B6: 4号冷冻泵 | D6: 201955.1 | E6: 203249.1 | F6: 1 | G6: =(E6-D6)*F6 -> 1294 | H6: 0.689 | I6: =G6*H6 -> 891.566
A7: 电表 | B7: 变频5号冷却泵 | D7: 45759.9 | E7: 45775.2 | F7: 1 | G7: 15.3 | H7: 0.689 | I7: 10.5417
A8: 电表 | B8: 4号冷却泵 | D8: 250576.3 | E8: 251816.3 | F8: 1 | G8: =(E8-D8)*F8 -> 1240 | H8: 0.689 | I8: =G8*H8 -> 854.36
A9: 电表 | B9: 变频1号冷却塔 | D9: 143012.5 | E9: 143019.8 | F9: 1 | G9: 7.3 | H9: 0.689 | I9: 5.0297
A10: 电表 | B10: 变频2号冷却塔 | D10: 314501.5 | E10: 314697.4 | F10: 1 | G10: 195.9 | H10: 0.689 | I10: 134.9751
A11: 电表 | B11: 变频3号冷却塔 | D11: 293452.5 | E11: 293543.1 | F11: 1 | G11: 90.6 | H11: 0.689 | I11: 62.4234
A12: 空调系统用电总合计： | G12: =G4+G5+G6+G7+G8+G9+G10+G11 -> 3761.2 | H12: 0.689 | I12: =I4+I5+I6+I7+I8+I9+I10+I11 -> 2591.4668
A14: 电表 | B14: 三楼热泵控制柜 | C14: 2025020 50017 | D14: 42.9 | E14: 44.5 | F14: 80 | G14: 128 | H14: 0.689 | I14: 88.192
A15: 电表 | B15: 三楼变频水泵控制柜 | C15: 2024085 00211 | D15: 79.6 | E15: 85.9 | F15: 20 | G15: 126 | H15: 0.689 | I15: 86.814
A16: 电表 | B16: 洗衣房热泵 控制柜 | C16: 202502 05102 | D16: 112.8 | E16: 120.5 | F16: 20 | G16: 154 | H16: 0.689 | I16: 106.106
A17: 电表 | B17: 生活水机房变频水泵控制柜 | C17: 2025020 50063 | D17: 35.7 | E17: 38.9 | F17: 20 | G17: 64 | H17: 0.689 | I17: 44.096
A18: 热水热泵系统用电总合计： | G18: =G14+G15+G16+G17 -> 472 | H18: 0.689 | I18: =I14+I15+I16+I17 -> 325.208
A20: 水表 | B20: 三楼中、高区 热水 | C20: M9A25024017786 | D20: 367 | E20: 380 | F20: 1 | G20: =E20-D20 -> 13 | H20: 4.39 | I20: =G20*H20 -> 57.07
A21: 水表 | B21: 生活水机房群楼、厨房热水 | C21: M9A25024017857 | D21: 292 | E21: 308 | F21: 1 | G21: =E21-D21 -> 16 | H21: 4.39 | I21: =G21*H21 -> 70.24
A22: 热水热泵系统用水总合计: | G22: =G20+G21 -> 29 | H22: 4.39 | I22: =I20+I21 -> 127.31
A24: 燃气表（常用） | B24: 热水锅炉房蒸汽发生器 | D24: 8850 | E24: 8850 | F24: 1 | G24: =E24-D24 -> 0 | H24: 5.54 | I24: =G24*H24 -> 0
A25: 燃气表（备用） | B25: 热水锅炉房蒸汽发生器 | D25: 18871 | E25: 18871 | F25: 1 | G25: =(E25-D25)*F25 -> 0 | H25: 5.54 | I25: =G25*H25 -> 0
A26: 蒸汽发生器用气总合计： | G26: =G24+G25 -> 0 | H26: 5.54 | I26: =I24+I25 -> 0
A27: 电、水、气费用总合计： | G27: =I12++I18+I22+I26 -> 3043.9848

Sheet 2025.4.24
A1: 梅州昌盛豪生大酒店节能改造每日能耗统计表
A2: 2025年 4 月 23 日
A3: 名称 | B3: 位置 | C3: 编号 | D3: 昨日读数 | E3: 今日读数 | F3: 倍率 | G3: 合计 | H3: 单价 | I3: 费用
A4: 电表 | B4: 磁悬浮3号空调主机 | D4: 99416 | E4: 100712 | F4: 1 | G4: =(E4-D4)*F4 -> 1296 | H4: 0.689 | I4: =G4*H4 -> 892.944
A5: 电表 | B5: 变频5号冷冻泵 | D5: 20231.1 | E5: 20233.1 | F5: 1 | G5: 2 | H5: 0.689 | I5: 1.378
A6: 电表 | B6: 4号冷冻泵 | D6: 203249.1 | E6: 204515.8 | F6: 1 | G6: =(E6-D6)*F6 -> 1266.7 | H6: 0.689 | I6: =G6*H6 -> 872.7563
A7: 电表 | B7: 变频5号冷却泵 | D7: 45775.2 | E7: 45789.1 | F7: 1 | G7: 13.9 | H7: 0.689 | I7: 9.5771
A8: 电表 | B8: 4号冷却泵 | D8: 251816.3 | E8: 252937.5 | F8: 1 | G8: =(E8-D8)*F8 -> 1121.2 | H8: 0.689 | I8: =G8*H8 -> 772.5068
A9: 电表 | B9: 变频1号冷却塔 | D9: 143019.8 | E9: 143028 | F9: 1 | G9: 8.2 | H9: 0.689 | I9: 5.6498
A10: 电表 | B10: 变频2号冷却塔 | D10: 314697.4 | E10: 314876.9 | F10: 1 | G10: 179.5 | H10: 0.689 | I10: 123.6755
A11: 电表 | B11: 变频3号冷却塔 | D11: 293543.1 | E11: 293717.6 | F11: 1 | G11: 174.5 | H11: 0.689 | I11: 120.2305
A12: 空调系统用电总合计： | G12: =G4+G5+G6+G7+G8+G9+G10+G11 -> 4062 | H12: 0.689 | I12: =I4+I5+I6+I7+I8+I9+I10+I11 -> 2798.718
A14: 电表 | B14: 三楼热泵控制柜 | C14: 2025020 50017 | D14: 44.5 | E14: 46.2 | F14: 80 | G14: 136 | H14: 0.689 | I14: 93.704
A15: 电表 | B15: 三楼变频水泵控制柜 | C15: 2024085 00211 | D15: 85.9 | E15: 92.3 | F15: 20 | G15: 128 | H15: 0.689 | I15: 88.192
A16: 电表 | B16: 洗衣房热泵 控制柜 | C16: 202502 05102 | D16: 120.5 | E16: 128.1 | F16: 20 | G16: 152 | H16: 0.689 | I16: 104.728
A17: 电表 | B17: 生活水机房变频水泵控制柜 | C17: 2025020 50063 | D17: 38.9 | E17: 42.4 | F17: 20 | G17: 70 | H17: 0.689 | I17: 48.23
A18: 热水热泵系统用电总合计： | G18: =G14+G15+G16+G17 -> 486 | H18: 0.689 | I18: =I14+I15+I16+I17 -> 334.854
A20: 水表 | B20: 三楼中、高区 热水 | C20: M9A25024017786 | D20: 380 | E20: 396 | F20: 1 | G20: =E20-D20 -> 16 | H20: 4.39 | I20: =G20*H20 -> 70.24
A21: 水表 | B21: 生活水机房群楼、厨房热水 | C21: M9A25024017857 | D21: 308 | E21: 326 | F21: 1 | G21: =E21-D21 -> 18 | H21: 4.39 | I21: =G21*H21 -> 79.02
A22: 热水热泵系统用水总合计: | G22: =G20+G21 -> 34 | H22: 4.39 | I22: =I20+I21 -> 149.26
A24: 燃气表（常用） | B24: 热水锅炉房蒸汽发生器 | D24: 8850 | E24: 8850 | F24: 1 | G24: =E24-D24 -> 0 | H24: 5.54 | I24: =G24*H24 -> 0
A25: 燃气表（备用） | B25: 热水锅炉房蒸汽发生器 | D25: 18871 | E25: 18871 | F25: 1 | G25: =(E25-D25)*F25 -> 0 | H25: 5.54 | I25: =G25*H25 -> 0
A26: 蒸汽发生器用气总合计： | G26: =G24+G25 -> 0 | H26: 5.54 | I26: =I24+I25 -> 0
A27: 电、水、气费用总合计： | G27: =I12++I18+I22+I26 -> 3282.832

Sheet 2025.4.25
A1: 梅州昌盛豪生大酒店节能改造每日能耗统计表
A2: 2025年 4 月 24 日
A3: 名称 | B3: 位置 | C3: 编号 | D3: 昨日读数 | E3: 今日读数 | F3: 倍率 | G3: 合计 | H3: 单价 | I3: 费用
A4: 电表 | B4: 磁悬浮3号空调主机 | D4: 100712 | E4: 102224 | F4: 1 | G4: =(E4-D4)*F4 -> 1512 | H4: 0.689 | I4: =G4*H4 -> 1041.768
A5: 电表 | B5: 变频5号冷冻泵 | D5: 20233.1 | E5: 20235.1 | F5: 1 | G5: 2 | H5: 0.689 | I5: 1.378
A6: 电表 | B6: 4号冷冻泵 | D6: 204515.8 | E6: 205706.3 | F6: 1 | G6: =(E6-D6)*F6 -> 1190.5 | H6: 0.689 | I6: =G6*H6 -> 820.2545
A7: 电表 | B7: 变频5号冷却泵 | D7: 45789.1 | E7: 45804.4 | F7: 1 | G7: 15.3 | H7: 0.689 | I7: 10.5417
A8: 电表 | B8: 4号冷却泵 | D8: 252937.5 | E8: 253979.8 | F8: 1 | G8: =(E8-D8)*F8 -> 1042.3 | H8: 0.689 | I8: =G8*H8 -> 718.1447
A9: 电表 | B9: 变频1号冷却塔 | D9: 143028 | E9: 143090.6 | F9: 1 | G9: 62.6 | H9: 0.689 | I9: 43.1314
A10: 电表 | B10: 变频2号冷却塔 | D10: 314876.9 | E10: 314998.3 | F10: 1 | G10: 121.4 | H10: 0.689 | I10: 83.6446
A11: 电表 | B11: 变频3号冷却塔 | D11: 293717.6 | E11: 293804.2 | F11: 1 | G11: 86.6 | H11: 0.689 | I11: 59.6674
A12: 空调系统用电总合计： | G12: =G4+G5+G6+G7+G8+G9+G10+G11 -> 4032.7 | H12: 0.689 | I12: =I4+I5+I6+I7+I8+I9+I10+I11 -> 2778.5303
A14: 电表 | B14: 三楼热泵控制柜 | C14: 2025020 50017 | D14: 46.2 | E14: 48.6 | F14: 80 | G14: 192 | H14: 0.689 | I14: 132.288
A15: 电表 | B15: 三楼变频水泵控制柜 | C15: 2024085 00211 | D15: 92.3 | E15: 98.6 | F15: 20 | G15: 126 | H15: 0.689 | I15: 86.814
A16: 电表 | B16: 洗衣房热泵 控制柜 | C16: 202502 05102 | D16: 128.1 | E16: 135.4 | F16: 20 | G16: 146 | H16: 0.689 | I16: 100.594
A17: 电表 | B17: 生活水机房变频水泵控制柜 | C17: 2025020 50063 | D17: 42.4 | E17: 46 | F17: 20 | G17: 72 | H17: 0.689 | I17: 49.608
A18: 热水热泵系统用电总合计： | G18: =G14+G15+G16+G17 -> 536 | H18: 0.689 | I18: =I14+I15+I16+I17 -> 369.304
A20: 水表 | B20: 三楼中、高区 热水 | C20: M9A25024017786 | D20: 396 | E20: 415 | F20: 1 | G20: =E20-D20 -> 19 | H20: 4.39 | I20: =G20*H20 -> 83.41
A21: 水表 | B21: 生活水机房群楼、厨房热水 | C21: M9A25024017857 | D21: 326 | E21: 344 | F21: 1 | G21: =E21-D21 -> 18 | H21: 4.39 | I21: =G21*H21 -> 79.02
A22: 热水热泵系统用水总合计: | G22: =G20+G21 -> 37 | H22: 4.39 | I22: =I20+I21 -> 162.43
A24: 燃气表（常用） | B24: 热水锅炉房蒸汽发生器 | D24: 8850 | E24: 8850 | F24: 1 | G24: =E24-D24 -> 0 | H24: 5.54 | I24: =G24*H24 -> 0
A25: 燃气表（备用） | B25: 热水锅炉房蒸汽发生器 | D25: 18871 | E25: 18871 | F25: 1 | G25: =(E25-D25)*F25 -> 0 | H25: 5.54 | I25: =G25*H25 -> 0
A26: 蒸汽发生器用气总合计： | G26: =G24+G25 -> 0 | H26: 5.54 | I26: =I24+I25 -> 0
A27: 电、水、气费用总合计： | G27: =I12++I18+I22+I26 -> 3310.2643

Sheet 2025.4.26
A1: 梅州昌盛豪生大酒店节能改造每日能耗统计表
A2: 2025年 4 月 25 日
A3: 名称 | B3: 位置 | C3: 编号 | D3: 昨日读数 | E3: 今日读数 | F3: 倍率 | G3: 合计 | H3: 单价 | I3: 费用
A4: 电表 | B4: 磁悬浮3号空调主机 | D4: 102224 | E4: 103344 | F4: 1 | G4: =(E4-D4)*F4 -> 1120 | H4: 0.689 | I4: =G4*H4 -> 771.68
A5: 电表 | B5: 变频5号冷冻泵 | D5: 20235.1 | E5: 20236.9 | F5: 1 | G5: 1.8 | H5: 0.689 | I5: 1.2402
A6: 电表 | B6: 4号冷冻泵 | D6: 205706.3 | E6: 206812.6 | F6: 1 | G6: =(E6-D6)*F6 -> 1106.3 | H6: 0.689 | I6: =G6*H6 -> 762.2407
A7: 电表 | B7: 变频5号冷却泵 | D7: 45804.4 | E7: 45818.4 | F7: 1 | G7: 14 | H7: 0.689 | I7: 9.646
A8: 电表 | B8: 4号冷却泵 | D8: 253979.8 | E8: 254916.8 | F8: 1 | G8: =(E8-D8)*F8 -> 937 | H8: 0.689 | I8: =G8*H8 -> 645.593
A9: 电表 | B9: 变频1号冷却塔 | D9: 143090.6 | E9: 143092.4 | F9: 1 | G9: 1.8 | H9: 0.689 | I9: 1.2402
A10: 电表 | B10: 变频2号冷却塔 | D10: 314998.3 | E10: 315155.1 | F10: 1 | G10: 156.8 | H10: 0.689 | I10: 108.0352
A11: 电表 | B11: 变频3号冷却塔 | D11: 293804.2 | E11: 293804.4 | F11: 1 | G11: 0.2 | H11: 0.689 | I11: 0.1378
A12: 空调系统用电总合计： | G12: =G4+G5+G6+G7+G8+G9+G10+G11 -> 3337.9 | H12: 0.689 | I12: =I4+I5+I6+I7+I8+I9+I10+I11 -> 2299.8131
A14: 电表 | B14: 三楼热泵控制柜 | C14: 2025020 50017 | D14: 48.6 | E14: 51.1 | F14: 80 | G14: 200 | H14: 0.689 | I14: 137.8
A15: 电表 | B15: 三楼变频水泵控制柜 | C15: 2024085 00211 | D15: 98.6 | E15: 104.9 | F15: 20 | G15: 126 | H15: 0.689 | I15: 86.814
A16: 电表 | B16: 洗衣房热泵 控制柜 | C16: 202502 05102 | D16: 135.4 | E16: 146.3 | F16: 20 | G16: 218 | H16: 0.689 | I16: 150.202
A17: 电表 | B17: 生活水机房变频水泵控制柜 | C17: 2025020 50063 | D17: 46 | E17: 49.6 | F17: 20 | G17: 72 | H17: 0.689 | I17: 49.608
A18: 热水热泵系统用电总合计： | G18: =G14+G15+G16+G17 -> 616 | H18: 0.689 | I18: =I14+I15+I16+I17 -> 424.424
A20: 水表 | B20: 三楼中、高区 热水 | C20: M9A25024017786 | D20: 415 | E20: 436 | F20: 1 | G20: =E20-D20 -> 21 | H20: 4.39 | I20: =G20*H20 -> 92.19
A21: 水表 | B21: 生活水机房群楼、厨房热水 | C21: M9A25024017857 | D21: 344 | E21: 371 | F21: 1 | G21: =E21-D21 -> 27 | H21: 4.39 | I21: =G21*H21 -> 118.53
A22: 热水热泵系统用水总合计: | G22: =G20+G21 -> 48 | H22: 4.39 | I22: =I20+I21 -> 210.72
A24: 燃气表（常用） | B24: 热水锅炉房蒸汽发生器 | D24: 8850 | E24: 8850 | F24: 1 | G24: =E24-D24 -> 0 | H24: 5.54 | I24: =G24*H24 -> 0
A25: 燃气表（备用） | B25: 热水锅炉房蒸汽发生器 | D25: 18871 | E25: 18871 | F25: 1 | G25: =(E25-D25)*F25 -> 0 | H25: 5.54 | I25: =G25*H25 -> 0
A26: 蒸汽发生器用气总合计： | G26: =G24+G25 -> 0 | H26: 5.54 | I26: =I24+I25 -> 0
A27: 电、水、气费用总合计： | G27: =I12++I18+I22+I26 -> 2934.9571

Sheet 2025.4.27
A1: 梅州昌盛豪生大酒店节能改造每日能耗统计表
A2: 2025年 4 月 26 日
A3: 名称 | B3: 位置 | C3: 编号 | D3: 昨日读数 | E3: 今日读数 | F3: 倍率 | G3: 合计 | H3: 单价 | I3: 费用
A4: 电表 | B4: 磁悬浮3号空调主机 | D4: 103344 | E4: 104402 | F4: 1 | G4: =(E4-D4)*F4 -> 1058 | H4: 0.689 | I4: =G4*H4 -> 728.962
A5: 电表 | B5: 变频5号冷冻泵 | D5: 20236.9 | E5: 20238.6 | F5: 1 | G5: 1.7 | H5: 0.689 | I5: 1.1713
A6: 电表 | B6: 4号冷冻泵 | D6: 206812.6 | E6: 208094.4 | F6: 1 | G6: =(E6-D6)*F6 -> 1281.8 | H6: 0.689 | I6: =G6*H6 -> 883.1602
A7: 电表 | B7: 变频5号冷却泵 | D7: 45818.4 | E7: 45833.2 | F7: 1 | G7: 14.8 | H7: 0.689 | I7: 10.1972
A8: 电表 | B8: 4号冷却泵 | D8: 254916.8 | E8: 256023.3 | F8: 1 | G8: =(E8-D8)*F8 -> 1106.5 | H8: 0.689 | I8: =G8*H8 -> 762.3785
A9: 电表 | B9: 变频1号冷却塔 | D9: 143092.4 | E9: 143094.9 | F9: 1 | G9: 2.5 | H9: 0.689 | I9: 1.7225
A10: 电表 | B10: 变频2号冷却塔 | D10: 315155.1 | E10: 315340.3 | F10: 1 | G10: 185.2 | H10: 0.689 | I10: 127.6028
A11: 电表 | B11: 变频3号冷却塔 | D11: 293804.4 | E11: 293804.8 | F11: 1 | G11: 0.4 | H11: 0.689 | I11: 0.2756
A12: 空调系统用电总合计： | G12: =G4+G5+G6+G7+G8+G9+G10+G11 -> 3650.9 | H12: 0.689 | I12: =I4+I5+I6+I7+I8+I9+I10+I11 -> 2515.4701
A14: 电表 | B14: 三楼热泵控制柜 | C14: 2025020 50017 | D14: 51.1 | E14: 53.6 | F14: 80 | G14: 200 | H14: 0.689 | I14: 137.8
A15: 电表 | B15: 三楼变频水泵控制柜 | C15: 2024085 00211 | D15: 104.9 | E15: 111.2 | F15: 20 | G15: 126 | H15: 0.689 | I15: 86.814
A16: 电表 | B16: 洗衣房热泵 控制柜 | C16: 202502 05102 | D16: 146.3 | E16: 156.4 | F16: 20 | G16: 202 | H16: 0.689 | I16: 139.178
A17: 电表 | B17: 生活水机房变频水泵控制柜 | C17: 2025020 50063 | D17: 49.6 | E17: 52.8 | F17: 20 | G17: 64 | H17: 0.689 | I17: 44.096
A18: 热水热泵系统用电总合计： | G18: =G14+G15+G16+G17 -> 592 | H18: 0.689 | I18: =I14+I15+I16+I17 -> 407.888
A20: 水表 | B20: 三楼中、高区 热水 | C20: M9A25024017786 | D20: 436 | E20: 454 | F20: 1 | G20: =E20-D20 -> 18 | H20: 4.39 | I20: =G20*H20 -> 79.02
A21: 水表 | B21: 生活水机房群楼、厨房热水 | C21: M9A25024017857 | D21: 371 | E21: 396 | F21: 1 | G21: =E21-D21 -> 25 | H21: 4.39 | I21: =G21*H21 -> 109.75
A22: 热水热泵系统用水总合计: | G22: =G20+G21 -> 43 | H22: 4.39 | I22: =I20+I21 -> 188.77
A24: 燃气表（常用） | B24: 热水锅炉房蒸汽发生器 | D24: 8850 | E24: 9012 | F24: 1 | G24: =E24-D24 -> 162 | H24: 5.54 | I24: =G24*H24 -> 897.48
A25: 燃气表（备用） | B25: 热水锅炉房蒸汽发生器 | D25: 18871 | E25: 18871 | F25: 1 | G25: =(E25-D25)*F25 -> 0 | H25: 5.54 | I25: =G25*H25 -> 0
A26: 蒸汽发生器用气总合计： | G26: =G24+G25 -> 162 | H26: 5.54 | I26: =I24+I25 -> 897.48
A27: 电表 | B27: 热水锅炉房蒸汽发生器 | C27: 202011 500026 | D27: 29 | E27: 31.1 | F27: 1 | G27: =(E27-D27)*F27 -> 2.1 | H27: 0.689 | I27: =G27*H27 -> 1.4469
A28: 蒸汽发生器用电总合计： | G28: =G27 -> 2.1 | H28: 0.689 | I28: =G28*H28 -> 1.4469
A29: 水表 | B29: 热水锅炉房蒸汽发生器 | C29: F1A150610796 | D29: 50 | E29: 51 | F29: 1 | G29: =E29-D29 -> 1 | H29: 4.39 | I29: =G29*H29 -> 4.39
A30: 蒸汽发生器用水总合计: | G30: =G29 -> 1 | H30: 4.39 | I30: =G30*H30 -> 4.39
A31: 电、水、气费用总合计： | G31: =I12++I18+I22+I26+I28+I30 -> 4015.445

Sheet 2025.4.28
A1: 梅州昌盛豪生大酒店节能改造每日能耗统计表
A2: 2025年 4 月 27 日
A3: 名称 | B3: 位置 | C3: 编号 | D3: 昨日读数 | E3: 今日读数 | F3: 倍率 | G3: 合计 | H3: 单价 | I3: 费用
A4: 电表 | B4: 磁悬浮3号空调主机 | D4: 104402 | E4: 105568 | F4: 1 | G4: =(E4-D4)*F4 -> 1166 | H4: 0.689 | I4: =G4*H4 -> 803.374
A5: 电表 | B5: 变频5号冷冻泵 | D5: 20238.6 | E5: 20240.9 | F5: 1 | G5: 2.3 | H5: 0.689 | I5: 1.5847
A6: 电表 | B6: 4号冷冻泵 | D6: 208094.4 | E6: 209351.9 | F6: 1 | G6: =(E6-D6)*F6 -> 1257.5 | H6: 0.689 | I6: =G6*H6 -> 866.4175
A7: 电表 | B7: 变频5号冷却泵 | D7: 45833.2 | E7: 45848.4 | F7: 1 | G7: 15.2 | H7: 0.689 | I7: 10.4728
A8: 电表 | B8: 4号冷却泵 | D8: 256023.3 | E8: 257082.1 | F8: 1 | G8: =(E8-D8)*F8 -> 1058.8 | H8: 0.689 | I8: =G8*H8 -> 729.5132
A9: 电表 | B9: 变频1号冷却塔 | D9: 143094.9 | E9: 143101.4 | F9: 1 | G9: 6.5 | H9: 0.689 | I9: 4.4785
A10: 电表 | B10: 变频2号冷却塔 | D10: 315340.3 | E10: 315418.6 | F10: 1 | G10: 78.3 | H10: 0.689 | I10: 53.9487
A11: 电表 | B11: 变频3号冷却塔 | D11: 293804.8 | E11: 293940 | F11: 1 | G11: 135.2 | H11: 0.689 | I11: 93.1528
A12: 空调系统用电总合计： | G12: =G4+G5+G6+G7+G8+G9+G10+G11 -> 3719.8 | H12: 0.689 | I12: =I4+I5+I6+I7+I8+I9+I10+I11 -> 2562.9422
A14: 电表 | B14: 三楼热泵控制柜 | C14: 2025020 50017 | D14: 53.6 | E14: 55.5 | F14: 80 | G14: 152 | H14: 0.689 | I14: 104.728
A15: 电表 | B15: 三楼变频水泵控制柜 | C15: 2024085 00211 | D15: 111.2 | E15: 117 | F15: 20 | G15: 116 | H15: 0.689 | I15: 79.924
A16: 电表 | B16: 洗衣房热泵 控制柜 | C16: 202502 05102 | D16: 156.4 | E16: 167.3 | F16: 20 | G16: 218 | H16: 0.689 | I16: 150.202
A17: 电表 | B17: 生活水机房变频水泵控制柜 | C17: 2025020 50063 | D17: 52.8 | E17: 56.5 | F17: 20 | G17: 74 | H17: 0.689 | I17: 50.986
A18: 热水热泵系统用电总合计： | G18: =G14+G15+G16+G17 -> 560 | H18: 0.689 | I18: =I14+I15+I16+I17 -> 385.84
A20: 水表 | B20: 三楼中、高区 热水 | C20: M9A25024017786 | D20: 454 | E20: 471 | F20: 1 | G20: =E20-D20 -> 17 | H20: 4.39 | I20: =G20*H20 -> 74.63
A21: 水表 | B21: 生活水机房群楼、厨房热水 | C21: M9A25024017857 | D21: 396 | E21: 426 | F21: 1 | G21: =E21-D21 -> 30 | H21: 4.39 | I21: =G21*H21 -> 131.7
A22: 热水热泵系统用水总合计: | G22: =G20+G21 -> 47 | H22: 4.39 | I22: =I20+I21 -> 206.33
A24: 燃气表（常用） | B24: 热水锅炉房蒸汽发生器 | D24: 9012 | E24: 9257 | F24: 1 | G24: =E24-D24 -> 245 | H24: 5.54 | I24: =G24*H24 -> 1357.3
A25: 燃气表（备用） | B25: 热水锅炉房蒸汽发生器 | D25: 18871 | E25: 18871 | F25: 1 | G25: =(E25-D25)*F25 -> 0 | H25: 5.54 | I25: =G25*H25 -> 0
A26: 蒸汽发生器用气总合计： | G26: =G24+G25 -> 245 | H26: 5.54 | I26: =I24+I25 -> 1357.3
A27: 电表 | B27: 热水锅炉房蒸汽发生器 | C27: 202011 500026 | D27: 31.1 | E27: 50.9 | F27: 1 | G27: =(E27-D27)*F27 -> 19.8 | H27: 0.689 | I27: =G27*H27 -> 13.6422
A28: 蒸汽发生器用电总合计： | G28: =G27 -> 19.8 | H28: 0.689 | I28: =G28*H28 -> 13.6422
A29: 水表 | B29: 热水锅炉房蒸汽发生器 | C29: F1A150610796 | D29: 51 | E29: 61 | F29: 1 | G29: =E29-D29 -> 10 | H29: 4.39 | I29: =G29*H29 -> 43.9
A30: 蒸汽发生器用水总合计: | G30: =G29 -> 10 | H30: 4.39 | I30: =G30*H30 -> 43.9
A31: 电、水、气费用总合计： | G31: =I12++I18+I22+I26+I28+I30 -> 4569.9544

Sheet 2025.4.29
A1: 梅州昌盛豪生大酒店节能改造每日能耗统计表
A2: 2025年 4 月 28 日
A3: 名称 | B3: 位置 | C3: 编号 | D3: 昨日读数 | E3: 今日读数 | F3: 倍率 | G3: 合计 | H3: 单价 | I3: 费用
A4: 电表 | B4: 磁悬浮3号空调主机 | D4: 105568 | E4: 106511 | F4: 1 | G4: =(E4-D4)*F4 -> 943 | H4: 0.689 | I4: =G4*H4 -> 649.727
A5: 电表 | B5: 变频5号冷冻泵 | D5: 20240.9 | E5: 20327.7 | F5: 1 | G5: 86.8 | H5: 0.689 | I5: 59.8052
A6: 电表 | B6: 4号冷冻泵 | D6: 209351.9 | E6: 210372.7 | F6: 1 | G6: =(E6-D6)*F6 -> 1020.8 | H6: 0.689 | I6: =G6*H6 -> 703.3312
A7: 电表 | B7: 变频5号冷却泵 | D7: 45848.4 | E7: 45891 | F7: 1 | G7: 42.6 | H7: 0.689 | I7: 29.3514
A8: 电表 | B8: 4号冷却泵 | D8: 257082.1 | E8: 257911 | F8: 1 | G8: =(E8-D8)*F8 -> 828.9 | H8: 0.689 | I8: =G8*H8 -> 571.1121
A9: 电表 | B9: 变频1号冷却塔 | D9: 143101.4 | E9: 143103.2 | F9: 1 | G9: 1.8 | H9: 0.689 | I9: 1.2402
A10: 电表 | B10: 变频2号冷却塔 | D10: 315418.6 | E10: 315573.6 | F10: 1 | G10: 155 | H10: 0.689 | I10: 106.795
A11: 电表 | B11: 变频3号冷却塔 | D11: 293940 | E11: 294094 | F11: 1 | G11: 154 | H11: 0.689 | I11: 106.106
A12: 空调系统用电总合计： | G12: =G4+G5+G6+G7+G8+G9+G10+G11 -> 3232.9 | H12: 0.689 | I12: =I4+I5+I6+I7+I8+I9+I10+I11 -> 2227.4681
A14: 电表 | B14: 三楼热泵控制柜 | C14: 2025020 50017 | D14: 55.5 | E14: 58 | F14: 80 | G14: 200 | H14: 0.689 | I14: 137.8
A15: 电表 | B15: 三楼变频水泵控制柜 | C15: 2024085 00211 | D15: 117 | E15: 123.7 | F15: 20 | G15: 134 | H15: 0.689 | I15: 92.326
A16: 电表 | B16: 洗衣房热泵 控制柜 | C16: 202502 05102 | D16: 167.3 | E16: 176 | F16: 20 | G16: 174 | H16: 0.689 | I16: 119.886
A17: 电表 | B17: 生活水机房变频水泵控制柜 | C17: 2025020 50063 | D17: 56.5 | E17: 60.3 | F17: 20 | G17: 76 | H17: 0.689 | I17: 52.364
A18: 热水热泵系统用电总合计： | G18: =G14+G15+G16+G17 -> 584 | H18: 0.689 | I18: =I14+I15+I16+I17 -> 402.376
A20: 水表 | B20: 三楼中、高区 热水 | C20: M9A25024017786 | D20: 471 | E20: 496 | F20: 1 | G20: =E20-D20 -> 25 | H20: 4.39 | I20: =G20*H20 -> 109.75
A21: 水表 | B21: 生活水机房群楼、厨房热水 | C21: M9A25024017857 | D21: 426 | E21: 450 | F21: 1 | G21: =E21-D21 -> 24 | H21: 4.39 | I21: =G21*H21 -> 105.36
A22: 热水热泵系统用水总合计: | G22: =G20+G21 -> 49 | H22: 4.39 | I22: =I20+I21 -> 215.11
A24: 燃气表（常用） | B24: 热水锅炉房蒸汽发生器 | D24: 9257 | E24: 9477 | F24: 1 | G24: =E24-D24 -> 220 | H24: 5.54 | I24: =G24*H24 -> 1218.8
A25: 燃气表（备用） | B25: 热水锅炉房蒸汽发生器 | D25: 18871 | E25: 18871 | F25: 1 | G25: =(E25-D25)*F25 -> 0 | H25: 5.54 | I25: =G25*H25 -> 0
A26: 蒸汽发生器用气总合计： | G26: =G24+G25 -> 220 | H26: 5.54 | I26: =I24+I25 -> 1218.8
A27: 电表 | B27: 热水锅炉房蒸汽发生器 | C27: 202011 500026 | D27: 50.9 | E27: 68 | F27: 1 | G27: =(E27-D27)*F27 -> 17.1 | H27: 0.689 | I27: =G27*H27 -> 11.7819
A28: 蒸汽发生器用电总合计： | G28: =G27 -> 17.1 | H28: 0.689 | I28: =G28*H28 -> 11.7819
A29: 水表 | B29: 热水锅炉房蒸汽发生器 | C29: F1A150610796 | D29: 61 | E29: 73 | F29: 1 | G29: =E29-D29 -> 12 | H29: 4.39 | I29: =G29*H29 -> 52.68
A30: 蒸汽发生器用水总合计: | G30: =G29 -> 12 | H30: 4.39 | I30: =G30*H30 -> 52.68
A31: 电、水、气费用总合计： | G31: =I12++I18+I22+I26+I28+I30 -> 4128.216

Sheet 2025.4.30
A1: 梅州昌盛豪生大酒店节能改造每日能耗统计表
A2: 2025年 4 月 29 日
A3: 名称 | B3: 位置 | C3: 编号 | D3: 昨日读数 | E3: 今日读数 | F3: 倍率 | G3: 合计 | H3: 单价 | I3: 费用
A4: 电表 | B4: 磁悬浮3号空调主机 | D4: 106511 | E4: 107378 | F4: 1 | G4: =(E4-D4)*F4 -> 867 | H4: 0.689 | I4: =G4*H4 -> 597.363
A5: 电表 | B5: 变频5号冷冻泵 | D5: 20327.7 | E5: 20329.9 | F5: 1 | G5: 2.2 | H5: 0.689 | I5: 1.5158
A6: 电表 | B6: 4号冷冻泵 | D6: 210372.7 | E6: 211654.9 | F6: 1 | G6: =(E6-D6)*F6 -> 1282.2 | H6: 0.689 | I6: =G6*H6 -> 883.4358
A7: 电表 | B7: 变频5号冷却泵 | D7: 45891 | E7: 46135.4 | F7: 1 | G7: 244.4 | H7: 0.689 | I7: 168.3916
A8: 电表 | B8: 4号冷却泵 | D8: 257911 | E8: 258121 | F8: 1 | G8: =(E8-D8)*F8 -> 210 | H8: 0.689 | I8: =G8*H8 -> 144.69
A9: 电表 | B9: 变频1号冷却塔 | D9: 143103.2 | E9: 143105.2 | F9: 1 | G9: 2 | H9: 0.689 | I9: 1.378
A10: 电表 | B10: 变频2号冷却塔 | D10: 315573.6 | E10: 315653 | F10: 1 | G10: 79.4 | H10: 0.689 | I10: 54.7066
A11: 电表 | B11: 变频3号冷却塔 | D11: 294094 | E11: 294288.9 | F11: 1 | G11: 194.9 | H11: 0.689 | I11: 134.2861
A12: 空调系统用电总合计： | G12: =G4+G5+G6+G7+G8+G9+G10+G11 -> 2882.1 | H12: 0.689 | I12: =I4+I5+I6+I7+I8+I9+I10+I11 -> 1985.7669
A14: 电表 | B14: 三楼热泵控制柜 | C14: 2025020 50017 | D14: 58 | E14: 61.3 | F14: 80 | G14: 264 | H14: 0.689 | I14: 181.896
A15: 电表 | B15: 三楼变频水泵控制柜 | C15: 2024085 00211 | D15: 123.7 | E15: 130.6 | F15: 20 | G15: 138 | H15: 0.689 | I15: 95.082
A16: 电表 | B16: 洗衣房热泵控制柜 | C16: 202502 05102 | D16: 176 | E16: 184.3 | F16: 20 | G16: 166 | H16: 0.689 | I16: 114.374
A17: 电表 | B17: 群楼中厨水泵控制柜 | C17: 2025020 50063 | D17: 60.3 | E17: 64.2 | F17: 20 | G17: 78 | H17: 0.689 | I17: 53.742
A18: 热水热泵系统用电总合计： | G18: =G14+G15+G16+G17 -> 646 | H18: 0.689 | I18: =I14+I15+I16+I17 -> 445.094
A20: 水表 | B20: 空调冷冻水 | F20: 1 | G20: =E20-D20 -> 0 | H20: 4.39 | I20: =G20*H20 -> 0
A21: 水表 | B21: 空调冷却水 | F21: 1 | G21: =E21-D21 -> 0 | H21: 4.39 | I21: =G21*H21 -> 0
A22: 水表 | B22: 三楼中、高区热水 | C22: M9A25024017786 | D22: 496 | E22: 532 | F22: 1 | G22: =E22-D22 -> 36 | H22: 4.39 | I22: =G22*H22 -> 158.04
A23: 水表 | B23: 群楼、中厨房热水 | C23: M9A25024017857 | D23: 450 | E23: 475 | F23: 1 | G23: =E23-D23 -> 25 | H23: 4.39 | I23: =G23*H23 -> 109.75
A24: 热水热泵系统用水总合计: | G24: =G22+G23+G21+G20 -> 61 | H24: 4.39 | I24: =I22+I23+I21+I20 -> 267.79
A26: 燃气表（常用） | B26: 蒸汽发生器+采暖 | D26: 9477 | E26: 9692 | F26: 1 | G26: =E26-D26 -> 215 | H26: 5.54 | I26: =G26*H26 -> 1191.1
A27: 燃气表（备用） | B27: 蒸汽发生器+采暖 | D27: 18871 | E27: 18871 | F27: 1 | G27: =(E27-D27)*F27 -> 0 | H27: 5.54 | I27: =G27*H27 -> 0
A28: 蒸汽发生器+采暖用气总合计： | G28: =G26+G27 -> 215 | H28: 5.54 | I28: =I26+I27 -> 1191.1
A29: 电表 | B29: 蒸汽发生器+采暖 | C29: 202011 500026 | D29: 68 | E29: 86 | F29: 1 | G29: =(E29-D29)*F29 -> 18 | H29: 0.689 | I29: =G29*H29 -> 12.402
A30: 蒸汽发生器+采暖用电总合计： | G30: =G29 -> 18 | H30: 0.689 | I30: =G30*H30 -> 12.402
A31: 水表 | B31: 蒸汽发生器+采暖 | C31: F1A150610796 | D31: 73 | E31: 85.8 | F31: 1 | G31: =E31-D31 -> 12.8 | H31: 4.39 | I31: =G31*H31 -> 56.192
A32: 蒸汽发生器用水总合计: | G32: =G31 -> 12.8 | H32: 4.39 | I32: =G32*H32 -> 56.192
A33: 水、电、气费用总合计（水/电/气价预估单价,单价需以实际缴费为准）： | G33: =I12++I18+I24+I28+I30+I32 -> 3958.3449
A35: 流量计量表 | B35: 分项 | C35: 昨日流量 | E35: 今日流量 | G35: 用量 | H35: 备注
B36: 中央空调冷冻流量 | G36: =E36-C36 -> 0
B37: 中央空调冷却流量 | G37: =E37-C37 -> 0
B38: 中央空调采暖流量 | G38: =E38-C38 -> 0
B39: 蒸汽流量 | G39: =E39-C39 -> 0

Sheet 2025.5.1
A1: 梅州昌盛豪生大酒店节能改造每日能耗统计表
A2: 2025年4 月 30 日
A3: 名称 | B3: 位置 | C3: 编号 | D3: 昨日读数 | E3: 今日读数 | F3: 倍率 | G3: 合计 | H3: 单价 | I3: 费用
A4: 电表 | B4: 磁悬浮3号空调主机 | D4: 107378 | E4: 108212 | F4: 1 | G4: =(E4-D4)*F4 -> 834 | H4: 0.689 | I4: =G4*H4 -> 574.626
A5: 电表 | B5: 变频5号冷冻泵 | D5: 20329.9 | E5: 20721.7 | F5: 1 | G5: 391.8 | H5: 0.689 | I5: 269.9502
A6: 电表 | B6: 4号冷冻泵 | D6: 211654.9 | E6: 211841.7 | F6: 1 | G6: =(E6-D6)*F6 -> 186.8 | H6: 0.689 | I6: =G6*H6 -> 128.7052
A7: 电表 | B7: 变频5号冷却泵 | D7: 46135.4 | E7: 46491.3 | F7: 1 | G7: 355.9 | H7: 0.689 | I7: 245.2151
A8: 电表 | B8: 4号冷却泵 | D8: 258121 | E8: 258121 | F8: 1 | G8: =(E8-D8)*F8 -> 0 | H8: 0.689 | I8: =G8*H8 -> 0
A9: 电表 | B9: 变频1号冷却塔 | D9: 143105.2 | E9: 143172.9 | F9: 1 | G9: 67.7 | H9: 0.689 | I9: 46.6453
A10: 电表 | B10: 变频2号冷却塔 | D10: 315653 | E10: 315653.3 | F10: 1 | G10: 0.3 | H10: 0.689 | I10: 0.2067
A11: 电表 | B11: 变频3号冷却塔 | D11: 294288.9 | E11: 294412.1 | F11: 1 | G11: 123.2 | H11: 0.689 | I11: 84.8848
A12: 空调系统用电总合计： | G12: =G4+G5+G6+G7+G8+G9+G10+G11 -> 1959.7 | H12: 0.689 | I12: =I4+I5+I6+I7+I8+I9+I10+I11 -> 1350.2333
A14: 电表 | B14: 三楼热泵控制柜 | C14: 2025020 50017 | D14: 58 | E14: 63.3 | F14: 80 | G14: 424 | H14: 0.689 | I14: 292.136
A15: 电表 | B15: 三楼变频水泵控制柜 | C15: 2024085 00211 | D15: 123.7 | E15: 137.2 | F15: 20 | G15: 270 | H15: 0.689 | I15: 186.03
A16: 电表 | B16: 洗衣房热泵控制柜 | C16: 202502 05102 | D16: 176 | E16: 190.9 | F16: 20 | G16: 298 | H16: 0.689 | I16: 205.322
A17: 电表 | B17: 群楼中厨水泵控制柜 | C17: 2025020 50063 | D17: 60.3 | E17: 68.1 | F17: 20 | G17: 156 | H17: 0.689 | I17: 107.484
A18: 热水热泵系统用电总合计： | G18: =G14+G15+G16+G17 -> 1148 | H18: 0.689 | I18: =I14+I15+I16+I17 -> 790.972
A20: 水表 | B20: 空调冷冻水 | F20: 1 | G20: =E20-D20 -> 0 | H20: 4.39 | I20: =G20*H20 -> 0
A21: 水表 | B21: 空调冷却水 | F21: 1 | G21: =E21-D21 -> 0 | H21: 4.39 | I21: =G21*H21 -> 0
A22: 水表 | B22: 三楼中、高区热水 | C22: M9A25024017786 | D22: 496 | E22: 551 | F22: 1 | G22: =E22-D22 -> 55 | H22: 4.39 | I22: =G22*H22 -> 241.45
A23: 水表 | B23: 群楼、中厨房热水 | C23: M9A25024017857 | D23: 450 | E23: 494 | F23: 1 | G23: =E23-D23 -> 44 | H23: 4.39 | I23: =G23*H23 -> 193.16
A24: 热水热泵系统用水总合计: | G24: =G22+G23+G21+G20 -> 99 | H24: 4.39 | I24: =I22+I23+I21+I20 -> 434.61
A26: 燃气表（常用） | B26: 蒸汽发生器+采暖 | D26: 9692 | E26: 9983 | F26: 1 | G26: =E26-D26 -> 291 | H26: 5.54 | I26: =G26*H26 -> 1612.14
A27: 燃气表（备用） | B27: 蒸汽发生器+采暖 | D27: 18871 | E27: 18871 | F27: 1 | G27: =(E27-D27)*F27 -> 0 | H27: 5.54 | I27: =G27*H27 -> 0
A28: 蒸汽发生器+采暖用气总合计： | G28: =G26+G27 -> 291 | H28: 5.54 | I28: =I26+I27 -> 1612.14
A29: 电表 | B29: 蒸汽发生器+采暖 | C29: 202011 500026 | D29: 68 | E29: 107.5 | F29: 1 | G29: =(E29-D29)*F29 -> 39.5 | H29: 0.689 | I29: =G29*H29 -> 27.2155
A30: 蒸汽发生器+采暖用电总合计： | G30: =G29 -> 39.5 | H30: 0.689 | I30: =G30*H30 -> 27.2155
A31: 水表 | B31: 蒸汽发生器+采暖 | C31: F1A150610796 | D31: 73 | E31: 97 | F31: 1 | G31: =E31-D31 -> 24 | H31: 4.39 | I31: =G31*H31 -> 105.36
A32: 蒸汽发生器用水总合计: | G32: =G31 -> 24 | H32: 4.39 | I32: =G32*H32 -> 105.36
A33: 水、电、气费用总合计（水/电/气价预估单价,单价需以实际缴费为准）： | G33: =I12++I18+I24+I28+I30+I32 -> 4320.5308
A35: 流量计量表 | B35: 分项 | C35: 昨日流量 | E35: 今日流量 | G35: 用量 | H35: 备注
B36: 中央空调冷冻流量 | G36: =E36-C36 -> 0
B37: 中央空调冷却流量 | G37: =E37-C37 -> 0
B38: 中央空调采暖流量 | G38: =E38-C38 -> 0
B39: 蒸汽流量 | G39: =E39-C39 -> 0

Sheet 2025.5.2
A1: 梅州昌盛豪生大酒店节能改造每日能耗统计表
A2: 2025年 5月 1 日
A3: 名称 | B3: 位置 | C3: 编号 | D3: 昨日读数 | E3: 今日读数 | F3: 倍率 | G3: 合计 | H3: 单价 | I3: 费用
A4: 电表 | B4: 磁悬浮3号空调主机 | D4: 108212 | E4: 109423 | F4: 1 | G4: =(E4-D4)*F4 -> 1211 | H4: 0.689 | I4: =G4*H4 -> 834.379
A5: 电表 | B5: 变频5号冷冻泵 | D5: 20721.7 | E5: 21164.1 | F5: 1 | G5: 442.4 | H5: 0.689 | I5: 304.8136
A6: 电表 | B6: 4号冷冻泵 | D6: 211841.7 | E6: 211841.7 | F6: 1 | G6: =(E6-D6)*F6 -> 0 | H6: 0.689 | I6: =G6*H6 -> 0
A7: 电表 | B7: 变频5号冷却泵 | D7: 46491.3 | E7: 46847 | F7: 1 | G7: 355.7 | H7: 0.689 | I7: 245.0773
A8: 电表 | B8: 4号冷却泵 | D8: 258121 | E8: 258121 | F8: 1 | G8: =(E8-D8)*F8 -> 0 | H8: 0.689 | I8: =G8*H8 -> 0
A9: 电表 | B9: 变频1号冷却塔 | D9: 143172.9 | E9: 143203.4 | F9: 1 | G9: 30.5 | H9: 0.689 | I9: 21.0145
A10: 电表 | B10: 变频2号冷却塔 | D10: 315653.3 | E10: 315808.6 | F10: 1 | G10: 155.3 | H10: 0.689 | I10: 107.0017
A11: 电表 | B11: 变频3号冷却塔 | D11: 294412.1 | E11: 294560.5 | F11: 1 | G11: 148.4 | H11: 0.689 | I11: 102.2476
A12: 空调系统用电总合计： | G12: =G4+G5+G6+G7+G8+G9+G10+G11 -> 2343.3 | H12: 0.689 | I12: =I4+I5+I6+I7+I8+I9+I10+I11 -> 1614.5337
A14: 电表 | B14: 三楼热泵控制柜 | C14: 2025020 50017 | D14: 63.3 | E14: 66.8 | F14: 80 | G14: 280 | H14: 0.689 | I14: 192.92
A15: 电表 | B15: 三楼变频水泵控制柜 | C15: 2024085 00211 | D15: 137.2 | E15: 144 | F15: 20 | G15: 136 | H15: 0.689 | I15: 93.704
A16: 电表 | B16: 洗衣房热泵控制柜 | C16: 202502 05102 | D16: 190.9 | E16: 201.5 | F16: 20 | G16: 212 | H16: 0.689 | I16: 146.068
A17: 电表 | B17: 群楼中厨水泵控制柜 | C17: 2025020 50063 | D17: 68.1 | E17: 71.9 | F17: 20 | G17: 76 | H17: 0.689 | I17: 52.364
A18: 热水热泵系统用电总合计： | G18: =G14+G15+G16+G17 -> 704 | H18: 0.689 | I18: =I14+I15+I16+I17 -> 485.056
A20: 水表 | B20: 空调冷冻水 | F20: 1 | G20: =E20-D20 -> 0 | H20: 4.39 | I20: =G20*H20 -> 0
A21: 水表 | B21: 空调冷却水 | F21: 1 | G21: =E21-D21 -> 0 | H21: 4.39 | I21: =G21*H21 -> 0
A22: 水表 | B22: 三楼中、高区热水 | C22: M9A25024017786 | D22: 551 | E22: 590 | F22: 1 | G22: =E22-D22 -> 39 | H22: 4.39 | I22: =G22*H22 -> 171.21
A23: 水表 | B23: 群楼、中厨房热水 | C23: M9A25024017857 | D23: 494 | E23: 523 | F23: 1 | G23: =E23-D23 -> 29 | H23: 4.39 | I23: =G23*H23 -> 127.31
A24: 热水热泵系统用水总合计: | G24: =G22+G23+G21+G20 -> 68 | H24: 4.39 | I24: =I22+I23+I21+I20 -> 298.52
A26: 燃气表（常用） | B26: 蒸汽发生器+采暖 | D26: 9983 | E26: 9983 | F26: 1 | G26: =E26-D26 -> 0 | H26: 5.54 | I26: =G26*H26 -> 0
A27: 燃气表（备用） | B27: 蒸汽发生器+采暖 | D27: 18871 | E27: 18871 | F27: 1 | G27: =(E27-D27)*F27 -> 0 | H27: 5.54 | I27: =G27*H27 -> 0
A28: 蒸汽发生器+采暖用气总合计： | G28: =G26+G27 -> 0 | H28: 5.54 | I28: =I26+I27 -> 0
A29: 电表 | B29: 蒸汽发生器+采暖 | C29: 202011 500026 | D29: 107.5 | E29: 110.1 | F29: 1 | G29: =(E29-D29)*F29 -> 2.6 | H29: 0.689 | I29: =G29*H29 -> 1.7914
A30: 蒸汽发生器+采暖用电总合计： | G30: =G29 -> 2.6 | H30: 0.689 | I30: =G30*H30 -> 1.7914
A31: 水表 | B31: 蒸汽发生器+采暖 | C31: F1A150610796 | D31: 97 | E31: 99 | F31: 1 | G31: =E31-D31 -> 2 | H31: 4.39 | I31: =G31*H31 -> 8.78
A32: 蒸汽发生器用水总合计: | G32: =G31 -> 2 | H32: 4.39 | I32: =G32*H32 -> 8.78
A33: 水、电、气费用总合计（水/电/气价预估单价,单价需以实际缴费为准）： | G33: =I12++I18+I24+I28+I30+I32 -> 2408.6811
A35: 流量计量表 | B35: 分项 | C35: 昨日流量 | E35: 今日流量 | G35: 用量 | H35: 备注
B36: 中央空调冷冻流量 | G36: =E36-C36 -> 0
B37: 中央空调冷却流量 | G37: =E37-C37 -> 0
B38: 中央空调采暖流量 | G38: =E38-C38 -> 0
B39: 蒸汽流量 | G39: =E39-C39 -> 0

Sheet 2025.5.3
A1: 梅州昌盛豪生大酒店节能改造每日能耗统计表
A2: 2025年 5月 2 日
A3: 最低气温： 19 ℃，最高气温： 33 ℃ ， 住房量：307间
A4: 宴会/会议信息：无
A5: 名称 | B5: 位置 | C5: 编号 | D5: 昨日读数 | E5: 今日读数 | F5: 倍率 | G5: 合计 | H5: 单价 | I5: 费用
A6: 电表 | B6: 磁悬浮3号空调主机 | D6: 109423 | E6: 110988 | F6: 1 | G6: =(E6-D6)*F6 -> 1565 | H6: 0.689 | I6: =G6*H6 -> 1078.285
A7: 电表 | B7: 变频5号冷冻泵 | D7: 21164.1 | E7: 22096.3 | F7: 1 | G7: 932.2 | H7: 0.689 | I7: 642.2858
A8: 电表 | B8: 4号冷冻泵 | D8: 211841.7 | E8: 211841.7 | F8: 1 | G8: =(E8-D8)*F8 -> 0 | H8: 0.689 | I8: =G8*H8 -> 0
A9: 电表 | B9: 变频5号冷却泵 | D9: 46847 | E9: 47207.9 | F9: 1 | G9: 360.9 | H9: 0.689 | I9: 248.6601
A10: 电表 | B10: 4号冷却泵 | D10: 258121 | E10: 258121 | F10: 1 | G10: =(E10-D10)*F10 -> 0 | H10: 0.689 | I10: =G10*H10 -> 0
A11: 电表 | B11: 变频1号冷却塔 | D11: 143203.4 | E11: 143229.1 | F11: 1 | G11: 25.7 | H11: 0.689 | I11: 17.7073
A12: 电表 | B12: 变频2号冷却塔 | D12: 315808.6 | E12: 315952.6 | F12: 1 | G12: 144 | H12: 0.689 | I12: 99.216
A13: 电表 | B13: 变频3号冷却塔 | D13: 294560.5 | E13: 294745.1 | F13: 1 | G13: 184.6 | H13: 0.689 | I13: 127.1894
A14: 空调系统用电总合计： | G14: =G6+G7+G8+G9+G10+G11+G12+G13 -> 3212.4 | H14: 0.689 | I14: =I6+I7+I8+I9+I10+I11+I12+I13 -> 2213.3436
A16: 电表 | B16: 三楼热泵控制柜 | C16: 2025020 50017 | D16: 66.8 | E16: 70.6 | F16: 80 | G16: 304 | H16: 0.689 | I16: 209.456
A17: 电表 | B17: 三楼变频水泵控制柜 | C17: 2024085 00211 | D17: 144 | E17: 151.5 | F17: 20 | G17: 150 | H17: 0.689 | I17: 103.35
A18: 电表 | B18: 洗衣房热泵控制柜 | C18: 202502 05102 | D18: 201.5 | E18: 211.4 | F18: 20 | G18: 198 | H18: 0.689 | I18: 136.422
A19: 电表 | B19: 群楼中厨水泵控制柜 | C19: 2025020 50063 | D19: 71.9 | E19: 75.9 | F19: 20 | G19: 80 | H19: 0.689 | I19: 55.12
A20: 热水热泵系统用电总合计： | G20: =G16+G17+G18+G19 -> 732 | H20: 0.689 | I20: =I16+I17+I18+I19 -> 504.348
A22: 水表 | B22: 空调冷冻水 | F22: 1 | G22: =E22-D22 -> 0 | H22: 4.39 | I22: =G22*H22 -> 0
A23: 水表 | B23: 空调冷却水 | F23: 1 | G23: =E23-D23 -> 0 | H23: 4.39 | I23: =G23*H23 -> 0
A24: 水表 | B24: 三楼中、高区热水 | C24: M9A25024017786 | D24: 590 | E24: 645 | F24: 1 | G24: =E24-D24 -> 55 | H24: 4.39 | I24: =G24*H24 -> 241.45
A25: 水表 | B25: 群楼、中厨房热水 | C25: M9A25024017857 | D25: 523 | E25: 553 | F25: 1 | G25: =E25-D25 -> 30 | H25: 4.39 | I25: =G25*H25 -> 131.7
A26: 热水热泵系统用水总合计: | G26: =G24+G25+G23+G22 -> 85 | H26: 4.39 | I26: =I24+I25+I23+I22 -> 373.15
A28: 燃气表（常用） | B28: 蒸汽发生器+采暖 | D28: 9983 | E28: 10299 | F28: 1 | G28: =E28-D28 -> 316 | H28: 5.54 | I28: =G28*H28 -> 1750.64
A29: 燃气表（备用） | B29: 蒸汽发生器+采暖 | D29: 18871 | E29: 18871 | F29: 1 | G29: =(E29-D29)*F29 -> 0 | H29: 5.54 | I29: =G29*H29 -> 0
A30: 蒸汽发生器+采暖用气总合计： | G30: =G28+G29 -> 316 | H30: 5.54 | I30: =I28+I29 -> 1750.64
A31: 电表 | B31: 蒸汽发生器+采暖 | C31: 202011 500026 | D31: 110.1 | E31: 134.2 | F31: 1 | G31: =(E31-D31)*F31 -> 24.1 | H31: 0.689 | I31: =G31*H31 -> 16.6049
A32: 蒸汽发生器+采暖用电总合计： | G32: =G31 -> 24.1 | H32: 0.689 | I32: =G32*H32 -> 16.6049
A33: 水表 | B33: 蒸汽发生器+采暖 | C33: F1A150610796 | D33: 97 | E33: 110 | F33: 1 | G33: =E33-D33 -> 13 | H33: 4.39 | I33: =G33*H33 -> 57.07
A34: 蒸汽发生器用水总合计: | G34: =G33 -> 13 | H34: 4.39 | I34: =G34*H34 -> 57.07
A35: 水、电、气费用总合计（水/电/气价预估单价,单价需以实际缴费为准）： | G35: =I14++I20+I26+I30+I32+I34 -> 4915.1565
A37: 流量计量表 | B37: 分项 | C37: 昨日流量 | E37: 今日流量 | G37: 用量 | H37: 备注
B38: 中央空调冷冻流量 | C38: 0 | E38: 0 | G38: =E38-C38 -> 0
B39: 中央空调冷却流量 | C39: 0 | E39: 0 | G39: =E39-C39 -> 0
B40: 中央空调采暖流量 | C40: 0 | E40: 0 | G40: =E40-C40 -> 0
B41: 蒸汽流量 | C41: 0 | E41: 0 | G41: =E41-C41 -> 0

Sheet 2025.5.4
A1: 梅州昌盛豪生大酒店节能改造每日能耗统计表
A2: 2025年 5月 3日
A3: 最低气温： 21 ℃，最高气温： 30 ℃ ， 住房量：287间
A4: 宴会/会议信息：无
A5: 名称 | B5: 位置 | C5: 编号 | D5: 昨日读数 | E5: 今日读数 | F5: 倍率 | G5: 合计 | H5: 单价 | I5: 费用
A6: 电表 | B6: 磁悬浮3号空调主机 | D6: 110988 | E6: 112391 | F6: 1 | G6: =(E6-D6)*F6 -> 1403 | H6: 0.689 | I6: =G6*H6 -> 966.667
A7: 电表 | B7: 变频5号冷冻泵 | D7: 22096.3 | E7: 23315.1 | F7: 1 | G7: 1218.8 | H7: 0.689 | I7: 839.7532
A8: 电表 | B8: 4号冷冻泵 | D8: 211841.7 | E8: 211841.7 | F8: 1 | G8: =(E8-D8)*F8 -> 0 | H8: 0.689 | I8: =G8*H8 -> 0
A9: 电表 | B9: 变频5号冷却泵 | D9: 47207.9 | E9: 47563.1 | F9: 1 | G9: 355.2 | H9: 0.689 | I9: 244.7328
A10: 电表 | B10: 4号冷却泵 | D10: 258121 | E10: 258121 | F10: 1 | G10: =(E10-D10)*F10 -> 0 | H10: 0.689 | I10: =G10*H10 -> 0
A11: 电表 | B11: 变频1号冷却塔 | D11: 143229.1 | E11: 143243.9 | F11: 1 | G11: 14.8 | H11: 0.689 | I11: 10.1972
A12: 电表 | B12: 变频2号冷却塔 | D12: 315952.6 | E12: 316111.6 | F12: 1 | G12: 159 | H12: 0.689 | I12: 109.551
A13: 电表 | B13: 变频3号冷却塔 | D13: 294745.1 | E13: 294844.2 | F13: 1 | G13: 99.1 | H13: 0.689 | I13: 68.2799
A14: 空调系统用电总合计： | G14: =G6+G7+G8+G9+G10+G11+G12+G13 -> 3249.9 | H14: 0.689 | I14: =I6+I7+I8+I9+I10+I11+I12+I13 -> 2239.1811
A16: 电表 | B16: 三楼热泵控制柜 | C16: 2025020 50017 | D16: 70.6 | E16: 74.4 | F16: 80 | G16: 304 | H16: 0.689 | I16: 209.456
A17: 电表 | B17: 三楼变频水泵控制柜 | C17: 2024085 00211 | D17: 151.5 | E17: 160.1 | F17: 20 | G17: 172 | H17: 0.689 | I17: 118.508
A18: 电表 | B18: 洗衣房热泵控制柜 | C18: 202502 05102 | D18: 211.4 | E18: 221.7 | F18: 20 | G18: 206 | H18: 0.689 | I18: 141.934
A19: 电表 | B19: 群楼中厨水泵控制柜 | C19: 2025020 50063 | D19: 75.9 | E19: 79.8 | F19: 20 | G19: 78 | H19: 0.689 | I19: 53.742
A20: 热水热泵系统用电总合计： | G20: =G16+G17+G18+G19 -> 760 | H20: 0.689 | I20: =I16+I17+I18+I19 -> 523.64
A22: 水表 | B22: 空调冷冻水 | D22: 0 | E22: 0 | F22: 1 | G22: =E22-D22 -> 0 | H22: 4.39 | I22: =G22*H22 -> 0
A23: 水表 | B23: 空调冷却水 | D23: 0 | E23: 0 | F23: 1 | G23: =E23-D23 -> 0 | H23: 4.39 | I23: =G23*H23 -> 0
A24: 水表 | B24: 三楼中、高区热水 | C24: M9A25024017786 | D24: 645 | E24: 690 | F24: 1 | G24: =E24-D24 -> 45 | H24: 4.39 | I24: =G24*H24 -> 197.55
A25: 水表 | B25: 群楼、中厨房热水 | C25: M9A25024017857 | D25: 553 | E25: 581 | F25: 1 | G25: =E25-D25 -> 28 | H25: 4.39 | I25: =G25*H25 -> 122.92
A26: 热水热泵系统用水总合计: | G26: =G24+G25+G23+G22 -> 73 | H26: 4.39 | I26: =I24+I25+I23+I22 -> 320.47
A28: 燃气表（常用） | B28: 蒸汽发生器+采暖 | D28: 10299 | E28: 10665 | F28: 1 | G28: =E28-D28 -> 366 | H28: 5.54 | I28: =G28*H28 -> 2027.64
A29: 燃气表（备用） | B29: 蒸汽发生器+采暖 | D29: 18871 | E29: 18871 | F29: 1 | G29: =(E29-D29)*F29 -> 0 | H29: 5.54 | I29: =G29*H29 -> 0
A30: 蒸汽发生器+采暖用气总合计： | G30: =G28+G29 -> 366 | H30: 5.54 | I30: =I28+I29 -> 2027.64
A31: 电表 | B31: 蒸汽发生器+采暖 | C31: 202011 500026 | D31: 134.2 | E31: 163 | F31: 1 | G31: =(E31-D31)*F31 -> 28.8 | H31: 0.689 | I31: =G31*H31 -> 19.8432
A32: 蒸汽发生器+采暖用电总合计： | G32: =G31 -> 28.8 | H32: 0.689 | I32: =G32*H32 -> 19.8432
A33: 水表 | B33: 蒸汽发生器+采暖 | C33: F1A150610796 | D33: 110 | E33: 125 | F33: 1 | G33: =E33-D33 -> 15 | H33: 4.39 | I33: =G33*H33 -> 65.85
A34: 蒸汽发生器用水总合计: | G34: =G33 -> 15 | H34: 4.39 | I34: =G34*H34 -> 65.85
A35: 水、电、气费用总合计（水/电/气价预估单价,单价需以实际缴费为准）： | G35: =I14++I20+I26+I30+I32+I34 -> 5196.6243
A37: 流量计量表 | B37: 分项 | C37: 昨日流量 | E37: 今日流量 | G37: 用量 | H37: 备注
B38: 中央空调冷冻流量 | C38: 0 | E38: 0 | G38: =E38-C38 -> 0
B39: 中央空调冷却流量 | C39: 0 | E39: 0 | G39: =E39-C39 -> 0
B40: 中央空调采暖流量 | C40: 0 | E40: 0 | G40: =E40-C40 -> 0
B41: 蒸汽流量 | C41: 0 | E41: 0 | G41: =E41-C41 -> 0

Sheet 2025.5.5
A1: 梅州昌盛豪生大酒店节能改造每日能耗统计表
A2: 2025年 5月 4日
A3: 最低气温： 22 ℃，最高气温： 30 ℃ ， 住房量：137间
A4: 宴会/会议信息：无
A5: 名称 | B5: 位置 | C5: 编号 | D5: 昨日读数 | E5: 今日读数 | F5: 倍率 | G5: 合计 | H5: 单价 | I5: 费用
A6: 电表 | B6: 磁悬浮3号空调主机 | D6: 112391 | E6: 114184 | F6: 1 | G6: =(E6-D6)*F6 -> 1793 | H6: 0.689 | I6: =G6*H6 -> 1235.377
A7: 电表 | B7: 变频5号冷冻泵 | D7: 23315.1 | E7: 24522.8 | F7: 1 | G7: 1207.7 | H7: 0.689 | I7: 832.1053
A8: 电表 | B8: 4号冷冻泵 | D8: 211841.7 | E8: 211841.7 | F8: 1 | G8: =(E8-D8)*F8 -> 0 | H8: 0.689 | I8: =G8*H8 -> 0
A9: 电表 | B9: 变频5号冷却泵 | D9: 47563.1 | E9: 47904.5 | F9: 1 | G9: 341.4 | H9: 0.689 | I9: 235.2246
A10: 电表 | B10: 4号冷却泵 | D10: 258121 | E10: 258121 | F10: 1 | G10: =(E10-D10)*F10 -> 0 | H10: 0.689 | I10: =G10*H10 -> 0
A11: 电表 | B11: 变频1号冷却塔 | D11: 143243.9 | E11: 143245.8 | F11: 1 | G11: 1.9 | H11: 0.689 | I11: 1.3091
A12: 电表 | B12: 变频2号冷却塔 | D12: 316111.6 | E12: 316253.2 | F12: 1 | G12: 141.6 | H12: 0.689 | I12: 97.5624
A13: 电表 | B13: 变频3号冷却塔 | D13: 294844.2 | E13: 294952.6 | F13: 1 | G13: 108.4 | H13: 0.689 | I13: 74.6876
A14: 空调系统用电总合计： | G14: =G6+G7+G8+G9+G10+G11+G12+G13 -> 3594 | H14: 0.689 | I14: =I6+I7+I8+I9+I10+I11+I12+I13 -> 2476.266
A16: 电表 | B16: 三楼热泵控制柜 | C16: 2025020 50017 | D16: 74.4 | E16: 77.8 | F16: 80 | G16: 272 | H16: 0.689 | I16: 187.408
A17: 电表 | B17: 三楼变频水泵控制柜 | C17: 2024085 00211 | D17: 160.1 | E17: 168.6 | F17: 20 | G17: 170 | H17: 0.689 | I17: 117.13
A18: 电表 | B18: 洗衣房热泵控制柜 | C18: 202502 05102 | D18: 221.7 | E18: 229 | F18: 20 | G18: 146 | H18: 0.689 | I18: 100.594
A19: 电表 | B19: 群楼中厨水泵控制柜 | C19: 2025020 50063 | D19: 79.8 | E19: 83.7 | F19: 20 | G19: 78 | H19: 0.689 | I19: 53.742
A20: 热水热泵系统用电总合计： | G20: =G16+G17+G18+G19 -> 666 | H20: 0.689 | I20: =I16+I17+I18+I19 -> 458.874
A22: 水表 | B22: 空调冷冻水 | D22: 0 | E22: 0 | F22: 1 | G22: =E22-D22 -> 0 | H22: 4.39 | I22: =G22*H22 -> 0
A23: 水表 | B23: 空调冷却水 | D23: 0 | E23: 0 | F23: 1 | G23: =E23-D23 -> 0 | H23: 4.39 | I23: =G23*H23 -> 0
A24: 水表 | B24: 三楼中、高区热水 | C24: M9A25024017786 | D24: 690 | E24: 748 | F24: 1 | G24: =E24-D24 -> 58 | H24: 4.39 | I24: =G24*H24 -> 254.62
A25: 水表 | B25: 群楼、中厨房热水 | C25: M9A25024017857 | D25: 581 | E25: 606 | F25: 1 | G25: =E25-D25 -> 25 | H25: 4.39 | I25: =G25*H25 -> 109.75
A26: 热水热泵系统用水总合计: | G26: =G24+G25+G23+G22 -> 83 | H26: 4.39 | I26: =I24+I25+I23+I22 -> 364.37
A28: 燃气表（常用） | B28: 蒸汽发生器+采暖 | D28: 10665 | E28: 10992 | F28: 1 | G28: =E28-D28 -> 327 | H28: 5.54 | I28: =G28*H28 -> 1811.58
A29: 燃气表（备用） | B29: 蒸汽发生器+采暖 | D29: 18871 | E29: 18871 | F29: 1 | G29: =(E29-D29)*F29 -> 0 | H29: 5.54 | I29: =G29*H29 -> 0
A30: 蒸汽发生器+采暖用气总合计： | G30: =G28+G29 -> 327 | H30: 5.54 | I30: =I28+I29 -> 1811.58
A31: 电表 | B31: 蒸汽发生器+采暖 | C31: 202011 500026 | D31: 163 | E31: 188.5 | F31: 1 | G31: =(E31-D31)*F31 -> 25.5 | H31: 0.689 | I31: =G31*H31 -> 17.5695
A32: 蒸汽发生器+采暖用电总合计： | G32: =G31 -> 25.5 | H32: 0.689 | I32: =G32*H32 -> 17.5695
A33: 水表 | B33: 蒸汽发生器+采暖 | C33: F1A150610796 | D33: 125 | E33: 139 | F33: 1 | G33: =E33-D33 -> 14 | H33: 4.39 | I33: =G33*H33 -> 61.46
A34: 蒸汽发生器用水总合计: | G34: =G33 -> 14 | H34: 4.39 | I34: =G34*H34 -> 61.46
A35: 水、电、气费用总合计（水/电/气价预估单价,单价需以实际缴费为准）： | G35: =I14++I20+I26+I30+I32+I34 -> 5190.1195
A37: 流量计量表 | B37: 分项 | C37: 昨日流量 | E37: 今日流量 | G37: 用量 | H37: 备注
B38: 中央空调冷冻流量 | C38: 0 | E38: 0 | G38: =E38-C38 -> 0
B39: 中央空调冷却流量 | C39: 0 | E39: 0 | G39: =E39-C39 -> 0
B40: 中央空调采暖流量 | C40: 0 | E40: 0 | G40: =E40-C40 -> 0
B41: 蒸汽流量 | C41: 0 | E41: 0 | G41: =E41-C41 -> 0

Sheet 2025.5.6
A1: 梅州昌盛豪生大酒店节能改造每日能耗统计表
A2: 2025年 5月 5日
A3: 最低气温： 30 ℃，最高气温： 24 ℃ ， 住房量：92间
A4: 宴会/会议信息：无
A5: 名称 | B5: 位置 | C5: 编号 | D5: 昨日读数 | E5: 今日读数 | F5: 倍率 | G5: 合计 | H5: 单价 | I5: 费用
A6: 电表 | B6: 磁悬浮3号空调主机 | D6: 114184 | E6: 115963 | F6: 1 | G6: =(E6-D6)*F6 -> 1779 | H6: 0.689 | I6: =G6*H6 -> 1225.731
A7: 电表 | B7: 变频5号冷冻泵 | D7: 24522.8 | E7: 25265 | F7: 1 | G7: 742.2 | H7: 0.689 | I7: 511.3758
A8: 电表 | B8: 4号冷冻泵 | D8: 211841.7 | E8: 211841.7 | F8: 1 | G8: =(E8-D8)*F8 -> 0 | H8: 0.689 | I8: =G8*H8 -> 0
A9: 电表 | B9: 变频5号冷却泵 | D9: 47904.5 | E9: 48272.9 | F9: 1 | G9: 368.4 | H9: 0.689 | I9: 253.8276
A10: 电表 | B10: 4号冷却泵 | D10: 258121 | E10: 258121 | F10: 1 | G10: =(E10-D10)*F10 -> 0 | H10: 0.689 | I10: =G10*H10 -> 0
A11: 电表 | B11: 变频1号冷却塔 | D11: 143245.8 | E11: 143247.8 | F11: 1 | G11: 2 | H11: 0.689 | I11: 1.378
A12: 电表 | B12: 变频2号冷却塔 | D12: 316253.2 | E12: 316439.5 | F12: 1 | G12: 186.3 | H12: 0.689 | I12: 128.3607
A13: 电表 | B13: 变频3号冷却塔 | D13: 294952.6 | E13: 295128.7 | F13: 1 | G13: 176.1 | H13: 0.689 | I13: 121.3329
A14: 空调系统用电总合计： | G14: =G6+G7+G8+G9+G10+G11+G12+G13 -> 3254 | H14: 0.689 | I14: =I6+I7+I8+I9+I10+I11+I12+I13 -> 2242.006
A16: 电表 | B16: 三楼热泵控制柜 | C16: 2025020 50017 | D16: 77.8 | E16: 79.4 | F16: 80 | G16: 128 | H16: 0.689 | I16: 88.192
A17: 电表 | B17: 三楼变频水泵控制柜 | C17: 2024085 00211 | D17: 168.6 | E17: 176.9 | F17: 20 | G17: 166 | H17: 0.689 | I17: 114.374
A18: 电表 | B18: 洗衣房热泵控制柜 | C18: 202502 05102 | D18: 229 | E18: 236.2 | F18: 20 | G18: 144 | H18: 0.689 | I18: 99.216
A19: 电表 | B19: 群楼中厨水泵控制柜 | C19: 2025020 50063 | D19: 83.7 | E19: 87.5 | F19: 20 | G19: 76 | H19: 0.689 | I19: 52.364
A20: 热水热泵系统用电总合计： | G20: =G16+G17+G18+G19 -> 514 | H20: 0.689 | I20: =I16+I17+I18+I19 -> 354.146
A22: 水表 | B22: 空调冷冻水 | D22: 0 | E22: 0 | F22: 1 | G22: =E22-D22 -> 0 | H22: 4.39 | I22: =G22*H22 -> 0
A23: 水表 | B23: 空调冷却水 | D23: 0 | E23: 0 | F23: 1 | G23: =E23-D23 -> 0 | H23: 4.39 | I23: =G23*H23 -> 0
A24: 水表 | B24: 三楼中、高区热水 | C24: M9A25024017786 | D24: 748 | E24: 767 | F24: 1 | G24: =E24-D24 -> 19 | H24: 4.39 | I24: =G24*H24 -> 83.41
A25: 水表 | B25: 群楼、中厨房热水 | C25: M9A25024017857 | D25: 606 | E25: 624 | F25: 1 | G25: =E25-D25 -> 18 | H25: 4.39 | I25: =G25*H25 -> 79.02
A26: 热水热泵系统用水总合计: | G26: =G24+G25+G23+G22 -> 37 | H26: 4.39 | I26: =I24+I25+I23+I22 -> 162.43
A28: 燃气表（常用） | B28: 蒸汽发生器+采暖 | D28: 10992 | E28: 11237 | F28: 1 | G28: =E28-D28 -> 245 | H28: 5.54 | I28: =G28*H28 -> 1357.3
A29: 燃气表（备用） | B29: 蒸汽发生器+采暖 | D29: 18871 | E29: 18871 | F29: 1 | G29: =(E29-D29)*F29 -> 0 | H29: 5.54 | I29: =G29*H29 -> 0
A30: 蒸汽发生器+采暖用气总合计： | G30: =G28+G29 -> 245 | H30: 5.54 | I30: =I28+I29 -> 1357.3
A31: 电表 | B31: 蒸汽发生器+采暖 | C31: 202011 500026 | D31: 188.5 | E31: 208.6 | F31: 1 | G31: =(E31-D31)*F31 -> 20.1 | H31: 0.689 | I31: =G31*H31 -> 13.8489
A32: 蒸汽发生器+采暖用电总合计： | G32: =G31 -> 20.1 | H32: 0.689 | I32: =G32*H32 -> 13.8489
A33: 水表 | B33: 蒸汽发生器+采暖 | C33: F1A150610796 | D33: 139 | E33: 149 | F33: 1 | G33: =E33-D33 -> 10 | H33: 4.39 | I33: =G33*H33 -> 43.9
A34: 蒸汽发生器用水总合计: | G34: =G33 -> 10 | H34: 4.39 | I34: =G34*H34 -> 43.9
A35: 水、电、气费用总合计（水/电/气价预估单价,单价需以实际缴费为准）： | G35: =I14++I20+I26+I30+I32+I34 -> 4173.6309
A37: 流量计量表 | B37: 分项 | C37: 昨日流量 | E37: 今日流量 | G37: 用量 | H37: 备注
B38: 中央空调冷冻流量 | C38: 0 | E38: 0 | G38: =E38-C38 -> 0
B39: 中央空调冷却流量 | C39: 0 | E39: 0 | G39: =E39-C39 -> 0
B40: 中央空调采暖流量 | C40: 0 | E40: 0 | G40: =E40-C40 -> 0
B41: 蒸汽流量 | C41: 0 | E41: 0 | G41: =E41-C41 -> 0

Sheet 2025.5.7
A1: 梅州昌盛豪生大酒店节能改造每日能耗统计表
A2: 2025年 5月 6日
A3: 最低气温： 23 ℃，最高气温： 29 ℃ ， 住房量：99间
A4: 宴会/会议信息：无
A5: 名称 | B5: 位置 | C5: 编号 | D5: 昨日读数 | E5: 今日读数 | F5: 倍率 | G5: 合计 | H5: 单价 | I5: 费用
A6: 电表 | B6: 磁悬浮3号空调主机 | D6: 115963 | E6: 117371 | F6: 1 | G6: =(E6-D6)*F6 -> 1408 | H6: 0.689 | I6: =G6*H6 -> 970.112
A7: 电表 | B7: 变频5号冷冻泵 | D7: 25265 | E7: 25877.8 | F7: 1 | G7: 612.8 | H7: 0.689 | I7: 422.2192
A8: 电表 | B8: 4号冷冻泵 | D8: 211841.7 | E8: 211841.7 | F8: 1 | G8: =(E8-D8)*F8 -> 0 | H8: 0.689 | I8: =G8*H8 -> 0
A9: 电表 | B9: 变频5号冷却泵 | D9: 48272.9 | E9: 48609.7 | F9: 1 | G9: 336.8 | H9: 0.689 | I9: 232.0552
A10: 电表 | B10: 4号冷却泵 | D10: 258121 | E10: 258121 | F10: 1 | G10: =(E10-D10)*F10 -> 0 | H10: 0.689 | I10: =G10*H10 -> 0
A11: 电表 | B11: 变频1号冷却塔 | D11: 143247.8 | E11: 143261.2 | F11: 1 | G11: 13.4 | H11: 0.689 | I11: 9.2326
A12: 电表 | B12: 变频2号冷却塔 | D12: 316439.5 | E12: 316606.8 | F12: 1 | G12: 167.3 | H12: 0.689 | I12: 115.2697
A13: 电表 | B13: 变频3号冷却塔 | D13: 295128.7 | E13: 295304.4 | F13: 1 | G13: 175.7 | H13: 0.689 | I13: 121.0573
A14: 空调系统用电总合计： | G14: =G6+G7+G8+G9+G10+G11+G12+G13 -> 2714 | H14: 0.689 | I14: =I6+I7+I8+I9+I10+I11+I12+I13 -> 1869.946
A16: 电表 | B16: 三楼热泵控制柜 | C16: 2025020 50017 | D16: 79.4 | E16: 80.8 | F16: 80 | G16: 112 | H16: 0.689 | I16: 77.168
A17: 电表 | B17: 三楼变频水泵控制柜 | C17: 2024085 00211 | D17: 176.9 | E17: 185.2 | F17: 20 | G17: 166 | H17: 0.689 | I17: 114.374
A18: 电表 | B18: 洗衣房热泵控制柜 | C18: 202502 05102 | D18: 236.2 | E18: 241.5 | F18: 20 | G18: 106 | H18: 0.689 | I18: 73.034
A19: 电表 | B19: 群楼中厨水泵控制柜 | C19: 2025020 50063 | D19: 87.5 | E19: 91.6 | F19: 20 | G19: 82 | H19: 0.689 | I19: 56.498
A20: 热水热泵系统用电总合计： | G20: =G16+G17+G18+G19 -> 466 | H20: 0.689 | I20: =I16+I17+I18+I19 -> 321.074
A22: 水表 | B22: 空调冷冻水 | D22: 0 | E22: 0 | F22: 1 | G22: =E22-D22 -> 0 | H22: 4.39 | I22: =G22*H22 -> 0
A23: 水表 | B23: 空调冷却水 | D23: 0 | E23: 0 | F23: 1 | G23: =E23-D23 -> 0 | H23: 4.39 | I23: =G23*H23 -> 0
A24: 水表 | B24: 三楼中、高区热水 | C24: M9A25024017786 | D24: 767 | E24: 781 | F24: 1 | G24: =E24-D24 -> 14 | H24: 4.39 | I24: =G24*H24 -> 61.46
A25: 水表 | B25: 群楼、中厨房热水 | C25: M9A25024017857 | D25: 624 | E25: 642 | F25: 1 | G25: =E25-D25 -> 18 | H25: 4.39 | I25: =G25*H25 -> 79.02
A26: 热水热泵系统用水总合计: | G26: =G24+G25+G23+G22 -> 32 | H26: 4.39 | I26: =I24+I25+I23+I22 -> 140.48
A28: 燃气表（常用） | B28: 蒸汽发生器+采暖 | D28: 11237 | E28: 11439 | F28: 1 | G28: =E28-D28 -> 202 | H28: 5.54 | I28: =G28*H28 -> 1119.08
A29: 燃气表（备用） | B29: 蒸汽发生器+采暖 | D29: 18871 | E29: 18871 | F29: 1 | G29: =(E29-D29)*F29 -> 0 | H29: 5.54 | I29: =G29*H29 -> 0
A30: 蒸汽发生器+采暖用气总合计： | G30: =G28+G29 -> 202 | H30: 5.54 | I30: =I28+I29 -> 1119.08
A31: 电表 | B31: 蒸汽发生器+采暖 | C31: 202011 500026 | D31: 208.6 | E31: 225.3 | F31: 1 | G31: =(E31-D31)*F31 -> 16.7 | H31: 0.689 | I31: =G31*H31 -> 11.5063
A32: 蒸汽发生器+采暖用电总合计： | G32: =G31 -> 16.7 | H32: 0.689 | I32: =G32*H32 -> 11.5063
A33: 水表 | B33: 蒸汽发生器+采暖 | C33: F1A150610796 | D33: 149 | E33: 157 | F33: 1 | G33: =E33-D33 -> 8 | H33: 4.39 | I33: =G33*H33 -> 35.12
A34: 蒸汽发生器用水总合计: | G34: =G33 -> 8 | H34: 4.39 | I34: =G34*H34 -> 35.12
A35: 水、电、气费用总合计（水/电/气价预估单价,单价需以实际缴费为准）： | G35: =I14++I20+I26+I30+I32+I34 -> 3497.2063
A37: 流量计量表 | B37: 分项 | C37: 昨日流量 | E37: 今日流量 | G37: 用量 | H37: 备注
B38: 中央空调冷冻流量 | C38: 0 | E38: 0 | G38: =E38-C38 -> 0
B39: 中央空调冷却流量 | C39: 0 | E39: 0 | G39: =E39-C39 -> 0
B40: 中央空调采暖流量 | C40: 0 | E40: 0 | G40: =E40-C40 -> 0
B41: 蒸汽流量 | C41: 0 | E41: 0 | G41: =E41-C41 -> 0

Sheet 2025.5.8
A1: 梅州昌盛豪生大酒店节能改造每日能耗统计表
A2: 2025年 5月 7日
A3: 最低气温：29 ℃，最高气温： 21 ℃ ， 住房量：155间
A4: 宴会/会议信息：1.2厅有午宴
A5: 名称 | B5: 位置 | C5: 编号 | D5: 昨日读数 | E5: 今日读数 | F5: 倍率 | G5: 合计 | H5: 单价 | I5: 费用
A6: 电表 | B6: 磁悬浮3号空调主机 | D6: 117371 | E6: 119240 | F6: 1 | G6: =(E6-D6)*F6 -> 1869 | H6: 0.689 | I6: =G6*H6 -> 1287.741
A7: 电表 | B7: 变频5号冷冻泵 | D7: 25877.8 | E7: 26563.7 | F7: 1 | G7: 685.9 | H7: 0.689 | I7: 472.5851
A8: 电表 | B8: 4号冷冻泵 | D8: 211841.7 | E8: 211841.7 | F8: 1 | G8: =(E8-D8)*F8 -> 0 | H8: 0.689 | I8: =G8*H8 -> 0
A9: 电表 | B9: 变频5号冷却泵 | D9: 48609.7 | E9: 48978.4 | F9: 1 | G9: 368.7 | H9: 0.689 | I9: 254.0343
A10: 电表 | B10: 4号冷却泵 | D10: 258121 | E10: 258121 | F10: 1 | G10: =(E10-D10)*F10 -> 0 | H10: 0.689 | I10: =G10*H10 -> 0
A11: 电表 | B11: 变频1号冷却塔 | D11: 143261.2 | E11: 143276.9 | F11: 1 | G11: 15.7 | H11: 0.689 | I11: 10.8173
A12: 电表 | B12: 变频2号冷却塔 | D12: 316606.8 | E12: 316730.8 | F12: 1 | G12: 124 | H12: 0.689 | I12: 85.436
A13: 电表 | B13: 变频3号冷却塔 | D13: 295304.4 | E13: 295485.7 | F13: 1 | G13: 181.3 | H13: 0.689 | I13: 124.9157
A14: 空调系统用电总合计： | G14: =G6+G7+G8+G9+G10+G11+G12+G13 -> 3244.6 | H14: 0.689 | I14: =I6+I7+I8+I9+I10+I11+I12+I13 -> 2235.5294
A16: 电表 | B16: 三楼热泵控制柜 | C16: 2025020 50017 | D16: 80.8 | E16: 82.4 | F16: 80 | G16: 128 | H16: 0.689 | I16: 88.192
A17: 电表 | B17: 三楼变频水泵控制柜 | C17: 2024085 00211 | D17: 185.2 | E17: 193.6 | F17: 20 | G17: 168 | H17: 0.689 | I17: 115.752
A18: 电表 | B18: 洗衣房热泵控制柜 | C18: 202502 05102 | D18: 241.5 | E18: 249.6 | F18: 20 | G18: 162 | H18: 0.689 | I18: 111.618
A19: 电表 | B19: 群楼中厨水泵控制柜 | C19: 2025020 50063 | D19: 91.6 | E19: 95 | F19: 20 | G19: 68 | H19: 0.689 | I19: 46.852
A20: 热水热泵系统用电总合计： | G20: =G16+G17+G18+G19 -> 526 | H20: 0.689 | I20: =I16+I17+I18+I19 -> 362.414
A22: 水表 | B22: 空调冷冻水 | D22: 0 | E22: 0 | F22: 1 | G22: =E22-D22 -> 0 | H22: 4.39 | I22: =G22*H22 -> 0
A23: 水表 | B23: 空调冷却水 | D23: 0 | E23: 0 | F23: 1 | G23: =E23-D23 -> 0 | H23: 4.39 | I23: =G23*H23 -> 0
A24: 水表 | B24: 三楼中、高区热水 | C24: M9A25024017786 | D24: 781 | E24: 798 | F24: 1 | G24: =E24-D24 -> 17 | H24: 4.39 | I24: =G24*H24 -> 74.63
A25: 水表 | B25: 群楼、中厨房热水 | C25: M9A25024017857 | D25: 642 | E25: 666 | F25: 1 | G25: =E25-D25 -> 24 | H25: 4.39 | I25: =G25*H25 -> 105.36
A26: 热水热泵系统用水总合计: | G26: =G24+G25+G23+G22 -> 41 | H26: 4.39 | I26: =I24+I25+I23+I22 -> 179.99
A28: 燃气表（常用） | B28: 蒸汽发生器+采暖 | D28: 11439 | E28: 11618 | F28: 1 | G28: =E28-D28 -> 179 | H28: 5.54 | I28: =G28*H28 -> 991.66
A29: 燃气表（备用） | B29: 蒸汽发生器+采暖 | D29: 18871 | E29: 18871 | F29: 1 | G29: =(E29-D29)*F29 -> 0 | H29: 5.54 | I29: =G29*H29 -> 0
A30: 蒸汽发生器+采暖用气总合计： | G30: =G28+G29 -> 179 | H30: 5.54 | I30: =I28+I29 -> 991.66
A31: 电表 | B31: 蒸汽发生器+采暖 | C31: 202011 500026 | D31: 225.3 | E31: 241.1 | F31: 1 | G31: =(E31-D31)*F31 -> 15.8 | H31: 0.689 | I31: =G31*H31 -> 10.8862
A32: 蒸汽发生器+采暖用电总合计： | G32: =G31 -> 15.8 | H32: 0.689 | I32: =G32*H32 -> 10.8862
A33: 水表 | B33: 蒸汽发生器+采暖 | C33: F1A150610796 | D33: 157 | E33: 168 | F33: 1 | G33: =E33-D33 -> 11 | H33: 4.39 | I33: =G33*H33 -> 48.29
A34: 蒸汽发生器用水总合计: | G34: =G33 -> 11 | H34: 4.39 | I34: =G34*H34 -> 48.29
A35: 水、电、气费用总合计（水/电/气价预估单价,单价需以实际缴费为准）： | G35: =I14++I20+I26+I30+I32+I34 -> 3828.7696
A37: 流量计量表 | B37: 分项 | C37: 昨日流量 | E37: 今日流量 | G37: 用量 | H37: 备注
B38: 中央空调冷冻流量 | C38: 0 | E38: 0 | G38: =E38-C38 -> 0
B39: 中央空调冷却流量 | C39: 0 | E39: 0 | G39: =E39-C39 -> 0
B40: 中央空调采暖流量 | C40: 0 | E40: 0 | G40: =E40-C40 -> 0
B41: 蒸汽流量 | C41: 0 | E41: 0 | G41: =E41-C41 -> 0

Sheet 2025.5.9
A1: 梅州昌盛豪生大酒店节能改造每日能耗统计表
A2: 2025年 5月 8日
A3: 最低气温：24 ℃，最高气温： 29 ℃ ， 住房量：160间
A4: 宴会/会议信息：1厅下午有会议，2厅有晚宴
A5: 名称 | B5: 位置 | C5: 编号 | D5: 昨日读数 | E5: 今日读数 | F5: 倍率 | G5: 合计 | H5: 单价 | I5: 费用
A6: 电表 | B6: 磁悬浮3号空调主机 | D6: 119240 | E6: 120937 | F6: 1 | G6: =(E6-D6)*F6 -> 1697 | H6: 0.689 | I6: =G6*H6 -> 1169.233
A7: 电表 | B7: 变频5号冷冻泵 | D7: 26563.7 | E7: 27198.7 | F7: 1 | G7: 635 | H7: 0.689 | I7: 437.515
A8: 电表 | B8: 4号冷冻泵 | D8: 211841.7 | E8: 211841.7 | F8: 1 | G8: =(E8-D8)*F8 -> 0 | H8: 0.689 | I8: =G8*H8 -> 0
A9: 电表 | B9: 变频5号冷却泵 | D9: 48978.4 | E9: 49328.2 | F9: 1 | G9: 349.8 | H9: 0.689 | I9: 241.0122
A10: 电表 | B10: 4号冷却泵 | D10: 258121 | E10: 258121 | F10: 1 | G10: =(E10-D10)*F10 -> 0 | H10: 0.689 | I10: =G10*H10 -> 0
A11: 电表 | B11: 变频1号冷却塔 | D11: 143276.9 | E11: 143346.2 | F11: 1 | G11: 69.3 | H11: 0.689 | I11: 47.7477
A12: 电表 | B12: 变频2号冷却塔 | D12: 316730.8 | E12: 316854.6 | F12: 1 | G12: 123.8 | H12: 0.689 | I12: 85.2982
A13: 电表 | B13: 变频3号冷却塔 | D13: 295485.7 | E13: 295649.7 | F13: 1 | G13: 164 | H13: 0.689 | I13: 112.996
A14: 空调系统用电总合计： | G14: =G6+G7+G8+G9+G10+G11+G12+G13 -> 3038.9 | H14: 0.689 | I14: =I6+I7+I8+I9+I10+I11+I12+I13 -> 2093.8021
A16: 电表 | B16: 三楼热泵控制柜 | C16: 2025020 50017 | D16: 82.4 | E16: 84 | F16: 80 | G16: 128 | H16: 0.689 | I16: 88.192
A17: 电表 | B17: 三楼变频水泵控制柜 | C17: 2024085 00211 | D17: 193.6 | E17: 201.9 | F17: 20 | G17: 166 | H17: 0.689 | I17: 114.374
A18: 电表 | B18: 洗衣房热泵控制柜 | C18: 202502 05102 | D18: 249.6 | E18: 256 | F18: 20 | G18: 128 | H18: 0.689 | I18: 88.192
A19: 电表 | B19: 群楼中厨水泵控制柜 | C19: 2025020 50063 | D19: 95 | E19: 98.8 | F19: 20 | G19: 76 | H19: 0.689 | I19: 52.364
A20: 热水热泵系统用电总合计： | G20: =G16+G17+G18+G19 -> 498 | H20: 0.689 | I20: =I16+I17+I18+I19 -> 343.122
A22: 水表 | B22: 空调冷冻水 | D22: 0 | E22: 0 | F22: 1 | G22: =E22-D22 -> 0 | H22: 4.39 | I22: =G22*H22 -> 0
A23: 水表 | B23: 空调冷却水 | D23: 0 | E23: 0 | F23: 1 | G23: =E23-D23 -> 0 | H23: 4.39 | I23: =G23*H23 -> 0
A24: 水表 | B24: 三楼中、高区热水 | C24: M9A25024017786 | D24: 798 | E24: 818 | F24: 1 | G24: =E24-D24 -> 20 | H24: 4.39 | I24: =G24*H24 -> 87.8
A25: 水表 | B25: 群楼、中厨房热水 | C25: M9A25024017857 | D25: 666 | E25: 688 | F25: 1 | G25: =E25-D25 -> 22 | H25: 4.39 | I25: =G25*H25 -> 96.58
A26: 热水热泵系统用水总合计: | G26: =G24+G25+G23+G22 -> 42 | H26: 4.39 | I26: =I24+I25+I23+I22 -> 184.38
A28: 燃气表（常用） | B28: 蒸汽发生器+采暖 | D28: 11618 | E28: 11809 | F28: 1 | G28: =E28-D28 -> 191 | H28: 5.54 | I28: =G28*H28 -> 1058.14
A29: 燃气表（备用） | B29: 蒸汽发生器+采暖 | D29: 18871 | E29: 18871 | F29: 1 | G29: =(E29-D29)*F29 -> 0 | H29: 5.54 | I29: =G29*H29 -> 0
A30: 蒸汽发生器+采暖用气总合计： | G30: =G28+G29 -> 191 | H30: 5.54 | I30: =I28+I29 -> 1058.14
A31: 电表 | B31: 蒸汽发生器+采暖 | C31: 202011 500026 | D31: 241.1 | E31: 257 | F31: 1 | G31: =(E31-D31)*F31 -> 15.9 | H31: 0.689 | I31: =G31*H31 -> 10.9551
A32: 蒸汽发生器+采暖用电总合计： | G32: =G31 -> 15.9 | H32: 0.689 | I32: =G32*H32 -> 10.9551
A33: 水表 | B33: 蒸汽发生器+采暖 | C33: F1A150610796 | D33: 168 | E33: 174 | F33: 1 | G33: =E33-D33 -> 6 | H33: 4.39 | I33: =G33*H33 -> 26.34
A34: 蒸汽发生器用水总合计: | G34: =G33 -> 6 | H34: 4.39 | I34: =G34*H34 -> 26.34
A35: 水、电、气费用总合计（水/电/气价预估单价,单价需以实际缴费为准）： | G35: =I14++I20+I26+I30+I32+I34 -> 3716.7392
A37: 流量计量表 | B37: 分项 | C37: 昨日流量 | E37: 今日流量 | G37: 用量 | H37: 备注
B38: 中央空调冷冻流量 | C38: 0 | E38: 0 | G38: =E38-C38 -> 0
B39: 中央空调冷却流量 | C39: 0 | E39: 0 | G39: =E39-C39 -> 0
B40: 中央空调采暖流量 | C40: 0 | E40: 0 | G40: =E40-C40 -> 0
B41: 蒸汽流量 | C41: 0 | E41: 0 | G41: =E41-C41 -> 0

Sheet 2025.5.10
A1: 梅州昌盛豪生大酒店节能改造每日能耗统计表
A2: 2025年 5月 9日
A3: 最低气温：17 ℃，最高气温： 29 ℃ ， 住房量：205间
A4: 宴会/会议信息：奥尔良波士顿有全天会议
A5: 名称 | B5: 位置 | C5: 编号 | D5: 昨日读数 | E5: 今日读数 | F5: 倍率 | G5: 合计 | H5: 单价 | I5: 费用
A6: 电表 | B6: 磁悬浮3号空调主机 | D6: 120937 | E6: 122353 | F6: 1 | G6: =(E6-D6)*F6 -> 1416 | H6: 0.689 | I6: =G6*H6 -> 975.624
A7: 电表 | B7: 变频5号冷冻泵 | D7: 27198.7 | E7: 27822.3 | F7: 1 | G7: 623.6 | H7: 0.689 | I7: 429.6604
A8: 电表 | B8: 4号冷冻泵 | D8: 211841.7 | E8: 211841.7 | F8: 1 | G8: =(E8-D8)*F8 -> 0 | H8: 0.689 | I8: =G8*H8 -> 0
A9: 电表 | B9: 变频5号冷却泵 | D9: 49328.2 | E9: 49671.8 | F9: 1 | G9: 343.6 | H9: 0.689 | I9: 236.7404
A10: 电表 | B10: 4号冷却泵 | D10: 258121 | E10: 258121 | F10: 1 | G10: =(E10-D10)*F10 -> 0 | H10: 0.689 | I10: =G10*H10 -> 0
A11: 电表 | B11: 变频1号冷却塔 | D11: 143346.2 | E11: 143409.6 | F11: 1 | G11: 63.4 | H11: 0.689 | I11: 43.6826
A12: 电表 | B12: 变频2号冷却塔 | D12: 316854.6 | E12: 317046.1 | F12: 1 | G12: 191.5 | H12: 0.689 | I12: 131.9435
A13: 电表 | B13: 变频3号冷却塔 | D13: 295649.7 | E13: 295778 | F13: 1 | G13: 128.3 | H13: 0.689 | I13: 88.3987
A14: 空调系统用电总合计： | G14: =G6+G7+G8+G9+G10+G11+G12+G13 -> 2766.4 | H14: 0.689 | I14: =I6+I7+I8+I9+I10+I11+I12+I13 -> 1906.0496
A16: 电表 | B16: 三楼热泵控制柜 | C16: 2025020 50017 | D16: 84 | E16: 86.2 | F16: 80 | G16: 176 | H16: 0.689 | I16: 121.264
A17: 电表 | B17: 三楼变频水泵控制柜 | C17: 2024085 00211 | D17: 201.9 | E17: 210.5 | F17: 20 | G17: 172 | H17: 0.689 | I17: 118.508
A18: 电表 | B18: 洗衣房热泵控制柜 | C18: 202502 05102 | D18: 256 | E18: 263.3 | F18: 20 | G18: 146 | H18: 0.689 | I18: 100.594
A19: 电表 | B19: 群楼中厨水泵控制柜 | C19: 2025020 50063 | D19: 98.8 | E19: 102.7 | F19: 20 | G19: 78 | H19: 0.689 | I19: 53.742
A20: 热水热泵系统用电总合计： | G20: =G16+G17+G18+G19 -> 572 | H20: 0.689 | I20: =I16+I17+I18+I19 -> 394.108
A22: 水表 | B22: 空调冷冻水 | D22: 0 | E22: 0 | F22: 1 | G22: =E22-D22 -> 0 | H22: 4.39 | I22: =G22*H22 -> 0
A23: 水表 | B23: 空调冷却水 | D23: 0 | E23: 0 | F23: 1 | G23: =E23-D23 -> 0 | H23: 4.39 | I23: =G23*H23 -> 0
A24: 水表 | B24: 三楼中、高区热水 | C24: M9A25024017786 | D24: 818 | E24: 845 | F24: 1 | G24: =E24-D24 -> 27 | H24: 4.39 | I24: =G24*H24 -> 118.53
A25: 水表 | B25: 群楼、中厨房热水 | C25: M9A25024017857 | D25: 688 | E25: 710 | F25: 1 | G25: =E25-D25 -> 22 | H25: 4.39 | I25: =G25*H25 -> 96.58
A26: 热水热泵系统用水总合计: | G26: =G24+G25+G23+G22 -> 49 | H26: 4.39 | I26: =I24+I25+I23+I22 -> 215.11
A28: 燃气表（常用） | B28: 蒸汽发生器+采暖 | D28: 11809 | E28: 12025 | F28: 1 | G28: =E28-D28 -> 216 | H28: 5.54 | I28: =G28*H28 -> 1196.64
A29: 燃气表（备用） | B29: 蒸汽发生器+采暖 | D29: 18871 | E29: 18871 | F29: 1 | G29: =(E29-D29)*F29 -> 0 | H29: 5.54 | I29: =G29*H29 -> 0
A30: 蒸汽发生器+采暖用气总合计： | G30: =G28+G29 -> 216 | H30: 5.54 | I30: =I28+I29 -> 1196.64
A31: 电表 | B31: 蒸汽发生器+采暖 | C31: 202011 500026 | D31: 257 | E31: 275.1 | F31: 1 | G31: =(E31-D31)*F31 -> 18.1 | H31: 0.689 | I31: =G31*H31 -> 12.4709
A32: 蒸汽发生器+采暖用电总合计： | G32: =G31 -> 18.1 | H32: 0.689 | I32: =G32*H32 -> 12.4709
A33: 水表 | B33: 蒸汽发生器+采暖 | C33: F1A150610796 | D33: 174 | E33: 184 | F33: 1 | G33: =E33-D33 -> 10 | H33: 4.39 | I33: =G33*H33 -> 43.9
A34: 蒸汽发生器用水总合计: | G34: =G33 -> 10 | H34: 4.39 | I34: =G34*H34 -> 43.9
A35: 水、电、气费用总合计（水/电/气价预估单价,单价需以实际缴费为准）： | G35: =I14++I20+I26+I30+I32+I34 -> 3768.2785
A37: 流量计量表 | B37: 分项 | C37: 昨日流量 | E37: 今日流量 | G37: 用量 | H37: 备注
B38: 中央空调冷冻流量 | C38: 0 | E38: 0 | G38: =E38-C38 -> 0
B39: 中央空调冷却流量 | C39: 0 | E39: 0 | G39: =E39-C39 -> 0
B40: 中央空调采暖流量 | C40: 0 | E40: 0 | G40: =E40-C40 -> 0
B41: 蒸汽流量 | C41: 0 | E41: 0 | G41: =E41-C41 -> 0

Sheet 2025.5.11
A1: 梅州昌盛豪生大酒店节能改造每日能耗统计表
A2: 2025年 5月 10日
A3: 最低气温：15 ℃，最高气温： 25 ℃ ， 住房量：145间
A4: 宴会/会议信息：奥尔良波士顿有上午会议，宴会三厅全天会议
A5: 名称 | B5: 位置 | C5: 编号 | D5: 昨日读数 | E5: 今日读数 | F5: 倍率 | G5: 合计 | H5: 单价 | I5: 费用
A6: 电表 | B6: 磁悬浮3号空调主机 | D6: 122353 | E6: 123818 | F6: 1 | G6: =(E6-D6)*F6 -> 1465 | H6: 0.689 | I6: =G6*H6 -> 1009.385
A7: 电表 | B7: 变频5号冷冻泵 | D7: 27822.3 | E7: 28481.5 | F7: 1 | G7: 659.2 | H7: 0.689 | I7: 454.1888
A8: 电表 | B8: 4号冷冻泵 | D8: 211841.7 | E8: 211841.7 | F8: 1 | G8: =(E8-D8)*F8 -> 0 | H8: 0.689 | I8: =G8*H8 -> 0
A9: 电表 | B9: 变频5号冷却泵 | D9: 49671.8 | E9: 50035.5 | F9: 1 | G9: 363.7 | H9: 0.689 | I9: 250.5893
A10: 电表 | B10: 4号冷却泵 | D10: 258121 | E10: 258121 | F10: 1 | G10: =(E10-D10)*F10 -> 0 | H10: 0.689 | I10: =G10*H10 -> 0
A11: 电表 | B11: 变频1号冷却塔 | D11: 143409.6 | E11: 143419.2 | F11: 1 | G11: 9.6 | H11: 0.689 | I11: 6.6144
A12: 电表 | B12: 变频2号冷却塔 | D12: 317046.1 | E12: 317165.3 | F12: 1 | G12: 119.2 | H12: 0.689 | I12: 82.1288
A13: 电表 | B13: 变频3号冷却塔 | D13: 295778 | E13: 295960.3 | F13: 1 | G13: 182.3 | H13: 0.689 | I13: 125.6047
A14: 空调系统用电总合计： | G14: =G6+G7+G8+G9+G10+G11+G12+G13 -> 2799 | H14: 0.689 | I14: =I6+I7+I8+I9+I10+I11+I12+I13 -> 1928.511
A16: 电表 | B16: 三楼热泵控制柜 | C16: 2025020 50017 | D16: 86.2 | E16: 88.1 | F16: 80 | G16: 152 | H16: 0.689 | I16: 104.728
A17: 电表 | B17: 三楼变频水泵控制柜 | C17: 2024085 00211 | D17: 210.5 | E17: 218.7 | F17: 20 | G17: 164 | H17: 0.689 | I17: 112.996
A18: 电表 | B18: 洗衣房热泵控制柜 | C18: 202502 05102 | D18: 263.3 | E18: 271.6 | F18: 20 | G18: 166 | H18: 0.689 | I18: 114.374
A19: 电表 | B19: 群楼中厨水泵控制柜 | C19: 2025020 50063 | D19: 102.7 | E19: 106.5 | F19: 20 | G19: 76 | H19: 0.689 | I19: 52.364
A20: 热水热泵系统用电总合计： | G20: =G16+G17+G18+G19 -> 558 | H20: 0.689 | I20: =I16+I17+I18+I19 -> 384.462
A22: 水表 | B22: 空调冷冻水 | D22: 0 | E22: 0 | F22: 1 | G22: =E22-D22 -> 0 | H22: 4.39 | I22: =G22*H22 -> 0
A23: 水表 | B23: 空调冷却水 | D23: 0 | E23: 0 | F23: 1 | G23: =E23-D23 -> 0 | H23: 4.39 | I23: =G23*H23 -> 0
A24: 水表 | B24: 三楼中、高区热水 | C24: M9A25024017786 | D24: 845 | E24: 867 | F24: 1 | G24: =E24-D24 -> 22 | H24: 4.39 | I24: =G24*H24 -> 96.58
A25: 水表 | B25: 群楼、中厨房热水 | C25: M9A25024017857 | D25: 710 | E25: 743 | F25: 1 | G25: =E25-D25 -> 33 | H25: 4.39 | I25: =G25*H25 -> 144.87
A26: 热水热泵系统用水总合计: | G26: =G24+G25+G23+G22 -> 55 | H26: 4.39 | I26: =I24+I25+I23+I22 -> 241.45
A28: 燃气表（常用） | B28: 蒸汽发生器+采暖 | D28: 12025 | E28: 12221 | F28: 1 | G28: =E28-D28 -> 196 | H28: 5.54 | I28: =G28*H28 -> 1085.84
A29: 燃气表（备用） | B29: 蒸汽发生器+采暖 | D29: 18871 | E29: 18871 | F29: 1 | G29: =(E29-D29)*F29 -> 0 | H29: 5.54 | I29: =G29*H29 -> 0
A30: 蒸汽发生器+采暖用气总合计： | G30: =G28+G29 -> 196 | H30: 5.54 | I30: =I28+I29 -> 1085.84
A31: 电表 | B31: 蒸汽发生器+采暖 | C31: 202011 500026 | D31: 275.1 | E31: 290.3 | F31: 1 | G31: =(E31-D31)*F31 -> 15.2 | H31: 0.689 | I31: =G31*H31 -> 10.4728
A32: 蒸汽发生器+采暖用电总合计： | G32: =G31 -> 15.2 | H32: 0.689 | I32: =G32*H32 -> 10.4728
A33: 水表 | B33: 蒸汽发生器+采暖 | C33: F1A150610796 | D33: 184 | E33: 191 | F33: 1 | G33: =E33-D33 -> 7 | H33: 4.39 | I33: =G33*H33 -> 30.73
A34: 蒸汽发生器用水总合计: | G34: =G33 -> 7 | H34: 4.39 | I34: =G34*H34 -> 30.73
A35: 水、电、气费用总合计（水/电/气价预估单价,单价需以实际缴费为准）： | G35: =I14++I20+I26+I30+I32+I34 -> 3681.4658
A37: 流量计量表 | B37: 分项 | C37: 昨日流量 | E37: 今日流量 | G37: 用量 | H37: 备注
B38: 中央空调冷冻流量 | C38: 0 | E38: 0 | G38: =E38-C38 -> 0
B39: 中央空调冷却流量 | C39: 0 | E39: 0 | G39: =E39-C39 -> 0
B40: 中央空调采暖流量 | C40: 0 | E40: 0 | G40: =E40-C40 -> 0
B41: 蒸汽流量 | C41: 0 | E41: 0 | G41: =E41-C41 -> 0

Sheet 2025.5.12
A1: 梅州昌盛豪生大酒店节能改造每日能耗统计表
A2: 2025年 5月 11日
A3: 最低气温：16 ℃，最高气温： 30 ℃ ， 住房量：53间
A4: 宴会/会议信息：无
A5: 名称 | B5: 位置 | C5: 编号 | D5: 昨日读数 | E5: 今日读数 | F5: 倍率 | G5: 合计 | H5: 单价 | I5: 费用
A6: 电表 | B6: 磁悬浮3号空调主机 | D6: 123818 | E6: 124690 | F6: 1 | G6: =(E6-D6)*F6 -> 872 | H6: 0.689 | I6: =G6*H6 -> 600.808
A7: 电表 | B7: 变频5号冷冻泵 | D7: 28481.5 | E7: 29107 | F7: 1 | G7: 625.5 | H7: 0.689 | I7: 430.9695
A8: 电表 | B8: 4号冷冻泵 | D8: 211841.7 | E8: 211841.7 | F8: 1 | G8: =(E8-D8)*F8 -> 0 | H8: 0.689 | I8: =G8*H8 -> 0
A9: 电表 | B9: 变频5号冷却泵 | D9: 50035.5 | E9: 50382 | F9: 1 | G9: 346.5 | H9: 0.689 | I9: 238.7385
A10: 电表 | B10: 4号冷却泵 | D10: 258121 | E10: 258121 | F10: 1 | G10: =(E10-D10)*F10 -> 0 | H10: 0.689 | I10: =G10*H10 -> 0
A11: 电表 | B11: 变频1号冷却塔 | D11: 143419.2 | E11: 143504.2 | F11: 1 | G11: 85 | H11: 0.689 | I11: 58.565
A12: 电表 | B12: 变频2号冷却塔 | D12: 317165.3 | E12: 317211 | F12: 1 | G12: 45.7 | H12: 0.689 | I12: 31.4873
A13: 电表 | B13: 变频3号冷却塔 | D13: 295960.3 | E13: 295971.5 | F13: 1 | G13: 11.2 | H13: 0.689 | I13: 7.7168
A14: 空调系统用电总合计： | G14: =G6+G7+G8+G9+G10+G11+G12+G13 -> 1985.9 | H14: 0.689 | I14: =I6+I7+I8+I9+I10+I11+I12+I13 -> 1368.2851
A16: 电表 | B16: 三楼热泵控制柜 | C16: 2025020 50017 | D16: 88.1 | E16: 90 | F16: 80 | G16: 152 | H16: 0.689 | I16: 104.728
A17: 电表 | B17: 三楼变频水泵控制柜 | C17: 2024085 00211 | D17: 218.7 | E17: 227 | F17: 20 | G17: 166 | H17: 0.689 | I17: 114.374
A18: 电表 | B18: 洗衣房热泵控制柜 | C18: 202502 05102 | D18: 271.6 | E18: 279.5 | F18: 20 | G18: 158 | H18: 0.689 | I18: 108.862
A19: 电表 | B19: 群楼中厨水泵控制柜 | C19: 2025020 50063 | D19: 106.5 | E19: 110 | F19: 20 | G19: 70 | H19: 0.689 | I19: 48.23
A20: 热水热泵系统用电总合计： | G20: =G16+G17+G18+G19 -> 546 | H20: 0.689 | I20: =I16+I17+I18+I19 -> 376.194
A22: 水表 | B22: 空调冷冻水 | D22: 0 | E22: 0 | F22: 1 | G22: =E22-D22 -> 0 | H22: 4.39 | I22: =G22*H22 -> 0
A23: 水表 | B23: 空调冷却水 | D23: 0 | E23: 0 | F23: 1 | G23: =E23-D23 -> 0 | H23: 4.39 | I23: =G23*H23 -> 0
A24: 水表 | B24: 三楼中、高区热水 | C24: M9A25024017786 | D24: 867 | E24: 883 | F24: 1 | G24: =E24-D24 -> 16 | H24: 4.39 | I24: =G24*H24 -> 70.24
A25: 水表 | B25: 群楼、中厨房热水 | C25: M9A25024017857 | D25: 743 | E25: 772 | F25: 1 | G25: =E25-D25 -> 29 | H25: 4.39 | I25: =G25*H25 -> 127.31
A26: 热水热泵系统用水总合计: | G26: =G24+G25+G23+G22 -> 45 | H26: 4.39 | I26: =I24+I25+I23+I22 -> 197.55
A28: 燃气表（常用） | B28: 蒸汽发生器+采暖 | D28: 12221 | E28: 12459 | F28: 1 | G28: =E28-D28 -> 238 | H28: 5.54 | I28: =G28*H28 -> 1318.52
A29: 燃气表（备用） | B29: 蒸汽发生器+采暖 | D29: 18871 | E29: 18871 | F29: 1 | G29: =(E29-D29)*F29 -> 0 | H29: 5.54 | I29: =G29*H29 -> 0
A30: 蒸汽发生器+采暖用气总合计： | G30: =G28+G29 -> 238 | H30: 5.54 | I30: =I28+I29 -> 1318.52
A31: 电表 | B31: 蒸汽发生器+采暖 | C31: 202011 500026 | D31: 290.3 | E31: 309.6 | F31: 1 | G31: =(E31-D31)*F31 -> 19.3 | H31: 0.689 | I31: =G31*H31 -> 13.2977
A32: 蒸汽发生器+采暖用电总合计： | G32: =G31 -> 19.3 | H32: 0.689 | I32: =G32*H32 -> 13.2977
A33: 水表 | B33: 蒸汽发生器+采暖 | C33: F1A150610796 | D33: 191 | E33: 201 | F33: 1 | G33: =E33-D33 -> 10 | H33: 4.39 | I33: =G33*H33 -> 43.9
A34: 蒸汽发生器用水总合计: | G34: =G33 -> 10 | H34: 4.39 | I34: =G34*H34 -> 43.9
A35: 水、电、气费用总合计（水/电/气价预估单价,单价需以实际缴费为准）： | G35: =I14++I20+I26+I30+I32+I34 -> 3317.7468
A37: 流量计量表 | B37: 分项 | C37: 昨日流量 | E37: 今日流量 | G37: 用量 | H37: 备注
B38: 中央空调冷冻流量 | C38: 0 | E38: 0 | G38: =E38-C38 -> 0
B39: 中央空调冷却流量 | C39: 0 | E39: 0 | G39: =E39-C39 -> 0
B40: 中央空调采暖流量 | C40: 0 | E40: 0 | G40: =E40-C40 -> 0
B41: 蒸汽流量 | C41: 0 | E41: 0 | G41: =E41-C41 -> 0

Sheet 2025.5.13
A1: 梅州昌盛豪生大酒店节能改造每日能耗统计表
A2: 2025年 5月 12日
A3: 最低气温：18 ℃，最高气温： 32 ℃ ， 住房量：112间
A4: 宴会/会议信息：1.2厅上午有会议
A5: 名称 | B5: 位置 | C5: 编号 | D5: 昨日读数 | E5: 今日读数 | F5: 倍率 | G5: 合计 | H5: 单价 | I5: 费用
A6: 电表 | B6: 磁悬浮3号空调主机 | D6: 124690 | E6: 125441 | F6: 1 | G6: =(E6-D6)*F6 -> 751 | H6: 0.689 | I6: =G6*H6 -> 517.439
A7: 电表 | B7: 变频5号冷冻泵 | D7: 29107 | E7: 29680.8 | F7: 1 | G7: 573.8 | H7: 0.689 | I7: 395.3482
A8: 电表 | B8: 4号冷冻泵 | D8: 211841.7 | E8: 211841.7 | F8: 1 | G8: =(E8-D8)*F8 -> 0 | H8: 0.689 | I8: =G8*H8 -> 0
A9: 电表 | B9: 变频5号冷却泵 | D9: 50382 | E9: 50700 | F9: 1 | G9: 318 | H9: 0.689 | I9: 219.102
A10: 电表 | B10: 4号冷却泵 | D10: 258121 | E10: 258121 | F10: 1 | G10: =(E10-D10)*F10 -> 0 | H10: 0.689 | I10: =G10*H10 -> 0
A11: 电表 | B11: 变频1号冷却塔 | D11: 143504.2 | E11: 143574.7 | F11: 1 | G11: 70.5 | H11: 0.689 | I11: 48.5745
A12: 电表 | B12: 变频2号冷却塔 | D12: 317211 | E12: 317256.8 | F12: 1 | G12: 45.8 | H12: 0.689 | I12: 31.5562
A13: 电表 | B13: 变频3号冷却塔 | D13: 295971.5 | E13: 295971.8 | F13: 1 | G13: 0.3 | H13: 0.689 | I13: 0.2067
A14: 空调系统用电总合计： | G14: =G6+G7+G8+G9+G10+G11+G12+G13 -> 1759.4 | H14: 0.689 | I14: =I6+I7+I8+I9+I10+I11+I12+I13 -> 1212.2266
A16: 电表 | B16: 三楼热泵控制柜 | C16: 2025020 50017 | D16: 90 | E16: 91.7 | F16: 80 | G16: 136 | H16: 0.689 | I16: 93.704
A17: 电表 | B17: 三楼变频水泵控制柜 | C17: 2024085 00211 | D17: 227 | E17: 235.3 | F17: 20 | G17: 166 | H17: 0.689 | I17: 114.374
A18: 电表 | B18: 洗衣房热泵控制柜 | C18: 202502 05102 | D18: 279.5 | E18: 286.2 | F18: 20 | G18: 134 | H18: 0.689 | I18: 92.326
A19: 电表 | B19: 群楼中厨水泵控制柜 | C19: 2025020 50063 | D19: 110 | E19: 113.7 | F19: 20 | G19: 74 | H19: 0.689 | I19: 50.986
A20: 热水热泵系统用电总合计： | G20: =G16+G17+G18+G19 -> 510 | H20: 0.689 | I20: =I16+I17+I18+I19 -> 351.39
A22: 水表 | B22: 空调冷冻水 | D22: 0 | E22: 0 | F22: 1 | G22: =E22-D22 -> 0 | H22: 4.39 | I22: =G22*H22 -> 0
A23: 水表 | B23: 空调冷却水 | D23: 0 | E23: 0 | F23: 1 | G23: =E23-D23 -> 0 | H23: 4.39 | I23: =G23*H23 -> 0
A24: 水表 | B24: 三楼中、高区热水 | C24: M9A25024017786 | D24: 883 | E24: 898 | F24: 1 | G24: =E24-D24 -> 15 | H24: 4.39 | I24: =G24*H24 -> 65.85
A25: 水表 | B25: 群楼、中厨房热水 | C25: M9A25024017857 | D25: 772 | E25: 788 | F25: 1 | G25: =E25-D25 -> 16 | H25: 4.39 | I25: =G25*H25 -> 70.24
A26: 热水热泵系统用水总合计: | G26: =G24+G25+G23+G22 -> 31 | H26: 4.39 | I26: =I24+I25+I23+I22 -> 136.09
A28: 燃气表（常用） | B28: 蒸汽发生器+采暖 | D28: 12459 | E28: 12660 | F28: 1 | G28: =E28-D28 -> 201 | H28: 5.54 | I28: =G28*H28 -> 1113.54
A29: 燃气表（备用） | B29: 蒸汽发生器+采暖 | D29: 18871 | E29: 18871 | F29: 1 | G29: =(E29-D29)*F29 -> 0 | H29: 5.54 | I29: =G29*H29 -> 0
A30: 蒸汽发生器+采暖用气总合计： | G30: =G28+G29 -> 201 | H30: 5.54 | I30: =I28+I29 -> 1113.54
A31: 电表 | B31: 蒸汽发生器+采暖 | C31: 202011 500026 | D31: 309.6 | E31: 326.7 | F31: 1 | G31: =(E31-D31)*F31 -> 17.1 | H31: 0.689 | I31: =G31*H31 -> 11.7819
A32: 蒸汽发生器+采暖用电总合计： | G32: =G31 -> 17.1 | H32: 0.689 | I32: =G32*H32 -> 11.7819
A33: 水表 | B33: 蒸汽发生器+采暖 | C33: F1A150610796 | D33: 201 | E33: 210 | F33: 1 | G33: =E33-D33 -> 9 | H33: 4.39 | I33: =G33*H33 -> 39.51
A34: 蒸汽发生器用水总合计: | G34: =G33 -> 9 | H34: 4.39 | I34: =G34*H34 -> 39.51
A35: 水、电、气费用总合计（水/电/气价预估单价,单价需以实际缴费为准）： | G35: =I14++I20+I26+I30+I32+I34 -> 2864.5385
A37: 流量计量表 | B37: 分项 | C37: 昨日流量 | E37: 今日流量 | G37: 用量 | H37: 备注
B38: 中央空调冷冻流量 | C38: 0 | E38: 0 | G38: =E38-C38 -> 0
B39: 中央空调冷却流量 | C39: 0 | E39: 0 | G39: =E39-C39 -> 0
B40: 中央空调采暖流量 | C40: 0 | E40: 0 | G40: =E40-C40 -> 0
B41: 蒸汽流量 | C41: 0 | E41: 0 | G41: =E41-C41 -> 0

Sheet 2025.5.14
A1: 梅州昌盛豪生大酒店节能改造每日能耗统计表
A2: 2025年 5月 13日
A3: 最低气温：23 ℃，最高气温： 32 ℃ ， 住房量：155间
A4: 宴会/会议信息：3厅下午有会议
A5: 名称 | B5: 位置 | C5: 编号 | D5: 昨日读数 | E5: 今日读数 | F5: 倍率 | G5: 合计 | H5: 单价 | I5: 费用
A6: 电表 | B6: 磁悬浮3号空调主机 | D6: 125441 | E6: 126379 | F6: 1 | G6: =(E6-D6)*F6 -> 938 | H6: 0.689 | I6: =G6*H6 -> 646.282
A7: 电表 | B7: 变频5号冷冻泵 | D7: 29680.8 | E7: 30346.7 | F7: 1 | G7: 665.9 | H7: 0.689 | I7: 458.8051
A8: 电表 | B8: 4号冷冻泵 | D8: 211841.7 | E8: 211841.7 | F8: 1 | G8: =(E8-D8)*F8 -> 0 | H8: 0.689 | I8: =G8*H8 -> 0
A9: 电表 | B9: 变频5号冷却泵 | D9: 50700 | E9: 51067.9 | F9: 1 | G9: 367.9 | H9: 0.689 | I9: 253.4831
A10: 电表 | B10: 4号冷却泵 | D10: 258121 | E10: 258121 | F10: 1 | G10: =(E10-D10)*F10 -> 0 | H10: 0.689 | I10: =G10*H10 -> 0
A11: 电表 | B11: 变频1号冷却塔 | D11: 143574.7 | E11: 143655 | F11: 1 | G11: 80.3 | H11: 0.689 | I11: 55.3267
A12: 电表 | B12: 变频2号冷却塔 | D12: 317256.8 | E12: 317442.2 | F12: 1 | G12: 185.4 | H12: 0.689 | I12: 127.7406
A13: 电表 | B13: 变频3号冷却塔 | D13: 295971.8 | E13: 295972.1 | F13: 1 | G13: 0.3 | H13: 0.689 | I13: 0.2067
A14: 空调系统用电总合计： | G14: =G6+G7+G8+G9+G10+G11+G12+G13 -> 2237.8 | H14: 0.689 | I14: =I6+I7+I8+I9+I10+I11+I12+I13 -> 1541.8442
A16: 电表 | B16: 三楼热泵控制柜 | C16: 2025020 50017 | D16: 91.7 | E16: 93.3 | F16: 80 | G16: 128 | H16: 0.689 | I16: 88.192
A17: 电表 | B17: 三楼变频水泵控制柜 | C17: 2024085 00211 | D17: 235.3 | E17: 243.7 | F17: 20 | G17: 168 | H17: 0.689 | I17: 115.752
A18: 电表 | B18: 洗衣房热泵控制柜 | C18: 202502 05102 | D18: 286.2 | E18: 294 | F18: 20 | G18: 156 | H18: 0.689 | I18: 107.484
A19: 电表 | B19: 群楼中厨水泵控制柜 | C19: 2025020 50063 | D19: 113.7 | E19: 117.4 | F19: 20 | G19: 74 | H19: 0.689 | I19: 50.986
A20: 热水热泵系统用电总合计： | G20: =G16+G17+G18+G19 -> 526 | H20: 0.689 | I20: =I16+I17+I18+I19 -> 362.414
A22: 水表 | B22: 空调冷冻水 | D22: 0 | E22: 0 | F22: 1 | G22: =E22-D22 -> 0 | H22: 4.39 | I22: =G22*H22 -> 0
A23: 水表 | B23: 空调冷却水 | D23: 0 | E23: 0 | F23: 1 | G23: =E23-D23 -> 0 | H23: 4.39 | I23: =G23*H23 -> 0
A24: 水表 | B24: 三楼中、高区热水 | C24: M9A25024017786 | D24: 898 | E24: 918 | F24: 1 | G24: =E24-D24 -> 20 | H24: 4.39 | I24: =G24*H24 -> 87.8
A25: 水表 | B25: 群楼、中厨房热水 | C25: M9A25024017857 | D25: 788 | E25: 811 | F25: 1 | G25: =E25-D25 -> 23 | H25: 4.39 | I25: =G25*H25 -> 100.97
A26: 热水热泵系统用水总合计: | G26: =G24+G25+G23+G22 -> 43 | H26: 4.39 | I26: =I24+I25+I23+I22 -> 188.77
A28: 燃气表（常用） | B28: 蒸汽发生器+采暖 | D28: 12660 | E28: 12890 | F28: 1 | G28: =E28-D28 -> 230 | H28: 5.54 | I28: =G28*H28 -> 1274.2
A29: 燃气表（备用） | B29: 蒸汽发生器+采暖 | D29: 18871 | E29: 18871 | F29: 1 | G29: =(E29-D29)*F29 -> 0 | H29: 5.54 | I29: =G29*H29 -> 0
A30: 蒸汽发生器+采暖用气总合计： | G30: =G28+G29 -> 230 | H30: 5.54 | I30: =I28+I29 -> 1274.2
A31: 电表 | B31: 蒸汽发生器+采暖 | C31: 202011 500026 | D31: 326.7 | E31: 344.8 | F31: 1 | G31: =(E31-D31)*F31 -> 18.1 | H31: 0.689 | I31: =G31*H31 -> 12.4709
A32: 蒸汽发生器+采暖用电总合计： | G32: =G31 -> 18.1 | H32: 0.689 | I32: =G32*H32 -> 12.4709
A33: 水表 | B33: 蒸汽发生器+采暖 | C33: F1A150610796 | D33: 210 | E33: 220 | F33: 1 | G33: =E33-D33 -> 10 | H33: 4.39 | I33: =G33*H33 -> 43.9
A34: 蒸汽发生器用水总合计: | G34: =G33 -> 10 | H34: 4.39 | I34: =G34*H34 -> 43.9
A35: 水、电、气费用总合计（水/电/气价预估单价,单价需以实际缴费为准）： | G35: =I14++I20+I26+I30+I32+I34 -> 3423.5991
A37: 流量计量表 | B37: 分项 | C37: 昨日流量 | E37: 今日流量 | G37: 用量 | H37: 备注
B38: 中央空调冷冻流量 | C38: 0 | E38: 0 | G38: =E38-C38 -> 0
B39: 中央空调冷却流量 | C39: 0 | E39: 0 | G39: =E39-C39 -> 0
B40: 中央空调采暖流量 | C40: 0 | E40: 0 | G40: =E40-C40 -> 0
B41: 蒸汽流量 | C41: 0 | E41: 0 | G41: =E41-C41 -> 0

Sheet 2025.5.15
A1: 梅州昌盛豪生大酒店节能改造每日能耗统计表
A2: 2025年 5月 14日
A3: 最低气温：23 ℃，最高气温： 32 ℃ ， 住房量：144间
A4: 宴会/会议信息：奥尔良波士顿上午有会议
A5: 名称 | B5: 位置 | C5: 编号 | D5: 昨日读数 | E5: 今日读数 | F5: 倍率 | G5: 合计 | H5: 单价 | I5: 费用
A6: 电表 | B6: 磁悬浮3号空调主机 | D6: 126379 | E6: 127421 | F6: 1 | G6: =(E6-D6)*F6 -> 1042 | H6: 0.689 | I6: =G6*H6 -> 717.938
A7: 电表 | B7: 变频5号冷冻泵 | D7: 30346.7 | E7: 30946.1 | F7: 1 | G7: 599.4 | H7: 0.689 | I7: 412.9866
A8: 电表 | B8: 4号冷冻泵 | D8: 211841.7 | E8: 211841.7 | F8: 1 | G8: =(E8-D8)*F8 -> 0 | H8: 0.689 | I8: =G8*H8 -> 0
A9: 电表 | B9: 变频5号冷却泵 | D9: 51067.9 | E9: 51399.7 | F9: 1 | G9: 331.8 | H9: 0.689 | I9: 228.6102
A10: 电表 | B10: 4号冷却泵 | D10: 258121 | E10: 258121 | F10: 1 | G10: =(E10-D10)*F10 -> 0 | H10: 0.689 | I10: =G10*H10 -> 0
A11: 电表 | B11: 变频1号冷却塔 | D11: 143655 | E11: 143678.4 | F11: 1 | G11: 23.4 | H11: 0.689 | I11: 16.1226
A12: 电表 | B12: 变频2号冷却塔 | D12: 317442.2 | E12: 317622 | F12: 1 | G12: 179.8 | H12: 0.689 | I12: 123.8822
A13: 电表 | B13: 变频3号冷却塔 | D13: 295972.1 | E13: 295972.4 | F13: 1 | G13: 0.3 | H13: 0.689 | I13: 0.2067
A14: 空调系统用电总合计： | G14: =G6+G7+G8+G9+G10+G11+G12+G13 -> 2176.7 | H14: 0.689 | I14: =I6+I7+I8+I9+I10+I11+I12+I13 -> 1499.7463
A16: 电表 | B16: 三楼热泵控制柜 | C16: 2025020 50017 | D16: 93.3 | E16: 94.9 | F16: 80 | G16: 128 | H16: 0.689 | I16: 88.192
A17: 电表 | B17: 三楼变频水泵控制柜 | C17: 2024085 00211 | D17: 243.7 | E17: 252.1 | F17: 20 | G17: 168 | H17: 0.689 | I17: 115.752
A18: 电表 | B18: 洗衣房热泵控制柜 | C18: 202502 05102 | D18: 294 | E18: 301.2 | F18: 20 | G18: 144 | H18: 0.689 | I18: 99.216
A19: 电表 | B19: 群楼中厨水泵控制柜 | C19: 2025020 50063 | D19: 117.4 | E19: 121.2 | F19: 20 | G19: 76 | H19: 0.689 | I19: 52.364
A20: 热水热泵系统用电总合计： | G20: =G16+G17+G18+G19 -> 516 | H20: 0.689 | I20: =I16+I17+I18+I19 -> 355.524
A22: 水表 | B22: 空调冷冻水 | D22: 0 | E22: 0 | F22: 1 | G22: =E22-D22 -> 0 | H22: 4.39 | I22: =G22*H22 -> 0
A23: 水表 | B23: 空调冷却水 | D23: 0 | E23: 0 | F23: 1 | G23: =E23-D23 -> 0 | H23: 4.39 | I23: =G23*H23 -> 0
A24: 水表 | B24: 三楼中、高区热水 | C24: M9A25024017786 | D24: 918 | E24: 934 | F24: 1 | G24: =E24-D24 -> 16 | H24: 4.39 | I24: =G24*H24 -> 70.24
A25: 水表 | B25: 群楼、中厨房热水 | C25: M9A25024017857 | D25: 811 | E25: 832 | F25: 1 | G25: =E25-D25 -> 21 | H25: 4.39 | I25: =G25*H25 -> 92.19
A26: 热水热泵系统用水总合计: | G26: =G24+G25+G23+G22 -> 37 | H26: 4.39 | I26: =I24+I25+I23+I22 -> 162.43
A28: 燃气表（常用） | B28: 蒸汽发生器+采暖 | D28: 12890 | E28: 13107 | F28: 1 | G28: =E28-D28 -> 217 | H28: 5.54 | I28: =G28*H28 -> 1202.18
A29: 燃气表（备用） | B29: 蒸汽发生器+采暖 | D29: 18871 | E29: 18871 | F29: 1 | G29: =(E29-D29)*F29 -> 0 | H29: 5.54 | I29: =G29*H29 -> 0
A30: 蒸汽发生器+采暖用气总合计： | G30: =G28+G29 -> 217 | H30: 5.54 | I30: =I28+I29 -> 1202.18
A31: 电表 | B31: 蒸汽发生器+采暖 | C31: 202011 500026 | D31: 344.8 | E31: 361.9 | F31: 1 | G31: =(E31-D31)*F31 -> 17.1 | H31: 0.689 | I31: =G31*H31 -> 11.7819
A32: 蒸汽发生器+采暖用电总合计： | G32: =G31 -> 17.1 | H32: 0.689 | I32: =G32*H32 -> 11.7819
A33: 水表 | B33: 蒸汽发生器+采暖 | C33: F1A150610796 | D33: 220 | E33: 228 | F33: 1 | G33: =E33-D33 -> 8 | H33: 4.39 | I33: =G33*H33 -> 35.12
A34: 蒸汽发生器用水总合计: | G34: =G33 -> 8 | H34: 4.39 | I34: =G34*H34 -> 35.12
A35: 水、电、气费用总合计（水/电/气价预估单价,单价需以实际缴费为准）： | G35: =I14++I20+I26+I30+I32+I34 -> 3266.7822
A37: 流量计量表 | B37: 分项 | C37: 昨日流量 | E37: 今日流量 | G37: 用量 | H37: 备注
B38: 中央空调冷冻流量 | C38: 0 | E38: 0 | G38: =E38-C38 -> 0
B39: 中央空调冷却流量 | C39: 0 | E39: 0 | G39: =E39-C39 -> 0
B40: 中央空调采暖流量 | C40: 0 | E40: 0 | G40: =E40-C40 -> 0
B41: 蒸汽流量 | C41: 0 | E41: 0 | G41: =E41-C41 -> 0

Sheet 2025.5.16
A1: 梅州昌盛豪生大酒店节能改造每日能耗统计表
A2: 2025年 5月 15日
A3: 最低气温：25 ℃，最高气温： 34 ℃ ， 住房量：135间
A4: 宴会/会议信息：无
A5: 名称 | B5: 位置 | C5: 编号 | D5: 昨日读数 | E5: 今日读数 | F5: 倍率 | G5: 合计 | H5: 单价 | I5: 费用
A6: 电表 | B6: 磁悬浮3号空调主机 | D6: 127421 | E6: 129129 | F6: 1 | G6: =(E6-D6)*F6 -> 1708 | H6: 0.689 | I6: =G6*H6 -> 1176.812
A7: 电表 | B7: 变频5号冷冻泵 | D7: 30946.1 | E7: 31605.1 | F7: 1 | G7: 659 | H7: 0.689 | I7: 454.051
A8: 电表 | B8: 4号冷冻泵 | D8: 211841.7 | E8: 211841.7 | F8: 1 | G8: =(E8-D8)*F8 -> 0 | H8: 0.689 | I8: =G8*H8 -> 0
A9: 电表 | B9: 变频5号冷却泵 | D9: 51399.7 | E9: 51763.3 | F9: 1 | G9: 363.6 | H9: 0.689 | I9: 250.5204
A10: 电表 | B10: 4号冷却泵 | D10: 258121 | E10: 258121 | F10: 1 | G10: =(E10-D10)*F10 -> 0 | H10: 0.689 | I10: =G10*H10 -> 0
A11: 电表 | B11: 变频1号冷却塔 | D11: 143678.4 | E11: 143750.6 | F11: 1 | G11: 72.2 | H11: 0.689 | I11: 49.7458
A12: 电表 | B12: 变频2号冷却塔 | D12: 317622 | E12: 317818 | F12: 1 | G12: 196 | H12: 0.689 | I12: 135.044
A13: 电表 | B13: 变频3号冷却塔 | D13: 295972.4 | E13: 296029.9 | F13: 1 | G13: 57.5 | H13: 0.689 | I13: 39.6175
A14: 空调系统用电总合计： | G14: =G6+G7+G8+G9+G10+G11+G12+G13 -> 3056.3 | H14: 0.689 | I14: =I6+I7+I8+I9+I10+I11+I12+I13 -> 2105.7907
A16: 电表 | B16: 三楼热泵控制柜 | C16: 2025020 50017 | D16: 94.9 | E16: 96.3 | F16: 80 | G16: 112 | H16: 0.689 | I16: 77.168
A17: 电表 | B17: 三楼变频水泵控制柜 | C17: 2024085 00211 | D17: 252.1 | E17: 260.5 | F17: 20 | G17: 168 | H17: 0.689 | I17: 115.752
A18: 电表 | B18: 洗衣房热泵控制柜 | C18: 202502 05102 | D18: 301.2 | E18: 306.7 | F18: 20 | G18: 110 | H18: 0.689 | I18: 75.79
A19: 电表 | B19: 群楼中厨水泵控制柜 | C19: 2025020 50063 | D19: 121.2 | E19: 124.9 | F19: 20 | G19: 74 | H19: 0.689 | I19: 50.986
A20: 热水热泵系统用电总合计： | G20: =G16+G17+G18+G19 -> 464 | H20: 0.689 | I20: =I16+I17+I18+I19 -> 319.696
A22: 水表 | B22: 空调冷冻水 | D22: 0 | E22: 0 | F22: 1 | G22: =E22-D22 -> 0 | H22: 4.39 | I22: =G22*H22 -> 0
A23: 水表 | B23: 空调冷却水 | D23: 0 | E23: 0 | F23: 1 | G23: =E23-D23 -> 0 | H23: 4.39 | I23: =G23*H23 -> 0
A24: 水表 | B24: 三楼中、高区热水 | C24: M9A25024017786 | D24: 934 | E24: 953 | F24: 1 | G24: =E24-D24 -> 19 | H24: 4.39 | I24: =G24*H24 -> 83.41
A25: 水表 | B25: 群楼、中厨房热水 | C25: M9A25024017857 | D25: 832 | E25: 852 | F25: 1 | G25: =E25-D25 -> 20 | H25: 4.39 | I25: =G25*H25 -> 87.8
A26: 热水热泵系统用水总合计: | G26: =G24+G25+G23+G22 -> 39 | H26: 4.39 | I26: =I24+I25+I23+I22 -> 171.21
A28: 燃气表（常用） | B28: 蒸汽发生器+采暖 | D28: 13107 | E28: 13333 | F28: 1 | G28: =E28-D28 -> 226 | H28: 5.54 | I28: =G28*H28 -> 1252.04
A29: 燃气表（备用） | B29: 蒸汽发生器+采暖 | D29: 18871 | E29: 18871 | F29: 1 | G29: =(E29-D29)*F29 -> 0 | H29: 5.54 | I29: =G29*H29 -> 0
A30: 蒸汽发生器+采暖用气总合计： | G30: =G28+G29 -> 226 | H30: 5.54 | I30: =I28+I29 -> 1252.04
A31: 电表 | B31: 蒸汽发生器+采暖 | C31: 202011 500026 | D31: 361.9 | E31: 379.9 | F31: 1 | G31: =(E31-D31)*F31 -> 18 | H31: 0.689 | I31: =G31*H31 -> 12.402
A32: 蒸汽发生器+采暖用电总合计： | G32: =G31 -> 18 | H32: 0.689 | I32: =G32*H32 -> 12.402
A33: 水表 | B33: 蒸汽发生器+采暖 | C33: F1A150610796 | D33: 228 | E33: 237 | F33: 1 | G33: =E33-D33 -> 9 | H33: 4.39 | I33: =G33*H33 -> 39.51
A34: 蒸汽发生器用水总合计: | G34: =G33 -> 9 | H34: 4.39 | I34: =G34*H34 -> 39.51
A35: 水、电、气费用总合计（水/电/气价预估单价,单价需以实际缴费为准）： | G35: =I14++I20+I26+I30+I32+I34 -> 3900.6487
A37: 流量计量表 | B37: 分项 | C37: 昨日流量 | E37: 今日流量 | G37: 用量 | H37: 备注
B38: 中央空调冷冻流量 | C38: 0 | E38: 0 | G38: =E38-C38 -> 0
B39: 中央空调冷却流量 | C39: 0 | E39: 0 | G39: =E39-C39 -> 0
B40: 中央空调采暖流量 | C40: 0 | E40: 0 | G40: =E40-C40 -> 0
B41: 蒸汽流量 | C41: 0 | E41: 0 | G41: =E41-C41 -> 0

Sheet 2025.5.17
A1: 梅州昌盛豪生大酒店节能改造每日能耗统计表
A2: 2025年 5月 15日
A3: 最低气温：25 ℃，最高气温： 34 ℃ ， 住房量：135间
A4: 宴会/会议信息：无
A5: 名称 | B5: 位置 | C5: 编号 | D5: 昨日读数 | E5: 今日读数 | F5: 倍率 | G5: 合计 | H5: 单价 | I5: 费用
A6: 电表 | B6: 磁悬浮3号空调主机 | D6: 131889 | E6: 134682 | F6: 1 | G6: =(E6-D6)*F6 -> 2793 | H6: 0.689 | I6: =G6*H6 -> 1924.377
A7: 电表 | B7: 变频5号冷冻泵 | D7: 32456.3 | E7: 33409.2 | F7: 1 | G7: 952.9 | H7: 0.689 | I7: 656.5481
A8: 电表 | B8: 4号冷冻泵 | D8: 211841.1 | E8: 211841.1 | F8: 1 | G8: =(E8-D8)*F8 -> 0 | H8: 0.689 | I8: =G8*H8 -> 0
A9: 电表 | B9: 变频5号冷却泵 | D9: 52275.7 | E9: 52903 | F9: 1 | G9: 627.3 | H9: 0.689 | I9: 432.2097
A10: 电表 | B10: 4号冷却泵 | D10: 258121 | E10: 258382.9 | F10: 1 | G10: =(E10-D10)*F10 -> 261.9 | H10: 0.689 | I10: =G10*H10 -> 180.4491
A11: 电表 | B11: 变频1号冷却塔 | D11: 143829.1 | E11: 143914.5 | F11: 1 | G11: 85.4 | H11: 0.689 | I11: 58.8406
A12: 电表 | B12: 变频2号冷却塔 | D12: 317978.9 | E12: 318166.8 | F12: 1 | G12: 187.9 | H12: 0.689 | I12: 129.4631
A13: 电表 | B13: 变频3号冷却塔 | D13: 296179 | E13: 296356 | F13: 1 | G13: 177 | H13: 0.689 | I13: 121.953
A14: 空调系统用电总合计： | G14: =G6+G7+G8+G9+G10+G11+G12+G13 -> 5085.4 | H14: 0.689 | I14: =I6+I7+I8+I9+I10+I11+I12+I13 -> 3503.8406
A16: 电表 | B16: 三楼热泵控制柜 | C16: 2025020 50017 | D16: 98.2 | E16: 99.6 | F16: 80 | G16: 112 | H16: 0.689 | I16: 77.168
A17: 电表 | B17: 三楼变频水泵控制柜 | C17: 2024085 00211 | D17: 268.9 | E17: 276.4 | F17: 20 | G17: 150 | H17: 0.689 | I17: 103.35
A18: 电表 | B18: 洗衣房热泵控制柜 | C18: 202502 05102 | D18: 313.1 | E18: 319.9 | F18: 20 | G18: 136 | H18: 0.689 | I18: 93.704
A19: 电表 | B19: 群楼中厨水泵控制柜 | C19: 2025020 50063 | D19: 124.9 | E19: 132.1 | F19: 20 | G19: 144 | H19: 0.689 | I19: 99.216
A20: 热水热泵系统用电总合计： | G20: =G16+G17+G18+G19 -> 542 | H20: 0.689 | I20: =I16+I17+I18+I19 -> 373.438
A22: 水表 | B22: 空调冷冻水 | D22: 0 | E22: 0 | F22: 1 | G22: =E22-D22 -> 0 | H22: 4.39 | I22: =G22*H22 -> 0
A23: 水表 | B23: 空调冷却水 | D23: 0 | E23: 0 | F23: 1 | G23: =E23-D23 -> 0 | H23: 4.39 | I23: =G23*H23 -> 0
A24: 水表 | B24: 三楼中、高区热水 | C24: M9A25024017786 | D24: 975 | E24: 995 | F24: 1 | G24: =E24-D24 -> 20 | H24: 4.39 | I24: =G24*H24 -> 87.8
A25: 水表 | B25: 群楼、中厨房热水 | C25: M9A25024017857 | D25: 886 | E25: 926 | F25: 1 | G25: =E25-D25 -> 40 | H25: 4.39 | I25: =G25*H25 -> 175.6
A26: 热水热泵系统用水总合计: | G26: =G24+G25+G23+G22 -> 60 | H26: 4.39 | I26: =I24+I25+I23+I22 -> 263.4
A28: 燃气表（常用） | B28: 蒸汽发生器+采暖 | D28: 13634 | E28: 13922 | F28: 1 | G28: =E28-D28 -> 288 | H28: 5.54 | I28: =G28*H28 -> 1595.52
A29: 燃气表（备用） | B29: 蒸汽发生器+采暖 | D29: 18871 | E29: 18871 | F29: 1 | G29: =(E29-D29)*F29 -> 0 | H29: 5.54 | I29: =G29*H29 -> 0
A30: 蒸汽发生器+采暖用气总合计： | G30: =G28+G29 -> 288 | H30: 5.54 | I30: =I28+I29 -> 1595.52
A31: 电表 | B31: 蒸汽发生器+采暖 | C31: 202011 500026 | D31: 403.6 | E31: 424.8 | F31: 1 | G31: =(E31-D31)*F31 -> 21.2 | H31: 0.689 | I31: =G31*H31 -> 14.6068
A32: 蒸汽发生器+采暖用电总合计： | G32: =G31 -> 21.2 | H32: 0.689 | I32: =G32*H32 -> 14.6068
A33: 水表 | B33: 蒸汽发生器+采暖 | C33: F1A150610796 | D33: 250 | E33: 260 | F33: 1 | G33: =E33-D33 -> 10 | H33: 4.39 | I33: =G33*H33 -> 43.9
A34: 蒸汽发生器用水总合计: | G34: =G33 -> 10 | H34: 4.39 | I34: =G34*H34 -> 43.9
A35: 水、电、气费用总合计（水/电/气价预估单价,单价需以实际缴费为准）： | G35: =I14++I20+I26+I30+I32+I34 -> 5794.7054
A37: 流量计量表 | B37: 分项 | C37: 昨日流量 | E37: 今日流量 | G37: 用量 | H37: 备注
B38: 中央空调冷冻流量 | C38: 0 | E38: 0 | G38: =E38-C38 -> 0
B39: 中央空调冷却流量 | C39: 0 | E39: 0 | G39: =E39-C39 -> 0
B40: 中央空调采暖流量 | C40: 0 | E40: 0 | G40: =E40-C40 -> 0
B41: 蒸汽流量 | C41: 0 | E41: 0 | G41: =E41-C41 -> 0

Sheet 2025.5.18
A1: 梅州昌盛豪生大酒店节能改造每日能耗统计表
A2: 2025年 5月 18日
A3: 最低气温：26 ℃，最高气温： 32℃ ， 住房量：99间
A4: 宴会/会议信息：无
A5: 名称 | B5: 位置 | C5: 编号 | D5: 昨日读数 | E5: 今日读数 | F5: 倍率 | G5: 合计 | H5: 单价 | I5: 费用
A6: 电表 | B6: 磁悬浮3号空调主机 | D6: 134682 | E6: 136595 | F6: 1 | G6: =(E6-D6)*F6 -> 1913 | H6: 0.689 | I6: =G6*H6 -> 1318.057
A7: 电表 | B7: 变频5号冷冻泵 | D7: 33409.2 | E7: 34148.2 | F7: 1 | G7: 739 | H7: 0.689 | I7: 509.171
A8: 电表 | B8: 4号冷冻泵 | D8: 211841.1 | E8: 211841.1 | F8: 1 | G8: =(E8-D8)*F8 -> 0 | H8: 0.689 | I8: =G8*H8 -> 0
A9: 电表 | B9: 变频5号冷却泵 | D9: 52903 | E9: 53539.8 | F9: 1 | G9: 636.8 | H9: 0.689 | I9: 438.7552
A10: 电表 | B10: 4号冷却泵 | D10: 258382.9 | E10: 258382.9 | F10: 1 | G10: =(E10-D10)*F10 -> 0 | H10: 0.689 | I10: =G10*H10 -> 0
A11: 电表 | B11: 变频1号冷却塔 | D11: 143914.5 | E11: 144019.9 | F11: 1 | G11: 105.4 | H11: 0.689 | I11: 72.6206
A12: 电表 | B12: 变频2号冷却塔 | D12: 318166.8 | E12: 318376.8 | F12: 1 | G12: 210 | H12: 0.689 | I12: 144.69
A13: 电表 | B13: 变频3号冷却塔 | D13: 296356 | E13: 296542 | F13: 1 | G13: 186 | H13: 0.689 | I13: 128.154
A14: 空调系统用电总合计： | G14: =G6+G7+G8+G9+G10+G11+G12+G13 -> 3790.2 | H14: 0.689 | I14: =I6+I7+I8+I9+I10+I11+I12+I13 -> 2611.4478
A16: 电表 | B16: 三楼热泵控制柜 | C16: 2025020 50017 | D16: 99.6 | E16: 100.9 | F16: 80 | G16: 104 | H16: 0.689 | I16: 71.656
A17: 电表 | B17: 三楼变频水泵控制柜 | C17: 2024085 00211 | D17: 276.4 | E17: 286.5 | F17: 20 | G17: 202 | H17: 0.689 | I17: 139.178
A18: 电表 | B18: 洗衣房热泵控制柜 | C18: 202502 05102 | D18: 319.9 | E18: 326.8 | F18: 20 | G18: 138 | H18: 0.689 | I18: 95.082
A19: 电表 | B19: 群楼中厨水泵控制柜 | C19: 2025020 50063 | D19: 132.1 | E19: 136 | F19: 20 | G19: 78 | H19: 0.689 | I19: 53.742
A20: 热水热泵系统用电总合计： | G20: =G16+G17+G18+G19 -> 522 | H20: 0.689 | I20: =I16+I17+I18+I19 -> 359.658
A22: 水表 | B22: 空调冷冻水 | D22: 0 | E22: 0 | F22: 1 | G22: =E22-D22 -> 0 | H22: 4.39 | I22: =G22*H22 -> 0
A23: 水表 | B23: 空调冷却水 | D23: 0 | E23: 0 | F23: 1 | G23: =E23-D23 -> 0 | H23: 4.39 | I23: =G23*H23 -> 0
A24: 水表 | B24: 三楼中、高区热水 | C24: M9A25024017786 | D24: 995 | E24: 1010 | F24: 1 | G24: =E24-D24 -> 15 | H24: 4.39 | I24: =G24*H24 -> 65.85
A25: 水表 | B25: 群楼、中厨房热水 | C25: M9A25024017857 | D25: 926 | E25: 952 | F25: 1 | G25: =E25-D25 -> 26 | H25: 4.39 | I25: =G25*H25 -> 114.14
A26: 热水热泵系统用水总合计: | G26: =G24+G25+G23+G22 -> 41 | H26: 4.39 | I26: =I24+I25+I23+I22 -> 179.99
A28: 燃气表（常用） | B28: 蒸汽发生器+采暖 | D28: 13922 | E28: 14128 | F28: 1 | G28: =E28-D28 -> 206 | H28: 5.54 | I28: =G28*H28 -> 1141.24
A29: 燃气表（备用） | B29: 蒸汽发生器+采暖 | D29: 18871 | E29: 18871 | F29: 1 | G29: =(E29-D29)*F29 -> 0 | H29: 5.54 | I29: =G29*H29 -> 0
A30: 蒸汽发生器+采暖用气总合计： | G30: =G28+G29 -> 206 | H30: 5.54 | I30: =I28+I29 -> 1141.24
A31: 电表 | B31: 蒸汽发生器+采暖 | C31: 202011 500026 | D31: 424.8 | E31: 442.1 | F31: 1 | G31: =(E31-D31)*F31 -> 17.3 | H31: 0.689 | I31: =G31*H31 -> 11.9197
A32: 蒸汽发生器+采暖用电总合计： | G32: =G31 -> 17.3 | H32: 0.689 | I32: =G32*H32 -> 11.9197
A33: 水表 | B33: 蒸汽发生器+采暖 | C33: F1A150610796 | D33: 260 | E33: 269 | F33: 1 | G33: =E33-D33 -> 9 | H33: 4.39 | I33: =G33*H33 -> 39.51
A34: 蒸汽发生器用水总合计: | G34: =G33 -> 9 | H34: 4.39 | I34: =G34*H34 -> 39.51
A35: 水、电、气费用总合计（水/电/气价预估单价,单价需以实际缴费为准）： | G35: =I14++I20+I26+I30+I32+I34 -> 4343.7655
A37: 流量计量表 | B37: 分项 | C37: 昨日流量 | E37: 今日流量 | G37: 用量 | H37: 备注
B38: 中央空调冷冻流量 | C38: 0 | E38: 0 | G38: =E38-C38 -> 0
B39: 中央空调冷却流量 | C39: 0 | E39: 0 | G39: =E39-C39 -> 0
B40: 中央空调采暖流量 | C40: 0 | E40: 0 | G40: =E40-C40 -> 0
B41: 蒸汽流量 | C41: 0 | E41: 0 | G41: =E41-C41 -> 0

Sheet 2025.5.20
A1: 梅州昌盛豪生大酒店节能改造每日能耗统计表
A2: 2025年 5月 19日
A3: 最低气温：24 ℃，最高气温： 30℃ ， 住房量：153间
A4: 宴会/会议信息：豪生厅有午宴
A5: 名称 | B5: 位置 | C5: 编号 | D5: 昨日读数 | E5: 今日读数 | F5: 倍率 | G5: 合计 | H5: 单价 | I5: 费用
A6: 电表 | B6: 磁悬浮3号空调主机 | D6: 136595 | E6: 138866 | F6: 1 | G6: =(E6-D6)*F6 -> 2271 | H6: 0.689 | I6: =G6*H6 -> 1564.719
A7: 电表 | B7: 变频5号冷冻泵 | D7: 34148.2 | E7: 35261.3 | F7: 1 | G7: 1113.1 | H7: 0.689 | I7: 766.9259
A8: 电表 | B8: 4号冷冻泵 | D8: 211841.1 | E8: 211841.7 | F8: 1 | G8: =(E8-D8)*F8 -> 0.6 | H8: 0.689 | I8: =G8*H8 -> 0.4134
A9: 电表 | B9: 变频5号冷却泵 | D9: 53539.8 | E9: 54213.1 | F9: 1 | G9: 673.3 | H9: 0.689 | I9: 463.9037
A10: 电表 | B10: 4号冷却泵 | D10: 258382.9 | E10: 258686.2 | F10: 1 | G10: =(E10-D10)*F10 -> 303.3 | H10: 0.689 | I10: =G10*H10 -> 208.9737
A11: 电表 | B11: 变频1号冷却塔 | D11: 144019.9 | E11: 144059.2 | F11: 1 | G11: 39.3 | H11: 0.689 | I11: 27.0777
A12: 电表 | B12: 变频2号冷却塔 | D12: 318376.8 | E12: 318562.6 | F12: 1 | G12: 185.8 | H12: 0.689 | I12: 128.0162
A13: 电表 | B13: 变频3号冷却塔 | D13: 296542 | E13: 296721.5 | F13: 1 | G13: 179.5 | H13: 0.689 | I13: 123.6755
A14: 空调系统用电总合计： | G14: =G6+G7+G8+G9+G10+G11+G12+G13 -> 4765.9 | H14: 0.689 | I14: =I6+I7+I8+I9+I10+I11+I12+I13 -> 3283.7051
A16: 电表 | B16: 三楼热泵控制柜 | C16: 2025020 50017 | D16: 100.9 | E16: 102.3 | F16: 80 | G16: 112 | H16: 0.689 | I16: 77.168
A17: 电表 | B17: 三楼变频水泵控制柜 | C17: 2024085 00211 | D17: 286.5 | E17: 295.4 | F17: 20 | G17: 178 | H17: 0.689 | I17: 122.642
A18: 电表 | B18: 洗衣房热泵控制柜 | C18: 202502 05102 | D18: 326.8 | E18: 334.7 | F18: 20 | G18: 158 | H18: 0.689 | I18: 108.862
A19: 电表 | B19: 群楼中厨水泵控制柜 | C19: 2025020 50063 | D19: 136 | E19: 139.6 | F19: 20 | G19: 72 | H19: 0.689 | I19: 49.608
A20: 热水热泵系统用电总合计： | G20: =G16+G17+G18+G19 -> 520 | H20: 0.689 | I20: =I16+I17+I18+I19 -> 358.28
A22: 水表 | B22: 空调冷冻水 | D22: 0 | E22: 0 | F22: 1 | G22: =E22-D22 -> 0 | H22: 4.39 | I22: =G22*H22 -> 0
A23: 水表 | B23: 空调冷却水 | D23: 0 | E23: 0 | F23: 1 | G23: =E23-D23 -> 0 | H23: 4.39 | I23: =G23*H23 -> 0
A24: 水表 | B24: 三楼中、高区热水 | C24: M9A25024017786 | D24: 1010 | E24: 1026 | F24: 1 | G24: =E24-D24 -> 16 | H24: 4.39 | I24: =G24*H24 -> 70.24
A25: 水表 | B25: 群楼、中厨房热水 | C25: M9A25024017857 | D25: 952 | E25: 985 | F25: 1 | G25: =E25-D25 -> 33 | H25: 4.39 | I25: =G25*H25 -> 144.87
A26: 热水热泵系统用水总合计: | G26: =G24+G25+G23+G22 -> 49 | H26: 4.39 | I26: =I24+I25+I23+I22 -> 215.11
A28: 燃气表（常用） | B28: 蒸汽发生器+采暖 | D28: 14128 | E28: 14324 | F28: 1 | G28: =E28-D28 -> 196 | H28: 5.54 | I28: =G28*H28 -> 1085.84
A29: 燃气表（备用） | B29: 蒸汽发生器+采暖 | D29: 18871 | E29: 18871 | F29: 1 | G29: =(E29-D29)*F29 -> 0 | H29: 5.54 | I29: =G29*H29 -> 0
A30: 蒸汽发生器+采暖用气总合计： | G30: =G28+G29 -> 196 | H30: 5.54 | I30: =I28+I29 -> 1085.84
A31: 电表 | B31: 蒸汽发生器+采暖 | C31: 202011 500026 | D31: 442.1 | E31: 458 | F31: 1 | G31: =(E31-D31)*F31 -> 15.9 | H31: 0.689 | I31: =G31*H31 -> 10.9551
A32: 蒸汽发生器+采暖用电总合计： | G32: =G31 -> 15.9 | H32: 0.689 | I32: =G32*H32 -> 10.9551
A33: 水表 | B33: 蒸汽发生器+采暖 | C33: F1A150610796 | D33: 269 | E33: 277 | F33: 1 | G33: =E33-D33 -> 8 | H33: 4.39 | I33: =G33*H33 -> 35.12
A34: 蒸汽发生器用水总合计: | G34: =G33 -> 8 | H34: 4.39 | I34: =G34*H34 -> 35.12
A35: 水、电、气费用总合计（水/电/气价预估单价,单价需以实际缴费为准）： | G35: =I14++I20+I26+I30+I32+I34 -> 4989.0102
A37: 流量计量表 | B37: 分项 | C37: 昨日流量 | E37: 今日流量 | G37: 用量 | H37: 备注
B38: 中央空调冷冻流量 | C38: 0 | E38: 0 | G38: =E38-C38 -> 0
B39: 中央空调冷却流量 | C39: 0 | E39: 0 | G39: =E39-C39 -> 0
B40: 中央空调采暖流量 | C40: 0 | E40: 0 | G40: =E40-C40 -> 0
B41: 蒸汽流量 | C41: 0 | E41: 0 | G41: =E41-C41 -> 0

Sheet 2025.5.21
A1: 梅州昌盛豪生大酒店节能改造每日能耗统计表
A2: 2025年 5月 20日
A3: 最低气温：24 ℃，最高气温： 32℃ ， 住房量：174间
A4: 宴会/会议信息：豪生厅.富贵.月圆.鸿禧有午宴.3厅有晚宴
A5: 名称 | B5: 位置 | C5: 编号 | D5: 昨日读数 | E5: 今日读数 | F5: 倍率 | G5: 合计 | H5: 单价 | I5: 费用
A6: 电表 | B6: 磁悬浮3号空调主机 | D6: 138866 | E6: 141692 | F6: 1 | G6: =(E6-D6)*F6 -> 2826 | H6: 0.689 | I6: =G6*H6 -> 1947.114
A7: 电表 | B7: 变频5号冷冻泵 | D7: 35261.3 | E7: 36398 | F7: 1 | G7: 1136.7 | H7: 0.689 | I7: 783.1863
A8: 电表 | B8: 4号冷冻泵 | D8: 211841.7 | E8: 211841.7 | F8: 1 | G8: =(E8-D8)*F8 -> 0 | H8: 0.689 | I8: =G8*H8 -> 0
A9: 电表 | B9: 变频5号冷却泵 | D9: 54213.1 | E9: 54862.2 | F9: 1 | G9: 649.1 | H9: 0.689 | I9: 447.2299
A10: 电表 | B10: 4号冷却泵 | D10: 258686.2 | E10: 258840.7 | F10: 1 | G10: =(E10-D10)*F10 -> 154.5 | H10: 0.689 | I10: =G10*H10 -> 106.4505
A11: 电表 | B11: 变频1号冷却塔 | D11: 144059.2 | E11: 144140.6 | F11: 1 | G11: 81.4 | H11: 0.689 | I11: 56.0846
A12: 电表 | B12: 变频2号冷却塔 | D12: 318562.6 | E12: 318737.6 | F12: 1 | G12: 175 | H12: 0.689 | I12: 120.575
A13: 电表 | B13: 变频3号冷却塔 | D13: 296721.5 | E13: 296890.4 | F13: 1 | G13: 168.9 | H13: 0.689 | I13: 116.3721
A14: 空调系统用电总合计： | G14: =G6+G7+G8+G9+G10+G11+G12+G13 -> 5191.6 | H14: 0.689 | I14: =I6+I7+I8+I9+I10+I11+I12+I13 -> 3577.0124
A16: 电表 | B16: 三楼热泵控制柜 | C16: 2025020 50017 | D16: 102.3 | E16: 104.2 | F16: 80 | G16: 152 | H16: 0.689 | I16: 104.728
A17: 电表 | B17: 三楼变频水泵控制柜 | C17: 2024085 00211 | D17: 295.4 | E17: 304.3 | F17: 20 | G17: 178 | H17: 0.689 | I17: 122.642
A18: 电表 | B18: 洗衣房热泵控制柜 | C18: 202502 05102 | D18: 334.7 | E18: 341.8 | F18: 20 | G18: 142 | H18: 0.689 | I18: 97.838
A19: 电表 | B19: 群楼中厨水泵控制柜 | C19: 2025020 50063 | D19: 139.6 | E19: 143.3 | F19: 20 | G19: 74 | H19: 0.689 | I19: 50.986
A20: 热水热泵系统用电总合计： | G20: =G16+G17+G18+G19 -> 546 | H20: 0.689 | I20: =I16+I17+I18+I19 -> 376.194
A22: 水表 | B22: 空调冷冻水 | D22: 0 | E22: 0 | F22: 1 | G22: =E22-D22 -> 0 | H22: 4.39 | I22: =G22*H22 -> 0
A23: 水表 | B23: 空调冷却水 | D23: 0 | E23: 0 | F23: 1 | G23: =E23-D23 -> 0 | H23: 4.39 | I23: =G23*H23 -> 0
A24: 水表 | B24: 三楼中、高区热水 | C24: M9A25024017786 | D24: 1026 | E24: 1048 | F24: 1 | G24: =E24-D24 -> 22 | H24: 4.39 | I24: =G24*H24 -> 96.58
A25: 水表 | B25: 群楼、中厨房热水 | C25: M9A25024017857 | D25: 985 | E25: 1023 | F25: 1 | G25: =E25-D25 -> 38 | H25: 4.39 | I25: =G25*H25 -> 166.82
A26: 热水热泵系统用水总合计: | G26: =G24+G25+G23+G22 -> 60 | H26: 4.39 | I26: =I24+I25+I23+I22 -> 263.4
A28: 燃气表（常用） | B28: 蒸汽发生器+采暖 | D28: 14324 | E28: 14532 | F28: 1 | G28: =E28-D28 -> 208 | H28: 5.54 | I28: =G28*H28 -> 1152.32
A29: 燃气表（备用） | B29: 蒸汽发生器+采暖 | D29: 18871 | E29: 18871 | F29: 1 | G29: =(E29-D29)*F29 -> 0 | H29: 5.54 | I29: =G29*H29 -> 0
A30: 蒸汽发生器+采暖用气总合计： | G30: =G28+G29 -> 208 | H30: 5.54 | I30: =I28+I29 -> 1152.32
A31: 电表 | B31: 蒸汽发生器+采暖 | C31: 202011 500026 | D31: 458 | E31: 474.8 | F31: 1 | G31: =(E31-D31)*F31 -> 16.8 | H31: 0.689 | I31: =G31*H31 -> 11.5752
A32: 蒸汽发生器+采暖用电总合计： | G32: =G31 -> 16.8 | H32: 0.689 | I32: =G32*H32 -> 11.5752
A33: 水表 | B33: 蒸汽发生器+采暖 | C33: F1A150610796 | D33: 277 | E33: 286 | F33: 1 | G33: =E33-D33 -> 9 | H33: 4.39 | I33: =G33*H33 -> 39.51
A34: 蒸汽发生器用水总合计: | G34: =G33 -> 9 | H34: 4.39 | I34: =G34*H34 -> 39.51
A35: 水、电、气费用总合计（水/电/气价预估单价,单价需以实际缴费为准）： | G35: =I14++I20+I26+I30+I32+I34 -> 5420.0116
A37: 流量计量表 | B37: 分项 | C37: 昨日流量 | E37: 今日流量 | G37: 用量 | H37: 备注
B38: 中央空调冷冻流量 | C38: 0 | E38: 0 | G38: =E38-C38 -> 0
B39: 中央空调冷却流量 | C39: 0 | E39: 0 | G39: =E39-C39 -> 0
B40: 中央空调采暖流量 | C40: 0 | E40: 0 | G40: =E40-C40 -> 0
B41: 蒸汽流量 | C41: 0 | E41: 0 | G41: =E41-C41 -> 0

Sheet 2025.5.22
A1: 梅州昌盛豪生大酒店节能改造每日能耗统计表
A2: 2025年 5月 21日
A3: 最低气温：26 ℃，最高气温： 34℃ ， 住房量：250间
A4: 宴会/会议信息.中餐厅.西餐厅有午宴.奥尔良波士顿下午有会议 .西餐厅有晚宴
A5: 名称 | B5: 位置 | C5: 编号 | D5: 昨日读数 | E5: 今日读数 | F5: 倍率 | G5: 合计 | H5: 单价 | I5: 费用
A6: 电表 | B6: 磁悬浮3号空调主机 | D6: 141692 | E6: 143671 | F6: 1 | G6: =(E6-D6)*F6 -> 1979 | H6: 0.689 | I6: =G6*H6 -> 1363.531
A7: 电表 | B7: 变频5号冷冻泵 | D7: 36398 | E7: 37589.3 | F7: 1 | G7: 1191.3 | H7: 0.689 | I7: 820.8057
A8: 电表 | B8: 4号冷冻泵 | D8: 211841.7 | E8: 211841.7 | F8: 1 | G8: =(E8-D8)*F8 -> 0 | H8: 0.689 | I8: =G8*H8 -> 0
A9: 电表 | B9: 变频5号冷却泵 | D9: 54862.2 | E9: 55557.8 | F9: 1 | G9: 695.6 | H9: 0.689 | I9: 479.2684
A10: 电表 | B10: 4号冷却泵 | D10: 258840.7 | E10: 258840.7 | F10: 1 | G10: =(E10-D10)*F10 -> 0 | H10: 0.689 | I10: =G10*H10 -> 0
A11: 电表 | B11: 变频1号冷却塔 | D11: 144140.6 | E11: 144228.2 | F11: 1 | G11: 87.6 | H11: 0.689 | I11: 60.3564
A12: 电表 | B12: 变频2号冷却塔 | D12: 318737.6 | E12: 318920 | F12: 1 | G12: 182.4 | H12: 0.689 | I12: 125.6736
A13: 电表 | B13: 变频3号冷却塔 | D13: 296890.4 | E13: 297066.6 | F13: 1 | G13: 176.2 | H13: 0.689 | I13: 121.4018
A14: 空调系统用电总合计： | G14: =G6+G7+G8+G9+G10+G11+G12+G13 -> 4312.1 | H14: 0.689 | I14: =I6+I7+I8+I9+I10+I11+I12+I13 -> 2971.0369
A16: 电表 | B16: 三楼热泵控制柜 | C16: 2025020 50017 | D16: 104.2 | E16: 106.1 | F16: 80 | G16: 152 | H16: 0.689 | I16: 104.728
A17: 电表 | B17: 三楼变频水泵控制柜 | C17: 2024085 00211 | D17: 304.3 | E17: 313.3 | F17: 20 | G17: 180 | H17: 0.689 | I17: 124.02
A18: 电表 | B18: 洗衣房热泵控制柜 | C18: 202502 05102 | D18: 341.8 | E18: 348 | F18: 20 | G18: 124 | H18: 0.689 | I18: 85.436
A19: 电表 | B19: 群楼中厨水泵控制柜 | C19: 2025020 50063 | D19: 143.3 | E19: 147 | F19: 20 | G19: 74 | H19: 0.689 | I19: 50.986
A20: 热水热泵系统用电总合计： | G20: =G16+G17+G18+G19 -> 530 | H20: 0.689 | I20: =I16+I17+I18+I19 -> 365.17
A22: 水表 | B22: 空调冷冻水 | D22: 0 | E22: 0 | F22: 1 | G22: =E22-D22 -> 0 | H22: 4.39 | I22: =G22*H22 -> 0
A23: 水表 | B23: 空调冷却水 | D23: 0 | E23: 0 | F23: 1 | G23: =E23-D23 -> 0 | H23: 4.39 | I23: =G23*H23 -> 0
A24: 水表 | B24: 三楼中、高区热水 | C24: M9A25024017786 | D24: 1048 | E24: 1076 | F24: 1 | G24: =E24-D24 -> 28 | H24: 4.39 | I24: =G24*H24 -> 122.92
A25: 水表 | B25: 群楼、中厨房热水 | C25: M9A25024017857 | D25: 1023 | E25: 1051 | F25: 1 | G25: =E25-D25 -> 28 | H25: 4.39 | I25: =G25*H25 -> 122.92
A26: 热水热泵系统用水总合计: | G26: =G24+G25+G23+G22 -> 56 | H26: 4.39 | I26: =I24+I25+I23+I22 -> 245.84
A28: 燃气表（常用） | B28: 蒸汽发生器+采暖 | D28: 14532 | E28: 14771 | F28: 1 | G28: =E28-D28 -> 239 | H28: 5.54 | I28: =G28*H28 -> 1324.06
A29: 燃气表（备用） | B29: 蒸汽发生器+采暖 | D29: 18871 | E29: 18871 | F29: 1 | G29: =(E29-D29)*F29 -> 0 | H29: 5.54 | I29: =G29*H29 -> 0
A30: 蒸汽发生器+采暖用气总合计： | G30: =G28+G29 -> 239 | H30: 5.54 | I30: =I28+I29 -> 1324.06
A31: 电表 | B31: 蒸汽发生器+采暖 | C31: 202011 500026 | D31: 474.8 | E31: 492.7 | F31: 1 | G31: =(E31-D31)*F31 -> 17.9 | H31: 0.689 | I31: =G31*H31 -> 12.3331
A32: 蒸汽发生器+采暖用电总合计： | G32: =G31 -> 17.9 | H32: 0.689 | I32: =G32*H32 -> 12.3331
A33: 水表 | B33: 蒸汽发生器+采暖 | C33: F1A150610796 | D33: 286 | E33: 295 | F33: 1 | G33: =E33-D33 -> 9 | H33: 4.39 | I33: =G33*H33 -> 39.51
A34: 蒸汽发生器用水总合计: | G34: =G33 -> 9 | H34: 4.39 | I34: =G34*H34 -> 39.51
A35: 水、电、气费用总合计（水/电/气价预估单价,单价需以实际缴费为准）： | G35: =I14++I20+I26+I30+I32+I34 -> 4957.95
A37: 流量计量表 | B37: 分项 | C37: 昨日流量 | E37: 今日流量 | G37: 用量 | H37: 备注
B38: 中央空调冷冻流量 | C38: 0 | E38: 0 | G38: =E38-C38 -> 0
B39: 中央空调冷却流量 | C39: 0 | E39: 0 | G39: =E39-C39 -> 0
B40: 中央空调采暖流量 | C40: 0 | E40: 0 | G40: =E40-C40 -> 0
B41: 蒸汽流量 | C41: 0 | E41: 0 | G41: =E41-C41 -> 0

Sheet 2025.5.23
A1: 梅州昌盛豪生大酒店节能改造每日能耗统计表
A2: 2025年 5月 22日
A3: 最低气温： 26℃，最高气温： 33℃ ， 住房量：268间
A4: 宴会/会议信息.1.2厅上午有会议.中餐厅有午宴.中餐厅有晚宴
A5: 名称 | B5: 位置 | C5: 编号 | D5: 昨日读数 | E5: 今日读数 | F5: 倍率 | G5: 合计 | H5: 单价 | I5: 费用
A6: 电表 | B6: 磁悬浮3号空调主机 | D6: 143671 | E6: 145864 | F6: 1 | G6: =(E6-D6)*F6 -> 2193 | H6: 0.689 | I6: =G6*H6 -> 1510.977
A7: 电表 | B7: 变频5号冷冻泵 | D7: 37589.3 | E7: 38313.4 | F7: 1 | G7: 724.1 | H7: 0.689 | I7: 498.9049
A8: 电表 | B8: 4号冷冻泵 | D8: 211841.7 | E8: 211841.8 | F8: 1 | G8: =(E8-D8)*F8 -> 0.09999999998 | H8: 0.689 | I8: =G8*H8 -> 0.06889999998
A9: 电表 | B9: 变频5号冷却泵 | D9: 55557.8 | E9: 56083.1 | F9: 1 | G9: 525.3 | H9: 0.689 | I9: 361.9317
A10: 电表 | B10: 4号冷却泵 | D10: 258840.7 | E10: 258863 | F10: 1 | G10: =(E10-D10)*F10 -> 22.3 | H10: 0.689 | I10: =G10*H10 -> 15.3647
A11: 电表 | B11: 变频1号冷却塔 | D11: 144228.2 | E11: 144317 | F11: 1 | G11: 88.8 | H11: 0.689 | I11: 61.1832
A12: 电表 | B12: 变频2号冷却塔 | D12: 318920 | E12: 319093.3 | F12: 1 | G12: 173.3 | H12: 0.689 | I12: 119.4037
A13: 电表 | B13: 变频3号冷却塔 | D13: 297066.6 | E13: 297186.1 | F13: 1 | G13: 119.5 | H13: 0.689 | I13: 82.3355
A14: 空调系统用电总合计： | G14: =G6+G7+G8+G9+G10+G11+G12+G13 -> 3846.4 | H14: 0.689 | I14: =I6+I7+I8+I9+I10+I11+I12+I13 -> 2650.1696
A16: 电表 | B16: 三楼热泵控制柜 | C16: 2025020 50017 | D16: 106.1 | E16: 108.2 | F16: 80 | G16: 168 | H16: 0.689 | I16: 115.752
A17: 电表 | B17: 三楼变频水泵控制柜 | C17: 2024085 00211 | D17: 313.3 | E17: 322.3 | F17: 20 | G17: 180 | H17: 0.689 | I17: 124.02
A18: 电表 | B18: 洗衣房热泵控制柜 | C18: 202502 05102 | D18: 348 | E18: 353.1 | F18: 20 | G18: 102 | H18: 0.689 | I18: 70.278
A19: 电表 | B19: 群楼中厨水泵控制柜 | C19: 2025020 50063 | D19: 147 | E19: 150.8 | F19: 20 | G19: 76 | H19: 0.689 | I19: 52.364
A20: 热水热泵系统用电总合计： | G20: =G16+G17+G18+G19 -> 526 | H20: 0.689 | I20: =I16+I17+I18+I19 -> 362.414
A22: 水表 | B22: 空调冷冻水 | D22: 0 | E22: 0 | F22: 1 | G22: =E22-D22 -> 0 | H22: 4.39 | I22: =G22*H22 -> 0
A23: 水表 | B23: 空调冷却水 | D23: 0 | E23: 0 | F23: 1 | G23: =E23-D23 -> 0 | H23: 4.39 | I23: =G23*H23 -> 0
A24: 水表 | B24: 三楼中、高区热水 | C24: M9A25024017786 | D24: 1076 | E24: 1113 | F24: 1 | G24: =E24-D24 -> 37 | H24: 4.39 | I24: =G24*H24 -> 162.43
A25: 水表 | B25: 群楼、中厨房热水 | C25: M9A25024017857 | D25: 1051 | E25: 1074 | F25: 1 | G25: =E25-D25 -> 23 | H25: 4.39 | I25: =G25*H25 -> 100.97
A26: 热水热泵系统用水总合计: | G26: =G24+G25+G23+G22 -> 60 | H26: 4.39 | I26: =I24+I25+I23+I22 -> 263.4
A28: 燃气表（常用） | B28: 蒸汽发生器+采暖 | D28: 14771 | E28: 15056 | F28: 1 | G28: =E28-D28 -> 285 | H28: 5.54 | I28: =G28*H28 -> 1578.9
A29: 燃气表（备用） | B29: 蒸汽发生器+采暖 | D29: 18871 | E29: 18871 | F29: 1 | G29: =(E29-D29)*F29 -> 0 | H29: 5.54 | I29: =G29*H29 -> 0
A30: 蒸汽发生器+采暖用气总合计： | G30: =G28+G29 -> 285 | H30: 5.54 | I30: =I28+I29 -> 1578.9
A31: 电表 | B31: 蒸汽发生器+采暖 | C31: 202011 500026 | D31: 474.8 | E31: 514.6 | F31: 1 | G31: =(E31-D31)*F31 -> 39.8 | H31: 0.689 | I31: =G31*H31 -> 27.4222
A32: 蒸汽发生器+采暖用电总合计： | G32: =G31 -> 39.8 | H32: 0.689 | I32: =G32*H32 -> 27.4222
A33: 水表 | B33: 蒸汽发生器+采暖 | C33: F1A150610796 | D33: 286 | E33: 307 | F33: 1 | G33: =E33-D33 -> 21 | H33: 4.39 | I33: =G33*H33 -> 92.19
A34: 蒸汽发生器用水总合计: | G34: =G33 -> 21 | H34: 4.39 | I34: =G34*H34 -> 92.19
A35: 水、电、气费用总合计（水/电/气价预估单价,单价需以实际缴费为准）： | G35: =I14++I20+I26+I30+I32+I34 -> 4974.4958
A37: 流量计量表 | B37: 分项 | C37: 昨日流量 | E37: 今日流量 | G37: 用量 | H37: 备注
B38: 中央空调冷冻流量 | C38: 0 | E38: 0 | G38: =E38-C38 -> 0
B39: 中央空调冷却流量 | C39: 0 | E39: 0 | G39: =E39-C39 -> 0
B40: 中央空调采暖流量 | C40: 0 | E40: 0 | G40: =E40-C40 -> 0
B41: 蒸汽流量 | C41: 0 | E41: 0 | G41: =E41-C41 -> 0

Sheet 2025.5.24
A1: 梅州昌盛豪生大酒店节能改造每日能耗统计表
A2: 2025年 5月 23日
A3: 最低气温： 26℃，最高气温： 33℃ ， 住房量：268间
A4: 宴会/会议信息.1.2厅上午有会议.中餐厅有午宴.中餐厅有晚宴
A5: 名称 | B5: 位置 | C5: 编号 | D5: 昨日读数 | E5: 今日读数 | F5: 倍率 | G5: 合计 | H5: 单价 | I5: 费用
A6: 电表 | B6: 磁悬浮3号空调主机 | D6: 145864 | E6: 148607 | F6: 1 | G6: =(E6-D6)*F6 -> 2743 | H6: 0.689 | I6: =G6*H6 -> 1889.927
A7: 电表 | B7: 变频5号冷冻泵 | D7: 38313.4 | E7: 38975.4 | F7: 1 | G7: 662 | H7: 0.689 | I7: 456.118
A8: 电表 | B8: 4号冷冻泵 | D8: 211841.8 | E8: 211842.3 | F8: 1 | G8: =(E8-D8)*F8 -> 0.5 | H8: 0.689 | I8: =G8*H8 -> 0.3445
A9: 电表 | B9: 变频5号冷却泵 | D9: 56083.1 | E9: 56543.3 | F9: 1 | G9: 460.2 | H9: 0.689 | I9: 317.0778
A10: 电表 | B10: 4号冷却泵 | D10: 258863 | E10: 258969.6 | F10: 1 | G10: =(E10-D10)*F10 -> 106.6 | H10: 0.689 | I10: =G10*H10 -> 73.4474
A11: 电表 | B11: 变频1号冷却塔 | D11: 144317 | E11: 144384.2 | F11: 1 | G11: 67.2 | H11: 0.689 | I11: 46.3008
A12: 电表 | B12: 变频2号冷却塔 | D12: 319093.3 | E12: 319222 | F12: 1 | G12: 128.7 | H12: 0.689 | I12: 88.6743
A13: 电表 | B13: 变频3号冷却塔 | D13: 297186.1 | E13: 297299.5 | F13: 1 | G13: 113.4 | H13: 0.689 | I13: 78.1326
A14: 空调系统用电总合计： | G14: =G6+G7+G8+G9+G10+G11+G12+G13 -> 4281.6 | H14: 0.689 | I14: =I6+I7+I8+I9+I10+I11+I12+I13 -> 2950.0224
A16: 电表 | B16: 三楼热泵控制柜 | C16: 2025020 50017 | D16: 108.2 | E16: 110 | F16: 80 | G16: 144 | H16: 0.689 | I16: 99.216
A17: 电表 | B17: 三楼变频水泵控制柜 | C17: 2024085 00211 | D17: 322.3 | E17: 331.2 | F17: 20 | G17: 178 | H17: 0.689 | I17: 122.642
A18: 电表 | B18: 洗衣房热泵控制柜 | C18: 202502 05102 | D18: 353.1 | E18: 359.9 | F18: 20 | G18: 136 | H18: 0.689 | I18: 93.704
A19: 电表 | B19: 群楼中厨水泵控制柜 | C19: 2025020 50063 | D19: 150.8 | E19: 154.3 | F19: 20 | G19: 70 | H19: 0.689 | I19: 48.23
A20: 热水热泵系统用电总合计： | G20: =G16+G17+G18+G19 -> 528 | H20: 0.689 | I20: =I16+I17+I18+I19 -> 363.792
A22: 水表 | B22: 空调冷冻水 | D22: 0 | E22: 0 | F22: 1 | G22: =E22-D22 -> 0 | H22: 4.39 | I22: =G22*H22 -> 0
A23: 水表 | B23: 空调冷却水 | D23: 0 | E23: 0 | F23: 1 | G23: =E23-D23 -> 0 | H23: 4.39 | I23: =G23*H23 -> 0
A24: 水表 | B24: 三楼中、高区热水 | C24: M9A25024017786 | D24: 1113 | E24: 1142 | F24: 1 | G24: =E24-D24 -> 29 | H24: 4.39 | I24: =G24*H24 -> 127.31
A25: 水表 | B25: 群楼、中厨房热水 | C25: M9A25024017857 | D25: 1074 | E25: 1103 | F25: 1 | G25: =E25-D25 -> 29 | H25: 4.39 | I25: =G25*H25 -> 127.31
A26: 热水热泵系统用水总合计: | G26: =G24+G25+G23+G22 -> 58 | H26: 4.39 | I26: =I24+I25+I23+I22 -> 254.62
A28: 燃气表（常用） | B28: 蒸汽发生器+采暖 | D28: 15056 | E28: 15269 | F28: 1 | G28: =E28-D28 -> 213 | H28: 5.54 | I28: =G28*H28 -> 1180.02
A29: 燃气表（备用） | B29: 蒸汽发生器+采暖 | D29: 18871 | E29: 18871 | F29: 1 | G29: =(E29-D29)*F29 -> 0 | H29: 5.54 | I29: =G29*H29 -> 0
A30: 蒸汽发生器+采暖用气总合计： | G30: =G28+G29 -> 213 | H30: 5.54 | I30: =I28+I29 -> 1180.02
A31: 电表 | B31: 蒸汽发生器+采暖 | C31: 202011 500026 | D31: 514.6 | E31: 531 | F31: 1 | G31: =(E31-D31)*F31 -> 16.4 | H31: 0.689 | I31: =G31*H31 -> 11.2996
A32: 蒸汽发生器+采暖用电总合计： | G32: =G31 -> 16.4 | H32: 0.689 | I32: =G32*H32 -> 11.2996
A33: 水表 | B33: 蒸汽发生器+采暖 | C33: F1A150610796 | D33: 307 | E33: 315 | F33: 1 | G33: =E33-D33 -> 8 | H33: 4.39 | I33: =G33*H33 -> 35.12
A34: 蒸汽发生器用水总合计: | G34: =G33 -> 8 | H34: 4.39 | I34: =G34*H34 -> 35.12
A35: 水、电、气费用总合计（水/电/气价预估单价,单价需以实际缴费为准）： | G35: =I14++I20+I26+I30+I32+I34 -> 4794.874
A37: 流量计量表 | B37: 分项 | C37: 昨日流量 | E37: 今日流量 | G37: 用量 | H37: 备注
B38: 中央空调冷冻流量 | C38: 0 | E38: 0 | G38: =E38-C38 -> 0
B39: 中央空调冷却流量 | C39: 0 | E39: 0 | G39: =E39-C39 -> 0
B40: 中央空调采暖流量 | C40: 0 | E40: 0 | G40: =E40-C40 -> 0
B41: 蒸汽流量 | C41: 0 | E41: 0 | G41: =E41-C41 -> 0

Sheet 2025.5.25
A1: 梅州昌盛豪生大酒店节能改造每日能耗统计表
A2: 2025年 5月 24日
A3: 最低气温： 26℃，最高气温： 33℃ ， 住房量：268间
A4: 宴会/会议信息.1.2厅上午有会议.中餐厅有午宴.中餐厅有晚宴
A5: 名称 | B5: 位置 | C5: 编号 | D5: 昨日读数 | E5: 今日读数 | F5: 倍率 | G5: 合计 | H5: 单价 | I5: 费用
A6: 电表 | B6: 磁悬浮3号空调主机 | D6: 148607 | E6: 150791 | F6: 1 | G6: =(E6-D6)*F6 -> 2184 | H6: 0.689 | I6: =G6*H6 -> 1504.776
A7: 电表 | B7: 变频5号冷冻泵 | D7: 38975.4 | E7: 39582.3 | F7: 1 | G7: 606.9 | H7: 0.689 | I7: 418.1541
A8: 电表 | B8: 4号冷冻泵 | D8: 211842.3 | E8: 211842.3 | F8: 1 | G8: =(E8-D8)*F8 -> 0 | H8: 0.689 | I8: =G8*H8 -> 0
A9: 电表 | B9: 变频5号冷却泵 | D9: 56543.3 | E9: 57049.6 | F9: 1 | G9: 506.3 | H9: 0.689 | I9: 348.8407
A10: 电表 | B10: 4号冷却泵 | D10: 258969.6 | E10: 258969.6 | F10: 1 | G10: =(E10-D10)*F10 -> 0 | H10: 0.689 | I10: =G10*H10 -> 0
A11: 电表 | B11: 变频1号冷却塔 | D11: 144384.2 | E11: 144427.7 | F11: 1 | G11: 43.5 | H11: 0.689 | I11: 29.9715
A12: 电表 | B12: 变频2号冷却塔 | D12: 319222 | E12: 319300.6 | F12: 1 | G12: 78.6 | H12: 0.689 | I12: 54.1554
A13: 电表 | B13: 变频3号冷却塔 | D13: 297299.5 | E13: 297375.6 | F13: 1 | G13: 76.1 | H13: 0.689 | I13: 52.4329
A14: 空调系统用电总合计： | G14: =G6+G7+G8+G9+G10+G11+G12+G13 -> 3495.4 | H14: 0.689 | I14: =I6+I7+I8+I9+I10+I11+I12+I13 -> 2408.3306
A16: 电表 | B16: 三楼热泵控制柜 | C16: 2025020 50017 | D16: 110 | E16: 112.2 | F16: 80 | G16: 176 | H16: 0.689 | I16: 121.264
A17: 电表 | B17: 三楼变频水泵控制柜 | C17: 2024085 00211 | D17: 331.2 | E17: 340.1 | F17: 20 | G17: 178 | H17: 0.689 | I17: 122.642
A18: 电表 | B18: 洗衣房热泵控制柜 | C18: 202502 05102 | D18: 359.9 | E18: 367.9 | F18: 20 | G18: 160 | H18: 0.689 | I18: 110.24
A19: 电表 | B19: 群楼中厨水泵控制柜 | C19: 2025020 50063 | D19: 154.3 | E19: 158.5 | F19: 20 | G19: 84 | H19: 0.689 | I19: 57.876
A20: 热水热泵系统用电总合计： | G20: =G16+G17+G18+G19 -> 598 | H20: 0.689 | I20: =I16+I17+I18+I19 -> 412.022
A22: 水表 | B22: 空调冷冻水 | D22: 0 | E22: 0 | F22: 1 | G22: =E22-D22 -> 0 | H22: 4.39 | I22: =G22*H22 -> 0
A23: 水表 | B23: 空调冷却水 | D23: 0 | E23: 0 | F23: 1 | G23: =E23-D23 -> 0 | H23: 4.39 | I23: =G23*H23 -> 0
A24: 水表 | B24: 三楼中、高区热水 | C24: M9A25024017786 | D24: 1142 | E24: 1168 | F24: 1 | G24: =E24-D24 -> 26 | H24: 4.39 | I24: =G24*H24 -> 114.14
A25: 水表 | B25: 群楼、中厨房热水 | C25: M9A25024017857 | D25: 1103 | E25: 1141 | F25: 1 | G25: =E25-D25 -> 38 | H25: 4.39 | I25: =G25*H25 -> 166.82
A26: 热水热泵系统用水总合计: | G26: =G24+G25+G23+G22 -> 64 | H26: 4.39 | I26: =I24+I25+I23+I22 -> 280.96
A28: 燃气表（常用） | B28: 蒸汽发生器+采暖 | D28: 15269 | E28: 15552 | F28: 1 | G28: =E28-D28 -> 283 | H28: 5.54 | I28: =G28*H28 -> 1567.82
A29: 燃气表（备用） | B29: 蒸汽发生器+采暖 | D29: 18871 | E29: 18871 | F29: 1 | G29: =(E29-D29)*F29 -> 0 | H29: 5.54 | I29: =G29*H29 -> 0
A30: 蒸汽发生器+采暖用气总合计： | G30: =G28+G29 -> 283 | H30: 5.54 | I30: =I28+I29 -> 1567.82
A31: 电表 | B31: 蒸汽发生器+采暖 | C31: 202011 500026 | D31: 531 | E31: 552.5 | F31: 1 | G31: =(E31-D31)*F31 -> 21.5 | H31: 0.689 | I31: =G31*H31 -> 14.8135
A32: 蒸汽发生器+采暖用电总合计： | G32: =G31 -> 21.5 | H32: 0.689 | I32: =G32*H32 -> 14.8135
A33: 水表 | B33: 蒸汽发生器+采暖 | C33: F1A150610796 | D33: 315 | E33: 327 | F33: 1 | G33: =E33-D33 -> 12 | H33: 4.39 | I33: =G33*H33 -> 52.68
A34: 蒸汽发生器用水总合计: | G34: =G33 -> 12 | H34: 4.39 | I34: =G34*H34 -> 52.68
A35: 水、电、气费用总合计（水/电/气价预估单价,单价需以实际缴费为准）： | G35: =I14++I20+I26+I30+I32+I34 -> 4736.6261
A37: 流量计量表 | B37: 分项 | C37: 昨日流量 | E37: 今日流量 | G37: 用量 | H37: 备注
B38: 中央空调冷冻流量 | C38: 0 | E38: 0 | G38: =E38-C38 -> 0
B39: 中央空调冷却流量 | C39: 0 | E39: 0 | G39: =E39-C39 -> 0
B40: 中央空调采暖流量 | C40: 0 | E40: 0 | G40: =E40-C40 -> 0
B41: 蒸汽流量 | C41: 0 | E41: 0 | G41: =E41-C41 -> 0

Sheet 2025.5.26
A1: 梅州昌盛豪生大酒店节能改造每日能耗统计表
A2: 2025年 5月 25日
A3: 最低气温： 18℃，最高气温： 24℃ ， 住房量： 109间
A4: 宴会/会议信息.奥尔良波士顿.昆西.昆斯有全天会议 三厅.中餐厅有午宴
A5: 名称 | B5: 位置 | C5: 编号 | D5: 昨日读数 | E5: 今日读数 | F5: 倍率 | G5: 合计 | H5: 单价 | I5: 费用
A6: 电表 | B6: 磁悬浮3号空调主机 | D6: 150791 | E6: 151819 | F6: 1 | G6: =(E6-D6)*F6 -> 1028 | H6: 0.689 | I6: =G6*H6 -> 708.292
A7: 电表 | B7: 变频5号冷冻泵 | D7: 39582.3 | E7: 40205.7 | F7: 1 | G7: 623.4 | H7: 0.689 | I7: 429.5226
A8: 电表 | B8: 4号冷冻泵 | D8: 211842.3 | E8: 211842.3 | F8: 1 | G8: =(E8-D8)*F8 -> 0 | H8: 0.689 | I8: =G8*H8 -> 0
A9: 电表 | B9: 变频5号冷却泵 | D9: 57049.6 | E9: 57569.3 | F9: 1 | G9: 519.7 | H9: 0.689 | I9: 358.0733
A10: 电表 | B10: 4号冷却泵 | D10: 258969.6 | E10: 258969.6 | F10: 1 | G10: =(E10-D10)*F10 -> 0 | H10: 0.689 | I10: =G10*H10 -> 0
A11: 电表 | B11: 变频1号冷却塔 | D11: 144427.7 | E11: 144460.5 | F11: 1 | G11: 32.8 | H11: 0.689 | I11: 22.5992
A12: 电表 | B12: 变频2号冷却塔 | D12: 319300.6 | E12: 319355.3 | F12: 1 | G12: 54.7 | H12: 0.689 | I12: 37.6883
A13: 电表 | B13: 变频3号冷却塔 | D13: 297375.6 | E13: 297430 | F13: 1 | G13: 54.4 | H13: 0.689 | I13: 37.4816
A14: 空调系统用电总合计： | G14: =G6+G7+G8+G9+G10+G11+G12+G13 -> 2313 | H14: 0.689 | I14: =I6+I7+I8+I9+I10+I11+I12+I13 -> 1593.657
A16: 电表 | B16: 三楼热泵控制柜 | C16: 2025020 50017 | D16: 112.2 | E16: 113.9 | F16: 80 | G16: 136 | H16: 0.689 | I16: 93.704
A17: 电表 | B17: 三楼变频水泵控制柜 | C17: 2024085 00211 | D17: 340.1 | E17: 348.9 | F17: 20 | G17: 176 | H17: 0.689 | I17: 121.264
A18: 电表 | B18: 洗衣房热泵控制柜 | C18: 202502 05102 | D18: 367.9 | E18: 374.9 | F18: 20 | G18: 140 | H18: 0.689 | I18: 96.46
A19: 电表 | B19: 群楼中厨水泵控制柜 | C19: 2025020 50063 | D19: 158.5 | E19: 162.5 | F19: 20 | G19: 80 | H19: 0.689 | I19: 55.12
A20: 热水热泵系统用电总合计： | G20: =G16+G17+G18+G19 -> 532 | H20: 0.689 | I20: =I16+I17+I18+I19 -> 366.548
A22: 水表 | B22: 空调冷冻水 | D22: 0 | E22: 0 | F22: 1 | G22: =E22-D22 -> 0 | H22: 4.39 | I22: =G22*H22 -> 0
A23: 水表 | B23: 空调冷却水 | D23: 0 | E23: 0 | F23: 1 | G23: =E23-D23 -> 0 | H23: 4.39 | I23: =G23*H23 -> 0
A24: 水表 | B24: 三楼中、高区热水 | C24: M9A25024017786 | D24: 1168 | E24: 1180 | F24: 1 | G24: =E24-D24 -> 12 | H24: 4.39 | I24: =G24*H24 -> 52.68
A25: 水表 | B25: 群楼、中厨房热水 | C25: M9A25024017857 | D25: 1141 | E25: 1174 | F25: 1 | G25: =E25-D25 -> 33 | H25: 4.39 | I25: =G25*H25 -> 144.87
A26: 热水热泵系统用水总合计: | G26: =G24+G25+G23+G22 -> 45 | H26: 4.39 | I26: =I24+I25+I23+I22 -> 197.55
A28: 燃气表（常用） | B28: 蒸汽发生器+采暖 | D28: 15552 | E28: 15821 | F28: 1 | G28: =E28-D28 -> 269 | H28: 5.54 | I28: =G28*H28 -> 1490.26
A29: 燃气表（备用） | B29: 蒸汽发生器+采暖 | D29: 18871 | E29: 18871 | F29: 1 | G29: =(E29-D29)*F29 -> 0 | H29: 5.54 | I29: =G29*H29 -> 0
A30: 蒸汽发生器+采暖用气总合计： | G30: =G28+G29 -> 269 | H30: 5.54 | I30: =I28+I29 -> 1490.26
A31: 电表 | B31: 蒸汽发生器+采暖 | C31: 202011 500026 | D31: 552.5 | E31: 572.4 | F31: 1 | G31: =(E31-D31)*F31 -> 19.9 | H31: 0.689 | I31: =G31*H31 -> 13.7111
A32: 蒸汽发生器+采暖用电总合计： | G32: =G31 -> 19.9 | H32: 0.689 | I32: =G32*H32 -> 13.7111
A33: 水表 | B33: 蒸汽发生器+采暖 | C33: F1A150610796 | D33: 327 | E33: 337 | F33: 1 | G33: =E33-D33 -> 10 | H33: 4.39 | I33: =G33*H33 -> 43.9
A34: 蒸汽发生器用水总合计: | G34: =G33 -> 10 | H34: 4.39 | I34: =G34*H34 -> 43.9
A35: 水、电、气费用总合计（水/电/气价预估单价,单价需以实际缴费为准）： | G35: =I14++I20+I26+I30+I32+I34 -> 3705.6261
A37: 流量计量表 | B37: 分项 | C37: 昨日流量 | E37: 今日流量 | G37: 用量 | H37: 备注
B38: 中央空调冷冻流量 | C38: 0 | E38: 0 | G38: =E38-C38 -> 0
B39: 中央空调冷却流量 | C39: 0 | E39: 0 | G39: =E39-C39 -> 0
B40: 中央空调采暖流量 | C40: 0 | E40: 0 | G40: =E40-C40 -> 0
B41: 蒸汽流量 | C41: 0 | E41: 0 | G41: =E41-C41 -> 0

Sheet 2025.5.27
A1: 梅州昌盛豪生大酒店节能改造每日能耗统计表
A2: 2025年 5月 26日
A3: 最低气温： 19℃，最高气温： 30℃ ， 住房量： 148间
A4: 宴会/会议信息 无
A5: 名称 | B5: 位置 | C5: 编号 | D5: 昨日读数 | E5: 今日读数 | F5: 倍率 | G5: 合计 | H5: 单价 | I5: 费用
A6: 电表 | B6: 磁悬浮3号空调主机 | D6: 151819 | E6: 152490 | F6: 1 | G6: =(E6-D6)*F6 -> 671 | H6: 0.689 | I6: =G6*H6 -> 462.319
A7: 电表 | B7: 变频5号冷冻泵 | D7: 40205.7 | E7: 40811.9 | F7: 1 | G7: 606.2 | H7: 0.689 | I7: 417.6718
A8: 电表 | B8: 4号冷冻泵 | D8: 211842.3 | E8: 211842.3 | F8: 1 | G8: =(E8-D8)*F8 -> 0 | H8: 0.689 | I8: =G8*H8 -> 0
A9: 电表 | B9: 变频5号冷却泵 | D9: 57569.3 | E9: 58061.4 | F9: 1 | G9: 492.1 | H9: 0.689 | I9: 339.0569
A10: 电表 | B10: 4号冷却泵 | D10: 258969.6 | E10: 259008.5 | F10: 1 | G10: =(E10-D10)*F10 -> 38.9 | H10: 0.689 | I10: =G10*H10 -> 26.8021
A11: 电表 | B11: 变频1号冷却塔 | D11: 144460.5 | E11: 144492.5 | F11: 1 | G11: 32 | H11: 0.689 | I11: 22.048
A12: 电表 | B12: 变频2号冷却塔 | D12: 319355.3 | E12: 319408.8 | F12: 1 | G12: 53.5 | H12: 0.689 | I12: 36.8615
A13: 电表 | B13: 变频3号冷却塔 | D13: 297430 | E13: 297483 | F13: 1 | G13: 53 | H13: 0.689 | I13: 36.517
A14: 空调系统用电总合计： | G14: =G6+G7+G8+G9+G10+G11+G12+G13 -> 1946.7 | H14: 0.689 | I14: =I6+I7+I8+I9+I10+I11+I12+I13 -> 1341.2763
A16: 电表 | B16: 三楼热泵控制柜 | C16: 2025020 50017 | D16: 113.9 | E16: 115.9 | F16: 80 | G16: 160 | H16: 0.689 | I16: 110.24
A17: 电表 | B17: 三楼变频水泵控制柜 | C17: 2024085 00211 | D17: 348.9 | E17: 357.6 | F17: 20 | G17: 174 | H17: 0.689 | I17: 119.886
A18: 电表 | B18: 洗衣房热泵控制柜 | C18: 202502 05102 | D18: 374.9 | E18: 381.3 | F18: 20 | G18: 128 | H18: 0.689 | I18: 88.192
A19: 电表 | B19: 群楼中厨水泵控制柜 | C19: 2025020 50063 | D19: 162.5 | E19: 166.3 | F19: 20 | G19: 76 | H19: 0.689 | I19: 52.364
A20: 热水热泵系统用电总合计： | G20: =G16+G17+G18+G19 -> 538 | H20: 0.689 | I20: =I16+I17+I18+I19 -> 370.682
A22: 水表 | B22: 空调冷冻水 | D22: 0 | E22: 0 | F22: 1 | G22: =E22-D22 -> 0 | H22: 4.39 | I22: =G22*H22 -> 0
A23: 水表 | B23: 空调冷却水 | D23: 0 | E23: 0 | F23: 1 | G23: =E23-D23 -> 0 | H23: 4.39 | I23: =G23*H23 -> 0
A24: 水表 | B24: 三楼中、高区热水 | C24: M9A25024017786 | D24: 1180 | E24: 1207 | F24: 1 | G24: =E24-D24 -> 27 | H24: 4.39 | I24: =G24*H24 -> 118.53
A25: 水表 | B25: 群楼、中厨房热水 | C25: M9A25024017857 | D25: 1174 | E25: 1192 | F25: 1 | G25: =E25-D25 -> 18 | H25: 4.39 | I25: =G25*H25 -> 79.02
A26: 热水热泵系统用水总合计: | G26: =G24+G25+G23+G22 -> 45 | H26: 4.39 | I26: =I24+I25+I23+I22 -> 197.55
A28: 燃气表（常用） | B28: 蒸汽发生器+采暖 | D28: 15821 | E28: 16067 | F28: 1 | G28: =E28-D28 -> 246 | H28: 5.54 | I28: =G28*H28 -> 1362.84
A29: 燃气表（备用） | B29: 蒸汽发生器+采暖 | D29: 18871 | E29: 18871 | F29: 1 | G29: =(E29-D29)*F29 -> 0 | H29: 5.54 | I29: =G29*H29 -> 0
A30: 蒸汽发生器+采暖用气总合计： | G30: =G28+G29 -> 246 | H30: 5.54 | I30: =I28+I29 -> 1362.84
A31: 电表 | B31: 蒸汽发生器+采暖 | C31: 202011 500026 | D31: 572.4 | E31: 591 | F31: 1 | G31: =(E31-D31)*F31 -> 18.6 | H31: 0.689 | I31: =G31*H31 -> 12.8154
A32: 蒸汽发生器+采暖用电总合计： | G32: =G31 -> 18.6 | H32: 0.689 | I32: =G32*H32 -> 12.8154
A33: 水表 | B33: 蒸汽发生器+采暖 | C33: F1A150610796 | D33: 337 | E33: 346 | F33: 1 | G33: =E33-D33 -> 9 | H33: 4.39 | I33: =G33*H33 -> 39.51
A34: 蒸汽发生器用水总合计: | G34: =G33 -> 9 | H34: 4.39 | I34: =G34*H34 -> 39.51
A35: 水、电、气费用总合计（水/电/气价预估单价,单价需以实际缴费为准）： | G35: =I14++I20+I26+I30+I32+I34 -> 3324.6737
A37: 流量计量表 | B37: 分项 | C37: 昨日流量 | E37: 今日流量 | G37: 用量 | H37: 备注
B38: 中央空调冷冻流量 | C38: 0 | E38: 0 | G38: =E38-C38 -> 0
B39: 中央空调冷却流量 | C39: 0 | E39: 0 | G39: =E39-C39 -> 0
B40: 中央空调采暖流量 | C40: 0 | E40: 0 | G40: =E40-C40 -> 0
B41: 蒸汽流量 | C41: 0 | E41: 0 | G41: =E41-C41 -> 0

Sheet 2025.5.28
A1: 梅州昌盛豪生大酒店节能改造每日能耗统计表
A2: 2025年 5月 27日
A3: 最低气温： 22℃，最高气温： 26℃ ， 住房量： 132间
A4: 宴会/会议信息 三厅有晚宴
A5: 名称 | B5: 位置 | C5: 编号 | D5: 昨日读数 | E5: 今日读数 | F5: 倍率 | G5: 合计 | H5: 单价 | I5: 费用
A6: 电表 | B6: 磁悬浮3号空调主机 | D6: 152490 | E6: 153401 | F6: 1 | G6: =(E6-D6)*F6 -> 911 | H6: 0.689 | I6: =G6*H6 -> 627.679
A7: 电表 | B7: 变频5号冷冻泵 | D7: 40811.9 | E7: 41572 | F7: 1 | G7: 760.1 | H7: 0.689 | I7: 523.7089
A8: 电表 | B8: 4号冷冻泵 | D8: 211842.3 | E8: 211842.3 | F8: 1 | G8: =(E8-D8)*F8 -> 0 | H8: 0.689 | I8: =G8*H8 -> 0
A9: 电表 | B9: 变频5号冷却泵 | D9: 58061.4 | E9: 58467.8 | F9: 1 | G9: 406.4 | H9: 0.689 | I9: 280.0096
A10: 电表 | B10: 4号冷却泵 | D10: 259008.5 | E10: 259008.5 | F10: 1 | G10: =(E10-D10)*F10 -> 0 | H10: 0.689 | I10: =G10*H10 -> 0
A11: 电表 | B11: 变频1号冷却塔 | D11: 144492.5 | E11: 144528.5 | F11: 1 | G11: 36 | H11: 0.689 | I11: 24.804
A12: 电表 | B12: 变频2号冷却塔 | D12: 319408.8 | E12: 319470.6 | F12: 1 | G12: 61.8 | H12: 0.689 | I12: 42.5802
A13: 电表 | B13: 变频3号冷却塔 | D13: 297483 | E13: 297517 | F13: 1 | G13: 34 | H13: 0.689 | I13: 23.426
A14: 空调系统用电总合计： | G14: =G6+G7+G8+G9+G10+G11+G12+G13 -> 2209.3 | H14: 0.689 | I14: =I6+I7+I8+I9+I10+I11+I12+I13 -> 1522.2077
A16: 电表 | B16: 三楼热泵控制柜 | C16: 2025020 50017 | D16: 115.9 | E16: 117.7 | F16: 80 | G16: 144 | H16: 0.689 | I16: 99.216
A17: 电表 | B17: 三楼变频水泵控制柜 | C17: 2024085 00211 | D17: 357.6 | E17: 366.4 | F17: 20 | G17: 176 | H17: 0.689 | I17: 121.264
A18: 电表 | B18: 洗衣房热泵控制柜 | C18: 202502 05102 | D18: 381.3 | E18: 387.3 | F18: 20 | G18: 120 | H18: 0.689 | I18: 82.68
A19: 电表 | B19: 群楼中厨水泵控制柜 | C19: 2025020 50063 | D19: 166.3 | E19: 170 | F19: 20 | G19: 74 | H19: 0.689 | I19: 50.986
A20: 热水热泵系统用电总合计： | G20: =G16+G17+G18+G19 -> 514 | H20: 0.689 | I20: =I16+I17+I18+I19 -> 354.146
A22: 水表 | B22: 空调冷冻水 | D22: 0 | E22: 0 | F22: 1 | G22: =E22-D22 -> 0 | H22: 4.39 | I22: =G22*H22 -> 0
A23: 水表 | B23: 空调冷却水 | D23: 0 | E23: 0 | F23: 1 | G23: =E23-D23 -> 0 | H23: 4.39 | I23: =G23*H23 -> 0
A24: 水表 | B24: 三楼中、高区热水 | C24: M9A25024017786 | D24: 1207 | E24: 1228 | F24: 1 | G24: =E24-D24 -> 21 | H24: 4.39 | I24: =G24*H24 -> 92.19
A25: 水表 | B25: 群楼、中厨房热水 | C25: M9A25024017857 | D25: 1192 | E25: 1216 | F25: 1 | G25: =E25-D25 -> 24 | H25: 4.39 | I25: =G25*H25 -> 105.36
A26: 热水热泵系统用水总合计: | G26: =G24+G25+G23+G22 -> 45 | H26: 4.39 | I26: =I24+I25+I23+I22 -> 197.55
A28: 燃气表（常用） | B28: 蒸汽发生器+采暖 | D28: 16067 | E28: 16282 | F28: 1 | G28: =E28-D28 -> 215 | H28: 5.54 | I28: =G28*H28 -> 1191.1
A29: 燃气表（备用） | B29: 蒸汽发生器+采暖 | D29: 18871 | E29: 18871 | F29: 1 | G29: =(E29-D29)*F29 -> 0 | H29: 5.54 | I29: =G29*H29 -> 0
A30: 蒸汽发生器+采暖用气总合计： | G30: =G28+G29 -> 215 | H30: 5.54 | I30: =I28+I29 -> 1191.1
A31: 电表 | B31: 蒸汽发生器+采暖 | C31: 202011 500026 | D31: 591 | E31: 608.7 | F31: 1 | G31: =(E31-D31)*F31 -> 17.7 | H31: 0.689 | I31: =G31*H31 -> 12.1953
A32: 蒸汽发生器+采暖用电总合计： | G32: =G31 -> 17.7 | H32: 0.689 | I32: =G32*H32 -> 12.1953
A33: 水表 | B33: 蒸汽发生器+采暖 | C33: F1A150610796 | D33: 346 | E33: 355 | F33: 1 | G33: =E33-D33 -> 9 | H33: 4.39 | I33: =G33*H33 -> 39.51
A34: 蒸汽发生器用水总合计: | G34: =G33 -> 9 | H34: 4.39 | I34: =G34*H34 -> 39.51
A35: 水、电、气费用总合计（水/电/气价预估单价,单价需以实际缴费为准）： | G35: =I14++I20+I26+I30+I32+I34 -> 3316.709
A37: 流量计量表 | B37: 分项 | C37: 昨日流量 | E37: 今日流量 | G37: 用量 | H37: 备注
B38: 中央空调冷冻流量 | C38: 0 | E38: 0 | G38: =E38-C38 -> 0
B39: 中央空调冷却流量 | C39: 0 | E39: 0 | G39: =E39-C39 -> 0
B40: 中央空调采暖流量 | C40: 0 | E40: 0 | G40: =E40-C40 -> 0
B41: 蒸汽流量 | C41: 0 | E41: 0 | G41: =E41-C41 -> 0

Sheet 2025.5.29
A1: 梅州昌盛豪生大酒店节能改造每日能耗统计表
A2: 2025年 5月 28日
A3: 最低气温：22 ℃，最高气温：25 ℃ ， 住房量：119间
A4: 宴会/会议信息 无
A5: 名称 | B5: 位置 | C5: 编号 | D5: 昨日读数 | E5: 今日读数 | F5: 倍率 | G5: 合计 | H5: 单价 | I5: 费用
A6: 电表 | B6: 磁悬浮3号空调主机 | D6: 153401 | E6: 154278 | F6: 1 | G6: =(E6-D6)*F6 -> 877 | H6: 0.689 | I6: =G6*H6 -> 604.253
A7: 电表 | B7: 变频5号冷冻泵 | D7: 41572 | E7: 42433.7 | F7: 1 | G7: 861.7 | H7: 0.689 | I7: 593.7113
A8: 电表 | B8: 4号冷冻泵 | D8: 211842.3 | E8: 211856.7 | F8: 1 | G8: =(E8-D8)*F8 -> 14.4 | H8: 0.689 | I8: =G8*H8 -> 9.9216
A9: 电表 | B9: 变频5号冷却泵 | D9: 58467.8 | E9: 58804 | F9: 1 | G9: 336.2 | H9: 0.689 | I9: 231.6418
A10: 电表 | B10: 4号冷却泵 | D10: 259008.5 | E10: 259021.9 | F10: 1 | G10: =(E10-D10)*F10 -> 13.4 | H10: 0.689 | I10: =G10*H10 -> 9.2326
A11: 电表 | B11: 变频1号冷却塔 | D11: 144528.5 | E11: 144560.4 | F11: 1 | G11: 31.9 | H11: 0.689 | I11: 21.9791
A12: 电表 | B12: 变频2号冷却塔 | D12: 319470.6 | E12: 319524 | F12: 1 | G12: 53.4 | H12: 0.689 | I12: 36.7926
A13: 电表 | B13: 变频3号冷却塔 | D13: 297517 | E13: 297562.4 | F13: 1 | G13: 45.4 | H13: 0.689 | I13: 31.2806
A14: 空调系统用电总合计： | G14: =G6+G7+G8+G9+G10+G11+G12+G13 -> 2233.4 | H14: 0.689 | I14: =I6+I7+I8+I9+I10+I11+I12+I13 -> 1538.8126
A16: 电表 | B16: 三楼热泵控制柜 | C16: 2025020 50017 | D16: 117.7 | E16: 119.3 | F16: 80 | G16: 128 | H16: 0.689 | I16: 88.192
A17: 电表 | B17: 三楼变频水泵控制柜 | C17: 2024085 00211 | D17: 366.4 | E17: 375.1 | F17: 20 | G17: 174 | H17: 0.689 | I17: 119.886
A18: 电表 | B18: 洗衣房热泵控制柜 | C18: 202502 05102 | D18: 387.3 | E18: 389.2 | F18: 20 | G18: 38 | H18: 0.689 | I18: 26.182
A19: 电表 | B19: 群楼中厨水泵控制柜 | C19: 2025020 50063 | D19: 170 | E19: 173.8 | F19: 20 | G19: 76 | H19: 0.689 | I19: 52.364
A20: 热水热泵系统用电总合计： | G20: =G16+G17+G18+G19 -> 416 | H20: 0.689 | I20: =I16+I17+I18+I19 -> 286.624
A22: 水表 | B22: 空调冷冻水 | D22: 0 | E22: 0 | F22: 1 | G22: =E22-D22 -> 0 | H22: 4.39 | I22: =G22*H22 -> 0
A23: 水表 | B23: 空调冷却水 | D23: 0 | E23: 0 | F23: 1 | G23: =E23-D23 -> 0 | H23: 4.39 | I23: =G23*H23 -> 0
A24: 水表 | B24: 三楼中、高区热水 | C24: M9A25024017786 | D24: 1228 | E24: 1246 | F24: 1 | G24: =E24-D24 -> 18 | H24: 4.39 | I24: =G24*H24 -> 79.02
A25: 水表 | B25: 群楼、中厨房热水 | C25: M9A25024017857 | D25: 1216 | E25: 1230 | F25: 1 | G25: =E25-D25 -> 14 | H25: 4.39 | I25: =G25*H25 -> 61.46
A26: 热水热泵系统用水总合计: | G26: =G24+G25+G23+G22 -> 32 | H26: 4.39 | I26: =I24+I25+I23+I22 -> 140.48
A28: 燃气表（常用） | B28: 蒸汽发生器+采暖 | D28: 16282 | E28: 16551 | F28: 1 | G28: =E28-D28 -> 269 | H28: 5.54 | I28: =G28*H28 -> 1490.26
A29: 燃气表（备用） | B29: 蒸汽发生器+采暖 | D29: 18871 | E29: 18871 | F29: 1 | G29: =(E29-D29)*F29 -> 0 | H29: 5.54 | I29: =G29*H29 -> 0
A30: 蒸汽发生器+采暖用气总合计： | G30: =G28+G29 -> 269 | H30: 5.54 | I30: =I28+I29 -> 1490.26
A31: 电表 | B31: 蒸汽发生器+采暖 | C31: 202011 500026 | D31: 608.7 | E31: 629.2 | F31: 1 | G31: =(E31-D31)*F31 -> 20.5 | H31: 0.689 | I31: =G31*H31 -> 14.1245
A32: 蒸汽发生器+采暖用电总合计： | G32: =G31 -> 20.5 | H32: 0.689 | I32: =G32*H32 -> 14.1245
A33: 水表 | B33: 蒸汽发生器+采暖 | C33: F1A150610796 | D33: 355 | E33: 367 | F33: 1 | G33: =E33-D33 -> 12 | H33: 4.39 | I33: =G33*H33 -> 52.68
A34: 蒸汽发生器用水总合计: | G34: =G33 -> 12 | H34: 4.39 | I34: =G34*H34 -> 52.68
A35: 水、电、气费用总合计（水/电/气价预估单价,单价需以实际缴费为准）： | G35: =I14++I20+I26+I30+I32+I34 -> 3522.9811
A37: 流量计量表 | B37: 分项 | C37: 昨日流量 | E37: 今日流量 | G37: 用量 | H37: 备注
B38: 中央空调冷冻流量 | C38: 0 | E38: 0 | G38: =E38-C38 -> 0
B39: 中央空调冷却流量 | C39: 0 | E39: 0 | G39: =E39-C39 -> 0
B40: 中央空调采暖流量 | C40: 0 | E40: 0 | G40: =E40-C40 -> 0
B41: 蒸汽流量 | C41: 0 | E41: 0 | G41: =E41-C41 -> 0

Sheet 2025.5.30
A1: 梅州昌盛豪生大酒店节能改造每日能耗统计表
A2: 2025年 5月 29日
A3: 最低气温：21 ℃，最高气温：30 ℃ ， 住房量：115间
A4: 宴会/会议信息 无
A5: 名称 | B5: 位置 | C5: 编号 | D5: 昨日读数 | E5: 今日读数 | F5: 倍率 | G5: 合计 | H5: 单价 | I5: 费用
A6: 电表 | B6: 磁悬浮3号空调主机 | D6: 154278 | E6: 155086 | F6: 1 | G6: =(E6-D6)*F6 -> 808 | H6: 0.689 | I6: =G6*H6 -> 556.712
A7: 电表 | B7: 变频5号冷冻泵 | D7: 42433.7 | E7: 43311.9 | F7: 1 | G7: 878.2 | H7: 0.689 | I7: 605.0798
A8: 电表 | B8: 4号冷冻泵 | D8: 211856.7 | E8: 211856.7 | F8: 1 | G8: =(E8-D8)*F8 -> 0 | H8: 0.689 | I8: =G8*H8 -> 0
A9: 电表 | B9: 变频5号冷却泵 | D9: 58804 | E9: 59147.1 | F9: 1 | G9: 343.1 | H9: 0.689 | I9: 236.3959
A10: 电表 | B10: 4号冷却泵 | D10: 259021.9 | E10: 259021.9 | F10: 1 | G10: =(E10-D10)*F10 -> 0 | H10: 0.689 | I10: =G10*H10 -> 0
A11: 电表 | B11: 变频1号冷却塔 | D11: 144560.4 | E11: 144606.3 | F11: 1 | G11: 45.9 | H11: 0.689 | I11: 31.6251
A12: 电表 | B12: 变频2号冷却塔 | D12: 319524 | E12: 319577.7 | F12: 1 | G12: 53.7 | H12: 0.689 | I12: 36.9993
A13: 电表 | B13: 变频3号冷却塔 | D13: 297562.4 | E13: 297616.5 | F13: 1 | G13: 54.1 | H13: 0.689 | I13: 37.2749
A14: 空调系统用电总合计： | G14: =G6+G7+G8+G9+G10+G11+G12+G13 -> 2183 | H14: 0.689 | I14: =I6+I7+I8+I9+I10+I11+I12+I13 -> 1504.087
A16: 电表 | B16: 三楼热泵控制柜 | C16: 2025020 50017 | D16: 119.3 | E16: 121.1 | F16: 80 | G16: 144 | H16: 0.689 | I16: 99.216
A17: 电表 | B17: 三楼变频水泵控制柜 | C17: 2024085 00211 | D17: 375.1 | E17: 383.9 | F17: 20 | G17: 176 | H17: 0.689 | I17: 121.264
A18: 电表 | B18: 洗衣房热泵控制柜 | C18: 202502 05102 | D18: 389.2 | E18: 390.5 | F18: 20 | G18: 26 | H18: 0.689 | I18: 17.914
A19: 电表 | B19: 群楼中厨水泵控制柜 | C19: 2025020 50063 | D19: 173.8 | E19: 177.6 | F19: 20 | G19: 76 | H19: 0.689 | I19: 52.364
A20: 热水热泵系统用电总合计： | G20: =G16+G17+G18+G19 -> 422 | H20: 0.689 | I20: =I16+I17+I18+I19 -> 290.758
A22: 水表 | B22: 空调冷冻水 | D22: 0 | E22: 0 | F22: 1 | G22: =E22-D22 -> 0 | H22: 4.39 | I22: =G22*H22 -> 0
A23: 水表 | B23: 空调冷却水 | D23: 0 | E23: 0 | F23: 1 | G23: =E23-D23 -> 0 | H23: 4.39 | I23: =G23*H23 -> 0
A24: 水表 | B24: 三楼中、高区热水 | C24: M9A25024017786 | D24: 1246 | E24: 1266 | F24: 1 | G24: =E24-D24 -> 20 | H24: 4.39 | I24: =G24*H24 -> 87.8
A25: 水表 | B25: 群楼、中厨房热水 | C25: M9A25024017857 | D25: 1230 | E25: 1246 | F25: 1 | G25: =E25-D25 -> 16 | H25: 4.39 | I25: =G25*H25 -> 70.24
A26: 热水热泵系统用水总合计: | G26: =G24+G25+G23+G22 -> 36 | H26: 4.39 | I26: =I24+I25+I23+I22 -> 158.04
A28: 燃气表（常用） | B28: 蒸汽发生器+采暖 | D28: 16551 | E28: 16799 | F28: 1 | G28: =E28-D28 -> 248 | H28: 5.54 | I28: =G28*H28 -> 1373.92
A29: 燃气表（备用） | B29: 蒸汽发生器+采暖 | D29: 18871 | E29: 18871 | F29: 1 | G29: =(E29-D29)*F29 -> 0 | H29: 5.54 | I29: =G29*H29 -> 0
A30: 蒸汽发生器+采暖用气总合计： | G30: =G28+G29 -> 248 | H30: 5.54 | I30: =I28+I29 -> 1373.92
A31: 电表 | B31: 蒸汽发生器+采暖 | C31: 202011 500026 | D31: 629.2 | E31: 647.6 | F31: 1 | G31: =(E31-D31)*F31 -> 18.4 | H31: 0.689 | I31: =G31*H31 -> 12.6776
A32: 蒸汽发生器+采暖用电总合计： | G32: =G31 -> 18.4 | H32: 0.689 | I32: =G32*H32 -> 12.6776
A33: 水表 | B33: 蒸汽发生器+采暖 | C33: F1A150610796 | D33: 367 | E33: 376 | F33: 1 | G33: =E33-D33 -> 9 | H33: 4.39 | I33: =G33*H33 -> 39.51
A34: 蒸汽发生器用水总合计: | G34: =G33 -> 9 | H34: 4.39 | I34: =G34*H34 -> 39.51
A35: 水、电、气费用总合计（水/电/气价预估单价,单价需以实际缴费为准）： | G35: =I14++I20+I26+I30+I32+I34 -> 3378.9926
A37: 流量计量表 | B37: 分项 | C37: 昨日流量 | E37: 今日流量 | G37: 用量 | H37: 备注
B38: 中央空调冷冻流量 | C38: 0 | E38: 0 | G38: =E38-C38 -> 0
B39: 中央空调冷却流量 | C39: 0 | E39: 0 | G39: =E39-C39 -> 0
B40: 中央空调采暖流量 | C40: 0 | E40: 0 | G40: =E40-C40 -> 0
B41: 蒸汽流量 | C41: 0 | E41: 0 | G41: =E41-C41 -> 0

Sheet 2025.5.31
A1: 梅州昌盛豪生大酒店节能改造每日能耗统计表
A2: 2025年 5月 30日
A3: 最低气温：22 ℃，最高气温：29 ℃ ， 住房量：120间
A4: 宴会/会议信息 无
A5: 名称 | B5: 位置 | C5: 编号 | D5: 昨日读数 | E5: 今日读数 | F5: 倍率 | G5: 合计 | H5: 单价 | I5: 费用
A6: 电表 | B6: 磁悬浮3号空调主机 | D6: 155086 | E6: 156277 | F6: 1 | G6: =(E6-D6)*F6 -> 1191 | H6: 0.689 | I6: =G6*H6 -> 820.599
A7: 电表 | B7: 变频5号冷冻泵 | D7: 43311.9 | E7: 44261.8 | F7: 1 | G7: 949.9 | H7: 0.689 | I7: 654.4811
A8: 电表 | B8: 4号冷冻泵 | D8: 211856.7 | E8: 211856.7 | F8: 1 | G8: =(E8-D8)*F8 -> 0 | H8: 0.689 | I8: =G8*H8 -> 0
A9: 电表 | B9: 变频5号冷却泵 | D9: 59147.1 | E9: 59518.9 | F9: 1 | G9: 371.8 | H9: 0.689 | I9: 256.1702
A10: 电表 | B10: 4号冷却泵 | D10: 259021.9 | E10: 259021.9 | F10: 1 | G10: =(E10-D10)*F10 -> 0 | H10: 0.689 | I10: =G10*H10 -> 0
A11: 电表 | B11: 变频1号冷却塔 | D11: 144606.3 | E11: 144664.4 | F11: 1 | G11: 58.1 | H11: 0.689 | I11: 40.0309
A12: 电表 | B12: 变频2号冷却塔 | D12: 319577.7 | E12: 319635.6 | F12: 1 | G12: 57.9 | H12: 0.689 | I12: 39.8931
A13: 电表 | B13: 变频3号冷却塔 | D13: 297616.5 | E13: 297674.8 | F13: 1 | G13: 58.3 | H13: 0.689 | I13: 40.1687
A14: 空调系统用电总合计： | G14: =G6+G7+G8+G9+G10+G11+G12+G13 -> 2687 | H14: 0.689 | I14: =I6+I7+I8+I9+I10+I11+I12+I13 -> 1851.343
A16: 电表 | B16: 三楼热泵控制柜 | C16: 2025020 50017 | D16: 121.1 | E16: 123.1 | F16: 80 | G16: 160 | H16: 0.689 | I16: 110.24
A17: 电表 | B17: 三楼变频水泵控制柜 | C17: 2024085 00211 | D17: 383.9 | E17: 392.7 | F17: 20 | G17: 176 | H17: 0.689 | I17: 121.264
A18: 电表 | B18: 洗衣房热泵控制柜 | C18: 202502 05102 | D18: 390.5 | E18: 392.7 | F18: 20 | G18: 44 | H18: 0.689 | I18: 30.316
A19: 电表 | B19: 群楼中厨水泵控制柜 | C19: 2025020 50063 | D19: 177.6 | E19: 181.4 | F19: 20 | G19: 76 | H19: 0.689 | I19: 52.364
A20: 热水热泵系统用电总合计： | G20: =G16+G17+G18+G19 -> 456 | H20: 0.689 | I20: =I16+I17+I18+I19 -> 314.184
A22: 水表 | B22: 空调冷冻水 | D22: 0 | E22: 0 | F22: 1 | G22: =E22-D22 -> 0 | H22: 4.39 | I22: =G22*H22 -> 0
A23: 水表 | B23: 空调冷却水 | D23: 0 | E23: 0 | F23: 1 | G23: =E23-D23 -> 0 | H23: 4.39 | I23: =G23*H23 -> 0
A24: 水表 | B24: 三楼中、高区热水 | C24: M9A25024017786 | D24: 1266 | E24: 1287 | F24: 1 | G24: =E24-D24 -> 21 | H24: 4.39 | I24: =G24*H24 -> 92.19
A25: 水表 | B25: 群楼、中厨房热水 | C25: M9A25024017857 | D25: 1246 | E25: 1266 | F25: 1 | G25: =E25-D25 -> 20 | H25: 4.39 | I25: =G25*H25 -> 87.8
A26: 热水热泵系统用水总合计: | G26: =G24+G25+G23+G22 -> 41 | H26: 4.39 | I26: =I24+I25+I23+I22 -> 179.99
A28: 燃气表（常用） | B28: 蒸汽发生器+采暖 | D28: 16799 | E28: 17071 | F28: 1 | G28: =E28-D28 -> 272 | H28: 5.54 | I28: =G28*H28 -> 1506.88
A29: 燃气表（备用） | B29: 蒸汽发生器+采暖 | D29: 18871 | E29: 18871 | F29: 1 | G29: =(E29-D29)*F29 -> 0 | H29: 5.54 | I29: =G29*H29 -> 0
A30: 蒸汽发生器+采暖用气总合计： | G30: =G28+G29 -> 272 | H30: 5.54 | I30: =I28+I29 -> 1506.88
A31: 电表 | B31: 蒸汽发生器+采暖 | C31: 202011 500026 | D31: 647.6 | E31: 669 | F31: 1 | G31: =(E31-D31)*F31 -> 21.4 | H31: 0.689 | I31: =G31*H31 -> 14.7446
A32: 蒸汽发生器+采暖用电总合计： | G32: =G31 -> 21.4 | H32: 0.689 | I32: =G32*H32 -> 14.7446
A33: 水表 | B33: 蒸汽发生器+采暖 | C33: F1A150610796 | D33: 376 | E33: 387 | F33: 1 | G33: =E33-D33 -> 11 | H33: 4.39 | I33: =G33*H33 -> 48.29
A34: 蒸汽发生器用水总合计: | G34: =G33 -> 11 | H34: 4.39 | I34: =G34*H34 -> 48.29
A35: 水、电、气费用总合计（水/电/气价预估单价,单价需以实际缴费为准）： | G35: =I14++I20+I26+I30+I32+I34 -> 3915.4316
A37: 流量计量表 | B37: 分项 | C37: 昨日流量 | E37: 今日流量 | G37: 用量 | H37: 备注
B38: 中央空调冷冻流量 | C38: 0 | E38: 0 | G38: =E38-C38 -> 0
B39: 中央空调冷却流量 | C39: 0 | E39: 0 | G39: =E39-C39 -> 0
B40: 中央空调采暖流量 | C40: 0 | E40: 0 | G40: =E40-C40 -> 0
B41: 蒸汽流量 | C41: 0 | E41: 0 | G41: =E41-C41 -> 0

Sheet 2025.6.1
A1: 梅州昌盛豪生大酒店节能改造每日能耗统计表
A2: 2025年 5月 31日
A3: 最低气温：23 ℃，最高气温：32 ℃ ， 住房量：157间
A4: 宴会/会议信息 无
A5: 名称 | B5: 位置 | C5: 编号 | D5: 昨日读数 | E5: 今日读数 | F5: 倍率 | G5: 合计 | H5: 单价 | I5: 费用
A6: 电表 | B6: 磁悬浮3号空调主机 | D6: 156277 | E6: 157299 | F6: 1 | G6: =(E6-D6)*F6 -> 1022 | H6: 0.689 | I6: =G6*H6 -> 704.158
A7: 电表 | B7: 变频5号冷冻泵 | D7: 44261.8 | E7: 45059.5 | F7: 1 | G7: 797.7 | H7: 0.689 | I7: 549.6153
A8: 电表 | B8: 4号冷冻泵 | D8: 211856.7 | E8: 211856.7 | F8: 1 | G8: =(E8-D8)*F8 -> 0 | H8: 0.689 | I8: =G8*H8 -> 0
A9: 电表 | B9: 变频5号冷却泵 | D9: 59518.9 | E9: 59826.7 | F9: 1 | G9: 307.8 | H9: 0.689 | I9: 212.0742
A10: 电表 | B10: 4号冷却泵 | D10: 259021.9 | E10: 259021.9 | F10: 1 | G10: =(E10-D10)*F10 -> 0 | H10: 0.689 | I10: =G10*H10 -> 0
A11: 电表 | B11: 变频1号冷却塔 | D11: 144664.4 | E11: 144713.3 | F11: 1 | G11: 48.9 | H11: 0.689 | I11: 33.6921
A12: 电表 | B12: 变频2号冷却塔 | D12: 319635.6 | E12: 319684.2 | F12: 1 | G12: 48.6 | H12: 0.689 | I12: 33.4854
A13: 电表 | B13: 变频3号冷却塔 | D13: 297674.8 | E13: 297723.4 | F13: 1 | G13: 48.6 | H13: 0.689 | I13: 33.4854
A14: 空调系统用电总合计： | G14: =G6+G7+G8+G9+G10+G11+G12+G13 -> 2273.6 | H14: 0.689 | I14: =I6+I7+I8+I9+I10+I11+I12+I13 -> 1566.5104
A16: 电表 | B16: 三楼热泵控制柜 | C16: 2025020 50017 | D16: 123.1 | E16: 125.5 | F16: 80 | G16: 192 | H16: 0.689 | I16: 132.288
A17: 电表 | B17: 三楼变频水泵控制柜 | C17: 2024085 00211 | D17: 392.7 | E17: 401.6 | F17: 20 | G17: 178 | H17: 0.689 | I17: 122.642
A18: 电表 | B18: 洗衣房热泵控制柜 | C18: 202502 05102 | D18: 392.7 | E18: 399.9 | F18: 20 | G18: 144 | H18: 0.689 | I18: 99.216
A19: 电表 | B19: 群楼中厨水泵控制柜 | C19: 2025020 50063 | D19: 181.4 | E19: 185.3 | F19: 20 | G19: 78 | H19: 0.689 | I19: 53.742
A20: 热水热泵系统用电总合计： | G20: =G16+G17+G18+G19 -> 592 | H20: 0.689 | I20: =I16+I17+I18+I19 -> 407.888
A22: 水表 | B22: 空调冷冻水 | D22: 0 | E22: 0 | F22: 1 | G22: =E22-D22 -> 0 | H22: 4.39 | I22: =G22*H22 -> 0
A23: 水表 | B23: 空调冷却水 | D23: 0 | E23: 0 | F23: 1 | G23: =E23-D23 -> 0 | H23: 4.39 | I23: =G23*H23 -> 0
A24: 水表 | B24: 三楼中、高区热水 | C24: M9A25024017786 | D24: 1287 | E24: 1317 | F24: 1 | G24: =E24-D24 -> 30 | H24: 4.39 | I24: =G24*H24 -> 131.7
A25: 水表 | B25: 群楼、中厨房热水 | C25: M9A25024017857 | D25: 1266 | E25: 1294 | F25: 1 | G25: =E25-D25 -> 28 | H25: 4.39 | I25: =G25*H25 -> 122.92
A26: 热水热泵系统用水总合计: | G26: =G24+G25+G23+G22 -> 58 | H26: 4.39 | I26: =I24+I25+I23+I22 -> 254.62
A28: 燃气表（常用） | B28: 蒸汽发生器+采暖 | D28: 17071 | E28: 17071 | F28: 1 | G28: =E28-D28 -> 0 | H28: 5.54 | I28: =G28*H28 -> 0
A29: 燃气表（备用） | B29: 蒸汽发生器+采暖 | D29: 18871 | E29: 18871 | F29: 1 | G29: =(E29-D29)*F29 -> 0 | H29: 5.54 | I29: =G29*H29 -> 0
A30: 蒸汽发生器+采暖用气总合计： | G30: =G28+G29 -> 0 | H30: 5.54 | I30: =I28+I29 -> 0
A31: 电表 | B31: 蒸汽发生器+采暖 | C31: 202011 500026 | D31: 669 | E31: 671.5 | F31: 1 | G31: =(E31-D31)*F31 -> 2.5 | H31: 0.689 | I31: =G31*H31 -> 1.7225
A32: 蒸汽发生器+采暖用电总合计： | G32: =G31 -> 2.5 | H32: 0.689 | I32: =G32*H32 -> 1.7225
A33: 水表 | B33: 蒸汽发生器+采暖 | C33: F1A150610796 | D33: 387 | E33: 389 | F33: 1 | G33: =E33-D33 -> 2 | H33: 4.39 | I33: =G33*H33 -> 8.78
A34: 蒸汽发生器用水总合计: | G34: =G33 -> 2 | H34: 4.39 | I34: =G34*H34 -> 8.78
A35: 水、电、气费用总合计（水/电/气价预估单价,单价需以实际缴费为准）： | G35: =I14++I20+I26+I30+I32+I34 -> 2239.5209
A37: 流量计量表 | B37: 分项 | C37: 昨日流量 | E37: 今日流量 | G37: 用量 | H37: 备注
B38: 中央空调冷冻流量 | C38: 0 | E38: 0 | G38: =E38-C38 -> 0
B39: 中央空调冷却流量 | C39: 0 | E39: 0 | G39: =E39-C39 -> 0
B40: 中央空调采暖流量 | C40: 0 | E40: 0 | G40: =E40-C40 -> 0
B41: 蒸汽流量 | C41: 0 | E41: 0 | G41: =E41-C41 -> 0

Sheet 2025.6.2
A1: 梅州昌盛豪生大酒店节能改造每日能耗统计表
A2: 2025年 6月 1日
A3: 最低气温：24 ℃，最高气温：34 ℃ ， 住房量：95间
A4: 宴会/会议信息 无
A5: 名称 | B5: 位置 | C5: 编号 | D5: 昨日读数 | E5: 今日读数 | F5: 倍率 | G5: 合计 | H5: 单价 | I5: 费用
A6: 电表 | B6: 磁悬浮3号空调主机 | D6: 157299 | E6: 158822 | F6: 1 | G6: =(E6-D6)*F6 -> 1523 | H6: 0.689 | I6: =G6*H6 -> 1049.347
A7: 电表 | B7: 变频5号冷冻泵 | D7: 45059.5 | E7: 45889.4 | F7: 1 | G7: 829.9 | H7: 0.689 | I7: 571.8011
A8: 电表 | B8: 4号冷冻泵 | D8: 211856.7 | E8: 211856.7 | F8: 1 | G8: =(E8-D8)*F8 -> 0 | H8: 0.689 | I8: =G8*H8 -> 0
A9: 电表 | B9: 变频5号冷却泵 | D9: 59826.7 | E9: 60147.6 | F9: 1 | G9: 320.9 | H9: 0.689 | I9: 221.1001
A10: 电表 | B10: 4号冷却泵 | D10: 259021.9 | E10: 259021.9 | F10: 1 | G10: =(E10-D10)*F10 -> 0 | H10: 0.689 | I10: =G10*H10 -> 0
A11: 电表 | B11: 变频1号冷却塔 | D11: 144713.3 | E11: 144763.2 | F11: 1 | G11: 49.9 | H11: 0.689 | I11: 34.3811
A12: 电表 | B12: 变频2号冷却塔 | D12: 319684.2 | E12: 319733.8 | F12: 1 | G12: 49.6 | H12: 0.689 | I12: 34.1744
A13: 电表 | B13: 变频3号冷却塔 | D13: 297723.4 | E13: 297773.2 | F13: 1 | G13: 49.8 | H13: 0.689 | I13: 34.3122
A14: 空调系统用电总合计： | G14: =G6+G7+G8+G9+G10+G11+G12+G13 -> 2823.1 | H14: 0.689 | I14: =I6+I7+I8+I9+I10+I11+I12+I13 -> 1945.1159
A16: 电表 | B16: 三楼热泵控制柜 | C16: 2025020 50017 | D16: 125.5 | E16: 127.2 | F16: 80 | G16: 136 | H16: 0.689 | I16: 93.704
A17: 电表 | B17: 三楼变频水泵控制柜 | C17: 2024085 00211 | D17: 401.6 | E17: 410.4 | F17: 20 | G17: 176 | H17: 0.689 | I17: 121.264
A18: 电表 | B18: 洗衣房热泵控制柜 | C18: 202502 05102 | D18: 399.9 | E18: 404.5 | F18: 20 | G18: 92 | H18: 0.689 | I18: 63.388
A19: 电表 | B19: 群楼中厨水泵控制柜 | C19: 2025020 50063 | D19: 185.3 | E19: 188.8 | F19: 20 | G19: 70 | H19: 0.689 | I19: 48.23
A20: 热水热泵系统用电总合计： | G20: =G16+G17+G18+G19 -> 474 | H20: 0.689 | I20: =I16+I17+I18+I19 -> 326.586
A22: 水表 | B22: 空调冷冻水 | D22: 0 | E22: 0 | F22: 1 | G22: =E22-D22 -> 0 | H22: 4.39 | I22: =G22*H22 -> 0
A23: 水表 | B23: 空调冷却水 | D23: 0 | E23: 0 | F23: 1 | G23: =E23-D23 -> 0 | H23: 4.39 | I23: =G23*H23 -> 0
A24: 水表 | B24: 三楼中、高区热水 | C24: M9A25024017786 | D24: 1317 | E24: 1338 | F24: 1 | G24: =E24-D24 -> 21 | H24: 4.39 | I24: =G24*H24 -> 92.19
A25: 水表 | B25: 群楼、中厨房热水 | C25: M9A25024017857 | D25: 1294 | E25: 1322 | F25: 1 | G25: =E25-D25 -> 28 | H25: 4.39 | I25: =G25*H25 -> 122.92
A26: 热水热泵系统用水总合计: | G26: =G24+G25+G23+G22 -> 49 | H26: 4.39 | I26: =I24+I25+I23+I22 -> 215.11
A28: 燃气表（常用） | B28: 蒸汽发生器+采暖 | D28: 17071 | E28: 17295 | F28: 1 | G28: =E28-D28 -> 224 | H28: 5.54 | I28: =G28*H28 -> 1240.96
A29: 燃气表（备用） | B29: 蒸汽发生器+采暖 | D29: 18871 | E29: 18871 | F29: 1 | G29: =(E29-D29)*F29 -> 0 | H29: 5.54 | I29: =G29*H29 -> 0
A30: 蒸汽发生器+采暖用气总合计： | G30: =G28+G29 -> 224 | H30: 5.54 | I30: =I28+I29 -> 1240.96
A31: 电表 | B31: 蒸汽发生器+采暖 | C31: 202011 500026 | D31: 671.5 | E31: 689.3 | F31: 1 | G31: =(E31-D31)*F31 -> 17.8 | H31: 0.689 | I31: =G31*H31 -> 12.2642
A32: 蒸汽发生器+采暖用电总合计： | G32: =G31 -> 17.8 | H32: 0.689 | I32: =G32*H32 -> 12.2642
A33: 水表 | B33: 蒸汽发生器+采暖 | C33: F1A150610796 | D33: 389 | E33: 398 | F33: 1 | G33: =E33-D33 -> 9 | H33: 4.39 | I33: =G33*H33 -> 39.51
A34: 蒸汽发生器用水总合计: | G34: =G33 -> 9 | H34: 4.39 | I34: =G34*H34 -> 39.51
A35: 水、电、气费用总合计（水/电/气价预估单价,单价需以实际缴费为准）： | G35: =I14++I20+I26+I30+I32+I34 -> 3779.5461
A37: 流量计量表 | B37: 分项 | C37: 昨日流量 | E37: 今日流量 | G37: 用量 | H37: 备注
B38: 中央空调冷冻流量 | C38: 0 | E38: 0 | G38: =E38-C38 -> 0
B39: 中央空调冷却流量 | C39: 0 | E39: 0 | G39: =E39-C39 -> 0
B40: 中央空调采暖流量 | C40: 0 | E40: 0 | G40: =E40-C40 -> 0
B41: 蒸汽流量 | C41: 0 | E41: 0 | G41: =E41-C41 -> 0

Sheet 2025.6.3
A1: 梅州昌盛豪生大酒店节能改造每日能耗统计表
A2: 2025年 6月 2日
A3: 最低气温：24 ℃，最高气温：35 ℃ ， 住房量：95间
A4: 宴会/会议信息 无
A5: 名称 | B5: 位置 | C5: 编号 | D5: 昨日读数 | E5: 今日读数 | F5: 倍率 | G5: 合计 | H5: 单价 | I5: 费用
A6: 电表 | B6: 磁悬浮3号空调主机 | D6: 158822 | E6: 160804 | F6: 1 | G6: =(E6-D6)*F6 -> 1982 | H6: 0.689 | I6: =G6*H6 -> 1365.598
A7: 电表 | B7: 变频5号冷冻泵 | D7: 45889.4 | E7: 46734.2 | F7: 1 | G7: 844.8 | H7: 0.689 | I7: 582.0672
A8: 电表 | B8: 4号冷冻泵 | D8: 211856.7 | E8: 211856.7 | F8: 1 | G8: =(E8-D8)*F8 -> 0 | H8: 0.689 | I8: =G8*H8 -> 0
A9: 电表 | B9: 变频5号冷却泵 | D9: 60147.6 | E9: 60476.9 | F9: 1 | G9: 329.3 | H9: 0.689 | I9: 226.8877
A10: 电表 | B10: 4号冷却泵 | D10: 259021.9 | E10: 259021.9 | F10: 1 | G10: =(E10-D10)*F10 -> 0 | H10: 0.689 | I10: =G10*H10 -> 0
A11: 电表 | B11: 变频1号冷却塔 | D11: 144763.2 | E11: 144868.1 | F11: 1 | G11: 104.9 | H11: 0.689 | I11: 72.2761
A12: 电表 | B12: 变频2号冷却塔 | D12: 319733.8 | E12: 319851.9 | F12: 1 | G12: 118.1 | H12: 0.689 | I12: 81.3709
A13: 电表 | B13: 变频3号冷却塔 | D13: 297773.2 | E13: 297823.7 | F13: 1 | G13: 50.5 | H13: 0.689 | I13: 34.7945
A14: 空调系统用电总合计： | G14: =G6+G7+G8+G9+G10+G11+G12+G13 -> 3429.6 | H14: 0.689 | I14: =I6+I7+I8+I9+I10+I11+I12+I13 -> 2362.9944
A16: 电表 | B16: 三楼热泵控制柜 | C16: 2025020 50017 | D16: 127.2 | E16: 128.5 | F16: 80 | G16: 104 | H16: 0.689 | I16: 71.656
A17: 电表 | B17: 三楼变频水泵控制柜 | C17: 2024085 00211 | D17: 410.4 | E17: 418.9 | F17: 20 | G17: 170 | H17: 0.689 | I17: 117.13
A18: 电表 | B18: 洗衣房热泵控制柜 | C18: 202502 05102 | D18: 404.5 | E18: 409.6 | F18: 20 | G18: 102 | H18: 0.689 | I18: 70.278
A19: 电表 | B19: 群楼中厨水泵控制柜 | C19: 2025020 50063 | D19: 188.8 | E19: 192.3 | F19: 20 | G19: 70 | H19: 0.689 | I19: 48.23
A20: 热水热泵系统用电总合计： | G20: =G16+G17+G18+G19 -> 446 | H20: 0.689 | I20: =I16+I17+I18+I19 -> 307.294
A22: 水表 | B22: 空调冷冻水 | D22: 0 | E22: 0 | F22: 1 | G22: =E22-D22 -> 0 | H22: 4.39 | I22: =G22*H22 -> 0
A23: 水表 | B23: 空调冷却水 | D23: 0 | E23: 0 | F23: 1 | G23: =E23-D23 -> 0 | H23: 4.39 | I23: =G23*H23 -> 0
A24: 水表 | B24: 三楼中、高区热水 | C24: M9A25024017786 | D24: 1338 | E24: 1353 | F24: 1 | G24: =E24-D24 -> 15 | H24: 4.39 | I24: =G24*H24 -> 65.85
A25: 水表 | B25: 群楼、中厨房热水 | C25: M9A25024017857 | D25: 1322 | E25: 1342 | F25: 1 | G25: =E25-D25 -> 20 | H25: 4.39 | I25: =G25*H25 -> 87.8
A26: 热水热泵系统用水总合计: | G26: =G24+G25+G23+G22 -> 35 | H26: 4.39 | I26: =I24+I25+I23+I22 -> 153.65
A28: 燃气表（常用） | B28: 蒸汽发生器+采暖 | D28: 17295 | E28: 17505 | F28: 1 | G28: =E28-D28 -> 210 | H28: 5.54 | I28: =G28*H28 -> 1163.4
A29: 燃气表（备用） | B29: 蒸汽发生器+采暖 | D29: 18871 | E29: 18871 | F29: 1 | G29: =(E29-D29)*F29 -> 0 | H29: 5.54 | I29: =G29*H29 -> 0
A30: 蒸汽发生器+采暖用气总合计： | G30: =G28+G29 -> 210 | H30: 5.54 | I30: =I28+I29 -> 1163.4
A31: 电表 | B31: 蒸汽发生器+采暖 | C31: 202011 500026 | D31: 689.3 | E31: 705.8 | F31: 1 | G31: =(E31-D31)*F31 -> 16.5 | H31: 0.689 | I31: =G31*H31 -> 11.3685
A32: 蒸汽发生器+采暖用电总合计： | G32: =G31 -> 16.5 | H32: 0.689 | I32: =G32*H32 -> 11.3685
A33: 水表 | B33: 蒸汽发生器+采暖 | C33: F1A150610796 | D33: 398 | E33: 406 | F33: 1 | G33: =E33-D33 -> 8 | H33: 4.39 | I33: =G33*H33 -> 35.12
A34: 蒸汽发生器用水总合计: | G34: =G33 -> 8 | H34: 4.39 | I34: =G34*H34 -> 35.12
A35: 水、电、气费用总合计（水/电/气价预估单价,单价需以实际缴费为准）： | G35: =I14++I20+I26+I30+I32+I34 -> 4033.8269
A37: 流量计量表 | B37: 分项 | C37: 昨日流量 | E37: 今日流量 | G37: 用量 | H37: 备注
B38: 中央空调冷冻流量 | C38: 0 | E38: 0 | G38: =E38-C38 -> 0
B39: 中央空调冷却流量 | C39: 0 | E39: 0 | G39: =E39-C39 -> 0
B40: 中央空调采暖流量 | C40: 0 | E40: 0 | G40: =E40-C40 -> 0
B41: 蒸汽流量 | C41: 0 | E41: 0 | G41: =E41-C41 -> 0

Sheet 2025.6.4
A1: 梅州昌盛豪生大酒店节能改造每日能耗统计表
A2: 2025年 6月 3日
A3: 最低气温：24 ℃，最高气温：28 ℃ ， 住房量：83间
A4: 宴会/会议信息 三厅有午宴.月圆包厢有晚宴
A5: 名称 | B5: 位置 | C5: 编号 | D5: 昨日读数 | E5: 今日读数 | F5: 倍率 | G5: 合计 | H5: 单价 | I5: 费用
A6: 电表 | B6: 磁悬浮3号空调主机 | D6: 160804 | E6: 162284 | F6: 1 | G6: =(E6-D6)*F6 -> 1480 | H6: 0.689 | I6: =G6*H6 -> 1019.72
A7: 电表 | B7: 变频5号冷冻泵 | D7: 46734.2 | E7: 47617 | F7: 1 | G7: 882.8 | H7: 0.689 | I7: 608.2492
A8: 电表 | B8: 4号冷冻泵 | D8: 211856.7 | E8: 211856.7 | F8: 1 | G8: =(E8-D8)*F8 -> 0 | H8: 0.689 | I8: =G8*H8 -> 0
A9: 电表 | B9: 变频5号冷却泵 | D9: 60476.9 | E9: 60821.9 | F9: 1 | G9: 345 | H9: 0.689 | I9: 237.705
A10: 电表 | B10: 4号冷却泵 | D10: 259021.9 | E10: 259021.9 | F10: 1 | G10: =(E10-D10)*F10 -> 0 | H10: 0.689 | I10: =G10*H10 -> 0
A11: 电表 | B11: 变频1号冷却塔 | D11: 144868.1 | E11: 144989.1 | F11: 1 | G11: 121 | H11: 0.689 | I11: 83.369
A12: 电表 | B12: 变频2号冷却塔 | D12: 319851.9 | E12: 319988.9 | F12: 1 | G12: 137 | H12: 0.689 | I12: 94.393
A13: 电表 | B13: 变频3号冷却塔 | D13: 297823.7 | E13: 297877.2 | F13: 1 | G13: 53.5 | H13: 0.689 | I13: 36.8615
A14: 空调系统用电总合计： | G14: =G6+G7+G8+G9+G10+G11+G12+G13 -> 3019.3 | H14: 0.689 | I14: =I6+I7+I8+I9+I10+I11+I12+I13 -> 2080.2977
A16: 电表 | B16: 三楼热泵控制柜 | C16: 2025020 50017 | D16: 128.5 | E16: 130 | F16: 80 | G16: 120 | H16: 0.689 | I16: 82.68
A17: 电表 | B17: 三楼变频水泵控制柜 | C17: 2024085 00211 | D17: 418.9 | E17: 427.6 | F17: 20 | G17: 174 | H17: 0.689 | I17: 119.886
A18: 电表 | B18: 洗衣房热泵控制柜 | C18: 202502 05102 | D18: 409.6 | E18: 416.6 | F18: 20 | G18: 140 | H18: 0.689 | I18: 96.46
A19: 电表 | B19: 群楼中厨水泵控制柜 | C19: 2025020 50063 | D19: 192.3 | E19: 196.1 | F19: 20 | G19: 76 | H19: 0.689 | I19: 52.364
A20: 热水热泵系统用电总合计： | G20: =G16+G17+G18+G19 -> 510 | H20: 0.689 | I20: =I16+I17+I18+I19 -> 351.39
A22: 水表 | B22: 空调冷冻水 | D22: 0 | E22: 0 | F22: 1 | G22: =E22-D22 -> 0 | H22: 4.39 | I22: =G22*H22 -> 0
A23: 水表 | B23: 空调冷却水 | D23: 0 | E23: 0 | F23: 1 | G23: =E23-D23 -> 0 | H23: 4.39 | I23: =G23*H23 -> 0
A24: 水表 | B24: 三楼中、高区热水 | C24: M9A25024017786 | D24: 1353 | E24: 1366 | F24: 1 | G24: =E24-D24 -> 13 | H24: 4.39 | I24: =G24*H24 -> 57.07
A25: 水表 | B25: 群楼、中厨房热水 | C25: M9A25024017857 | D25: 1342 | E25: 1370 | F25: 1 | G25: =E25-D25 -> 28 | H25: 4.39 | I25: =G25*H25 -> 122.92
A26: 热水热泵系统用水总合计: | G26: =G24+G25+G23+G22 -> 41 | H26: 4.39 | I26: =I24+I25+I23+I22 -> 179.99
A28: 燃气表（常用） | B28: 蒸汽发生器+采暖 | D28: 17505 | E28: 17693 | F28: 1 | G28: =E28-D28 -> 188 | H28: 5.54 | I28: =G28*H28 -> 1041.52
A29: 燃气表（备用） | B29: 蒸汽发生器+采暖 | D29: 18871 | E29: 18871 | F29: 1 | G29: =(E29-D29)*F29 -> 0 | H29: 5.54 | I29: =G29*H29 -> 0
A30: 蒸汽发生器+采暖用气总合计： | G30: =G28+G29 -> 188 | H30: 5.54 | I30: =I28+I29 -> 1041.52
A31: 电表 | B31: 蒸汽发生器+采暖 | C31: 202011 500026 | D31: 705.8 | E31: 721.8 | F31: 1 | G31: =(E31-D31)*F31 -> 16 | H31: 0.689 | I31: =G31*H31 -> 11.024
A32: 蒸汽发生器+采暖用电总合计： | G32: =G31 -> 16 | H32: 0.689 | I32: =G32*H32 -> 11.024
A33: 水表 | B33: 蒸汽发生器+采暖 | C33: F1A150610796 | D33: 406 | E33: 415 | F33: 1 | G33: =E33-D33 -> 9 | H33: 4.39 | I33: =G33*H33 -> 39.51
A34: 蒸汽发生器用水总合计: | G34: =G33 -> 9 | H34: 4.39 | I34: =G34*H34 -> 39.51
A35: 水、电、气费用总合计（水/电/气价预估单价,单价需以实际缴费为准）： | G35: =I14++I20+I26+I30+I32+I34 -> 3703.7317
A37: 流量计量表 | B37: 分项 | C37: 昨日流量 | E37: 今日流量 | G37: 用量 | H37: 备注
B38: 中央空调冷冻流量 | C38: 0 | E38: 0 | G38: =E38-C38 -> 0
B39: 中央空调冷却流量 | C39: 0 | E39: 0 | G39: =E39-C39 -> 0
B40: 中央空调采暖流量 | C40: 0 | E40: 0 | G40: =E40-C40 -> 0
B41: 蒸汽流量 | C41: 0 | E41: 0 | G41: =E41-C41 -> 0

Sheet 2025.6.5
A1: 梅州昌盛豪生大酒店节能改造每日能耗统计表
A2: 2025年 6月 4日
A3: 最低气温：25 ℃，最高气温：32 ℃ ， 住房量：111间
A4: 宴会/会议信息 奥尔良波士顿下午有会议
A5: 名称 | B5: 位置 | C5: 编号 | D5: 昨日读数 | E5: 今日读数 | F5: 倍率 | G5: 合计 | H5: 单价 | I5: 费用
A6: 电表 | B6: 磁悬浮3号空调主机 | D6: 162284 | E6: 163749 | F6: 1 | G6: =(E6-D6)*F6 -> 1465 | H6: 0.689 | I6: =G6*H6 -> 1009.385
A7: 电表 | B7: 变频5号冷冻泵 | D7: 47617 | E7: 48490.1 | F7: 1 | G7: 873.1 | H7: 0.689 | I7: 601.5659
A8: 电表 | B8: 4号冷冻泵 | D8: 211856.7 | E8: 211856.7 | F8: 1 | G8: =(E8-D8)*F8 -> 0 | H8: 0.689 | I8: =G8*H8 -> 0
A9: 电表 | B9: 变频5号冷却泵 | D9: 60821.9 | E9: 61162 | F9: 1 | G9: 340.1 | H9: 0.689 | I9: 234.3289
A10: 电表 | B10: 4号冷却泵 | D10: 259021.9 | E10: 259021.9 | F10: 1 | G10: =(E10-D10)*F10 -> 0 | H10: 0.689 | I10: =G10*H10 -> 0
A11: 电表 | B11: 变频1号冷却塔 | D11: 144989.1 | E11: 145042 | F11: 1 | G11: 52.9 | H11: 0.689 | I11: 36.4481
A12: 电表 | B12: 变频2号冷却塔 | D12: 319988.9 | E12: 320041.5 | F12: 1 | G12: 52.6 | H12: 0.689 | I12: 36.2414
A13: 电表 | B13: 变频3号冷却塔 | D13: 297877.2 | E13: 297929.9 | F13: 1 | G13: 52.7 | H13: 0.689 | I13: 36.3103
A14: 空调系统用电总合计： | G14: =G6+G7+G8+G9+G10+G11+G12+G13 -> 2836.4 | H14: 0.689 | I14: =I6+I7+I8+I9+I10+I11+I12+I13 -> 1954.2796
A16: 电表 | B16: 三楼热泵控制柜 | C16: 2025020 50017 | D16: 130 | E16: 131.3 | F16: 80 | G16: 104 | H16: 0.689 | I16: 71.656
A17: 电表 | B17: 三楼变频水泵控制柜 | C17: 2024085 00211 | D17: 427.6 | E17: 436.5 | F17: 20 | G17: 178 | H17: 0.689 | I17: 122.642
A18: 电表 | B18: 洗衣房热泵控制柜 | C18: 202502 05102 | D18: 416.6 | E18: 423.6 | F18: 20 | G18: 140 | H18: 0.689 | I18: 96.46
A19: 电表 | B19: 群楼中厨水泵控制柜 | C19: 2025020 50063 | D19: 196.1 | E19: 199.8 | F19: 20 | G19: 74 | H19: 0.689 | I19: 50.986
A20: 热水热泵系统用电总合计： | G20: =G16+G17+G18+G19 -> 496 | H20: 0.689 | I20: =I16+I17+I18+I19 -> 341.744
A22: 水表 | B22: 空调冷冻水 | D22: 0 | E22: 0 | F22: 1 | G22: =E22-D22 -> 0 | H22: 4.39 | I22: =G22*H22 -> 0
A23: 水表 | B23: 空调冷却水 | D23: 0 | E23: 0 | F23: 1 | G23: =E23-D23 -> 0 | H23: 4.39 | I23: =G23*H23 -> 0
A24: 水表 | B24: 三楼中、高区热水 | C24: M9A25024017786 | D24: 1366 | E24: 1379 | F24: 1 | G24: =E24-D24 -> 13 | H24: 4.39 | I24: =G24*H24 -> 57.07
A25: 水表 | B25: 群楼、中厨房热水 | C25: M9A25024017857 | D25: 1370 | E25: 1392 | F25: 1 | G25: =E25-D25 -> 22 | H25: 4.39 | I25: =G25*H25 -> 96.58
A26: 热水热泵系统用水总合计: | G26: =G24+G25+G23+G22 -> 35 | H26: 4.39 | I26: =I24+I25+I23+I22 -> 153.65
A28: 燃气表（常用） | B28: 蒸汽发生器+采暖 | D28: 17693 | E28: 17875 | F28: 1 | G28: =E28-D28 -> 182 | H28: 5.54 | I28: =G28*H28 -> 1008.28
A29: 燃气表（备用） | B29: 蒸汽发生器+采暖 | D29: 18871 | E29: 18871 | F29: 1 | G29: =(E29-D29)*F29 -> 0 | H29: 5.54 | I29: =G29*H29 -> 0
A30: 蒸汽发生器+采暖用气总合计： | G30: =G28+G29 -> 182 | H30: 5.54 | I30: =I28+I29 -> 1008.28
A31: 电表 | B31: 蒸汽发生器+采暖 | C31: 202011 500026 | D31: 721.8 | E31: 736.8 | F31: 1 | G31: =(E31-D31)*F31 -> 15 | H31: 0.689 | I31: =G31*H31 -> 10.335
A32: 蒸汽发生器+采暖用电总合计： | G32: =G31 -> 15 | H32: 0.689 | I32: =G32*H32 -> 10.335
A33: 水表 | B33: 蒸汽发生器+采暖 | C33: F1A150610796 | D33: 415 | E33: 421 | F33: 1 | G33: =E33-D33 -> 6 | H33: 4.39 | I33: =G33*H33 -> 26.34
A34: 蒸汽发生器用水总合计: | G34: =G33 -> 6 | H34: 4.39 | I34: =G34*H34 -> 26.34
A35: 水、电、气费用总合计（水/电/气价预估单价,单价需以实际缴费为准）： | G35: =I14++I20+I26+I30+I32+I34 -> 3494.6286
A37: 流量计量表 | B37: 分项 | C37: 昨日流量 | E37: 今日流量 | G37: 用量 | H37: 备注
B38: 中央空调冷冻流量 | C38: 0 | E38: 0 | G38: =E38-C38 -> 0
B39: 中央空调冷却流量 | C39: 0 | E39: 0 | G39: =E39-C39 -> 0
B40: 中央空调采暖流量 | C40: 0 | E40: 0 | G40: =E40-C40 -> 0
B41: 蒸汽流量 | C41: 0 | E41: 0 | G41: =E41-C41 -> 0

Sheet 2025.6.6
A1: 梅州昌盛豪生大酒店节能改造每日能耗统计表
A2: 2025年 6月 5日
A3: 最低气温：23 ℃，最高气温：32 ℃ ， 住房量：165间
A4: 宴会/会议信息 乔治亚全天有会议.中餐厅有午宴跟晚宴
A5: 名称 | B5: 位置 | C5: 编号 | D5: 昨日读数 | E5: 今日读数 | F5: 倍率 | G5: 合计 | H5: 单价 | I5: 费用
A6: 电表 | B6: 磁悬浮3号空调主机 | D6: 163749 | E6: 165232 | F6: 1 | G6: =(E6-D6)*F6 -> 1483 | H6: 0.689 | I6: =G6*H6 -> 1021.787
A7: 电表 | B7: 变频5号冷冻泵 | D7: 48490.1 | E7: 49312.9 | F7: 1 | G7: 822.8 | H7: 0.689 | I7: 566.9092
A8: 电表 | B8: 4号冷冻泵 | D8: 211856.7 | E8: 211856.7 | F8: 1 | G8: =(E8-D8)*F8 -> 0 | H8: 0.689 | I8: =G8*H8 -> 0
A9: 电表 | B9: 变频5号冷却泵 | D9: 61162 | E9: 61595.7 | F9: 1 | G9: 433.7 | H9: 0.689 | I9: 298.8193
A10: 电表 | B10: 4号冷却泵 | D10: 259021.9 | E10: 259021.9 | F10: 1 | G10: =(E10-D10)*F10 -> 0 | H10: 0.689 | I10: =G10*H10 -> 0
A11: 电表 | B11: 变频1号冷却塔 | D11: 145042 | E11: 145125.1 | F11: 1 | G11: 83.1 | H11: 0.689 | I11: 57.2559
A12: 电表 | B12: 变频2号冷却塔 | D12: 320041.5 | E12: 320132.6 | F12: 1 | G12: 91.1 | H12: 0.689 | I12: 62.7679
A13: 电表 | B13: 变频3号冷却塔 | D13: 297929.9 | E13: 298017.5 | F13: 1 | G13: 87.6 | H13: 0.689 | I13: 60.3564
A14: 空调系统用电总合计： | G14: =G6+G7+G8+G9+G10+G11+G12+G13 -> 3001.3 | H14: 0.689 | I14: =I6+I7+I8+I9+I10+I11+I12+I13 -> 2067.8957
A16: 电表 | B16: 三楼热泵控制柜 | C16: 2025020 50017 | D16: 131.3 | E16: 133.6 | F16: 80 | G16: 184 | H16: 0.689 | I16: 126.776
A17: 电表 | B17: 三楼变频水泵控制柜 | C17: 2024085 00211 | D17: 436.5 | E17: 445.8 | F17: 20 | G17: 186 | H17: 0.689 | I17: 128.154
A18: 电表 | B18: 洗衣房热泵控制柜 | C18: 202502 05102 | D18: 423.6 | E18: 425.1 | F18: 20 | G18: 30 | H18: 0.689 | I18: 20.67
A19: 电表 | B19: 群楼中厨水泵控制柜 | C19: 2025020 50063 | D19: 199.8 | E19: 203.4 | F19: 20 | G19: 72 | H19: 0.689 | I19: 49.608
A20: 热水热泵系统用电总合计： | G20: =G16+G17+G18+G19 -> 472 | H20: 0.689 | I20: =I16+I17+I18+I19 -> 325.208
A22: 水表 | B22: 空调冷冻水 | D22: 0 | E22: 0 | F22: 1 | G22: =E22-D22 -> 0 | H22: 4.39 | I22: =G22*H22 -> 0
A23: 水表 | B23: 空调冷却水 | D23: 0 | E23: 0 | F23: 1 | G23: =E23-D23 -> 0 | H23: 4.39 | I23: =G23*H23 -> 0
A24: 水表 | B24: 三楼中、高区热水 | C24: M9A25024017786 | D24: 1379 | E24: 1410 | F24: 1 | G24: =E24-D24 -> 31 | H24: 4.39 | I24: =G24*H24 -> 136.09
A25: 水表 | B25: 群楼、中厨房热水 | C25: M9A25024017857 | D25: 1392 | E25: 1408 | F25: 1 | G25: =E25-D25 -> 16 | H25: 4.39 | I25: =G25*H25 -> 70.24
A26: 热水热泵系统用水总合计: | G26: =G24+G25+G23+G22 -> 47 | H26: 4.39 | I26: =I24+I25+I23+I22 -> 206.33
A28: 燃气表（常用） | B28: 蒸汽发生器+采暖 | D28: 17875 | E28: 18111 | F28: 1 | G28: =E28-D28 -> 236 | H28: 5.54 | I28: =G28*H28 -> 1307.44
A29: 燃气表（备用） | B29: 蒸汽发生器+采暖 | D29: 18871 | E29: 18871 | F29: 1 | G29: =(E29-D29)*F29 -> 0 | H29: 5.54 | I29: =G29*H29 -> 0
A30: 蒸汽发生器+采暖用气总合计： | G30: =G28+G29 -> 236 | H30: 5.54 | I30: =I28+I29 -> 1307.44
A31: 电表 | B31: 蒸汽发生器+采暖 | C31: 202011 500026 | D31: 736.8 | E31: 755.7 | F31: 1 | G31: =(E31-D31)*F31 -> 18.9 | H31: 0.689 | I31: =G31*H31 -> 13.0221
A32: 蒸汽发生器+采暖用电总合计： | G32: =G31 -> 18.9 | H32: 0.689 | I32: =G32*H32 -> 13.0221
A33: 水表 | B33: 蒸汽发生器+采暖 | C33: F1A150610796 | D33: 421 | E33: 432 | F33: 1 | G33: =E33-D33 -> 11 | H33: 4.39 | I33: =G33*H33 -> 48.29
A34: 蒸汽发生器用水总合计: | G34: =G33 -> 11 | H34: 4.39 | I34: =G34*H34 -> 48.29
A35: 水、电、气费用总合计（水/电/气价预估单价,单价需以实际缴费为准）： | G35: =I14++I20+I26+I30+I32+I34 -> 3968.1858
A37: 流量计量表 | B37: 分项 | C37: 昨日流量 | E37: 今日流量 | G37: 用量 | H37: 备注
B38: 中央空调冷冻流量 | C38: 0 | E38: 0 | G38: =E38-C38 -> 0
B39: 中央空调冷却流量 | C39: 0 | E39: 0 | G39: =E39-C39 -> 0
B40: 中央空调采暖流量 | C40: 0 | E40: 0 | G40: =E40-C40 -> 0
B41: 蒸汽流量 | C41: 0 | E41: 0 | G41: =E41-C41 -> 0

Sheet 2025.6.7
A1: 梅州昌盛豪生大酒店节能改造每日能耗统计表A1:I17
A2: 2025年 6月 6日
A3: 最低气温：24 ℃，最高气温：35 ℃ ， 住房量：155间
A4: 宴会/会议信息 中餐厅有午宴晚宴.月圆，昌盛轩包厢有晚宴
A5: 名称 | B5: 位置 | C5: 编号 | D5: 昨日读数 | E5: 今日读数 | F5: 倍率 | G5: 合计 | H5: 单价 | I5: 费用
A6: 电表 | B6: 磁悬浮3号空调主机 | D6: 165232 | E6: 167149 | F6: 1 | G6: =(E6-D6)*F6 -> 1917 | H6: 0.689 | I6: =G6*H6 -> 1320.813
A7: 电表 | B7: 变频5号冷冻泵 | D7: 49312.9 | E7: 50146.3 | F7: 1 | G7: 833.4 | H7: 0.689 | I7: 574.2126
A8: 电表 | B8: 4号冷冻泵 | D8: 211856.7 | E8: 211856.7 | F8: 1 | G8: =(E8-D8)*F8 -> 0 | H8: 0.689 | I8: =G8*H8 -> 0
A9: 电表 | B9: 变频5号冷却泵 | D9: 61595.7 | E9: 62109.9 | F9: 1 | G9: 514.2 | H9: 0.689 | I9: 354.2838
A10: 电表 | B10: 4号冷却泵 | D10: 259021.9 | E10: 259092.6 | F10: 1 | G10: =(E10-D10)*F10 -> 70.7 | H10: 0.689 | I10: =G10*H10 -> 48.7123
A11: 电表 | B11: 变频1号冷却塔 | D11: 145125.1 | E11: 145244.5 | F11: 1 | G11: 119.4 | H11: 0.689 | I11: 82.2666
A12: 电表 | B12: 变频2号冷却塔 | D12: 320132.6 | E12: 320283.2 | F12: 1 | G12: 150.6 | H12: 0.689 | I12: 103.7634
A13: 电表 | B13: 变频3号冷却塔 | D13: 298017.5 | E13: 298130.5 | F13: 1 | G13: 113 | H13: 0.689 | I13: 77.857
A14: 空调系统用电总合计： | G14: =G6+G7+G8+G9+G10+G11+G12+G13 -> 3718.3 | H14: 0.689 | I14: =I6+I7+I8+I9+I10+I11+I12+I13 -> 2561.9087
A16: 电表 | B16: 三楼热泵控制柜 | C16: 2025020 50017 | D16: 133.6 | E16: 135.9 | F16: 80 | G16: 184 | H16: 0.689 | I16: 126.776
A17: 电表 | B17: 三楼变频水泵控制柜 | C17: 2024085 00211 | D17: 445.8 | E17: 454.8 | F17: 20 | G17: 180 | H17: 0.689 | I17: 124.02
A18: 电表 | B18: 洗衣房热泵控制柜 | C18: 202502 05102 | D18: 425.1 | E18: 431.1 | F18: 20 | G18: 120 | H18: 0.689 | I18: 82.68
A19: 电表 | B19: 群楼中厨水泵控制柜 | C19: 2025020 50063 | D19: 203.4 | E19: 207.2 | F19: 20 | G19: 76 | H19: 0.689 | I19: 52.364
A20: 热水热泵系统用电总合计： | G20: =G16+G17+G18+G19 -> 560 | H20: 0.689 | I20: =I16+I17+I18+I19 -> 385.84
A22: 水表 | B22: 空调冷冻水 | D22: 0 | E22: 0 | F22: 1 | G22: =E22-D22 -> 0 | H22: 4.39 | I22: =G22*H22 -> 0
A23: 水表 | B23: 空调冷却水 | D23: 0 | E23: 0 | F23: 1 | G23: =E23-D23 -> 0 | H23: 4.39 | I23: =G23*H23 -> 0
A24: 水表 | B24: 三楼中、高区热水 | C24: M9A25024017786 | D24: 1410 | E24: 1444 | F24: 1 | G24: =E24-D24 -> 34 | H24: 4.39 | I24: =G24*H24 -> 149.26
A25: 水表 | B25: 群楼、中厨房热水 | C25: M9A25024017857 | D25: 1408 | E25: 1435 | F25: 1 | G25: =E25-D25 -> 27 | H25: 4.39 | I25: =G25*H25 -> 118.53
A26: 热水热泵系统用水总合计: | G26: =G24+G25+G23+G22 -> 61 | H26: 4.39 | I26: =I24+I25+I23+I22 -> 267.79
A28: 燃气表（常用） | B28: 蒸汽发生器+采暖 | D28: 18111 | E28: 18332 | F28: 1 | G28: =E28-D28 -> 221 | H28: 5.54 | I28: =G28*H28 -> 1224.34
A29: 燃气表（备用） | B29: 蒸汽发生器+采暖 | D29: 18871 | E29: 18871 | F29: 1 | G29: =(E29-D29)*F29 -> 0 | H29: 5.54 | I29: =G29*H29 -> 0
A30: 蒸汽发生器+采暖用气总合计： | G30: =G28+G29 -> 221 | H30: 5.54 | I30: =I28+I29 -> 1224.34
A31: 电表 | B31: 蒸汽发生器+采暖 | C31: 202011 500026 | D31: 755.7 | E31: 773.8 | F31: 1 | G31: =(E31-D31)*F31 -> 18.1 | H31: 0.689 | I31: =G31*H31 -> 12.4709
A32: 蒸汽发生器+采暖用电总合计： | G32: =G31 -> 18.1 | H32: 0.689 | I32: =G32*H32 -> 12.4709
A33: 水表 | B33: 蒸汽发生器+采暖 | C33: F1A150610796 | D33: 432 | E33: 449 | F33: 1 | G33: =E33-D33 -> 17 | H33: 4.39 | I33: =G33*H33 -> 74.63
A34: 蒸汽发生器用水总合计: | G34: =G33 -> 17 | H34: 4.39 | I34: =G34*H34 -> 74.63
A35: 水、电、气费用总合计（水/电/气价预估单价,单价需以实际缴费为准）： | G35: =I14++I20+I26+I30+I32+I34 -> 4526.9796
A37: 流量计量表 | B37: 分项 | C37: 昨日流量 | E37: 今日流量 | G37: 用量 | H37: 备注
B38: 中央空调冷冻流量 | C38: 0 | E38: 0 | G38: =E38-C38 -> 0
B39: 中央空调冷却流量 | C39: 0 | E39: 0 | G39: =E39-C39 -> 0
B40: 中央空调采暖流量 | C40: 0 | E40: 0 | G40: =E40-C40 -> 0
B41: 蒸汽流量 | C41: 0 | E41: 0 | G41: =E41-C41 -> 0

Sheet 2025.6.8
A1: 梅州昌盛豪生大酒店节能改造每日能耗统计表A1:I17
A2: 2025年 6月 7日
A3: 最低气温：25 ℃，最高气温：36 ℃ ， 住房量：154间
A4: 宴会/会议信息 中餐厅有午宴晚宴.厢房5间，豪生1-2厅有午宴
A5: 名称 | B5: 位置 | C5: 编号 | D5: 昨日读数 | E5: 今日读数 | F5: 倍率 | G5: 合计 | H5: 单价 | I5: 费用
A6: 电表 | B6: 磁悬浮3号空调主机 | D6: 167149 | E6: 169638 | F6: 1 | G6: =(E6-D6)*F6 -> 2489 | H6: 0.689 | I6: =G6*H6 -> 1714.921
A7: 电表 | B7: 变频5号冷冻泵 | D7: 50146.3 | E7: 50976.1 | F7: 1 | G7: 829.8 | H7: 0.689 | I7: 571.7322
A8: 电表 | B8: 4号冷冻泵 | D8: 211856.7 | E8: 211856.7 | F8: 1 | G8: =(E8-D8)*F8 -> 0 | H8: 0.689 | I8: =G8*H8 -> 0
A9: 电表 | B9: 变频5号冷却泵 | D9: 62109.9 | E9: 62618.6 | F9: 1 | G9: 508.7 | H9: 0.689 | I9: 350.4943
A10: 电表 | B10: 4号冷却泵 | D10: 259092.6 | E10: 259467.8 | F10: 1 | G10: =(E10-D10)*F10 -> 375.2 | H10: 0.689 | I10: =G10*H10 -> 258.5128
A11: 电表 | B11: 变频1号冷却塔 | D11: 145244.5 | E11: 145383.8 | F11: 1 | G11: 139.3 | H11: 0.689 | I11: 95.9777
A12: 电表 | B12: 变频2号冷却塔 | D12: 320283.2 | E12: 320449.6 | F12: 1 | G12: 166.4 | H12: 0.689 | I12: 114.6496
A13: 电表 | B13: 变频3号冷却塔 | D13: 298130.5 | E13: 298260.1 | F13: 1 | G13: 129.6 | H13: 0.689 | I13: 89.2944
A14: 空调系统用电总合计： | G14: =G6+G7+G8+G9+G10+G11+G12+G13 -> 4638 | H14: 0.689 | I14: =I6+I7+I8+I9+I10+I11+I12+I13 -> 3195.582
A16: 电表 | B16: 三楼热泵控制柜 | C16: 2025020 50017 | D16: 135.9 | E16: 137.6 | F16: 80 | G16: 136 | H16: 0.689 | I16: 93.704
A17: 电表 | B17: 三楼变频水泵控制柜 | C17: 2024085 00211 | D17: 454.8 | E17: 464.3 | F17: 20 | G17: 190 | H17: 0.689 | I17: 130.91
A18: 电表 | B18: 洗衣房热泵控制柜 | C18: 202502 05102 | D18: 431.1 | E18: 438.1 | F18: 20 | G18: 140 | H18: 0.689 | I18: 96.46
A19: 电表 | B19: 群楼中厨水泵控制柜 | C19: 2025020 50063 | D19: 207.2 | E19: 211 | F19: 20 | G19: 76 | H19: 0.689 | I19: 52.364
A20: 热水热泵系统用电总合计： | G20: =G16+G17+G18+G19 -> 542 | H20: 0.689 | I20: =I16+I17+I18+I19 -> 373.438
A22: 水表 | B22: 空调冷冻水 | D22: 0 | F22: 1 | G22: =E22-D22 -> 0 | H22: 4.39 | I22: =G22*H22 -> 0
A23: 水表 | B23: 空调冷却水 | D23: 0 | F23: 1 | G23: =E23-D23 -> 0 | H23: 4.39 | I23: =G23*H23 -> 0
A24: 水表 | B24: 三楼中、高区热水 | C24: M9A25024017786 | D24: 1444 | E24: 1473 | F24: 1 | G24: =E24-D24 -> 29 | H24: 4.39 | I24: =G24*H24 -> 127.31
A25: 水表 | B25: 群楼、中厨房热水 | C25: M9A25024017857 | D25: 1435 | E25: 1472 | F25: 1 | G25: =E25-D25 -> 37 | H25: 4.39 | I25: =G25*H25 -> 162.43
A26: 热水热泵系统用水总合计: | G26: =G24+G25+G23+G22 -> 66 | H26: 4.39 | I26: =I24+I25+I23+I22 -> 289.74
A28: 燃气表（常用） | B28: 蒸汽发生器+采暖 | D28: 18332 | E28: 18552 | F28: 1 | G28: =E28-D28 -> 220 | H28: 5.54 | I28: =G28*H28 -> 1218.8
A29: 燃气表（备用） | B29: 蒸汽发生器+采暖 | D29: 18871 | E29: 18871 | F29: 1 | G29: =(E29-D29)*F29 -> 0 | H29: 5.54 | I29: =G29*H29 -> 0
A30: 蒸汽发生器+采暖用气总合计： | G30: =G28+G29 -> 220 | H30: 5.54 | I30: =I28+I29 -> 1218.8
A31: 电表 | B31: 蒸汽发生器+采暖 | C31: 202011 500026 | D31: 773.8 | E31: 791.3 | F31: 1 | G31: =(E31-D31)*F31 -> 17.5 | H31: 0.689 | I31: =G31*H31 -> 12.0575
A32: 蒸汽发生器+采暖用电总合计： | G32: =G31 -> 17.5 | H32: 0.689 | I32: =G32*H32 -> 12.0575
A33: 水表 | B33: 蒸汽发生器+采暖 | C33: F1A150610796 | D33: 449 | E33: 450 | F33: 1 | G33: =E33-D33 -> 1 | H33: 4.39 | I33: =G33*H33 -> 4.39
A34: 蒸汽发生器用水总合计: | G34: =G33 -> 1 | H34: 4.39 | I34: =G34*H34 -> 4.39
A35: 水、电、气费用总合计（水/电/气价预估单价,单价需以实际缴费为准）： | G35: =I14++I20+I26+I30+I32+I34 -> 5094.0075
A37: 流量计量表 | B37: 分项 | C37: 昨日流量 | E37: 今日流量 | G37: 用量 | H37: 备注
B38: 中央空调冷冻流量 | C38: 0 | E38: 0 | G38: =E38-C38 -> 0
B39: 中央空调冷却流量 | C39: 0 | E39: 0 | G39: =E39-C39 -> 0
B40: 中央空调采暖流量 | C40: 0 | E40: 0 | G40: =E40-C40 -> 0
B41: 蒸汽流量 | C41: 0 | E41: 0 | G41: =E41-C41 -> 0

Sheet 2025.6.9
A1: 梅州昌盛豪生大酒店节能改造每日能耗统计表A1:I17
A2: 2025年 6月 8日
A3: 最低气温：25 ℃，最高气温：34 ℃ ， 住房量：间
A4: 宴会/会议信息 中餐厅有午宴晚宴. 豪生1-2厅有上午会议 3厅有午宴
A5: 名称 | B5: 位置 | C5: 编号 | D5: 昨日读数 | E5: 今日读数 | F5: 倍率 | G5: 合计 | H5: 单价 | I5: 费用
A6: 电表 | B6: 磁悬浮3号空调主机 | D6: 169638 | E6: 171842 | F6: 1 | G6: =(E6-D6)*F6 -> 2204 | H6: 0.689 | I6: =G6*H6 -> 1518.556
A7: 电表 | B7: 变频5号冷冻泵 | D7: 50976.1 | E7: 51810.5 | F7: 1 | G7: 834.4 | H7: 0.689 | I7: 574.9016
A8: 电表 | B8: 4号冷冻泵 | D8: 211856.7 | E8: 211856.7 | F8: 1 | G8: =(E8-D8)*F8 -> 0 | H8: 0.689 | I8: =G8*H8 -> 0
A9: 电表 | B9: 变频5号冷却泵 | D9: 62618.6 | E9: 63109.8 | F9: 1 | G9: 491.2 | H9: 0.689 | I9: 338.4368
A10: 电表 | B10: 4号冷却泵 | D10: 259467.8 | E10: 259809.2 | F10: 1 | G10: =(E10-D10)*F10 -> 341.4 | H10: 0.689 | I10: =G10*H10 -> 235.2246
A11: 电表 | B11: 变频1号冷却塔 | D11: 145383.8 | E11: 145528.5 | F11: 1 | G11: 144.7 | H11: 0.689 | I11: 99.6983
A12: 电表 | B12: 变频2号冷却塔 | D12: 320449.6 | E12: 320618.5 | F12: 1 | G12: 168.9 | H12: 0.689 | I12: 116.3721
A13: 电表 | B13: 变频3号冷却塔 | D13: 298260.1 | E13: 298360.3 | F13: 1 | G13: 100.2 | H13: 0.689 | I13: 69.0378
A14: 空调系统用电总合计： | G14: =G6+G7+G8+G9+G10+G11+G12+G13 -> 4284.8 | H14: 0.689 | I14: =I6+I7+I8+I9+I10+I11+I12+I13 -> 2952.2272
A16: 电表 | B16: 三楼热泵控制柜 | C16: 2025020 50017 | D16: 137.6 | E16: 139.3 | F16: 80 | G16: 136 | H16: 0.689 | I16: 93.704
A17: 电表 | B17: 三楼变频水泵控制柜 | C17: 2024085 00211 | D17: 464.3 | E17: 473.6 | F17: 20 | G17: 186 | H17: 0.689 | I17: 128.154
A18: 电表 | B18: 洗衣房热泵控制柜 | C18: 202502 05102 | D18: 438.1 | E18: 444.4 | F18: 20 | G18: 126 | H18: 0.689 | I18: 86.814
A19: 电表 | B19: 群楼中厨水泵控制柜 | C19: 2025020 50063 | D19: 211 | E19: 214.6 | F19: 20 | G19: 72 | H19: 0.689 | I19: 49.608
A20: 热水热泵系统用电总合计： | G20: =G16+G17+G18+G19 -> 520 | H20: 0.689 | I20: =I16+I17+I18+I19 -> 358.28
A22: 水表 | B22: 空调冷冻水 | D22: 0 | F22: 1 | G22: =E22-D22 -> 0 | H22: 4.39 | I22: =G22*H22 -> 0
A23: 水表 | B23: 空调冷却水 | D23: 0 | F23: 1 | G23: =E23-D23 -> 0 | H23: 4.39 | I23: =G23*H23 -> 0
A24: 水表 | B24: 三楼中、高区热水 | C24: M9A25024017786 | D24: 1473 | E24: 1503 | F24: 1 | G24: =E24-D24 -> 30 | H24: 4.39 | I24: =G24*H24 -> 131.7
A25: 水表 | B25: 群楼、中厨房热水 | C25: M9A25024017857 | D25: 1472 | E25: 1507 | F25: 1 | G25: =E25-D25 -> 35 | H25: 4.39 | I25: =G25*H25 -> 153.65
A26: 热水热泵系统用水总合计: | G26: =G24+G25+G23+G22 -> 65 | H26: 4.39 | I26: =I24+I25+I23+I22 -> 285.35
A28: 燃气表（常用） | B28: 蒸汽发生器+采暖 | D28: 18552 | E28: 18795 | F28: 1 | G28: =E28-D28 -> 243 | H28: 5.54 | I28: =G28*H28 -> 1346.22
A29: 燃气表（备用） | B29: 蒸汽发生器+采暖 | D29: 18871 | E29: 18871 | F29: 1 | G29: =(E29-D29)*F29 -> 0 | H29: 5.54 | I29: =G29*H29 -> 0
A30: 蒸汽发生器+采暖用气总合计： | G30: =G28+G29 -> 243 | H30: 5.54 | I30: =I28+I29 -> 1346.22
A31: 电表 | B31: 蒸汽发生器+采暖 | C31: 202011 500026 | D31: 791.3 | E31: 810.5 | F31: 1 | G31: =(E31-D31)*F31 -> 19.2 | H31: 0.689 | I31: =G31*H31 -> 13.2288
A32: 蒸汽发生器+采暖用电总合计： | G32: =G31 -> 19.2 | H32: 0.689 | I32: =G32*H32 -> 13.2288
A33: 水表 | B33: 蒸汽发生器+采暖 | C33: F1A150610796 | D33: 450 | E33: 460 | F33: 1 | G33: =E33-D33 -> 10 | H33: 4.39 | I33: =G33*H33 -> 43.9
A34: 蒸汽发生器用水总合计: | G34: =G33 -> 10 | H34: 4.39 | I34: =G34*H34 -> 43.9
A35: 水、电、气费用总合计（水/电/气价预估单价,单价需以实际缴费为准）： | G35: =I14++I20+I26+I30+I32+I34 -> 4999.206
A37: 流量计量表 | B37: 分项 | C37: 昨日流量 | E37: 今日流量 | G37: 用量 | H37: 备注
B38: 中央空调冷冻流量 | C38: 0 | E38: 0 | G38: =E38-C38 -> 0
B39: 中央空调冷却流量 | C39: 0 | E39: 0 | G39: =E39-C39 -> 0
B40: 中央空调采暖流量 | C40: 0 | E40: 0 | G40: =E40-C40 -> 0
B41: 蒸汽流量 | C41: 0 | E41: 0 | G41: =E41-C41 -> 0

Sheet 2025.6.10
A1: 梅州昌盛豪生大酒店节能改造每日能耗统计表A1:I17
A2: 2025年 6月 9日
A3: 最低气温：25 ℃，最高气温：35 ℃ ， 住房量：105间
A4: 宴会/会议信息 中餐厅有午宴晚宴. 豪生1-2厅有全天会议 3厅有午宴
A5: 名称 | B5: 位置 | C5: 编号 | D5: 昨日读数 | E5: 今日读数 | F5: 倍率 | G5: 合计 | H5: 单价 | I5: 费用
A6: 电表 | B6: 磁悬浮3号空调主机 | D6: 171842 | E6: 174367 | F6: 1 | G6: =(E6-D6)*F6 -> 2525 | H6: 0.689 | I6: =G6*H6 -> 1739.725
A7: 电表 | B7: 变频5号冷冻泵 | D7: 51810.5 | E7: 52657.2 | F7: 1 | G7: 846.7 | H7: 0.689 | I7: 583.3763
A8: 电表 | B8: 4号冷冻泵 | D8: 211856.7 | E8: 211856.7 | F8: 1 | G8: =(E8-D8)*F8 -> 0 | H8: 0.689 | I8: =G8*H8 -> 0
A9: 电表 | B9: 变频5号冷却泵 | D9: 63109.8 | E9: 63712.2 | F9: 1 | G9: 602.4 | H9: 0.689 | I9: 415.0536
A10: 电表 | B10: 4号冷却泵 | D10: 259809.2 | E10: 260173 | F10: 1 | G10: =(E10-D10)*F10 -> 363.8 | H10: 0.689 | I10: =G10*H10 -> 250.6582
A11: 电表 | B11: 变频1号冷却塔 | D11: 145528.5 | E11: 145651.8 | F11: 1 | G11: 123.3 | H11: 0.689 | I11: 84.9537
A12: 电表 | B12: 变频2号冷却塔 | D12: 320618.5 | E12: 320759.3 | F12: 1 | G12: 140.8 | H12: 0.689 | I12: 97.0112
A13: 电表 | B13: 变频3号冷却塔 | D13: 298360.3 | E13: 298490.2 | F13: 1 | G13: 129.9 | H13: 0.689 | I13: 89.5011
A14: 空调系统用电总合计： | G14: =G6+G7+G8+G9+G10+G11+G12+G13 -> 4731.9 | H14: 0.689 | I14: =I6+I7+I8+I9+I10+I11+I12+I13 -> 3260.2791
A16: 电表 | B16: 三楼热泵控制柜 | C16: 2025020 50017 | D16: 139.3 | E16: 140.4 | F16: 80 | G16: 88 | H16: 0.689 | I16: 60.632
A17: 电表 | B17: 三楼变频水泵控制柜 | C17: 2024085 00211 | D17: 473.6 | E17: 482.8 | F17: 20 | G17: 184 | H17: 0.689 | I17: 126.776
A18: 电表 | B18: 洗衣房热泵控制柜 | C18: 202502 05102 | D18: 444.4 | E18: 450.5 | F18: 20 | G18: 122 | H18: 0.689 | I18: 84.058
A19: 电表 | B19: 群楼中厨水泵控制柜 | C19: 2025020 50063 | D19: 214.6 | E19: 218.2 | F19: 20 | G19: 72 | H19: 0.689 | I19: 49.608
A20: 热水热泵系统用电总合计： | G20: =G16+G17+G18+G19 -> 466 | H20: 0.689 | I20: =I16+I17+I18+I19 -> 321.074
A22: 水表 | B22: 空调冷冻水 | D22: 0 | F22: 1 | G22: =E22-D22 -> 0 | H22: 4.39 | I22: =G22*H22 -> 0
A23: 水表 | B23: 空调冷却水 | D23: 0 | F23: 1 | G23: =E23-D23 -> 0 | H23: 4.39 | I23: =G23*H23 -> 0
A24: 水表 | B24: 三楼中、高区热水 | C24: M9A25024017786 | D24: 1503 | E24: 1521 | F24: 1 | G24: =E24-D24 -> 18 | H24: 4.39 | I24: =G24*H24 -> 79.02
A25: 水表 | B25: 群楼、中厨房热水 | C25: M9A25024017857 | D25: 1507 | E25: 1534 | F25: 1 | G25: =E25-D25 -> 27 | H25: 4.39 | I25: =G25*H25 -> 118.53
A26: 热水热泵系统用水总合计: | G26: =G24+G25+G23+G22 -> 45 | H26: 4.39 | I26: =I24+I25+I23+I22 -> 197.55
A28: 燃气表（常用） | B28: 蒸汽发生器+采暖 | D28: 18795 | E28: 18996 | F28: 1 | G28: =E28-D28 -> 201 | H28: 5.54 | I28: =G28*H28 -> 1113.54
A29: 燃气表（备用） | B29: 蒸汽发生器+采暖 | D29: 18871 | E29: 18871 | F29: 1 | G29: =(E29-D29)*F29 -> 0 | H29: 5.54 | I29: =G29*H29 -> 0
A30: 蒸汽发生器+采暖用气总合计： | G30: =G28+G29 -> 201 | H30: 5.54 | I30: =I28+I29 -> 1113.54
A31: 电表 | B31: 蒸汽发生器+采暖 | C31: 202011 500026 | D31: 810.5 | E31: 827.5 | F31: 1 | G31: =(E31-D31)*F31 -> 17 | H31: 0.689 | I31: =G31*H31 -> 11.713
A32: 蒸汽发生器+采暖用电总合计： | G32: =G31 -> 17 | H32: 0.689 | I32: =G32*H32 -> 11.713
A33: 水表 | B33: 蒸汽发生器+采暖 | C33: F1A150610796 | D33: 460 | E33: 469 | F33: 1 | G33: =E33-D33 -> 9 | H33: 4.39 | I33: =G33*H33 -> 39.51
A34: 蒸汽发生器用水总合计: | G34: =G33 -> 9 | H34: 4.39 | I34: =G34*H34 -> 39.51
A35: 水、电、气费用总合计（水/电/气价预估单价,单价需以实际缴费为准）： | G35: =I14++I20+I26+I30+I32+I34 -> 4943.6661
A37: 流量计量表 | B37: 分项 | C37: 昨日流量 | E37: 今日流量 | G37: 用量 | H37: 备注
B38: 中央空调冷冻流量 | C38: 0 | E38: 0 | G38: =E38-C38 -> 0
B39: 中央空调冷却流量 | C39: 0 | E39: 0 | G39: =E39-C39 -> 0
B40: 中央空调采暖流量 | C40: 0 | E40: 0 | G40: =E40-C40 -> 0
B41: 蒸汽流量 | C41: 0 | E41: 0 | G41: =E41-C41 -> 0

Sheet 2025.6.11
A1: 梅州昌盛豪生大酒店节能改造每日能耗统计表A1:I17
A2: 2025年 6月 10日
A3: 最低气温：26 ℃，最高气温：36 ℃ ， 住房量：120间
A4: 宴会/会议信息 无
A5: 名称 | B5: 位置 | C5: 编号 | D5: 昨日读数 | E5: 今日读数 | F5: 倍率 | G5: 合计 | H5: 单价 | I5: 费用
A6: 电表 | B6: 磁悬浮3号空调主机 | D6: 174367 | E6: 176325 | F6: 1 | G6: =(E6-D6)*F6 -> 1958 | H6: 0.689 | I6: =G6*H6 -> 1349.062
A7: 电表 | B7: 变频5号冷冻泵 | D7: 52657.2 | E7: 53523.8 | F7: 1 | G7: 866.6 | H7: 0.689 | I7: 597.0874
A8: 电表 | B8: 4号冷冻泵 | D8: 211856.7 | E8: 211856.7 | F8: 1 | G8: =(E8-D8)*F8 -> 0 | H8: 0.689 | I8: =G8*H8 -> 0
A9: 电表 | B9: 变频5号冷却泵 | D9: 63712.2 | E9: 64230.1 | F9: 1 | G9: 517.9 | H9: 0.689 | I9: 356.8331
A10: 电表 | B10: 4号冷却泵 | D10: 260173 | E10: 260537.5 | F10: 1 | G10: =(E10-D10)*F10 -> 364.5 | H10: 0.689 | I10: =G10*H10 -> 251.1405
A11: 电表 | B11: 变频1号冷却塔 | D11: 145651.8 | E11: 145780.8 | F11: 1 | G11: 129 | H11: 0.689 | I11: 88.881
A12: 电表 | B12: 变频2号冷却塔 | D12: 320759.3 | E12: 320904 | F12: 1 | G12: 144.7 | H12: 0.689 | I12: 99.6983
A13: 电表 | B13: 变频3号冷却塔 | D13: 298490.2 | E13: 298634 | F13: 1 | G13: 143.8 | H13: 0.689 | I13: 99.0782
A14: 空调系统用电总合计： | G14: =G6+G7+G8+G9+G10+G11+G12+G13 -> 4124.5 | H14: 0.689 | I14: =I6+I7+I8+I9+I10+I11+I12+I13 -> 2841.7805
A16: 电表 | B16: 三楼热泵控制柜 | C16: 2025020 50017 | D16: 140.4 | E16: 141.7 | F16: 80 | G16: 104 | H16: 0.689 | I16: 71.656
A17: 电表 | B17: 三楼变频水泵控制柜 | C17: 2024085 00211 | D17: 482.8 | E17: 491.9 | F17: 20 | G17: 182 | H17: 0.689 | I17: 125.398
A18: 电表 | B18: 洗衣房热泵控制柜 | C18: 202502 05102 | D18: 450.5 | E18: 454.8 | F18: 20 | G18: 86 | H18: 0.689 | I18: 59.254
A19: 电表 | B19: 群楼中厨水泵控制柜 | C19: 2025020 50063 | D19: 218.2 | E19: 221.8 | F19: 20 | G19: 72 | H19: 0.689 | I19: 49.608
A20: 热水热泵系统用电总合计： | G20: =G16+G17+G18+G19 -> 444 | H20: 0.689 | I20: =I16+I17+I18+I19 -> 305.916
A22: 水表 | B22: 空调冷冻水 | D22: 0 | F22: 1 | G22: =E22-D22 -> 0 | H22: 4.39 | I22: =G22*H22 -> 0
A23: 水表 | B23: 空调冷却水 | D23: 0 | F23: 1 | G23: =E23-D23 -> 0 | H23: 4.39 | I23: =G23*H23 -> 0
A24: 水表 | B24: 三楼中、高区热水 | C24: M9A25024017786 | D24: 1521 | E24: 1537 | F24: 1 | G24: =E24-D24 -> 16 | H24: 4.39 | I24: =G24*H24 -> 70.24
A25: 水表 | B25: 群楼、中厨房热水 | C25: M9A25024017857 | D25: 1534 | E25: 1552 | F25: 1 | G25: =E25-D25 -> 18 | H25: 4.39 | I25: =G25*H25 -> 79.02
A26: 热水热泵系统用水总合计: | G26: =G24+G25+G23+G22 -> 34 | H26: 4.39 | I26: =I24+I25+I23+I22 -> 149.26
A28: 燃气表（常用） | B28: 蒸汽发生器+采暖 | D28: 18996 | E28: 19218 | F28: 1 | G28: =E28-D28 -> 222 | H28: 5.54 | I28: =G28*H28 -> 1229.88
A29: 燃气表（备用） | B29: 蒸汽发生器+采暖 | D29: 18871 | E29: 18871 | F29: 1 | G29: =(E29-D29)*F29 -> 0 | H29: 5.54 | I29: =G29*H29 -> 0
A30: 蒸汽发生器+采暖用气总合计： | G30: =G28+G29 -> 222 | H30: 5.54 | I30: =I28+I29 -> 1229.88
A31: 电表 | B31: 蒸汽发生器+采暖 | C31: 202011 500026 | D31: 827.5 | E31: 844.5 | F31: 1 | G31: =(E31-D31)*F31 -> 17 | H31: 0.689 | I31: =G31*H31 -> 11.713
A32: 蒸汽发生器+采暖用电总合计： | G32: =G31 -> 17 | H32: 0.689 | I32: =G32*H32 -> 11.713
A33: 水表 | B33: 蒸汽发生器+采暖 | C33: F1A150610796 | D33: 469 | E33: 477 | F33: 1 | G33: =E33-D33 -> 8 | H33: 4.39 | I33: =G33*H33 -> 35.12
A34: 蒸汽发生器用水总合计: | G34: =G33 -> 8 | H34: 4.39 | I34: =G34*H34 -> 35.12
A35: 水、电、气费用总合计（水/电/气价预估单价,单价需以实际缴费为准）： | G35: =I14++I20+I26+I30+I32+I34 -> 4573.6695
A37: 流量计量表 | B37: 分项 | C37: 昨日流量 | E37: 今日流量 | G37: 用量 | H37: 备注
B38: 中央空调冷冻流量 | C38: 0 | E38: 0 | G38: =E38-C38 -> 0
B39: 中央空调冷却流量 | C39: 0 | E39: 0 | G39: =E39-C39 -> 0
B40: 中央空调采暖流量 | C40: 0 | E40: 0 | G40: =E40-C40 -> 0
B41: 蒸汽流量 | C41: 0 | E41: 0 | G41: =E41-C41 -> 0

Sheet 2025.6.12
A1: 梅州昌盛豪生大酒店节能改造每日能耗统计表A1:I17
A2: 2025年 6月 11日
A3: 最低气温：24 ℃，最高气温：36 ℃ ， 住房量：212间
A4: 宴会/会议信息 中餐厅有午宴 中餐厅以及昆西有晚宴
A5: 名称 | B5: 位置 | C5: 编号 | D5: 昨日读数 | E5: 今日读数 | F5: 倍率 | G5: 合计 | H5: 单价 | I5: 费用
A6: 电表 | B6: 磁悬浮3号空调主机 | D6: 176325 | E6: 178558 | F6: 1 | G6: =(E6-D6)*F6 -> 2233 | H6: 0.689 | I6: =G6*H6 -> 1538.537
A7: 电表 | B7: 变频5号冷冻泵 | D7: 53523.8 | E7: 54384.2 | F7: 1 | G7: 860.4 | H7: 0.689 | I7: 592.8156
A8: 电表 | B8: 4号冷冻泵 | D8: 211856.7 | E8: 211856.7 | F8: 1 | G8: =(E8-D8)*F8 -> 0 | H8: 0.689 | I8: =G8*H8 -> 0
A9: 电表 | B9: 变频5号冷却泵 | D9: 64230.1 | E9: 64821.3 | F9: 1 | G9: 591.2 | H9: 0.689 | I9: 407.3368
A10: 电表 | B10: 4号冷却泵 | D10: 260537.5 | E10: 260996.2 | F10: 1 | G10: =(E10-D10)*F10 -> 458.7 | H10: 0.689 | I10: =G10*H10 -> 316.0443
A11: 电表 | B11: 变频1号冷却塔 | D11: 145780.8 | E11: 145924.6 | F11: 1 | G11: 143.8 | H11: 0.689 | I11: 99.0782
A12: 电表 | B12: 变频2号冷却塔 | D12: 320904 | E12: 321067.2 | F12: 1 | G12: 163.2 | H12: 0.689 | I12: 112.4448
A13: 电表 | B13: 变频3号冷却塔 | D13: 298634 | E13: 298771.9 | F13: 1 | G13: 137.9 | H13: 0.689 | I13: 95.0131
A14: 空调系统用电总合计： | G14: =G6+G7+G8+G9+G10+G11+G12+G13 -> 4588.2 | H14: 0.689 | I14: =I6+I7+I8+I9+I10+I11+I12+I13 -> 3161.2698
A16: 电表 | B16: 三楼热泵控制柜 | C16: 2025020 50017 | D16: 141.7 | E16: 143.2 | F16: 80 | G16: 120 | H16: 0.689 | I16: 82.68
A17: 电表 | B17: 三楼变频水泵控制柜 | C17: 2024085 00211 | D17: 491.9 | E17: 500.9 | F17: 20 | G17: 180 | H17: 0.689 | I17: 124.02
A18: 电表 | B18: 洗衣房热泵控制柜 | C18: 202502 05102 | D18: 454.8 | E18: 459.1 | F18: 20 | G18: 86 | H18: 0.689 | I18: 59.254
A19: 电表 | B19: 群楼中厨水泵控制柜 | C19: 2025020 50063 | D19: 221.8 | E19: 225.4 | F19: 20 | G19: 72 | H19: 0.689 | I19: 49.608
A20: 热水热泵系统用电总合计： | G20: =G16+G17+G18+G19 -> 458 | H20: 0.689 | I20: =I16+I17+I18+I19 -> 315.562
A22: 水表 | B22: 空调冷冻水 | D22: 0 | F22: 1 | G22: =E22-D22 -> 0 | H22: 4.39 | I22: =G22*H22 -> 0
A23: 水表 | B23: 空调冷却水 | D23: 0 | F23: 1 | G23: =E23-D23 -> 0 | H23: 4.39 | I23: =G23*H23 -> 0
A24: 水表 | B24: 三楼中、高区热水 | C24: M9A25024017786 | D24: 1537 | E24: 1566 | F24: 1 | G24: =E24-D24 -> 29 | H24: 4.39 | I24: =G24*H24 -> 127.31
A25: 水表 | B25: 群楼、中厨房热水 | C25: M9A25024017857 | D25: 1552 | E25: 1573 | F25: 1 | G25: =E25-D25 -> 21 | H25: 4.39 | I25: =G25*H25 -> 92.19
A26: 热水热泵系统用水总合计: | G26: =G24+G25+G23+G22 -> 50 | H26: 4.39 | I26: =I24+I25+I23+I22 -> 219.5
A28: 燃气表（常用） | B28: 蒸汽发生器+采暖 | D28: 19218 | E28: 19420 | F28: 1 | G28: =E28-D28 -> 202 | H28: 5.54 | I28: =G28*H28 -> 1119.08
A29: 燃气表（备用） | B29: 蒸汽发生器+采暖 | D29: 18871 | E29: 18871 | F29: 1 | G29: =(E29-D29)*F29 -> 0 | H29: 5.54 | I29: =G29*H29 -> 0
A30: 蒸汽发生器+采暖用气总合计： | G30: =G28+G29 -> 202 | H30: 5.54 | I30: =I28+I29 -> 1119.08
A31: 电表 | B31: 蒸汽发生器+采暖 | C31: 202011 500026 | D31: 844.5 | E31: 860.9 | F31: 1 | G31: =(E31-D31)*F31 -> 16.4 | H31: 0.689 | I31: =G31*H31 -> 11.2996
A32: 蒸汽发生器+采暖用电总合计： | G32: =G31 -> 16.4 | H32: 0.689 | I32: =G32*H32 -> 11.2996
A33: 水表 | B33: 蒸汽发生器+采暖 | C33: F1A150610796 | D33: 477 | E33: 485 | F33: 1 | G33: =E33-D33 -> 8 | H33: 4.39 | I33: =G33*H33 -> 35.12
A34: 蒸汽发生器用水总合计: | G34: =G33 -> 8 | H34: 4.39 | I34: =G34*H34 -> 35.12
A35: 水、电、气费用总合计（水/电/气价预估单价,单价需以实际缴费为准）： | G35: =I14++I20+I26+I30+I32+I34 -> 4861.8314
A37: 流量计量表 | B37: 分项 | C37: 昨日流量 | E37: 今日流量 | G37: 用量 | H37: 备注
B38: 中央空调冷冻流量 | C38: 0 | E38: 0 | G38: =E38-C38 -> 0
B39: 中央空调冷却流量 | C39: 0 | E39: 0 | G39: =E39-C39 -> 0
B40: 中央空调采暖流量 | C40: 0 | E40: 0 | G40: =E40-C40 -> 0
B41: 蒸汽流量 | C41: 0 | E41: 0 | G41: =E41-C41 -> 0

Sheet 2025.6.13
A1: 梅州昌盛豪生大酒店节能改造每日能耗统计表A1:I17
A2: 2025年 6月 12日
A3: 最低气温：24 ℃，最高气温：36 ℃ ， 住房量：239间
A4: 宴会/会议信息 中餐厅有午宴 中餐厅以及昆西有晚宴.昆斯上午有会议
A5: 名称 | B5: 位置 | C5: 编号 | D5: 昨日读数 | E5: 今日读数 | F5: 倍率 | G5: 合计 | H5: 单价 | I5: 费用
A6: 电表 | B6: 磁悬浮3号空调主机 | D6: 178558 | E6: 180830 | F6: 1 | G6: =(E6-D6)*F6 -> 2272 | H6: 0.689 | I6: =G6*H6 -> 1565.408
A7: 电表 | B7: 变频5号冷冻泵 | D7: 54384.2 | E7: 55239.8 | F7: 1 | G7: 855.6 | H7: 0.689 | I7: 589.5084
A8: 电表 | B8: 4号冷冻泵 | D8: 211856.7 | E8: 211856.7 | F8: 1 | G8: =(E8-D8)*F8 -> 0 | H8: 0.689 | I8: =G8*H8 -> 0
A9: 电表 | B9: 变频5号冷却泵 | D9: 64821.3 | E9: 65391.6 | F9: 1 | G9: 570.3 | H9: 0.689 | I9: 392.9367
A10: 电表 | B10: 4号冷却泵 | D10: 260996.2 | E10: 261553 | F10: 1 | G10: =(E10-D10)*F10 -> 556.8 | H10: 0.689 | I10: =G10*H10 -> 383.6352
A11: 电表 | B11: 变频1号冷却塔 | D11: 145924.6 | E11: 146064.3 | F11: 1 | G11: 139.7 | H11: 0.689 | I11: 96.2533
A12: 电表 | B12: 变频2号冷却塔 | D12: 321067.2 | E12: 321203.7 | F12: 1 | G12: 136.5 | H12: 0.689 | I12: 94.0485
A13: 电表 | B13: 变频3号冷却塔 | D13: 298771.9 | E13: 298925.4 | F13: 1 | G13: 153.5 | H13: 0.689 | I13: 105.7615
A14: 空调系统用电总合计： | G14: =G6+G7+G8+G9+G10+G11+G12+G13 -> 4684.4 | H14: 0.689 | I14: =I6+I7+I8+I9+I10+I11+I12+I13 -> 3227.5516
A16: 电表 | B16: 三楼热泵控制柜 | C16: 2025020 50017 | D16: 143.2 | E16: 145 | F16: 80 | G16: 144 | H16: 0.689 | I16: 99.216
A17: 电表 | B17: 三楼变频水泵控制柜 | C17: 2024085 00211 | D17: 500.9 | E17: 509.8 | F17: 20 | G17: 178 | H17: 0.689 | I17: 122.642
A18: 电表 | B18: 洗衣房热泵控制柜 | C18: 202502 05102 | D18: 459.1 | E18: 464.6 | F18: 20 | G18: 110 | H18: 0.689 | I18: 75.79
A19: 电表 | B19: 群楼中厨水泵控制柜 | C19: 2025020 50063 | D19: 225.4 | E19: 229 | F19: 20 | G19: 72 | H19: 0.689 | I19: 49.608
A20: 热水热泵系统用电总合计： | G20: =G16+G17+G18+G19 -> 504 | H20: 0.689 | I20: =I16+I17+I18+I19 -> 347.256
A22: 水表 | B22: 空调冷冻水 | D22: 0 | F22: 1 | G22: =E22-D22 -> 0 | H22: 4.39 | I22: =G22*H22 -> 0
A23: 水表 | B23: 空调冷却水 | D23: 0 | F23: 1 | G23: =E23-D23 -> 0 | H23: 4.39 | I23: =G23*H23 -> 0
A24: 水表 | B24: 三楼中、高区热水 | C24: M9A25024017786 | D24: 1566 | E24: 1596 | F24: 1 | G24: =E24-D24 -> 30 | H24: 4.39 | I24: =G24*H24 -> 131.7
A25: 水表 | B25: 群楼、中厨房热水 | C25: M9A25024017857 | D25: 1573 | E25: 1600 | F25: 1 | G25: =E25-D25 -> 27 | H25: 4.39 | I25: =G25*H25 -> 118.53
A26: 热水热泵系统用水总合计: | G26: =G24+G25+G23+G22 -> 57 | H26: 4.39 | I26: =I24+I25+I23+I22 -> 250.23
A28: 燃气表（常用） | B28: 蒸汽发生器+采暖 | D28: 19420 | E28: 19619 | F28: 1 | G28: =E28-D28 -> 199 | H28: 5.54 | I28: =G28*H28 -> 1102.46
A29: 燃气表（备用） | B29: 蒸汽发生器+采暖 | D29: 18871 | E29: 18871 | F29: 1 | G29: =(E29-D29)*F29 -> 0 | H29: 5.54 | I29: =G29*H29 -> 0
A30: 蒸汽发生器+采暖用气总合计： | G30: =G28+G29 -> 199 | H30: 5.54 | I30: =I28+I29 -> 1102.46
A31: 电表 | B31: 蒸汽发生器+采暖 | C31: 202011 500026 | D31: 860.9 | E31: 877.1 | F31: 1 | G31: =(E31-D31)*F31 -> 16.2 | H31: 0.689 | I31: =G31*H31 -> 11.1618
A32: 蒸汽发生器+采暖用电总合计： | G32: =G31 -> 16.2 | H32: 0.689 | I32: =G32*H32 -> 11.1618
A33: 水表 | B33: 蒸汽发生器+采暖 | C33: F1A150610796 | D33: 485 | E33: 494 | F33: 1 | G33: =E33-D33 -> 9 | H33: 4.39 | I33: =G33*H33 -> 39.51
A34: 蒸汽发生器用水总合计: | G34: =G33 -> 9 | H34: 4.39 | I34: =G34*H34 -> 39.51
A35: 水、电、气费用总合计（水/电/气价预估单价,单价需以实际缴费为准）： | G35: =I14++I20+I26+I30+I32+I34 -> 4978.1694
A37: 流量计量表 | B37: 分项 | C37: 昨日流量 | E37: 今日流量 | G37: 用量 | H37: 备注
B38: 中央空调冷冻流量 | C38: 0 | E38: 0 | G38: =E38-C38 -> 0
B39: 中央空调冷却流量 | C39: 0 | E39: 0 | G39: =E39-C39 -> 0
B40: 中央空调采暖流量 | C40: 0 | E40: 0 | G40: =E40-C40 -> 0
B41: 蒸汽流量 | C41: 0 | E41: 0 | G41: =E41-C41 -> 0

Sheet 2025.6.14
A1: 梅州昌盛豪生大酒店节能改造每日能耗统计表A1:I17
A2: 2025年 6月 13日
A3: 最低气温：24 ℃，最高气温：33 ℃ ， 住房量：239间
A4: 宴会/会议信息 中餐厅有午宴 中餐厅以及昆西有晚宴奥尔良波士顿有午宴
A5: 名称 | B5: 位置 | C5: 编号 | D5: 昨日读数 | E5: 今日读数 | F5: 倍率 | G5: 合计 | H5: 单价 | I5: 费用
A6: 电表 | B6: 磁悬浮3号空调主机 | D6: 180830 | E6: 183350 | F6: 1 | G6: =(E6-D6)*F6 -> 2520 | H6: 0.689 | I6: =G6*H6 -> 1736.28
A7: 电表 | B7: 变频5号冷冻泵 | D7: 55239.8 | E7: 56120.2 | F7: 1 | G7: 880.4 | H7: 0.689 | I7: 606.5956
A8: 电表 | B8: 4号冷冻泵 | D8: 211856.7 | E8: 211856.7 | F8: 1 | G8: =(E8-D8)*F8 -> 0 | H8: 0.689 | I8: =G8*H8 -> 0
A9: 电表 | B9: 变频5号冷却泵 | D9: 65391.6 | E9: 65918.4 | F9: 1 | G9: 526.8 | H9: 0.689 | I9: 362.9652
A10: 电表 | B10: 4号冷却泵 | D10: 261553 | E10: 262088 | F10: 1 | G10: =(E10-D10)*F10 -> 535 | H10: 0.689 | I10: =G10*H10 -> 368.615
A11: 电表 | B11: 变频1号冷却塔 | D11: 146064.3 | E11: 146188.3 | F11: 1 | G11: 124 | H11: 0.689 | I11: 85.436
A12: 电表 | B12: 变频2号冷却塔 | D12: 321203.7 | E12: 321313.6 | F12: 1 | G12: 109.9 | H12: 0.689 | I12: 75.7211
A13: 电表 | B13: 变频3号冷却塔 | D13: 298925.4 | E13: 299086.4 | F13: 1 | G13: 161 | H13: 0.689 | I13: 110.929
A14: 空调系统用电总合计： | G14: =G6+G7+G8+G9+G10+G11+G12+G13 -> 4857.1 | H14: 0.689 | I14: =I6+I7+I8+I9+I10+I11+I12+I13 -> 3346.5419
A16: 电表 | B16: 三楼热泵控制柜 | C16: 2025020 50017 | D16: 145 | E16: 146.9 | F16: 80 | G16: 152 | H16: 0.689 | I16: 104.728
A17: 电表 | B17: 三楼变频水泵控制柜 | C17: 2024085 00211 | D17: 509.8 | E17: 518.6 | F17: 20 | G17: 176 | H17: 0.689 | I17: 121.264
A18: 电表 | B18: 洗衣房热泵控制柜 | C18: 202502 05102 | D18: 464.6 | E18: 469.9 | F18: 20 | G18: 106 | H18: 0.689 | I18: 73.034
A19: 电表 | B19: 群楼中厨水泵控制柜 | C19: 2025020 50063 | D19: 229 | E19: 232.6 | F19: 20 | G19: 72 | H19: 0.689 | I19: 49.608
A20: 热水热泵系统用电总合计： | G20: =G16+G17+G18+G19 -> 506 | H20: 0.689 | I20: =I16+I17+I18+I19 -> 348.634
A22: 水表 | B22: 空调冷冻水 | D22: 0 | E22: 0 | F22: 1 | G22: =E22-D22 -> 0 | H22: 4.39 | I22: =G22*H22 -> 0
A23: 水表 | B23: 空调冷却水 | D23: 0 | E23: 0 | F23: 1 | G23: =E23-D23 -> 0 | H23: 4.39 | I23: =G23*H23 -> 0
A24: 水表 | B24: 三楼中、高区热水 | C24: M9A25024017786 | D24: 1596 | E24: 1630 | F24: 1 | G24: =E24-D24 -> 34 | H24: 4.39 | I24: =G24*H24 -> 149.26
A25: 水表 | B25: 群楼、中厨房热水 | C25: M9A25024017857 | D25: 1600 | E25: 1633 | F25: 1 | G25: =E25-D25 -> 33 | H25: 4.39 | I25: =G25*H25 -> 144.87
A26: 热水热泵系统用水总合计: | G26: =G24+G25+G23+G22 -> 67 | H26: 4.39 | I26: =I24+I25+I23+I22 -> 294.13
A28: 燃气表（常用） | B28: 蒸汽发生器+采暖 | D28: 19619 | E28: 19891 | F28: 1 | G28: =E28-D28 -> 272 | H28: 5.54 | I28: =G28*H28 -> 1506.88
A29: 燃气表（备用） | B29: 蒸汽发生器+采暖 | D29: 18871 | E29: 18871 | F29: 1 | G29: =(E29-D29)*F29 -> 0 | H29: 5.54 | I29: =G29*H29 -> 0
A30: 蒸汽发生器+采暖用气总合计： | G30: =G28+G29 -> 272 | H30: 5.54 | I30: =I28+I29 -> 1506.88
A31: 电表 | B31: 蒸汽发生器+采暖 | C31: 202011 500026 | D31: 877.1 | E31: 898.7 | F31: 1 | G31: =(E31-D31)*F31 -> 21.6 | H31: 0.689 | I31: =G31*H31 -> 14.8824
A32: 蒸汽发生器+采暖用电总合计： | G32: =G31 -> 21.6 | H32: 0.689 | I32: =G32*H32 -> 14.8824
A33: 水表 | B33: 蒸汽发生器+采暖 | C33: F1A150610796 | D33: 494 | E33: 506 | F33: 1 | G33: =E33-D33 -> 12 | H33: 4.39 | I33: =G33*H33 -> 52.68
A34: 蒸汽发生器用水总合计: | G34: =G33 -> 12 | H34: 4.39 | I34: =G34*H34 -> 52.68
A35: 水、电、气费用总合计（水/电/气价预估单价,单价需以实际缴费为准）： | G35: =I14++I20+I26+I30+I32+I34 -> 5563.7483
A37: 流量计量表 | B37: 分项 | C37: 昨日流量 | E37: 今日流量 | G37: 用量 | H37: 备注
B38: 中央空调冷冻流量 | C38: 0 | E38: 0 | G38: =E38-C38 -> 0
B39: 中央空调冷却流量 | C39: 0 | E39: 0 | G39: =E39-C39 -> 0
B40: 中央空调采暖流量 | C40: 0 | E40: 0 | G40: =E40-C40 -> 0
B41: 蒸汽流量 | C41: 0 | E41: 0 | G41: =E41-C41 -> 0

Sheet 2025.6.15
A1: 梅州昌盛豪生大酒店节能改造每日能耗统计表A1:I17
A2: 2025年 6月 14日
A3: 最低气温：24 ℃，最高气温：30 ℃ ， 住房量：223间
A4: 宴会/会议信息 中餐厅有午宴 中餐厅以及昆西有晚宴，宴会三厅有下午会议
A5: 名称 | B5: 位置 | C5: 编号 | D5: 昨日读数 | E5: 今日读数 | F5: 倍率 | G5: 合计 | H5: 单价 | I5: 费用
A6: 电表 | B6: 磁悬浮3号空调主机 | D6: 183350 | E6: 185806 | F6: 1 | G6: =(E6-D6)*F6 -> 2456 | H6: 0.689 | I6: =G6*H6 -> 1692.184
A7: 电表 | B7: 变频5号冷冻泵 | D7: 56120.2 | E7: 56945.7 | F7: 1 | G7: 825.5 | H7: 0.689 | I7: 568.7695
A8: 电表 | B8: 4号冷冻泵 | D8: 211856.7 | E8: 211856.7 | F8: 1 | G8: =(E8-D8)*F8 -> 0 | H8: 0.689 | I8: =G8*H8 -> 0
A9: 电表 | B9: 变频5号冷却泵 | D9: 65918.4 | E9: 66559.3 | F9: 1 | G9: 640.9 | H9: 0.689 | I9: 441.5801
A10: 电表 | B10: 4号冷却泵 | D10: 262088 | E10: 262581.3 | F10: 1 | G10: =(E10-D10)*F10 -> 493.3 | H10: 0.689 | I10: =G10*H10 -> 339.8837
A11: 电表 | B11: 变频1号冷却塔 | D11: 146188.3 | E11: 146316.9 | F11: 1 | G11: 128.6 | H11: 0.689 | I11: 88.6054
A12: 电表 | B12: 变频2号冷却塔 | D12: 321313.6 | E12: 321508.3 | F12: 1 | G12: 194.7 | H12: 0.689 | I12: 134.1483
A13: 电表 | B13: 变频3号冷却塔 | D13: 299086.4 | E13: 299288 | F13: 1 | G13: 201.6 | H13: 0.689 | I13: 138.9024
A14: 空调系统用电总合计： | G14: =G6+G7+G8+G9+G10+G11+G12+G13 -> 4940.6 | H14: 0.689 | I14: =I6+I7+I8+I9+I10+I11+I12+I13 -> 3404.0734
A16: 电表 | B16: 三楼热泵控制柜 | C16: 2025020 50017 | D16: 146.9 | E16: 148.8 | F16: 80 | G16: 152 | H16: 0.689 | I16: 104.728
A17: 电表 | B17: 三楼变频水泵控制柜 | C17: 2024085 00211 | D17: 518.6 | E17: 527.5 | F17: 20 | G17: 178 | H17: 0.689 | I17: 122.642
A18: 电表 | B18: 洗衣房热泵控制柜 | C18: 202502 05102 | D18: 469.9 | E18: 475.2 | F18: 20 | G18: 106 | H18: 0.689 | I18: 73.034
A19: 电表 | B19: 群楼中厨水泵控制柜 | C19: 2025020 50063 | D19: 232.6 | E19: 236.3 | F19: 20 | G19: 74 | H19: 0.689 | I19: 50.986
A20: 热水热泵系统用电总合计： | G20: =G16+G17+G18+G19 -> 510 | H20: 0.689 | I20: =I16+I17+I18+I19 -> 351.39
A22: 水表 | B22: 空调冷冻水 | D22: 0 | E22: 0 | F22: 1 | G22: =E22-D22 -> 0 | H22: 4.39 | I22: =G22*H22 -> 0
A23: 水表 | B23: 空调冷却水 | D23: 0 | E23: 0 | F23: 1 | G23: =E23-D23 -> 0 | H23: 4.39 | I23: =G23*H23 -> 0
A24: 水表 | B24: 三楼中、高区热水 | C24: M9A25024017786 | D24: 1630 | E24: 1665 | F24: 1 | G24: =E24-D24 -> 35 | H24: 4.39 | I24: =G24*H24 -> 153.65
A25: 水表 | B25: 群楼、中厨房热水 | C25: M9A25024017857 | D25: 1633 | E25: 1669 | F25: 1 | G25: =E25-D25 -> 36 | H25: 4.39 | I25: =G25*H25 -> 158.04
A26: 热水热泵系统用水总合计: | G26: =G24+G25+G23+G22 -> 71 | H26: 4.39 | I26: =I24+I25+I23+I22 -> 311.69
A28: 燃气表（常用） | B28: 蒸汽发生器+采暖 | D28: 19891 | E28: 20212 | F28: 1 | G28: =E28-D28 -> 321 | H28: 5.54 | I28: =G28*H28 -> 1778.34
A29: 燃气表（备用） | B29: 蒸汽发生器+采暖 | D29: 18871 | E29: 18871 | F29: 1 | G29: =(E29-D29)*F29 -> 0 | H29: 5.54 | I29: =G29*H29 -> 0
A30: 蒸汽发生器+采暖用气总合计： | G30: =G28+G29 -> 321 | H30: 5.54 | I30: =I28+I29 -> 1778.34
A31: 电表 | B31: 蒸汽发生器+采暖 | C31: 202011 500026 | D31: 898.7 | E31: 923.5 | F31: 1 | G31: =(E31-D31)*F31 -> 24.8 | H31: 0.689 | I31: =G31*H31 -> 17.0872
A32: 蒸汽发生器+采暖用电总合计： | G32: =G31 -> 24.8 | H32: 0.689 | I32: =G32*H32 -> 17.0872
A33: 水表 | B33: 蒸汽发生器+采暖 | C33: F1A150610796 | D33: 506 | E33: 519 | F33: 1 | G33: =E33-D33 -> 13 | H33: 4.39 | I33: =G33*H33 -> 57.07
A34: 蒸汽发生器用水总合计: | G34: =G33 -> 13 | H34: 4.39 | I34: =G34*H34 -> 57.07
A35: 水、电、气费用总合计（水/电/气价预估单价,单价需以实际缴费为准）： | G35: =I14++I20+I26+I30+I32+I34 -> 5919.6506
A37: 流量计量表 | B37: 分项 | C37: 昨日流量 | E37: 今日流量 | G37: 用量 | H37: 备注
B38: 中央空调冷冻流量 | C38: 0 | E38: 0 | G38: =E38-C38 -> 0
B39: 中央空调冷却流量 | C39: 0 | E39: 0 | G39: =E39-C39 -> 0
B40: 中央空调采暖流量 | C40: 0 | E40: 0 | G40: =E40-C40 -> 0
B41: 蒸汽流量 | C41: 0 | E41: 0 | G41: =E41-C41 -> 0

Sheet 2025.6.16
A2: 2025年 6月 15日
A3: 最低气温：25 ℃，最高气温：31 ℃ ， 住房量：188间
A4: 宴会/会议信息 中餐厅有午宴 中餐厅以及昆西有晚宴，昆西有早餐
A5: 名称 | B5: 位置 | C5: 编号 | D5: 昨日读数 | E5: 今日读数 | F5: 倍率 | G5: 合计 | H5: 单价 | I5: 费用
A6: 电表 | B6: 磁悬浮3号空调主机 | D6: 185806 | E6: 188294 | F6: 1 | G6: =(E6-D6)*F6 -> 2488 | H6: 0.689 | I6: =G6*H6 -> 1714.232
A7: 电表 | B7: 变频5号冷冻泵 | D7: 56945.7 | E7: 57934.5 | F7: 1 | G7: 988.8 | H7: 0.689 | I7: 681.2832
A8: 电表 | B8: 4号冷冻泵 | D8: 211856.7 | E8: 211856.7 | F8: 1 | G8: =(E8-D8)*F8 -> 0 | H8: 0.689 | I8: =G8*H8 -> 0
A9: 电表 | B9: 变频5号冷却泵 | D9: 66559.3 | E9: 67197.2 | F9: 1 | G9: 637.9 | H9: 0.689 | I9: 439.5131
A10: 电表 | B10: 4号冷却泵 | D10: 262581.3 | E10: 262959.8 | F10: 1 | G10: =(E10-D10)*F10 -> 378.5 | H10: 0.689 | I10: =G10*H10 -> 260.7865
A11: 电表 | B11: 变频1号冷却塔 | D11: 146316.9 | E11: 146466 | F11: 1 | G11: 149.1 | H11: 0.689 | I11: 102.7299
A12: 电表 | B12: 变频2号冷却塔 | D12: 321508.3 | E12: 321627.3 | F12: 1 | G12: 119 | H12: 0.689 | I12: 81.991
A13: 电表 | B13: 变频3号冷却塔 | D13: 299288 | E13: 299393.2 | F13: 1 | G13: 105.2 | H13: 0.689 | I13: 72.4828
A14: 空调系统用电总合计： | G14: =G6+G7+G8+G9+G10+G11+G12+G13 -> 4866.5 | H14: 0.689 | I14: =I6+I7+I8+I9+I10+I11+I12+I13 -> 3353.0185
A16: 电表 | B16: 三楼热泵控制柜 | C16: 2025020 50017 | D16: 148.8 | E16: 150.4 | F16: 80 | G16: 128 | H16: 0.689 | I16: 88.192
A17: 电表 | B17: 三楼变频水泵控制柜 | C17: 2024085 00211 | D17: 527.5 | E17: 536.4 | F17: 20 | G17: 178 | H17: 0.689 | I17: 122.642
A18: 电表 | B18: 洗衣房热泵控制柜 | C18: 202502 05102 | D18: 475.2 | E18: 484.1 | F18: 20 | G18: 178 | H18: 0.689 | I18: 122.642
A19: 电表 | B19: 群楼中厨水泵控制柜 | C19: 2025020 50063 | D19: 236.3 | E19: 239.9 | F19: 20 | G19: 72 | H19: 0.689 | I19: 49.608
A20: 热水热泵系统用电总合计： | G20: =G16+G17+G18+G19 -> 556 | H20: 0.689 | I20: =I16+I17+I18+I19 -> 383.084
A22: 水表 | B22: 空调冷冻水 | D22: 0 | E22: 0 | F22: 1 | G22: =E22-D22 -> 0 | H22: 4.39 | I22: =G22*H22 -> 0
A23: 水表 | B23: 空调冷却水 | D23: 0 | E23: 0 | F23: 1 | G23: =E23-D23 -> 0 | H23: 4.39 | I23: =G23*H23 -> 0
A24: 水表 | B24: 三楼中、高区热水 | C24: M9A25024017786 | D24: 1665 | E24: 1696 | F24: 1 | G24: =E24-D24 -> 31 | H24: 4.39 | I24: =G24*H24 -> 136.09
A25: 水表 | B25: 群楼、中厨房热水 | C25: M9A25024017857 | D25: 1669 | E25: 1703 | F25: 1 | G25: =E25-D25 -> 34 | H25: 4.39 | I25: =G25*H25 -> 149.26
A26: 热水热泵系统用水总合计: | G26: =G24+G25+G23+G22 -> 65 | H26: 4.39 | I26: =I24+I25+I23+I22 -> 285.35
A28: 燃气表（常用） | B28: 蒸汽发生器+采暖 | D28: 20212 | E28: 20518 | F28: 1 | G28: =E28-D28 -> 306 | H28: 5.54 | I28: =G28*H28 -> 1695.24
A29: 燃气表（备用） | B29: 蒸汽发生器+采暖 | D29: 18871 | E29: 18871 | F29: 1 | G29: =(E29-D29)*F29 -> 0 | H29: 5.54 | I29: =G29*H29 -> 0
A30: 蒸汽发生器+采暖用气总合计： | G30: =G28+G29 -> 306 | H30: 5.54 | I30: =I28+I29 -> 1695.24
A31: 电表 | B31: 蒸汽发生器+采暖 | C31: 202011 500026 | D31: 923.5 | E31: 946.8 | F31: 1 | G31: =(E31-D31)*F31 -> 23.3 | H31: 0.689 | I31: =G31*H31 -> 16.0537
A32: 蒸汽发生器+采暖用电总合计： | G32: =G31 -> 23.3 | H32: 0.689 | I32: =G32*H32 -> 16.0537
A33: 水表 | B33: 蒸汽发生器+采暖 | C33: F1A150610796 | D33: 519 | E33: 531 | F33: 1 | G33: =E33-D33 -> 12 | H33: 4.39 | I33: =G33*H33 -> 52.68
A34: 蒸汽发生器用水总合计: | G34: =G33 -> 12 | H34: 4.39 | I34: =G34*H34 -> 52.68
A35: 水、电、气费用总合计（水/电/气价预估单价,单价需以实际缴费为准）： | G35: =I14++I20+I26+I30+I32+I34 -> 5785.4262
A37: 流量计量表 | B37: 分项 | C37: 昨日流量 | E37: 今日流量 | G37: 用量 | H37: 备注
B38: 中央空调冷冻流量 | C38: 0 | E38: 0 | G38: =E38-C38 -> 0
B39: 中央空调冷却流量 | C39: 0 | E39: 0 | G39: =E39-C39 -> 0
B40: 中央空调采暖流量 | C40: 0 | E40: 0 | G40: =E40-C40 -> 0
B41: 蒸汽流量 | C41: 0 | E41: 0 | G41: =E41-C41 -> 0

Sheet 2025.6.17
A2: 2025年 6月 16日
A3: 最低气温：23 ℃，最高气温：28 ℃ ， 住房量：192间
A4: 宴会/会议信息 中餐厅有午宴 中餐厅以及昆西有晚宴，昆西有早餐
A5: 名称 | B5: 位置 | C5: 编号 | D5: 昨日读数 | E5: 今日读数 | F5: 倍率 | G5: 合计 | H5: 单价 | I5: 费用
A6: 电表 | B6: 磁悬浮3号空调主机 | D6: 188294 | E6: 190533 | F6: 1 | G6: =(E6-D6)*F6 -> 2239 | H6: 0.689 | I6: =G6*H6 -> 1542.671
A7: 电表 | B7: 变频5号冷冻泵 | D7: 57934.5 | E7: 58800.7 | F7: 1 | G7: 866.2 | H7: 0.689 | I7: 596.8118
A8: 电表 | B8: 4号冷冻泵 | D8: 211856.7 | E8: 211856.7 | F8: 1 | G8: =(E8-D8)*F8 -> 0 | H8: 0.689 | I8: =G8*H8 -> 0
A9: 电表 | B9: 变频5号冷却泵 | D9: 67197.2 | E9: 67703.4 | F9: 1 | G9: 506.2 | H9: 0.689 | I9: 348.7718
A10: 电表 | B10: 4号冷却泵 | D10: 262959.8 | E10: 263488 | F10: 1 | G10: =(E10-D10)*F10 -> 528.2 | H10: 0.689 | I10: =G10*H10 -> 363.9298
A11: 电表 | B11: 变频1号冷却塔 | D11: 146466 | E11: 146607.7 | F11: 1 | G11: 141.7 | H11: 0.689 | I11: 97.6313
A12: 电表 | B12: 变频2号冷却塔 | D12: 321627.3 | E12: 321777.4 | F12: 1 | G12: 150.1 | H12: 0.689 | I12: 103.4189
A13: 电表 | B13: 变频3号冷却塔 | D13: 299393.2 | E13: 299516.7 | F13: 1 | G13: 123.5 | H13: 0.689 | I13: 85.0915
A14: 空调系统用电总合计： | G14: =G6+G7+G8+G9+G10+G11+G12+G13 -> 4554.9 | H14: 0.689 | I14: =I6+I7+I8+I9+I10+I11+I12+I13 -> 3138.3261
A16: 电表 | B16: 三楼热泵控制柜 | C16: 2025020 50017 | D16: 150.4 | E16: 152.1 | F16: 80 | G16: 136 | H16: 0.689 | I16: 93.704
A17: 电表 | B17: 三楼变频水泵控制柜 | C17: 2024085 00211 | D17: 536.4 | E17: 545.2 | F17: 20 | G17: 176 | H17: 0.689 | I17: 121.264
A18: 电表 | B18: 洗衣房热泵控制柜 | C18: 202502 05102 | D18: 484.1 | E18: 485.5 | F18: 20 | G18: 28 | H18: 0.689 | I18: 19.292
A19: 电表 | B19: 群楼中厨水泵控制柜 | C19: 2025020 50063 | D19: 239.9 | E19: 243.5 | F19: 20 | G19: 72 | H19: 0.689 | I19: 49.608
A20: 热水热泵系统用电总合计： | G20: =G16+G17+G18+G19 -> 412 | H20: 0.689 | I20: =I16+I17+I18+I19 -> 283.868
A22: 水表 | B22: 空调冷冻水 | D22: 0 | E22: 0 | F22: 1 | G22: =E22-D22 -> 0 | H22: 4.39 | I22: =G22*H22 -> 0
A23: 水表 | B23: 空调冷却水 | D23: 0 | E23: 0 | F23: 1 | G23: =E23-D23 -> 0 | H23: 4.39 | I23: =G23*H23 -> 0
A24: 水表 | B24: 三楼中、高区热水 | C24: M9A25024017786 | D24: 1696 | E24: 1720 | F24: 1 | G24: =E24-D24 -> 24 | H24: 4.39 | I24: =G24*H24 -> 105.36
A25: 水表 | B25: 群楼、中厨房热水 | C25: M9A25024017857 | D25: 1703 | E25: 1724 | F25: 1 | G25: =E25-D25 -> 21 | H25: 4.39 | I25: =G25*H25 -> 92.19
A26: 热水热泵系统用水总合计: | G26: =G24+G25+G23+G22 -> 45 | H26: 4.39 | I26: =I24+I25+I23+I22 -> 197.55
A28: 燃气表（常用） | B28: 蒸汽发生器+采暖 | D28: 20518 | E28: 20775 | F28: 1 | G28: =E28-D28 -> 257 | H28: 5.54 | I28: =G28*H28 -> 1423.78
A29: 燃气表（备用） | B29: 蒸汽发生器+采暖 | D29: 18871 | E29: 18871 | F29: 1 | G29: =(E29-D29)*F29 -> 0 | H29: 5.54 | I29: =G29*H29 -> 0
A30: 蒸汽发生器+采暖用气总合计： | G30: =G28+G29 -> 257 | H30: 5.54 | I30: =I28+I29 -> 1423.78
A31: 电表 | B31: 蒸汽发生器+采暖 | C31: 202011 500026 | D31: 946.8 | E31: 966.5 | F31: 1 | G31: =(E31-D31)*F31 -> 19.7 | H31: 0.689 | I31: =G31*H31 -> 13.5733
A32: 蒸汽发生器+采暖用电总合计： | G32: =G31 -> 19.7 | H32: 0.689 | I32: =G32*H32 -> 13.5733
A33: 水表 | B33: 蒸汽发生器+采暖 | C33: F1A150610796 | D33: 531 | E33: 541 | F33: 1 | G33: =E33-D33 -> 10 | H33: 4.39 | I33: =G33*H33 -> 43.9
A34: 蒸汽发生器用水总合计: | G34: =G33 -> 10 | H34: 4.39 | I34: =G34*H34 -> 43.9
A35: 水、电、气费用总合计（水/电/气价预估单价,单价需以实际缴费为准）： | G35: =I14++I20+I26+I30+I32+I34 -> 5100.9974
A37: 流量计量表 | B37: 分项 | C37: 昨日流量 | E37: 今日流量 | G37: 用量 | H37: 备注
B38: 中央空调冷冻流量 | C38: 0 | E38: 0 | G38: =E38-C38 -> 0
B39: 中央空调冷却流量 | C39: 0 | E39: 0 | G39: =E39-C39 -> 0
B40: 中央空调采暖流量 | C40: 0 | E40: 0 | G40: =E40-C40 -> 0
B41: 蒸汽流量 | C41: 0 | E41: 0 | G41: =E41-C41 -> 0

Sheet 2025.6.18
A2: 2025年 6月 17日
A3: 最低气温：23 ℃，最高气温：27 ℃ ， 住房量：193间
A4: 宴会/会议信息 中餐厅有午宴 中餐厅以及昆西有晚宴，昆西有早餐.1厅下午有会议
A5: 名称 | B5: 位置 | C5: 编号 | D5: 昨日读数 | E5: 今日读数 | F5: 倍率 | G5: 合计 | H5: 单价 | I5: 费用
A6: 电表 | B6: 磁悬浮3号空调主机 | D6: 190533 | E6: 192141 | F6: 1 | G6: =(E6-D6)*F6 -> 1608 | H6: 0.689 | I6: =G6*H6 -> 1107.912
A7: 电表 | B7: 变频5号冷冻泵 | D7: 58800.7 | E7: 59675 | F7: 1 | G7: 874.3 | H7: 0.689 | I7: 602.3927
A8: 电表 | B8: 4号冷冻泵 | D8: 211856.7 | E8: 211856.7 | F8: 1 | G8: =(E8-D8)*F8 -> 0 | H8: 0.689 | I8: =G8*H8 -> 0
A9: 电表 | B9: 变频5号冷却泵 | D9: 67703.4 | E9: 68215.3 | F9: 1 | G9: 511.9 | H9: 0.689 | I9: 352.6991
A10: 电表 | B10: 4号冷却泵 | D10: 263488 | E10: 263844.1 | F10: 1 | G10: =(E10-D10)*F10 -> 356.1 | H10: 0.689 | I10: =G10*H10 -> 245.3529
A11: 电表 | B11: 变频1号冷却塔 | D11: 146607.7 | E11: 146704.2 | F11: 1 | G11: 96.5 | H11: 0.689 | I11: 66.4885
A12: 电表 | B12: 变频2号冷却塔 | D12: 321777.4 | E12: 321856.2 | F12: 1 | G12: 78.8 | H12: 0.689 | I12: 54.2932
A13: 电表 | B13: 变频3号冷却塔 | D13: 299516.7 | E13: 299614 | F13: 1 | G13: 97.3 | H13: 0.689 | I13: 67.0397
A14: 空调系统用电总合计： | G14: =G6+G7+G8+G9+G10+G11+G12+G13 -> 3622.9 | H14: 0.689 | I14: =I6+I7+I8+I9+I10+I11+I12+I13 -> 2496.1781
A16: 电表 | B16: 三楼热泵控制柜 | C16: 2025020 50017 | D16: 152.1 | E16: 154.1 | F16: 80 | G16: 160 | H16: 0.689 | I16: 110.24
A17: 电表 | B17: 三楼变频水泵控制柜 | C17: 2024085 00211 | D17: 545.2 | E17: 554.1 | F17: 20 | G17: 178 | H17: 0.689 | I17: 122.642
A18: 电表 | B18: 洗衣房热泵控制柜 | C18: 202502 05102 | D18: 485.5 | E18: 490.5 | F18: 20 | G18: 100 | H18: 0.689 | I18: 68.9
A19: 电表 | B19: 群楼中厨水泵控制柜 | C19: 2025020 50063 | D19: 243.5 | E19: 247.1 | F19: 20 | G19: 72 | H19: 0.689 | I19: 49.608
A20: 热水热泵系统用电总合计： | G20: =G16+G17+G18+G19 -> 510 | H20: 0.689 | I20: =I16+I17+I18+I19 -> 351.39
A22: 水表 | B22: 空调冷冻水 | D22: 0 | E22: 0 | F22: 1 | G22: =E22-D22 -> 0 | H22: 4.39 | I22: =G22*H22 -> 0
A23: 水表 | B23: 空调冷却水 | D23: 0 | E23: 0 | F23: 1 | G23: =E23-D23 -> 0 | H23: 4.39 | I23: =G23*H23 -> 0
A24: 水表 | B24: 三楼中、高区热水 | C24: M9A25024017786 | D24: 1720 | E24: 1747 | F24: 1 | G24: =E24-D24 -> 27 | H24: 4.39 | I24: =G24*H24 -> 118.53
A25: 水表 | B25: 群楼、中厨房热水 | C25: M9A25024017857 | D25: 1724 | E25: 1749 | F25: 1 | G25: =E25-D25 -> 25 | H25: 4.39 | I25: =G25*H25 -> 109.75
A26: 热水热泵系统用水总合计: | G26: =G24+G25+G23+G22 -> 52 | H26: 4.39 | I26: =I24+I25+I23+I22 -> 228.28
A28: 燃气表（常用） | B28: 蒸汽发生器+采暖 | D28: 20775 | E28: 21000 | F28: 1 | G28: =E28-D28 -> 225 | H28: 5.54 | I28: =G28*H28 -> 1246.5
A29: 燃气表（备用） | B29: 蒸汽发生器+采暖 | D29: 18871 | E29: 18871 | F29: 1 | G29: =(E29-D29)*F29 -> 0 | H29: 5.54 | I29: =G29*H29 -> 0
A30: 蒸汽发生器+采暖用气总合计： | G30: =G28+G29 -> 225 | H30: 5.54 | I30: =I28+I29 -> 1246.5
A31: 电表 | B31: 蒸汽发生器+采暖 | C31: 202011 500026 | D31: 966.5 | E31: 985 | F31: 1 | G31: =(E31-D31)*F31 -> 18.5 | H31: 0.689 | I31: =G31*H31 -> 12.7465
A32: 蒸汽发生器+采暖用电总合计： | G32: =G31 -> 18.5 | H32: 0.689 | I32: =G32*H32 -> 12.7465
A33: 水表 | B33: 蒸汽发生器+采暖 | C33: F1A150610796 | D33: 541 | E33: 551 | F33: 1 | G33: =E33-D33 -> 10 | H33: 4.39 | I33: =G33*H33 -> 43.9
A34: 蒸汽发生器用水总合计: | G34: =G33 -> 10 | H34: 4.39 | I34: =G34*H34 -> 43.9
A35: 水、电、气费用总合计（水/电/气价预估单价,单价需以实际缴费为准）： | G35: =I14++I20+I26+I30+I32+I34 -> 4378.9946
A37: 流量计量表 | B37: 分项 | C37: 昨日流量 | E37: 今日流量 | G37: 用量 | H37: 备注
B38: 中央空调冷冻流量 | C38: 0 | E38: 0 | G38: =E38-C38 -> 0
B39: 中央空调冷却流量 | C39: 0 | E39: 0 | G39: =E39-C39 -> 0
B40: 中央空调采暖流量 | C40: 0 | E40: 0 | G40: =E40-C40 -> 0
B41: 蒸汽流量 | C41: 0 | E41: 0 | G41: =E41-C41 -> 0

Sheet 2025.6.19
A2: 2025年 6月 18日
A3: 最低气温：24 ℃，最高气温：34 ℃ ， 住房量：201间
A4: 宴会/会议信息 中餐厅有午宴 中餐厅以及昆西有晚宴，昆西有早餐.
A5: 名称 | B5: 位置 | C5: 编号 | D5: 昨日读数 | E5: 今日读数 | F5: 倍率 | G5: 合计 | H5: 单价 | I5: 费用
A6: 电表 | B6: 磁悬浮3号空调主机 | D6: 192141 | E6: 193675 | F6: 1 | G6: =(E6-D6)*F6 -> 1534 | H6: 0.689 | I6: =G6*H6 -> 1056.926
A7: 电表 | B7: 变频5号冷冻泵 | D7: 60551.3 | E7: 61486.5 | F7: 1 | G7: 935.2 | H7: 0.689 | I7: 644.3528
A8: 电表 | B8: 4号冷冻泵 | D8: 211856.7 | E8: 211856.7 | F8: 1 | G8: =(E8-D8)*F8 -> 0 | H8: 0.689 | I8: =G8*H8 -> 0
A9: 电表 | B9: 变频5号冷却泵 | D9: 68215.3 | E9: 68735 | F9: 1 | G9: 519.7 | H9: 0.689 | I9: 358.0733
A10: 电表 | B10: 4号冷却泵 | D10: 263844.1 | E10: 264195.6 | F10: 1 | G10: =(E10-D10)*F10 -> 351.5 | H10: 0.689 | I10: =G10*H10 -> 242.1835
A11: 电表 | B11: 变频1号冷却塔 | D11: 146704.2 | E11: 146790.9 | F11: 1 | G11: 86.7 | H11: 0.689 | I11: 59.7363
A12: 电表 | B12: 变频2号冷却塔 | D12: 321856.2 | E12: 321940.8 | F12: 1 | G12: 84.6 | H12: 0.689 | I12: 58.2894
A13: 电表 | B13: 变频3号冷却塔 | D13: 299614 | E13: 299745.8 | F13: 1 | G13: 131.8 | H13: 0.689 | I13: 90.8102
A14: 空调系统用电总合计： | G14: =G6+G7+G8+G9+G10+G11+G12+G13 -> 3643.5 | H14: 0.689 | I14: =I6+I7+I8+I9+I10+I11+I12+I13 -> 2510.3715
A16: 电表 | B16: 三楼热泵控制柜 | C16: 2025020 50017 | D16: 154.1 | E16: 155.8 | F16: 80 | G16: 136 | H16: 0.689 | I16: 93.704
A17: 电表 | B17: 三楼变频水泵控制柜 | C17: 2024085 00211 | D17: 554.1 | E17: 562.9 | F17: 20 | G17: 176 | H17: 0.689 | I17: 121.264
A18: 电表 | B18: 洗衣房热泵控制柜 | C18: 202502 05102 | D18: 490.5 | E18: 494.6 | F18: 20 | G18: 82 | H18: 0.689 | I18: 56.498
A19: 电表 | B19: 群楼中厨水泵控制柜 | C19: 2025020 50063 | D19: 247.1 | E19: 250.6 | F19: 20 | G19: 70 | H19: 0.689 | I19: 48.23
A20: 热水热泵系统用电总合计： | G20: =G16+G17+G18+G19 -> 464 | H20: 0.689 | I20: =I16+I17+I18+I19 -> 319.696
A22: 水表 | B22: 空调冷冻水 | D22: 0 | E22: 0 | F22: 1 | G22: =E22-D22 -> 0 | H22: 4.39 | I22: =G22*H22 -> 0
A23: 水表 | B23: 空调冷却水 | D23: 0 | E23: 0 | F23: 1 | G23: =E23-D23 -> 0 | H23: 4.39 | I23: =G23*H23 -> 0
A24: 水表 | B24: 三楼中、高区热水 | C24: M9A25024017786 | D24: 1747 | E24: 1772 | F24: 1 | G24: =E24-D24 -> 25 | H24: 4.39 | I24: =G24*H24 -> 109.75
A25: 水表 | B25: 群楼、中厨房热水 | C25: M9A25024017857 | D25: 1749 | E25: 1773 | F25: 1 | G25: =E25-D25 -> 24 | H25: 4.39 | I25: =G25*H25 -> 105.36
A26: 热水热泵系统用水总合计: | G26: =G24+G25+G23+G22 -> 49 | H26: 4.39 | I26: =I24+I25+I23+I22 -> 215.11
A28: 燃气表（常用） | B28: 蒸汽发生器+采暖 | D28: 21000 | E28: 21292 | F28: 1 | G28: =E28-D28 -> 292 | H28: 5.54 | I28: =G28*H28 -> 1617.68
A29: 燃气表（备用） | B29: 蒸汽发生器+采暖 | D29: 18871 | E29: 18871 | F29: 1 | G29: =(E29-D29)*F29 -> 0 | H29: 5.54 | I29: =G29*H29 -> 0
A30: 蒸汽发生器+采暖用气总合计： | G30: =G28+G29 -> 292 | H30: 5.54 | I30: =I28+I29 -> 1617.68
A31: 电表 | B31: 蒸汽发生器+采暖 | C31: 202011 500026 | D31: 985 | E31: 1008.1 | F31: 1 | G31: =(E31-D31)*F31 -> 23.1 | H31: 0.689 | I31: =G31*H31 -> 15.9159
A32: 蒸汽发生器+采暖用电总合计： | G32: =G31 -> 23.1 | H32: 0.689 | I32: =G32*H32 -> 15.9159
A33: 水表 | B33: 蒸汽发生器+采暖 | C33: F1A150610796 | D33: 551 | E33: 563 | F33: 1 | G33: =E33-D33 -> 12 | H33: 4.39 | I33: =G33*H33 -> 52.68
A34: 蒸汽发生器用水总合计: | G34: =G33 -> 12 | H34: 4.39 | I34: =G34*H34 -> 52.68
A35: 水、电、气费用总合计（水/电/气价预估单价,单价需以实际缴费为准）： | G35: =I14++I20+I26+I30+I32+I34 -> 4731.4534
A37: 流量计量表 | B37: 分项 | C37: 昨日流量 | E37: 今日流量 | G37: 用量 | H37: 备注
B38: 中央空调冷冻流量 | C38: 0 | E38: 0 | G38: =E38-C38 -> 0
B39: 中央空调冷却流量 | C39: 0 | E39: 0 | G39: =E39-C39 -> 0
B40: 中央空调采暖流量 | C40: 0 | E40: 0 | G40: =E40-C40 -> 0
B41: 蒸汽流量 | C41: 0 | E41: 0 | G41: =E41-C41 -> 0

Sheet 2025.6.20
A2: 2025年 6月 20日
A3: 最低气温：24 ℃，最高气温：33 ℃ ， 住房量：92间
A4: 宴会/会议信息 中餐厅 昆西 宴会3厅有午宴 中餐厅以及昆西有晚宴，
A5: 名称 | B5: 位置 | C5: 编号 | D5: 昨日读数 | E5: 今日读数 | F5: 倍率 | G5: 合计 | H5: 单价 | I5: 费用
A6: 电表 | B6: 磁悬浮3号空调主机 | D6: 195845 | E6: 197605 | F6: 1 | G6: =(E6-D6)*F6 -> 1760 | H6: 0.689 | I6: =G6*H6 -> 1212.64
A7: 电表 | B7: 变频5号冷冻泵 | D7: 61486.5 | E7: 62219.4 | F7: 1 | G7: 732.9 | H7: 0.689 | I7: 504.9681
A8: 电表 | B8: 4号冷冻泵 | D8: 211856.7 | E8: 211856.7 | F8: 1 | G8: =(E8-D8)*F8 -> 0 | H8: 0.689 | I8: =G8*H8 -> 0
A9: 电表 | B9: 变频5号冷却泵 | D9: 69297.1 | E9: 69830.7 | F9: 1 | G9: 533.6 | H9: 0.689 | I9: 367.6504
A10: 电表 | B10: 4号冷却泵 | D10: 264645.9 | E10: 264912.5 | F10: 1 | G10: =(E10-D10)*F10 -> 266.6 | H10: 0.689 | I10: =G10*H10 -> 183.6874
A11: 电表 | B11: 变频1号冷却塔 | D11: 146896.9 | E11: 146988.5 | F11: 1 | G11: 91.6 | H11: 0.689 | I11: 63.1124
A12: 电表 | B12: 变频2号冷却塔 | D12: 322117.8 | E12: 322251.3 | F12: 1 | G12: 133.5 | H12: 0.689 | I12: 91.9815
A13: 电表 | B13: 变频3号冷却塔 | D13: 299915.2 | E13: 300043.4 | F13: 1 | G13: 128.2 | H13: 0.689 | I13: 88.3298
A14: 空调系统用电总合计： | G14: =G6+G7+G8+G9+G10+G11+G12+G13 -> 3646.4 | H14: 0.689 | I14: =I6+I7+I8+I9+I10+I11+I12+I13 -> 2512.3696
A16: 电表 | B16: 三楼热泵控制柜 | C16: 2025020 50017 | D16: 157.7 | E16: 158.9 | F16: 80 | G16: 96 | H16: 0.689 | I16: 66.144
A17: 电表 | B17: 三楼变频水泵控制柜 | C17: 2024085 00211 | D17: 571.7 | E17: 580.5 | F17: 20 | G17: 176 | H17: 0.689 | I17: 121.264
A18: 电表 | B18: 洗衣房热泵控制柜 | C18: 202502 05102 | D18: 501.9 | E18: 506.7 | F18: 20 | G18: 96 | H18: 0.689 | I18: 66.144
A19: 电表 | B19: 群楼中厨水泵控制柜 | C19: 2025020 50063 | D19: 254.2 | E19: 257.3 | F19: 20 | G19: 62 | H19: 0.689 | I19: 42.718
A20: 热水热泵系统用电总合计： | G20: =G16+G17+G18+G19 -> 430 | H20: 0.689 | I20: =I16+I17+I18+I19 -> 296.27
A22: 水表 | B22: 空调冷冻水 | D22: 0 | E22: 0 | F22: 1 | G22: =E22-D22 -> 0 | H22: 4.39 | I22: =G22*H22 -> 0
A23: 水表 | B23: 空调冷却水 | D23: 0 | E23: 0 | F23: 1 | G23: =E23-D23 -> 0 | H23: 4.39 | I23: =G23*H23 -> 0
A24: 水表 | B24: 三楼中、高区热水 | C24: M9A25024017786 | D24: 1800 | E24: 1815 | F24: 1 | G24: =E24-D24 -> 15 | H24: 4.39 | I24: =G24*H24 -> 65.85
A25: 水表 | B25: 群楼、中厨房热水 | C25: M9A25024017857 | D25: 1803 | E25: 1825 | F25: 1 | G25: =E25-D25 -> 22 | H25: 4.39 | I25: =G25*H25 -> 96.58
A26: 热水热泵系统用水总合计: | G26: =G24+G25+G23+G22 -> 37 | H26: 4.39 | I26: =I24+I25+I23+I22 -> 162.43
A28: 燃气表（常用） | B28: 蒸汽发生器+采暖 | D28: 21542 | E28: 21825 | F28: 1 | G28: =E28-D28 -> 283 | H28: 5.54 | I28: =G28*H28 -> 1567.82
A29: 燃气表（备用） | B29: 蒸汽发生器+采暖 | D29: 18871 | E29: 18871 | F29: 1 | G29: =(E29-D29)*F29 -> 0 | H29: 5.54 | I29: =G29*H29 -> 0
A30: 蒸汽发生器+采暖用气总合计： | G30: =G28+G29 -> 283 | H30: 5.54 | I30: =I28+I29 -> 1567.82
A31: 电表 | B31: 蒸汽发生器+采暖 | C31: 202011 500026 | D31: 1027.5 | E31: 1049.4 | F31: 1 | G31: =(E31-D31)*F31 -> 21.9 | H31: 0.689 | I31: =G31*H31 -> 15.0891
A32: 蒸汽发生器+采暖用电总合计： | G32: =G31 -> 21.9 | H32: 0.689 | I32: =G32*H32 -> 15.0891
A33: 水表 | B33: 蒸汽发生器+采暖 | C33: F1A150610796 | D33: 572 | E33: 583 | F33: 1 | G33: =E33-D33 -> 11 | H33: 4.39 | I33: =G33*H33 -> 48.29
A34: 蒸汽发生器用水总合计: | G34: =G33 -> 11 | H34: 4.39 | I34: =G34*H34 -> 48.29
A35: 水、电、气费用总合计（水/电/气价预估单价,单价需以实际缴费为准）： | G35: =I14++I20+I26+I30+I32+I34 -> 4602.2687
A37: 流量计量表 | B37: 分项 | C37: 昨日流量 | E37: 今日流量 | G37: 用量 | H37: 备注
B38: 中央空调冷冻流量 | C38: 0 | E38: 0 | G38: =E38-C38 -> 0
B39: 中央空调冷却流量 | C39: 0 | E39: 0 | G39: =E39-C39 -> 0
B40: 中央空调采暖流量 | C40: 0 | E40: 0 | G40: =E40-C40 -> 0
B41: 蒸汽流量 | C41: 0 | E41: 0 | G41: =E41-C41 -> 0

Sheet 2025.6.21
A2: 2025年 6月 21日
A3: 最低气温：23 ℃，最高气温：34 ℃ ， 住房量：194间
A4: 宴会/会议信息 中餐厅 昆西 宴会3厅有午宴 中餐厅以及昆西有晚宴，
A5: 名称 | B5: 位置 | C5: 编号 | D5: 昨日读数 | E5: 今日读数 | F5: 倍率 | G5: 合计 | H5: 单价 | I5: 费用
A6: 电表 | B6: 磁悬浮3号空调主机 | D6: 197605 | E6: 199607 | F6: 1 | G6: =(E6-D6)*F6 -> 2002 | H6: 0.689 | I6: =G6*H6 -> 1379.378
A7: 电表 | B7: 变频5号冷冻泵 | D7: 62219.4 | E7: 63078.9 | F7: 1 | G7: 859.5 | H7: 0.689 | I7: 592.1955
A8: 电表 | B8: 4号冷冻泵 | D8: 211856.7 | E8: 211856.7 | F8: 1 | G8: 0 | H8: 0.689 | I8: =G8*H8 -> 0
A9: 电表 | B9: 变频5号冷却泵 | D9: 69830.7 | E9: 70387.5 | F9: 1 | G9: 556.8 | H9: 0.689 | I9: 383.6352
A10: 电表 | B10: 4号冷却泵 | D10: 264912.5 | E10: 265337.2 | F10: 1 | G10: 424.7 | H10: 0.689 | I10: =G10*H10 -> 292.6183
A11: 电表 | B11: 变频1号冷却塔 | D11: 146988.5 | E11: 147075.6 | F11: 1 | G11: 87.1 | H11: 0.689 | I11: 60.0119
A12: 电表 | B12: 变频2号冷却塔 | D12: 322251.3 | E12: 322379 | F12: 1 | G12: 127.7 | H12: 0.689 | I12: 87.9853
A13: 电表 | B13: 变频3号冷却塔 | D13: 300043.4 | E13: 300188.9 | F13: 1 | G13: 145.5 | H13: 0.689 | I13: 100.2495
A14: 空调系统用电总合计： | G14: =G6+G7+G8+G9+G10+G11+G12+G13 -> 4203.3 | H14: 0.689 | I14: =I6+I7+I8+I9+I10+I11+I12+I13 -> 2896.0737
A16: 电表 | B16: 三楼热泵控制柜 | C16: 2025020 50017 | D16: 158.9 | E16: 160.6 | F16: 80 | G16: =(E16-D16)*F16 -> 136 | H16: 0.689 | I16: 93.704
A17: 电表 | B17: 三楼变频水泵控制柜 | C17: 2024085 00211 | D17: 580.5 | E17: 589.1 | F17: 20 | G17: 172 | H17: 0.689 | I17: 118.508
A18: 电表 | B18: 洗衣房热泵控制柜 | C18: 202502 05102 | D18: 506.7 | E18: 514.1 | F18: 20 | G18: 148 | H18: 0.689 | I18: 101.972
A19: 电表 | B19: 群楼中厨水泵控制柜 | C19: 2025020 50063 | D19: 257.3 | E19: 261 | F19: 20 | G19: 74 | H19: 0.689 | I19: 50.986
A20: 热水热泵系统用电总合计： | G20: =G16+G17+G18+G19 -> 530 | H20: 0.689 | I20: =I16+I17+I18+I19 -> 365.17
A22: 水表 | B22: 空调冷冻水 | D22: 0 | E22: 0 | F22: 1 | G22: =E22-D22 -> 0 | H22: 4.39 | I22: =G22*H22 -> 0
A23: 水表 | B23: 空调冷却水 | D23: 0 | E23: 0 | F23: 1 | G23: =E23-D23 -> 0 | H23: 4.39 | I23: =G23*H23 -> 0
A24: 水表 | B24: 三楼中、高区热水 | C24: M9A25024017786 | D24: 1815 | E24: 1838 | F24: 1 | G24: =E24-D24 -> 23 | H24: 4.39 | I24: =G24*H24 -> 100.97
A25: 水表 | B25: 群楼、中厨房热水 | C25: M9A25024017857 | D25: 1825 | E25: 1858 | F25: 1 | G25: =E25-D25 -> 33 | H25: 4.39 | I25: =G25*H25 -> 144.87
A26: 热水热泵系统用水总合计: | G26: =G24+G25+G23+G22 -> 56 | H26: 4.39 | I26: =I24+I25+I23+I22 -> 245.84
A28: 燃气表（常用） | B28: 蒸汽发生器+采暖 | D28: 21825 | E28: 22061 | F28: 1 | G28: =E28-D28 -> 236 | H28: 5.54 | I28: =G28*H28 -> 1307.44
A29: 燃气表（备用） | B29: 蒸汽发生器+采暖 | D29: 18871 | E29: 18871 | F29: 1 | G29: =(E29-D29)*F29 -> 0 | H29: 5.54 | I29: =G29*H29 -> 0
A30: 蒸汽发生器+采暖用气总合计： | G30: =G28+G29 -> 236 | H30: 5.54 | I30: =I28+I29 -> 1307.44
A31: 电表 | B31: 蒸汽发生器+采暖 | C31: 202011 500026 | D31: 1049.4 | E31: 1067 | F31: 1 | G31: =(E31-D31)*F31 -> 17.6 | H31: 0.689 | I31: =G31*H31 -> 12.1264
A32: 蒸汽发生器+采暖用电总合计： | G32: =G31 -> 17.6 | H32: 0.689 | I32: =G32*H32 -> 12.1264
A33: 水表 | B33: 蒸汽发生器+采暖 | C33: F1A150610796 | D33: 583 | E33: 592 | F33: 1 | G33: =E33-D33 -> 9 | H33: 4.39 | I33: =G33*H33 -> 39.51
A34: 蒸汽发生器用水总合计: | G34: =G33 -> 9 | H34: 4.39 | I34: =G34*H34 -> 39.51
A35: 水、电、气费用总合计（水/电/气价预估单价,单价需以实际缴费为准）： | G35: =I14++I20+I26+I30+I32+I34 -> 4866.1601
A37: 流量计量表 | B37: 分项 | C37: 昨日流量 | E37: 今日流量 | G37: 用量 | H37: 备注
B38: 中央空调冷冻流量 | C38: 0 | E38: 0 | G38: =E38-C38 -> 0
B39: 中央空调冷却流量 | C39: 0 | E39: 0 | G39: =E39-C39 -> 0
B40: 中央空调采暖流量 | C40: 0 | E40: 0 | G40: =E40-C40 -> 0
B41: 蒸汽流量 | C41: 0 | E41: 0 | G41: =E41-C41 -> 0

Sheet 2025.6.22
A2: 2025年 6月 22日
A3: 最低气温：25 ℃，最高气温：34 ℃ ， 住房量：201间
A4: 宴会/会议信息 中餐厅以及昆西有早餐，昆斯有上午会议. 宴会3厅有晚上会议 中餐厅以及昆西有晚宴，
A5: 名称 | B5: 位置 | C5: 编号 | D5: 昨日读数 | E5: 今日读数 | F5: 倍率 | G5: 合计 | H5: 单价 | I5: 费用
A6: 电表 | B6: 磁悬浮3号空调主机 | D6: 199607 | E6: 201730 | F6: 1 | G6: =(E6-D6)*F6 -> 2123 | H6: 0.689 | I6: =G6*H6 -> 1462.747
A7: 电表 | B7: 变频5号冷冻泵 | D7: 63078.9 | E7: 63992.9 | F7: 1 | G7: 914 | H7: 0.689 | I7: 629.746
A8: 电表 | B8: 4号冷冻泵 | D8: 211856.7 | E8: 211856.7 | F8: 1 | G8: 0 | H8: 0.689 | I8: =G8*H8 -> 0
A9: 电表 | B9: 变频5号冷却泵 | D9: 70387.5 | E9: 70990.8 | F9: 1 | G9: 603.3 | H9: 0.689 | I9: 415.6737
A10: 电表 | B10: 4号冷却泵 | D10: 265337.2 | E10: 265760.9 | F10: 1 | G10: 423.7 | H10: 0.689 | I10: =G10*H10 -> 291.9293
A11: 电表 | B11: 变频1号冷却塔 | D11: 147075.6 | E11: 147171.5 | F11: 1 | G11: 95.9 | H11: 0.689 | I11: 66.0751
A12: 电表 | B12: 变频2号冷却塔 | D12: 322379 | E12: 322556.8 | F12: 1 | G12: 177.8 | H12: 0.689 | I12: 122.5042
A13: 电表 | B13: 变频3号冷却塔 | D13: 300188.9 | E13: 300343.5 | F13: 1 | G13: 154.6 | H13: 0.689 | I13: 106.5194
A14: 空调系统用电总合计： | G14: =G6+G7+G8+G9+G10+G11+G12+G13 -> 4492.3 | H14: 0.689 | I14: =I6+I7+I8+I9+I10+I11+I12+I13 -> 3095.1947
A16: 电表 | B16: 三楼热泵控制柜 | C16: 2025020 50017 | D16: 160.6 | E16: 162.1 | F16: 80 | G16: =(E16-D16)*F16 -> 120 | H16: 0.689 | I16: 82.68
A17: 电表 | B17: 三楼变频水泵控制柜 | C17: 2024085 00211 | D17: 589.1 | E17: 597.9 | F17: 20 | G17: 176 | H17: 0.689 | I17: 121.264
A18: 电表 | B18: 洗衣房热泵控制柜 | C18: 202502 05102 | D18: 514.1 | E18: 520.1 | F18: 20 | G18: 120 | H18: 0.689 | I18: 82.68
A19: 电表 | B19: 群楼中厨水泵控制柜 | C19: 2025020 50063 | D19: 261 | E19: 265 | F19: 20 | G19: 80 | H19: 0.689 | I19: 55.12
A20: 热水热泵系统用电总合计： | G20: =G16+G17+G18+G19 -> 496 | H20: 0.689 | I20: =I16+I17+I18+I19 -> 341.744
A22: 水表 | B22: 空调冷冻水 | D22: 0 | E22: 0 | F22: 1 | G22: =E22-D22 -> 0 | H22: 4.39 | I22: =G22*H22 -> 0
A23: 水表 | B23: 空调冷却水 | D23: 0 | E23: 0 | F23: 1 | G23: =E23-D23 -> 0 | H23: 4.39 | I23: =G23*H23 -> 0
A24: 水表 | B24: 三楼中、高区热水 | C24: M9A25024017786 | D24: 1838 | E24: 1864 | F24: 1 | G24: =E24-D24 -> 26 | H24: 4.39 | I24: =G24*H24 -> 114.14
A25: 水表 | B25: 群楼、中厨房热水 | C25: M9A25024017857 | D25: 1858 | E25: 1887 | F25: 1 | G25: =E25-D25 -> 29 | H25: 4.39 | I25: =G25*H25 -> 127.31
A26: 热水热泵系统用水总合计: | G26: =G24+G25+G23+G22 -> 55 | H26: 4.39 | I26: =I24+I25+I23+I22 -> 241.45
A28: 燃气表（常用） | B28: 蒸汽发生器+采暖 | D28: 22061 | E28: 22314 | F28: 1 | G28: =E28-D28 -> 253 | H28: 5.54 | I28: =G28*H28 -> 1401.62
A29: 燃气表（备用） | B29: 蒸汽发生器+采暖 | D29: 18871 | E29: 18871 | F29: 1 | G29: =(E29-D29)*F29 -> 0 | H29: 5.54 | I29: =G29*H29 -> 0
A30: 蒸汽发生器+采暖用气总合计： | G30: =G28+G29 -> 253 | H30: 5.54 | I30: =I28+I29 -> 1401.62
A31: 电表 | B31: 蒸汽发生器+采暖 | C31: 202011 500026 | D31: 1067 | E31: 1086.9 | F31: 1 | G31: =(E31-D31)*F31 -> 19.9 | H31: 0.689 | I31: =G31*H31 -> 13.7111
A32: 蒸汽发生器+采暖用电总合计： | G32: =G31 -> 19.9 | H32: 0.689 | I32: =G32*H32 -> 13.7111
A33: 水表 | B33: 蒸汽发生器+采暖 | C33: F1A150610796 | D33: 592 | E33: 603 | F33: 1 | G33: =E33-D33 -> 11 | H33: 4.39 | I33: =G33*H33 -> 48.29
A34: 蒸汽发生器用水总合计: | G34: =G33 -> 11 | H34: 4.39 | I34: =G34*H34 -> 48.29
A35: 水、电、气费用总合计（水/电/气价预估单价,单价需以实际缴费为准）： | G35: =I14++I20+I26+I30+I32+I34 -> 5142.0098
A37: 流量计量表 | B37: 分项 | C37: 昨日流量 | E37: 今日流量 | G37: 用量 | H37: 备注
B38: 中央空调冷冻流量 | C38: 0 | E38: 0 | G38: =E38-C38 -> 0
B39: 中央空调冷却流量 | C39: 0 | E39: 0 | G39: =E39-C39 -> 0
B40: 中央空调采暖流量 | C40: 0 | E40: 0 | G40: =E40-C40 -> 0
B41: 蒸汽流量 | C41: 0 | E41: 0 | G41: =E41-C41 -> 0

Sheet 2025.6.23
A2: 2025年 6月 23日
A3: 最低气温：26 ℃，最高气温：35 ℃ ， 住房量：222间
A4: 宴会/会议信息 中餐厅以及昆西有早餐，中餐厅.昆西有午宴 中餐厅以及昆西有晚宴，
A5: 名称 | B5: 位置 | C5: 编号 | D5: 昨日读数 | E5: 今日读数 | F5: 倍率 | G5: 合计 | H5: 单价 | I5: 费用
A6: 电表 | B6: 磁悬浮3号空调主机 | D6: 201730 | E6: 203661 | F6: 1 | G6: =(E6-D6)*F6 -> 1931 | H6: 0.689 | I6: =G6*H6 -> 1330.459
A7: 电表 | B7: 变频5号冷冻泵 | D7: 63992.9 | E7: 64758.6 | F7: 1 | G7: 765.7 | H7: 0.689 | I7: 527.5673
A8: 电表 | B8: 4号冷冻泵 | D8: 211856.7 | E8: 211856.7 | F8: 1 | G8: 0 | H8: 0.689 | I8: =G8*H8 -> 0
A9: 电表 | B9: 变频5号冷却泵 | D9: 70990.8 | E9: 71574.1 | F9: 1 | G9: 583.3 | H9: 0.689 | I9: 401.8937
A10: 电表 | B10: 4号冷却泵 | D10: 265760.9 | E10: 266363.1 | F10: 1 | G10: 602.2 | H10: 0.689 | I10: =G10*H10 -> 414.9158
A11: 电表 | B11: 变频1号冷却塔 | D11: 147171.5 | E11: 147277 | F11: 1 | G11: 105.5 | H11: 0.689 | I11: 72.6895
A12: 电表 | B12: 变频2号冷却塔 | D12: 322556.8 | E12: 322707.8 | F12: 1 | G12: 151 | H12: 0.689 | I12: 104.039
A13: 电表 | B13: 变频3号冷却塔 | D13: 300343.5 | E13: 300487.9 | F13: 1 | G13: 144.4 | H13: 0.689 | I13: 99.4916
A14: 空调系统用电总合计： | G14: =G6+G7+G8+G9+G10+G11+G12+G13 -> 4283.1 | H14: 0.689 | I14: =I6+I7+I8+I9+I10+I11+I12+I13 -> 2951.0559
A16: 电表 | B16: 三楼热泵控制柜 | C16: 2025020 50017 | D16: 162.1 | E16: 163.8 | F16: 80 | G16: =(E16-D16)*F16 -> 136 | H16: 0.689 | I16: 93.704
A17: 电表 | B17: 三楼变频水泵控制柜 | C17: 2024085 00211 | D17: 597.9 | E17: 606.8 | F17: 20 | G17: 178 | H17: 0.689 | I17: 122.642
A18: 电表 | B18: 洗衣房热泵控制柜 | C18: 202502 05102 | D18: 520.1 | E18: 524.6 | F18: 20 | G18: 90 | H18: 0.689 | I18: 62.01
A19: 电表 | B19: 群楼中厨水泵控制柜 | C19: 2025020 50063 | D19: 265 | E19: 268.6 | F19: 20 | G19: 72 | H19: 0.689 | I19: 49.608
A20: 热水热泵系统用电总合计： | G20: =G16+G17+G18+G19 -> 476 | H20: 0.689 | I20: =I16+I17+I18+I19 -> 327.964
A22: 水表 | B22: 空调冷冻水 | D22: 0 | E22: 0 | F22: 1 | G22: =E22-D22 -> 0 | H22: 4.39 | I22: =G22*H22 -> 0
A23: 水表 | B23: 空调冷却水 | D23: 0 | E23: 0 | F23: 1 | G23: =E23-D23 -> 0 | H23: 4.39 | I23: =G23*H23 -> 0
A24: 水表 | B24: 三楼中、高区热水 | C24: M9A25024017786 | D24: 1864 | E24: 1892 | F24: 1 | G24: =E24-D24 -> 28 | H24: 4.39 | I24: =G24*H24 -> 122.92
A25: 水表 | B25: 群楼、中厨房热水 | C25: M9A25024017857 | D25: 1887 | E25: 1909 | F25: 1 | G25: =E25-D25 -> 22 | H25: 4.39 | I25: =G25*H25 -> 96.58
A26: 热水热泵系统用水总合计: | G26: =G24+G25+G23+G22 -> 50 | H26: 4.39 | I26: =I24+I25+I23+I22 -> 219.5
A28: 燃气表（常用） | B28: 蒸汽发生器+采暖 | D28: 22314 | E28: 22636 | F28: 1 | G28: =E28-D28 -> 322 | H28: 5.54 | I28: =G28*H28 -> 1783.88
A29: 燃气表（备用） | B29: 蒸汽发生器+采暖 | D29: 18871 | E29: 18871 | F29: 1 | G29: =(E29-D29)*F29 -> 0 | H29: 5.54 | I29: =G29*H29 -> 0
A30: 蒸汽发生器+采暖用气总合计： | G30: =G28+G29 -> 322 | H30: 5.54 | I30: =I28+I29 -> 1783.88
A31: 电表 | B31: 蒸汽发生器+采暖 | C31: 202011 500026 | D31: 1086.9 | E31: 1111.2 | F31: 1 | G31: =(E31-D31)*F31 -> 24.3 | H31: 0.689 | I31: =G31*H31 -> 16.7427
A32: 蒸汽发生器+采暖用电总合计： | G32: =G31 -> 24.3 | H32: 0.689 | I32: =G32*H32 -> 16.7427
A33: 水表 | B33: 蒸汽发生器+采暖 | C33: F1A150610796 | D33: 603 | E33: 615 | F33: 1 | G33: =E33-D33 -> 12 | H33: 4.39 | I33: =G33*H33 -> 52.68
A34: 蒸汽发生器用水总合计: | G34: =G33 -> 12 | H34: 4.39 | I34: =G34*H34 -> 52.68
A35: 水、电、气费用总合计（水/电/气价预估单价,单价需以实际缴费为准）： | G35: =I14++I20+I26+I30+I32+I34 -> 5351.8226
A37: 流量计量表 | B37: 分项 | C37: 昨日流量 | E37: 今日流量 | G37: 用量 | H37: 备注
B38: 中央空调冷冻流量 | C38: 0 | E38: 0 | G38: =E38-C38 -> 0
B39: 中央空调冷却流量 | C39: 0 | E39: 0 | G39: =E39-C39 -> 0
B40: 中央空调采暖流量 | C40: 0 | E40: 0 | G40: =E40-C40 -> 0
B41: 蒸汽流量 | C41: 0 | E41: 0 | G41: =E41-C41 -> 0

Sheet 2025.6.24
A2: 2025年 6月 24日
A3: 最低气温：25 ℃，最高气温：36 ℃ ， 住房量：236间
A4: 宴会/会议信息 中餐厅以及昆西有早餐，中餐厅.昆西有午宴 中餐厅以及昆西有晚宴，奥尔良波士顿上午有会议
A5: 名称 | B5: 位置 | C5: 编号 | D5: 昨日读数 | E5: 今日读数 | F5: 倍率 | G5: 合计 | H5: 单价 | I5: 费用
A6: 电表 | B6: 磁悬浮3号空调主机 | D6: 203661 | E6: 205774 | F6: 1 | G6: =(E6-D6)*F6 -> 2113 | H6: 0.689 | I6: =G6*H6 -> 1455.857
A7: 电表 | B7: 变频5号冷冻泵 | D7: 64758.6 | E7: 65640 | F7: 1 | G7: 881.4 | H7: 0.689 | I7: 607.2846
A8: 电表 | B8: 4号冷冻泵 | D8: 211856.7 | E8: 211856.7 | F8: 1 | G8: 0 | H8: 0.689 | I8: =G8*H8 -> 0
A9: 电表 | B9: 变频5号冷却泵 | D9: 71574.1 | E9: 72135.9 | F9: 1 | G9: 561.8 | H9: 0.689 | I9: 387.0802
A10: 电表 | B10: 4号冷却泵 | D10: 266363.1 | E10: 266793 | F10: 1 | G10: 429.9 | H10: 0.689 | I10: =G10*H10 -> 296.2011
A11: 电表 | B11: 变频1号冷却塔 | D11: 147277 | E11: 147395.2 | F11: 1 | G11: 118.2 | H11: 0.689 | I11: 81.4398
A12: 电表 | B12: 变频2号冷却塔 | D12: 322707.8 | E12: 322881.7 | F12: 1 | G12: 173.9 | H12: 0.689 | I12: 119.8171
A13: 电表 | B13: 变频3号冷却塔 | D13: 300487.9 | E13: 300653.7 | F13: 1 | G13: 165.8 | H13: 0.689 | I13: 114.2362
A14: 空调系统用电总合计： | G14: =G6+G7+G8+G9+G10+G11+G12+G13 -> 4444 | H14: 0.689 | I14: =I6+I7+I8+I9+I10+I11+I12+I13 -> 3061.916
A16: 电表 | B16: 三楼热泵控制柜 | C16: 2025020 50017 | D16: 163.8 | E16: 165.8 | F16: 80 | G16: =(E16-D16)*F16 -> 160 | H16: 0.689 | I16: 110.24
A17: 电表 | B17: 三楼变频水泵控制柜 | C17: 2024085 00211 | D17: 606.8 | E17: 615.6 | F17: 20 | G17: 176 | H17: 0.689 | I17: 121.264
A18: 电表 | B18: 洗衣房热泵控制柜 | C18: 202502 05102 | D18: 524.6 | E18: 529.2 | F18: 20 | G18: 92 | H18: 0.689 | I18: 63.388
A19: 电表 | B19: 群楼中厨水泵控制柜 | C19: 2025020 50063 | D19: 268.6 | E19: 272.1 | F19: 20 | G19: 70 | H19: 0.689 | I19: 48.23
A20: 热水热泵系统用电总合计： | G20: =G16+G17+G18+G19 -> 498 | H20: 0.689 | I20: =I16+I17+I18+I19 -> 343.122
A22: 水表 | B22: 空调冷冻水 | D22: 0 | E22: 0 | F22: 1 | G22: =E22-D22 -> 0 | H22: 4.39 | I22: =G22*H22 -> 0
A23: 水表 | B23: 空调冷却水 | D23: 0 | E23: 0 | F23: 1 | G23: =E23-D23 -> 0 | H23: 4.39 | I23: =G23*H23 -> 0
A24: 水表 | B24: 三楼中、高区热水 | C24: M9A25024017786 | D24: 1892 | E24: 1922 | F24: 1 | G24: =E24-D24 -> 30 | H24: 4.39 | I24: =G24*H24 -> 131.7
A25: 水表 | B25: 群楼、中厨房热水 | C25: M9A25024017857 | D25: 1909 | E25: 1932 | F25: 1 | G25: =E25-D25 -> 23 | H25: 4.39 | I25: =G25*H25 -> 100.97
A26: 热水热泵系统用水总合计: | G26: =G24+G25+G23+G22 -> 53 | H26: 4.39 | I26: =I24+I25+I23+I22 -> 232.67
A28: 燃气表（常用） | B28: 蒸汽发生器+采暖 | D28: 22636 | E28: 22930 | F28: 1 | G28: =E28-D28 -> 294 | H28: 5.54 | I28: =G28*H28 -> 1628.76
A29: 燃气表（备用） | B29: 蒸汽发生器+采暖 | D29: 18871 | E29: 18871 | F29: 1 | G29: =(E29-D29)*F29 -> 0 | H29: 5.54 | I29: =G29*H29 -> 0
A30: 蒸汽发生器+采暖用气总合计： | G30: =G28+G29 -> 294 | H30: 5.54 | I30: =I28+I29 -> 1628.76
A31: 电表 | B31: 蒸汽发生器+采暖 | C31: 202011 500026 | D31: 1111.2 | E31: 1133.4 | F31: 1 | G31: =(E31-D31)*F31 -> 22.2 | H31: 0.689 | I31: =G31*H31 -> 15.2958
A32: 蒸汽发生器+采暖用电总合计： | G32: =G31 -> 22.2 | H32: 0.689 | I32: =G32*H32 -> 15.2958
A33: 水表 | B33: 蒸汽发生器+采暖 | C33: F1A150610796 | D33: 615 | E33: 627 | F33: 1 | G33: =E33-D33 -> 12 | H33: 4.39 | I33: =G33*H33 -> 52.68
A34: 蒸汽发生器用水总合计: | G34: =G33 -> 12 | H34: 4.39 | I34: =G34*H34 -> 52.68
A35: 水、电、气费用总合计（水/电/气价预估单价,单价需以实际缴费为准）： | G35: =I14++I20+I26+I30+I32+I34 -> 5334.4438
A37: 流量计量表 | B37: 分项 | C37: 昨日流量 | E37: 今日流量 | G37: 用量 | H37: 备注
B38: 中央空调冷冻流量 | C38: 0 | E38: 0 | G38: =E38-C38 -> 0
B39: 中央空调冷却流量 | C39: 0 | E39: 0 | G39: =E39-C39 -> 0
B40: 中央空调采暖流量 | C40: 0 | E40: 0 | G40: =E40-C40 -> 0
B41: 蒸汽流量 | C41: 0 | E41: 0 | G41: =E41-C41 -> 0

Sheet 2025.6.25
A2: 2025年 6月 24日
A3: 最低气温：25 ℃，最高气温：36 ℃ ， 住房量：262间
A4: 宴会/会议信息 中餐厅以及昆西有早餐，中餐厅.昆西有午宴 中餐厅以及昆西有晚宴
A5: 名称 | B5: 位置 | C5: 编号 | D5: 昨日读数 | E5: 今日读数 | F5: 倍率 | G5: 合计 | H5: 单价 | I5: 费用
A6: 电表 | B6: 磁悬浮3号空调主机 | D6: 205774 | E6: 208161 | F6: 1 | G6: =(E6-D6)*F6 -> 2387 | H6: 0.689 | I6: =G6*H6 -> 1644.643
A7: 电表 | B7: 变频5号冷冻泵 | D7: 65640 | E7: 66559.4 | F7: 1 | G7: 919.4 | H7: 0.689 | I7: 633.4666
A8: 电表 | B8: 4号冷冻泵 | D8: 211856.7 | E8: 211856.7 | F8: 1 | G8: 0 | H8: 0.689 | I8: =G8*H8 -> 0
A9: 电表 | B9: 变频5号冷却泵 | D9: 72135.9 | E9: 72684.6 | F9: 1 | G9: 548.7 | H9: 0.689 | I9: 378.0543
A10: 电表 | B10: 4号冷却泵 | D10: 266793 | E10: 267279 | F10: 1 | G10: 486 | H10: 0.689 | I10: =G10*H10 -> 334.854
A11: 电表 | B11: 变频1号冷却塔 | D11: 147395.2 | E11: 147547.3 | F11: 1 | G11: 152.1 | H11: 0.689 | I11: 104.7969
A12: 电表 | B12: 变频2号冷却塔 | D12: 322881.7 | E12: 323012.5 | F12: 1 | G12: 130.8 | H12: 0.689 | I12: 90.1212
A13: 电表 | B13: 变频3号冷却塔 | D13: 300653.7 | E13: 300818.7 | F13: 1 | G13: 165 | H13: 0.689 | I13: 113.685
A14: 空调系统用电总合计： | G14: =G6+G7+G8+G9+G10+G11+G12+G13 -> 4789 | H14: 0.689 | I14: =I6+I7+I8+I9+I10+I11+I12+I13 -> 3299.621
A16: 电表 | B16: 三楼热泵控制柜 | C16: 2025020 50017 | D16: 165.8 | E16: 167.7 | F16: 80 | G16: =(E16-D16)*F16 -> 152 | H16: 0.689 | I16: 104.728
A17: 电表 | B17: 三楼变频水泵控制柜 | C17: 2024085 00211 | D17: 615.6 | E17: 624.4 | F17: 20 | G17: 176 | H17: 0.689 | I17: 121.264
A18: 电表 | B18: 洗衣房热泵控制柜 | C18: 202502 05102 | D18: 529.2 | E18: 533.7 | F18: 20 | G18: 90 | H18: 0.689 | I18: 62.01
A19: 电表 | B19: 群楼中厨水泵控制柜 | C19: 2025020 50063 | D19: 272.1 | E19: 275.7 | F19: 20 | G19: 72 | H19: 0.689 | I19: 49.608
A20: 热水热泵系统用电总合计： | G20: =G16+G17+G18+G19 -> 490 | H20: 0.689 | I20: =I16+I17+I18+I19 -> 337.61
A22: 水表 | B22: 空调冷冻水 | D22: 0 | E22: 0 | F22: 1 | G22: =E22-D22 -> 0 | H22: 4.39 | I22: =G22*H22 -> 0
A23: 水表 | B23: 空调冷却水 | D23: 0 | E23: 0 | F23: 1 | G23: =E23-D23 -> 0 | H23: 4.39 | I23: =G23*H23 -> 0
A24: 水表 | B24: 三楼中、高区热水 | C24: M9A25024017786 | D24: 1922 | E24: 1955 | F24: 1 | G24: =E24-D24 -> 33 | H24: 4.39 | I24: =G24*H24 -> 144.87
A25: 水表 | B25: 群楼、中厨房热水 | C25: M9A25024017857 | D25: 1932 | E25: 1955 | F25: 1 | G25: =E25-D25 -> 23 | H25: 4.39 | I25: =G25*H25 -> 100.97
A26: 热水热泵系统用水总合计: | G26: =G24+G25+G23+G22 -> 56 | H26: 4.39 | I26: =I24+I25+I23+I22 -> 245.84
A28: 燃气表（常用） | B28: 蒸汽发生器+采暖 | D28: 22930 | E28: 23220 | F28: 1 | G28: =E28-D28 -> 290 | H28: 5.54 | I28: =G28*H28 -> 1606.6
A29: 燃气表（备用） | B29: 蒸汽发生器+采暖 | D29: 18871 | E29: 18871 | F29: 1 | G29: =(E29-D29)*F29 -> 0 | H29: 5.54 | I29: =G29*H29 -> 0
A30: 蒸汽发生器+采暖用气总合计： | G30: =G28+G29 -> 290 | H30: 5.54 | I30: =I28+I29 -> 1606.6
A31: 电表 | B31: 蒸汽发生器+采暖 | C31: 202011 500026 | D31: 1133.4 | E31: 1155.5 | F31: 1 | G31: =(E31-D31)*F31 -> 22.1 | H31: 0.689 | I31: =G31*H31 -> 15.2269
A32: 蒸汽发生器+采暖用电总合计： | G32: =G31 -> 22.1 | H32: 0.689 | I32: =G32*H32 -> 15.2269
A33: 水表 | B33: 蒸汽发生器+采暖 | C33: F1A150610796 | D33: 627 | E33: 638 | F33: 1 | G33: =E33-D33 -> 11 | H33: 4.39 | I33: =G33*H33 -> 48.29
A34: 蒸汽发生器用水总合计: | G34: =G33 -> 11 | H34: 4.39 | I34: =G34*H34 -> 48.29
A35: 水、电、气费用总合计（水/电/气价预估单价,单价需以实际缴费为准）： | G35: =I14++I20+I26+I30+I32+I34 -> 5553.1879
A36: 638
A37: 流量计量表 | B37: 分项 | C37: 昨日流量 | E37: 今日流量 | G37: 用量 | H37: 备注
B38: 中央空调冷冻流量 | C38: 0 | E38: 0 | G38: =E38-C38 -> 0
B39: 中央空调冷却流量 | C39: 0 | E39: 0 | G39: =E39-C39 -> 0
B40: 中央空调采暖流量 | C40: 0 | E40: 0 | G40: =E40-C40 -> 0
B41: 蒸汽流量 | C41: 0 | E41: 0 | G41: =E41-C41 -> 0

Sheet 2025.6.26
A2: 2025年 6月 26日
A3: 最低气温：25 ℃，最高气温：35 ℃ ， 住房量：205间
A4: 宴会/会议信息 中餐厅以及昆西有早餐，中餐厅.昆西有午宴 中餐厅以及昆西有晚宴
A5: 名称 | B5: 位置 | C5: 编号 | D5: 昨日读数 | E5: 今日读数 | F5: 倍率 | G5: 合计 | H5: 单价 | I5: 费用
A6: 电表 | B6: 磁悬浮3号空调主机 | D6: 208161 | E6: 210264 | F6: 1 | G6: =(E6-D6)*F6 -> 2103 | H6: 0.689 | I6: =G6*H6 -> 1448.967
A7: 电表 | B7: 变频5号冷冻泵 | D7: 66559.4 | E7: 67445 | F7: 1 | G7: 885.6 | H7: 0.689 | I7: 610.1784
A8: 电表 | B8: 4号冷冻泵 | D8: 211856.7 | E8: 211856.7 | F8: 1 | G8: 0 | H8: 0.689 | I8: =G8*H8 -> 0
A9: 电表 | B9: 变频5号冷却泵 | D9: 72684.6 | E9: 73219.7 | F9: 1 | G9: 535.1 | H9: 0.689 | I9: 368.6839
A10: 电表 | B10: 4号冷却泵 | D10: 267279 | E10: 267688 | F10: 1 | G10: 409 | H10: 0.689 | I10: =G10*H10 -> 281.801
A11: 电表 | B11: 变频1号冷却塔 | D11: 147547.3 | E11: 147700.5 | F11: 1 | G11: 153.2 | H11: 0.689 | I11: 105.5548
A12: 电表 | B12: 变频2号冷却塔 | D12: 323012.5 | E12: 323186.8 | F12: 1 | G12: 174.3 | H12: 0.689 | I12: 120.0927
A13: 电表 | B13: 变频3号冷却塔 | D13: 300818.7 | E13: 300944.7 | F13: 1 | G13: 126 | H13: 0.689 | I13: 86.814
A14: 空调系统用电总合计： | G14: =G6+G7+G8+G9+G10+G11+G12+G13 -> 4386.2 | H14: 0.689 | I14: =I6+I7+I8+I9+I10+I11+I12+I13 -> 3022.0918
A16: 电表 | B16: 三楼热泵控制柜 | C16: 2025020 50017 | D16: 167.7 | E16: 169.3 | F16: 80 | G16: =(E16-D16)*F16 -> 128 | H16: 0.689 | I16: 88.192
A17: 电表 | B17: 三楼变频水泵控制柜 | C17: 2024085 00211 | D17: 624.4 | E17: 633.2 | F17: 20 | G17: 176 | H17: 0.689 | I17: 121.264
A18: 电表 | B18: 洗衣房热泵控制柜 | C18: 202502 05102 | D18: 533.7 | E18: 538.1 | F18: 20 | G18: 88 | H18: 0.689 | I18: 60.632
A19: 电表 | B19: 群楼中厨水泵控制柜 | C19: 2025020 50063 | D19: 275.7 | E19: 279.3 | F19: 20 | G19: 72 | H19: 0.689 | I19: 49.608
A20: 热水热泵系统用电总合计： | G20: =G16+G17+G18+G19 -> 464 | H20: 0.689 | I20: =I16+I17+I18+I19 -> 319.696
A22: 水表 | B22: 空调冷冻水 | D22: 0 | E22: 0 | F22: 1 | G22: =E22-D22 -> 0 | H22: 4.39 | I22: =G22*H22 -> 0
A23: 水表 | B23: 空调冷却水 | D23: 0 | E23: 0 | F23: 1 | G23: =E23-D23 -> 0 | H23: 4.39 | I23: =G23*H23 -> 0
A24: 水表 | B24: 三楼中、高区热水 | C24: M9A25024017786 | D24: 1955 | E24: 1983 | F24: 1 | G24: =E24-D24 -> 28 | H24: 4.39 | I24: =G24*H24 -> 122.92
A25: 水表 | B25: 群楼、中厨房热水 | C25: M9A25024017857 | D25: 1955 | E25: 1978 | F25: 1 | G25: =E25-D25 -> 23 | H25: 4.39 | I25: =G25*H25 -> 100.97
A26: 热水热泵系统用水总合计: | G26: =G24+G25+G23+G22 -> 51 | H26: 4.39 | I26: =I24+I25+I23+I22 -> 223.89
A28: 燃气表（常用） | B28: 蒸汽发生器+采暖 | D28: 23220 | E28: 23524 | F28: 1 | G28: =E28-D28 -> 304 | H28: 5.54 | I28: =G28*H28 -> 1684.16
A29: 燃气表（备用） | B29: 蒸汽发生器+采暖 | D29: 18871 | E29: 18871 | F29: 1 | G29: =(E29-D29)*F29 -> 0 | H29: 5.54 | I29: =G29*H29 -> 0
A30: 蒸汽发生器+采暖用气总合计： | G30: =G28+G29 -> 304 | H30: 5.54 | I30: =I28+I29 -> 1684.16
A31: 电表 | B31: 蒸汽发生器+采暖 | C31: 202011 500026 | D31: 1155.5 | E31: 1178.5 | F31: 1 | G31: =(E31-D31)*F31 -> 23 | H31: 0.689 | I31: =G31*H31 -> 15.847
A32: 蒸汽发生器+采暖用电总合计： | G32: =G31 -> 23 | H32: 0.689 | I32: =G32*H32 -> 15.847
A33: 水表 | B33: 蒸汽发生器+采暖 | C33: F1A150610796 | D33: 638 | E33: 650 | F33: 1 | G33: =E33-D33 -> 12 | H33: 4.39 | I33: =G33*H33 -> 52.68
A34: 蒸汽发生器用水总合计: | G34: =G33 -> 12 | H34: 4.39 | I34: =G34*H34 -> 52.68
A35: 水、电、气费用总合计（水/电/气价预估单价,单价需以实际缴费为准）： | G35: =I14++I20+I26+I30+I32+I34 -> 5318.3648
A36: 638
A37: 流量计量表 | B37: 分项 | C37: 昨日流量 | E37: 今日流量 | G37: 用量 | H37: 备注
B38: 中央空调冷冻流量 | C38: 0 | E38: 0 | G38: =E38-C38 -> 0
B39: 中央空调冷却流量 | C39: 0 | E39: 0 | G39: =E39-C39 -> 0
B40: 中央空调采暖流量 | C40: 0 | E40: 0 | G40: =E40-C40 -> 0
B41: 蒸汽流量 | C41: 0 | E41: 0 | G41: =E41-C41 -> 0

Sheet 2025.6.27
A2: 2025年 6月 27日
A3: 最低气温：24 ℃，最高气温：34 ℃ ， 住房量：200间
A4: 宴会/会议信息 中餐厅以及昆西有早餐，中餐厅.昆西有午宴 中餐厅以及昆西有晚宴
A5: 名称 | B5: 位置 | C5: 编号 | D5: 昨日读数 | E5: 今日读数 | F5: 倍率 | G5: 合计 | H5: 单价 | I5: 费用
A6: 电表 | B6: 磁悬浮3号空调主机 | D6: 210264 | E6: 212525 | F6: 1 | G6: =(E6-D6)*F6 -> 2261 | H6: 0.689 | I6: =G6*H6 -> 1557.829
A7: 电表 | B7: 变频5号冷冻泵 | D7: 67445 | E7: 68226.2 | F7: 1 | G7: 781.2 | H7: 0.689 | I7: 538.2468
A8: 电表 | B8: 4号冷冻泵 | D8: 211856.7 | E8: 211856.7 | F8: 1 | G8: 0 | H8: 0.689 | I8: =G8*H8 -> 0
A9: 电表 | B9: 变频5号冷却泵 | D9: 73219.7 | E9: 73790.4 | F9: 1 | G9: 570.7 | H9: 0.689 | I9: 393.2123
A10: 电表 | B10: 4号冷却泵 | D10: 267688 | E10: 268132.1 | F10: 1 | G10: 444.1 | H10: 0.689 | I10: =G10*H10 -> 305.9849
A11: 电表 | B11: 变频1号冷却塔 | D11: 147700.5 | E11: 147807.5 | F11: 1 | G11: 107 | H11: 0.689 | I11: 73.723
A12: 电表 | B12: 变频2号冷却塔 | D12: 323186.8 | E12: 323340.1 | F12: 1 | G12: 153.3 | H12: 0.689 | I12: 105.6237
A13: 电表 | B13: 变频3号冷却塔 | D13: 300944.7 | E13: 301090.4 | F13: 1 | G13: 145.7 | H13: 0.689 | I13: 100.3873
A14: 空调系统用电总合计： | G14: =G6+G7+G8+G9+G10+G11+G12+G13 -> 4463 | H14: 0.689 | I14: =I6+I7+I8+I9+I10+I11+I12+I13 -> 3075.007
A16: 电表 | B16: 三楼热泵控制柜 | C16: 2025020 50017 | D16: 169.3 | E16: 170.9 | F16: 80 | G16: =(E16-D16)*F16 -> 128 | H16: 0.689 | I16: 88.192
A17: 电表 | B17: 三楼变频水泵控制柜 | C17: 2024085 00211 | D17: 633.2 | E17: 642 | F17: 20 | G17: 176 | H17: 0.689 | I17: 121.264
A18: 电表 | B18: 洗衣房热泵控制柜 | C18: 202502 05102 | D18: 538.1 | E18: 543.6 | F18: 20 | G18: 110 | H18: 0.689 | I18: 75.79
A19: 电表 | B19: 群楼中厨水泵控制柜 | C19: 2025020 50063 | D19: 279.3 | E19: 282.4 | F19: 20 | G19: 62 | H19: 0.689 | I19: 42.718
A20: 热水热泵系统用电总合计： | G20: =G16+G17+G18+G19 -> 476 | H20: 0.689 | I20: =I16+I17+I18+I19 -> 327.964
A22: 水表 | B22: 空调冷冻水 | D22: 0 | E22: 0 | F22: 1 | G22: =E22-D22 -> 0 | H22: 4.39 | I22: =G22*H22 -> 0
A23: 水表 | B23: 空调冷却水 | D23: 0 | E23: 0 | F23: 1 | G23: =E23-D23 -> 0 | H23: 4.39 | I23: =G23*H23 -> 0
A24: 水表 | B24: 三楼中、高区热水 | C24: M9A25024017786 | D24: 1983 | E24: 2012 | F24: 1 | G24: =E24-D24 -> 29 | H24: 4.39 | I24: =G24*H24 -> 127.31
A25: 水表 | B25: 群楼、中厨房热水 | C25: M9A25024017857 | D25: 1978 | E25: 2004 | F25: 1 | G25: =E25-D25 -> 26 | H25: 4.39 | I25: =G25*H25 -> 114.14
A26: 热水热泵系统用水总合计: | G26: =G24+G25+G23+G22 -> 55 | H26: 4.39 | I26: =I24+I25+I23+I22 -> 241.45
A28: 燃气表（常用） | B28: 蒸汽发生器+采暖 | D28: 23524 | E28: 23795 | F28: 1 | G28: =E28-D28 -> 271 | H28: 5.54 | I28: =G28*H28 -> 1501.34
A29: 燃气表（备用） | B29: 蒸汽发生器+采暖 | D29: 18871 | E29: 18871 | F29: 1 | G29: =(E29-D29)*F29 -> 0 | H29: 5.54 | I29: =G29*H29 -> 0
A30: 蒸汽发生器+采暖用气总合计： | G30: =G28+G29 -> 271 | H30: 5.54 | I30: =I28+I29 -> 1501.34
A31: 电表 | B31: 蒸汽发生器+采暖 | C31: 202011 500026 | D31: 1178.5 | E31: 1198.6 | F31: 1 | G31: =(E31-D31)*F31 -> 20.1 | H31: 0.689 | I31: =G31*H31 -> 13.8489
A32: 蒸汽发生器+采暖用电总合计： | G32: =G31 -> 20.1 | H32: 0.689 | I32: =G32*H32 -> 13.8489
A33: 水表 | B33: 蒸汽发生器+采暖 | C33: F1A150610796 | D33: 650 | E33: 661 | F33: 1 | G33: =E33-D33 -> 11 | H33: 4.39 | I33: =G33*H33 -> 48.29
A34: 蒸汽发生器用水总合计: | G34: =G33 -> 11 | H34: 4.39 | I34: =G34*H34 -> 48.29
A35: 水、电、气费用总合计（水/电/气价预估单价,单价需以实际缴费为准）： | G35: =I14++I20+I26+I30+I32+I34 -> 5207.8999
A36: 638
A37: 流量计量表 | B37: 分项 | C37: 昨日流量 | E37: 今日流量 | G37: 用量 | H37: 备注
B38: 中央空调冷冻流量 | C38: 0 | E38: 0 | G38: =E38-C38 -> 0
B39: 中央空调冷却流量 | C39: 0 | E39: 0 | G39: =E39-C39 -> 0
B40: 中央空调采暖流量 | C40: 0 | E40: 0 | G40: =E40-C40 -> 0
B41: 蒸汽流量 | C41: 0 | E41: 0 | G41: =E41-C41 -> 0

Sheet 2025.6.28
A2: 2025年 6月 28日
A3: 最低气温：24 ℃，最高气温：34 ℃ ， 住房量：210间
A4: 宴会/会议信息 中餐厅以及昆西有早餐，中餐厅.昆西有午宴 中餐厅以及昆西有晚宴
A5: 名称 | B5: 位置 | C5: 编号 | D5: 昨日读数 | E5: 今日读数 | F5: 倍率 | G5: 合计 | H5: 单价 | I5: 费用
A6: 电表 | B6: 磁悬浮3号空调主机 | D6: 212525 | E6: 214714 | F6: 1 | G6: =(E6-D6)*F6 -> 2189 | H6: 0.689 | I6: =G6*H6 -> 1508.221
A7: 电表 | B7: 变频5号冷冻泵 | D7: 68226.2 | E7: 69001.3 | F7: 1 | G7: 775.1 | H7: 0.689 | I7: 534.0439
A8: 电表 | B8: 4号冷冻泵 | D8: 211856.7 | E8: 211856.7 | F8: 1 | G8: 0 | H8: 0.689 | I8: =G8*H8 -> 0
A9: 电表 | B9: 变频5号冷却泵 | D9: 73790.4 | E9: 74411 | F9: 1 | G9: 620.6 | H9: 0.689 | I9: 427.5934
A10: 电表 | B10: 4号冷却泵 | D10: 268132.1 | E10: 268537.7 | F10: 1 | G10: 405.6 | H10: 0.689 | I10: =G10*H10 -> 279.4584
A11: 电表 | B11: 变频1号冷却塔 | D11: 147807.5 | E11: 147903.1 | F11: 1 | G11: 95.6 | H11: 0.689 | I11: 65.8684
A12: 电表 | B12: 变频2号冷却塔 | D12: 323340.1 | E12: 323494.8 | F12: 1 | G12: 154.7 | H12: 0.689 | I12: 106.5883
A13: 电表 | B13: 变频3号冷却塔 | D13: 301090.4 | E13: 301251.1 | F13: 1 | G13: 160.7 | H13: 0.689 | I13: 110.7223
A14: 空调系统用电总合计： | G14: =G6+G7+G8+G9+G10+G11+G12+G13 -> 4401.3 | H14: 0.689 | I14: =I6+I7+I8+I9+I10+I11+I12+I13 -> 3032.4957
A16: 电表 | B16: 三楼热泵控制柜 | C16: 2025020 50017 | D16: 170.9 | E16: 172.3 | F16: 80 | G16: =(E16-D16)*F16 -> 112 | H16: 0.689 | I16: 77.168
A17: 电表 | B17: 三楼变频水泵控制柜 | C17: 2024085 00211 | D17: 642 | E17: 650.8 | F17: 20 | G17: 176 | H17: 0.689 | I17: 121.264
A18: 电表 | B18: 洗衣房热泵控制柜 | C18: 202502 05102 | D18: 543.6 | E18: 548.1 | F18: 20 | G18: 90 | H18: 0.689 | I18: 62.01
A19: 电表 | B19: 群楼中厨水泵控制柜 | C19: 2025020 50063 | D19: 282.4 | E19: 286 | F19: 20 | G19: 72 | H19: 0.689 | I19: 49.608
A20: 热水热泵系统用电总合计： | G20: =G16+G17+G18+G19 -> 450 | H20: 0.689 | I20: =I16+I17+I18+I19 -> 310.05
A22: 水表 | B22: 空调冷冻水 | D22: 0 | E22: 0 | F22: 1 | G22: =E22-D22 -> 0 | H22: 4.39 | I22: =G22*H22 -> 0
A23: 水表 | B23: 空调冷却水 | D23: 0 | E23: 0 | F23: 1 | G23: =E23-D23 -> 0 | H23: 4.39 | I23: =G23*H23 -> 0
A24: 水表 | B24: 三楼中、高区热水 | C24: M9A25024017786 | D24: 2012 | E24: 2035 | F24: 1 | G24: =E24-D24 -> 23 | H24: 4.39 | I24: =G24*H24 -> 100.97
A25: 水表 | B25: 群楼、中厨房热水 | C25: M9A25024017857 | D25: 2004 | E25: 2033 | F25: 1 | G25: =E25-D25 -> 29 | H25: 4.39 | I25: =G25*H25 -> 127.31
A26: 热水热泵系统用水总合计: | G26: =G24+G25+G23+G22 -> 52 | H26: 4.39 | I26: =I24+I25+I23+I22 -> 228.28
A28: 燃气表（常用） | B28: 蒸汽发生器+采暖 | D28: 23795 | E28: 24072 | F28: 1 | G28: =E28-D28 -> 277 | H28: 5.54 | I28: =G28*H28 -> 1534.58
A29: 燃气表（备用） | B29: 蒸汽发生器+采暖 | D29: 18871 | E29: 18871 | F29: 1 | G29: =(E29-D29)*F29 -> 0 | H29: 5.54 | I29: =G29*H29 -> 0
A30: 蒸汽发生器+采暖用气总合计： | G30: =G28+G29 -> 277 | H30: 5.54 | I30: =I28+I29 -> 1534.58
A31: 电表 | B31: 蒸汽发生器+采暖 | C31: 202011 500026 | D31: 1198.6 | E31: 1219 | F31: 1 | G31: =(E31-D31)*F31 -> 20.4 | H31: 0.689 | I31: =G31*H31 -> 14.0556
A32: 蒸汽发生器+采暖用电总合计： | G32: =G31 -> 20.4 | H32: 0.689 | I32: =G32*H32 -> 14.0556
A33: 水表 | B33: 蒸汽发生器+采暖 | C33: F1A150610796 | D33: 661 | E33: 671 | F33: 1 | G33: =E33-D33 -> 10 | H33: 4.39 | I33: =G33*H33 -> 43.9
A34: 蒸汽发生器用水总合计: | G34: =G33 -> 10 | H34: 4.39 | I34: =G34*H34 -> 43.9
A35: 水、电、气费用总合计（水/电/气价预估单价,单价需以实际缴费为准）： | G35: =I14++I20+I26+I30+I32+I34 -> 5163.3613
A36: 638
A37: 流量计量表 | B37: 分项 | C37: 昨日流量 | E37: 今日流量 | G37: 用量 | H37: 备注
B38: 中央空调冷冻流量 | C38: 0 | E38: 0 | G38: =E38-C38 -> 0
B39: 中央空调冷却流量 | C39: 0 | E39: 0 | G39: =E39-C39 -> 0
B40: 中央空调采暖流量 | C40: 0 | E40: 0 | G40: =E40-C40 -> 0
B41: 蒸汽流量 | C41: 0 | E41: 0 | G41: =E41-C41 -> 0

Sheet 2025.6.29
A2: 2025年 6月 29日
A3: 最低气温：24 ℃，最高气温：34 ℃ ， 住房量：171间
A4: 宴会/会议信息 中餐厅以及昆西有早餐，中餐厅.昆西有午宴 中餐厅以及昆西有晚宴 奥尔良波士顿上午有会议
A5: 名称 | B5: 位置 | C5: 编号 | D5: 昨日读数 | E5: 今日读数 | F5: 倍率 | G5: 合计 | H5: 单价 | I5: 费用
A6: 电表 | B6: 磁悬浮3号空调主机 | D6: 214714 | E6: 217033 | F6: 1 | G6: =(E6-D6)*F6 -> 2319 | H6: 0.689 | I6: =G6*H6 -> 1597.791
A7: 电表 | B7: 变频5号冷冻泵 | D7: 69001.3 | E7: 69832.1 | F7: 1 | G7: 830.8 | H7: 0.689 | I7: 572.4212
A8: 电表 | B8: 4号冷冻泵 | D8: 211856.7 | E8: 211856.7 | F8: 1 | G8: 0 | H8: 0.689 | I8: =G8*H8 -> 0
A9: 电表 | B9: 变频5号冷却泵 | D9: 74411 | E9: 75100.4 | F9: 1 | G9: 689.4 | H9: 0.689 | I9: 474.9966
A10: 电表 | B10: 4号冷却泵 | D10: 268537.7 | E10: 268961.1 | F10: 1 | G10: 423.4 | H10: 0.689 | I10: =G10*H10 -> 291.7226
A11: 电表 | B11: 变频1号冷却塔 | D11: 147903.1 | E11: 148058.4 | F11: 1 | G11: 155.3 | H11: 0.689 | I11: 107.0017
A12: 电表 | B12: 变频2号冷却塔 | D12: 323494.8 | E12: 323631.6 | F12: 1 | G12: 136.8 | H12: 0.689 | I12: 94.2552
A13: 电表 | B13: 变频3号冷却塔 | D13: 301251.1 | E13: 301432.8 | F13: 1 | G13: 181.7 | H13: 0.689 | I13: 125.1913
A14: 空调系统用电总合计： | G14: =G6+G7+G8+G9+G10+G11+G12+G13 -> 4736.4 | H14: 0.689 | I14: =I6+I7+I8+I9+I10+I11+I12+I13 -> 3263.3796
A16: 电表 | B16: 三楼热泵控制柜 | C16: 2025020 50017 | D16: 172.3 | E16: 173.6 | F16: 80 | G16: =(E16-D16)*F16 -> 104 | H16: 0.689 | I16: 71.656
A17: 电表 | B17: 三楼变频水泵控制柜 | C17: 2024085 00211 | D17: 650.8 | E17: 659.5 | F17: 20 | G17: 174 | H17: 0.689 | I17: 119.886
A18: 电表 | B18: 洗衣房热泵控制柜 | C18: 202502 05102 | D18: 548.1 | E18: 553.8 | F18: 20 | G18: 114 | H18: 0.689 | I18: 78.546
A19: 电表 | B19: 群楼中厨水泵控制柜 | C19: 2025020 50063 | D19: 286 | E19: 290.1 | F19: 20 | G19: 82 | H19: 0.689 | I19: 56.498
A20: 热水热泵系统用电总合计： | G20: =G16+G17+G18+G19 -> 474 | H20: 0.689 | I20: =I16+I17+I18+I19 -> 326.586
A22: 水表 | B22: 空调冷冻水 | D22: 0 | E22: 0 | F22: 1 | G22: =E22-D22 -> 0 | H22: 4.39 | I22: =G22*H22 -> 0
A23: 水表 | B23: 空调冷却水 | D23: 0 | E23: 0 | F23: 1 | G23: =E23-D23 -> 0 | H23: 4.39 | I23: =G23*H23 -> 0
A24: 水表 | B24: 三楼中、高区热水 | C24: M9A25024017786 | D24: 2035 | E24: 2058 | F24: 1 | G24: =E24-D24 -> 23 | H24: 4.39 | I24: =G24*H24 -> 100.97
A25: 水表 | B25: 群楼、中厨房热水 | C25: M9A25024017857 | D25: 2033 | E25: 2065 | F25: 1 | G25: =E25-D25 -> 32 | H25: 4.39 | I25: =G25*H25 -> 140.48
A26: 热水热泵系统用水总合计: | G26: =G24+G25+G23+G22 -> 55 | H26: 4.39 | I26: =I24+I25+I23+I22 -> 241.45
A28: 燃气表（常用） | B28: 蒸汽发生器+采暖 | D28: 24072 | E28: 24333 | F28: 1 | G28: =E28-D28 -> 261 | H28: 5.54 | I28: =G28*H28 -> 1445.94
A29: 燃气表（备用） | B29: 蒸汽发生器+采暖 | D29: 18871 | E29: 18871 | F29: 1 | G29: =(E29-D29)*F29 -> 0 | H29: 5.54 | I29: =G29*H29 -> 0
A30: 蒸汽发生器+采暖用气总合计： | G30: =G28+G29 -> 261 | H30: 5.54 | I30: =I28+I29 -> 1445.94
A31: 电表 | B31: 蒸汽发生器+采暖 | C31: 202011 500026 | D31: 1219 | E31: 1239.1 | F31: 1 | G31: =(E31-D31)*F31 -> 20.1 | H31: 0.689 | I31: =G31*H31 -> 13.8489
A32: 蒸汽发生器+采暖用电总合计： | G32: =G31 -> 20.1 | H32: 0.689 | I32: =G32*H32 -> 13.8489
A33: 水表 | B33: 蒸汽发生器+采暖 | C33: F1A150610796 | D33: 671 | E33: 682 | F33: 1 | G33: =E33-D33 -> 11 | H33: 4.39 | I33: =G33*H33 -> 48.29
A34: 蒸汽发生器用水总合计: | G34: =G33 -> 11 | H34: 4.39 | I34: =G34*H34 -> 48.29
A35: 水、电、气费用总合计（水/电/气价预估单价,单价需以实际缴费为准）： | G35: =I14++I20+I26+I30+I32+I34 -> 5339.4945
A36: 638
A37: 流量计量表 | B37: 分项 | C37: 昨日流量 | E37: 今日流量 | G37: 用量 | H37: 备注
B38: 中央空调冷冻流量 | C38: 0 | E38: 0 | G38: =E38-C38 -> 0
B39: 中央空调冷却流量 | C39: 0 | E39: 0 | G39: =E39-C39 -> 0
B40: 中央空调采暖流量 | C40: 0 | E40: 0 | G40: =E40-C40 -> 0
B41: 蒸汽流量 | C41: 0 | E41: 0 | G41: =E41-C41 -> 0

Sheet 2025.6.30
A2: 2025年 6月 30日
A3: 最低气温：24 ℃，最高气温：33 ℃ ， 住房量：105间
A4: 宴会/会议信息
A5: 名称 | B5: 位置 | C5: 编号 | D5: 昨日读数 | E5: 今日读数 | F5: 倍率 | G5: 合计 | H5: 单价 | I5: 费用
A6: 电表 | B6: 磁悬浮3号空调主机 | D6: 217033 | E6: 219219 | F6: 1 | G6: =(E6-D6)*F6 -> 2186 | H6: 0.689 | I6: =G6*H6 -> 1506.154
A7: 电表 | B7: 变频5号冷冻泵 | D7: 69832.1 | E7: 70711.1 | F7: 1 | G7: 879 | H7: 0.689 | I7: 605.631
A8: 电表 | B8: 4号冷冻泵 | D8: 211856.7 | E8: 211856.7 | F8: 1 | G8: 0 | H8: 0.689 | I8: =G8*H8 -> 0
A9: 电表 | B9: 变频5号冷却泵 | D9: 75100.4 | E9: 75753.6 | F9: 1 | G9: 653.2 | H9: 0.689 | I9: 450.0548
A10: 电表 | B10: 4号冷却泵 | D10: 268961.1 | E10: 269367.5 | F10: 1 | G10: 406.4 | H10: 0.689 | I10: =G10*H10 -> 280.0096
A11: 电表 | B11: 变频1号冷却塔 | D11: 148058.4 | E11: 148193.5 | F11: 1 | G11: 135.1 | H11: 0.689 | I11: 93.0839
A12: 电表 | B12: 变频2号冷却塔 | D12: 323631.6 | E12: 323783 | F12: 1 | G12: 151.4 | H12: 0.689 | I12: 104.3146
A13: 电表 | B13: 变频3号冷却塔 | D13: 301432.8 | E13: 301556.7 | F13: 1 | G13: 123.9 | H13: 0.689 | I13: 85.3671
A14: 空调系统用电总合计： | G14: =G6+G7+G8+G9+G10+G11+G12+G13 -> 4535 | H14: 0.689 | I14: =I6+I7+I8+I9+I10+I11+I12+I13 -> 3124.615
A16: 电表 | B16: 三楼热泵控制柜 | C16: 2025020 50017 | D16: 173.6 | E16: 174.7 | F16: 80 | G16: =(E16-D16)*F16 -> 88 | H16: 0.689 | I16: 60.632
A17: 电表 | B17: 三楼变频水泵控制柜 | C17: 2024085 00211 | D17: 659.5 | E17: 668.2 | F17: 20 | G17: 174 | H17: 0.689 | I17: 119.886
A18: 电表 | B18: 洗衣房热泵控制柜 | C18: 202502 05102 | D18: 553.8 | E18: 558.8 | F18: 20 | G18: 100 | H18: 0.689 | I18: 68.9
A19: 电表 | B19: 群楼中厨水泵控制柜 | C19: 2025020 50063 | D19: 290.1 | E19: 293.6 | F19: 20 | G19: 70 | H19: 0.689 | I19: 48.23
A20: 热水热泵系统用电总合计： | G20: =G16+G17+G18+G19 -> 432 | H20: 0.689 | I20: =I16+I17+I18+I19 -> 297.648
A22: 水表 | B22: 空调冷冻水 | D22: 0 | E22: 0 | F22: 1 | G22: =E22-D22 -> 0 | H22: 4.39 | I22: =G22*H22 -> 0
A23: 水表 | B23: 空调冷却水 | D23: 0 | E23: 0 | F23: 1 | G23: =E23-D23 -> 0 | H23: 4.39 | I23: =G23*H23 -> 0
A24: 水表 | B24: 三楼中、高区热水 | C24: M9A25024017786 | D24: 2058 | E24: 2073 | F24: 1 | G24: =E24-D24 -> 15 | H24: 4.39 | I24: =G24*H24 -> 65.85
A25: 水表 | B25: 群楼、中厨房热水 | C25: M9A25024017857 | D25: 2065 | E25: 2088 | F25: 1 | G25: =E25-D25 -> 23 | H25: 4.39 | I25: =G25*H25 -> 100.97
A26: 热水热泵系统用水总合计: | G26: =G24+G25+G23+G22 -> 38 | H26: 4.39 | I26: =I24+I25+I23+I22 -> 166.82
A28: 燃气表（常用） | B28: 蒸汽发生器+采暖 | D28: 24333 | E28: 24573 | F28: 1 | G28: =E28-D28 -> 240 | H28: 5.54 | I28: =G28*H28 -> 1329.6
A29: 燃气表（备用） | B29: 蒸汽发生器+采暖 | D29: 18871 | E29: 18871 | F29: 1 | G29: =(E29-D29)*F29 -> 0 | H29: 5.54 | I29: =G29*H29 -> 0
A30: 蒸汽发生器+采暖用气总合计： | G30: =G28+G29 -> 240 | H30: 5.54 | I30: =I28+I29 -> 1329.6
A31: 电表 | B31: 蒸汽发生器+采暖 | C31: 202011 500026 | D31: 1239.1 | E31: 1257.4 | F31: 1 | G31: =(E31-D31)*F31 -> 18.3 | H31: 0.689 | I31: =G31*H31 -> 12.6087
A32: 蒸汽发生器+采暖用电总合计： | G32: =G31 -> 18.3 | H32: 0.689 | I32: =G32*H32 -> 12.6087
A33: 水表 | B33: 蒸汽发生器+采暖 | C33: F1A150610796 | D33: 682 | E33: 692 | F33: 1 | G33: =E33-D33 -> 10 | H33: 4.39 | I33: =G33*H33 -> 43.9
A34: 蒸汽发生器用水总合计: | G34: =G33 -> 10 | H34: 4.39 | I34: =G34*H34 -> 43.9
A35: 水、电、气费用总合计（水/电/气价预估单价,单价需以实际缴费为准）： | G35: =I14++I20+I26+I30+I32+I34 -> 4975.1917
A36: 638
A37: 流量计量表 | B37: 分项 | C37: 昨日流量 | E37: 今日流量 | G37: 用量 | H37: 备注
B38: 中央空调冷冻流量 | C38: 0 | E38: 0 | G38: =E38-C38 -> 0
B39: 中央空调冷却流量 | C39: 0 | E39: 0 | G39: =E39-C39 -> 0
B40: 中央空调采暖流量 | C40: 0 | E40: 0 | G40: =E40-C40 -> 0
B41: 蒸汽流量 | C41: 0 | E41: 0 | G41: =E41-C41 -> 0

Sheet 2025.7.1
A2: 2025年 7月 1日
A3: 最低气温：24 ℃，最高气温：37 ℃ ， 住房量：207间
A4: 宴会/会议信息 中餐厅.昆西有午宴 中餐厅以及昆西有晚宴
A5: 名称 | B5: 位置 | C5: 编号 | D5: 昨日读数 | E5: 今日读数 | F5: 倍率 | G5: 合计 | H5: 单价 | I5: 费用
A6: 电表 | B6: 磁悬浮3号空调主机 | D6: 219219 | E6: 221607 | F6: 1 | G6: =(E6-D6)*F6 -> 2388 | H6: 0.689 | I6: =G6*H6 -> 1645.332
A7: 电表 | B7: 变频5号冷冻泵 | D7: 70711.1 | E7: 71749.5 | F7: 1 | G7: 1038.4 | H7: 0.689 | I7: 715.4576
A8: 电表 | B8: 4号冷冻泵 | D8: 211856.7 | E8: 211856.7 | F8: 1 | G8: 0 | H8: 0.689 | I8: =G8*H8 -> 0
A9: 电表 | B9: 变频5号冷却泵 | D9: 75753.6 | E9: 76302.5 | F9: 1 | G9: 548.9 | H9: 0.689 | I9: 378.1921
A10: 电表 | B10: 4号冷却泵 | D10: 269367.5 | E10: 269861.8 | F10: 1 | G10: 494.3 | H10: 0.689 | I10: =G10*H10 -> 340.5727
A11: 电表 | B11: 变频1号冷却塔 | D11: 148193.5 | E11: 148342.8 | F11: 1 | G11: 149.3 | H11: 0.689 | I11: 102.8677
A12: 电表 | B12: 变频2号冷却塔 | D12: 323783 | E12: 323952.2 | F12: 1 | G12: 169.2 | H12: 0.689 | I12: 116.5788
A13: 电表 | B13: 变频3号冷却塔 | D13: 301556.7 | E13: 301670.6 | F13: 1 | G13: 113.9 | H13: 0.689 | I13: 78.4771
A14: 空调系统用电总合计： | G14: =G6+G7+G8+G9+G10+G11+G12+G13 -> 4902 | H14: 0.689 | I14: =I6+I7+I8+I9+I10+I11+I12+I13 -> 3377.478
A16: 电表 | B16: 三楼热泵控制柜 | C16: 2025020 50017 | D16: 174.7 | E16: 176 | F16: 80 | G16: =(E16-D16)*F16 -> 104 | H16: 0.689 | I16: 71.656
A17: 电表 | B17: 三楼变频水泵控制柜 | C17: 2024085 00211 | D17: 668.2 | E17: 677 | F17: 20 | G17: 176 | H17: 0.689 | I17: 121.264
A18: 电表 | B18: 洗衣房热泵控制柜 | C18: 202502 05102 | D18: 558.8 | E18: 563.6 | F18: 20 | G18: 96 | H18: 0.689 | I18: 66.144
A19: 电表 | B19: 群楼中厨水泵控制柜 | C19: 2025020 50063 | D19: 293.6 | E19: 297.2 | F19: 20 | G19: 72 | H19: 0.689 | I19: 49.608
A20: 热水热泵系统用电总合计： | G20: =G16+G17+G18+G19 -> 448 | H20: 0.689 | I20: =I16+I17+I18+I19 -> 308.672
A22: 水表 | B22: 空调冷冻水 | D22: 0 | E22: 0 | F22: 1 | G22: =E22-D22 -> 0 | H22: 4.39 | I22: =G22*H22 -> 0
A23: 水表 | B23: 空调冷却水 | D23: 0 | E23: 0 | F23: 1 | G23: =E23-D23 -> 0 | H23: 4.39 | I23: =G23*H23 -> 0
A24: 水表 | B24: 三楼中、高区热水 | C24: M9A25024017786 | D24: 2073 | E24: 2094 | F24: 1 | G24: =E24-D24 -> 21 | H24: 4.39 | I24: =G24*H24 -> 92.19
A25: 水表 | B25: 群楼、中厨房热水 | C25: M9A25024017857 | D25: 2088 | E25: 2111 | F25: 1 | G25: =E25-D25 -> 23 | H25: 4.39 | I25: =G25*H25 -> 100.97
A26: 热水热泵系统用水总合计: | G26: =G24+G25+G23+G22 -> 44 | H26: 4.39 | I26: =I24+I25+I23+I22 -> 193.16
A28: 燃气表（常用） | B28: 蒸汽发生器+采暖 | D28: 24573 | E28: 24811 | F28: 1 | G28: =E28-D28 -> 238 | H28: 5.54 | I28: =G28*H28 -> 1318.52
A29: 燃气表（备用） | B29: 蒸汽发生器+采暖 | D29: 18871 | E29: 18871 | F29: 1 | G29: =(E29-D29)*F29 -> 0 | H29: 5.54 | I29: =G29*H29 -> 0
A30: 蒸汽发生器+采暖用气总合计： | G30: =G28+G29 -> 238 | H30: 5.54 | I30: =I28+I29 -> 1318.52
A31: 电表 | B31: 蒸汽发生器+采暖 | C31: 202011 500026 | D31: 1257.4 | E31: 1275.4 | F31: 1 | G31: =(E31-D31)*F31 -> 18 | H31: 0.689 | I31: =G31*H31 -> 12.402
A32: 蒸汽发生器+采暖用电总合计： | G32: =G31 -> 18 | H32: 0.689 | I32: =G32*H32 -> 12.402
A33: 水表 | B33: 蒸汽发生器+采暖 | C33: F1A150610796 | D33: 692 | E33: 700 | F33: 1 | G33: =E33-D33 -> 8 | H33: 4.39 | I33: =G33*H33 -> 35.12
A34: 蒸汽发生器用水总合计: | G34: =G33 -> 8 | H34: 4.39 | I34: =G34*H34 -> 35.12
A35: 水、电、气费用总合计（水/电/气价预估单价,单价需以实际缴费为准）： | G35: =I14++I20+I26+I30+I32+I34 -> 5245.352
A36: 638
A37: 流量计量表 | B37: 分项 | C37: 昨日流量 | E37: 今日流量 | G37: 用量 | H37: 备注
B38: 中央空调冷冻流量 | C38: 0 | E38: 0 | G38: =E38-C38 -> 0
B39: 中央空调冷却流量 | C39: 0 | E39: 0 | G39: =E39-C39 -> 0
B40: 中央空调采暖流量 | C40: 0 | E40: 0 | G40: =E40-C40 -> 0
B41: 蒸汽流量 | C41: 0 | E41: 0 | G41: =E41-C41 -> 0

Sheet 2025.7.2
A2: 2025年 7月 2日
A3: 最低气温：25 ℃，最高气温：36 ℃ ， 住房量：244间
A4: 宴会/会议信息 中餐厅.昆西有午宴 中餐厅以及昆西有晚宴 中餐厅以及昆西有早餐 昆斯.3厅上午有会议
A5: 名称 | B5: 位置 | C5: 编号 | D5: 昨日读数 | E5: 今日读数 | F5: 倍率 | G5: 合计 | H5: 单价 | I5: 费用
A6: 电表 | B6: 磁悬浮3号空调主机 | D6: 221607 | E6: 224053 | F6: 1 | G6: =(E6-D6)*F6 -> 2446 | H6: 0.689 | I6: =G6*H6 -> 1685.294
A7: 电表 | B7: 变频5号冷冻泵 | D7: 71749.5 | E7: 72516.1 | F7: 1 | G7: 766.6 | H7: 0.689 | I7: 528.1874
A8: 电表 | B8: 4号冷冻泵 | D8: 211856.7 | E8: 211856.7 | F8: 1 | G8: 0 | H8: 0.689 | I8: =G8*H8 -> 0
A9: 电表 | B9: 变频5号冷却泵 | D9: 76302.5 | E9: 76778.4 | F9: 1 | G9: 475.9 | H9: 0.689 | I9: 327.8951
A10: 电表 | B10: 4号冷却泵 | D10: 269861.8 | E10: 270500.1 | F10: 1 | G10: 638.3 | H10: 0.689 | I10: =G10*H10 -> 439.7887
A11: 电表 | B11: 变频1号冷却塔 | D11: 148342.8 | E11: 148459.9 | F11: 1 | G11: 117.1 | H11: 0.689 | I11: 80.6819
A12: 电表 | B12: 变频2号冷却塔 | D12: 323952.2 | E12: 324131.2 | F12: 1 | G12: 179 | H12: 0.689 | I12: 123.331
A13: 电表 | B13: 变频3号冷却塔 | D13: 301670.6 | E13: 301838.2 | F13: 1 | G13: 167.6 | H13: 0.689 | I13: 115.4764
A14: 空调系统用电总合计： | G14: =G6+G7+G8+G9+G10+G11+G12+G13 -> 4790.5 | H14: 0.689 | I14: =I6+I7+I8+I9+I10+I11+I12+I13 -> 3300.6545
A16: 电表 | B16: 三楼热泵控制柜 | C16: 2025020 50017 | D16: 176 | E16: 177.4 | F16: 80 | G16: =(E16-D16)*F16 -> 112 | H16: 0.689 | I16: 77.168
A17: 电表 | B17: 三楼变频水泵控制柜 | C17: 2024085 00211 | D17: 677 | E17: 685.7 | F17: 20 | G17: 174 | H17: 0.689 | I17: 119.886
A18: 电表 | B18: 洗衣房热泵控制柜 | C18: 202502 05102 | D18: 563.6 | E18: 568.2 | F18: 20 | G18: 92 | H18: 0.689 | I18: 63.388
A19: 电表 | B19: 群楼中厨水泵控制柜 | C19: 2025020 50063 | D19: 297.2 | E19: 300.8 | F19: 20 | G19: 72 | H19: 0.689 | I19: 49.608
A20: 热水热泵系统用电总合计： | G20: =G16+G17+G18+G19 -> 450 | H20: 0.689 | I20: =I16+I17+I18+I19 -> 310.05
A22: 水表 | B22: 空调冷冻水 | D22: 0 | E22: 0 | F22: 1 | G22: =E22-D22 -> 0 | H22: 4.39 | I22: =G22*H22 -> 0
A23: 水表 | B23: 空调冷却水 | D23: 0 | E23: 0 | F23: 1 | G23: =E23-D23 -> 0 | H23: 4.39 | I23: =G23*H23 -> 0
A24: 水表 | B24: 三楼中、高区热水 | C24: M9A25024017786 | D24: 2094 | E24: 2122 | F24: 1 | G24: =E24-D24 -> 28 | H24: 4.39 | I24: =G24*H24 -> 122.92
A25: 水表 | B25: 群楼、中厨房热水 | C25: M9A25024017857 | D25: 2111 | E25: 2138 | F25: 1 | G25: =E25-D25 -> 27 | H25: 4.39 | I25: =G25*H25 -> 118.53
A26: 热水热泵系统用水总合计: | G26: =G24+G25+G23+G22 -> 55 | H26: 4.39 | I26: =I24+I25+I23+I22 -> 241.45
A28: 燃气表（常用） | B28: 蒸汽发生器+采暖 | D28: 24811 | E28: 25049 | F28: 1 | G28: =E28-D28 -> 238 | H28: 5.54 | I28: =G28*H28 -> 1318.52
A29: 燃气表（备用） | B29: 蒸汽发生器+采暖 | D29: 18871 | E29: 18871 | F29: 1 | G29: =(E29-D29)*F29 -> 0 | H29: 5.54 | I29: =G29*H29 -> 0
A30: 蒸汽发生器+采暖用气总合计： | G30: =G28+G29 -> 238 | H30: 5.54 | I30: =I28+I29 -> 1318.52
A31: 电表 | B31: 蒸汽发生器+采暖 | C31: 202011 500026 | D31: 1275.4 | E31: 1294 | F31: 1 | G31: =(E31-D31)*F31 -> 18.6 | H31: 0.689 | I31: =G31*H31 -> 12.8154
A32: 蒸汽发生器+采暖用电总合计： | G32: =G31 -> 18.6 | H32: 0.689 | I32: =G32*H32 -> 12.8154
A33: 水表 | B33: 蒸汽发生器+采暖 | C33: F1A150610796 | D33: 700 | E33: 709 | F33: 1 | G33: =E33-D33 -> 9 | H33: 4.39 | I33: =G33*H33 -> 39.51
A34: 蒸汽发生器用水总合计: | G34: =G33 -> 9 | H34: 4.39 | I34: =G34*H34 -> 39.51
A35: 水、电、气费用总合计（水/电/气价预估单价,单价需以实际缴费为准）： | G35: =I14++I20+I26+I30+I32+I34 -> 5222.9999
A36: 638
A37: 流量计量表 | B37: 分项 | C37: 昨日流量 | E37: 今日流量 | G37: 用量 | H37: 备注
B38: 中央空调冷冻流量 | C38: 0 | E38: 0 | G38: =E38-C38 -> 0
B39: 中央空调冷却流量 | C39: 0 | E39: 0 | G39: =E39-C39 -> 0
B40: 中央空调采暖流量 | C40: 0 | E40: 0 | G40: =E40-C40 -> 0
B41: 蒸汽流量 | C41: 0 | E41: 0 | G41: =E41-C41 -> 0

Sheet 2025.7.3
A2: 2025年 7月 3日
A3: 最低气温：27 ℃，最高气温：37 ℃ ， 住房量：240间
A4: 宴会/会议信息 中餐厅.昆西有午宴 中餐厅以及昆西有晚宴 中餐厅以及昆西有早餐 .乔治亚上午有会议
A5: 名称 | B5: 位置 | C5: 编号 | D5: 昨日读数 | E5: 今日读数 | F5: 倍率 | G5: 合计 | H5: 单价 | I5: 费用
A6: 电表 | B6: 磁悬浮3号空调主机 | D6: 224053 | E6: 226630 | F6: 1 | G6: =(E6-D6)*F6 -> 2577 | H6: 0.689 | I6: =G6*H6 -> 1775.553
A7: 电表 | B7: 变频5号冷冻泵 | D7: 72516.1 | E7: 73324.7 | F7: 1 | G7: 808.6 | H7: 0.689 | I7: 557.1254
A8: 电表 | B8: 4号冷冻泵 | D8: 211856.7 | E8: 211856.7 | F8: 1 | G8: 0 | H8: 0.689 | I8: =G8*H8 -> 0
A9: 电表 | B9: 变频5号冷却泵 | D9: 76778.4 | E9: 77432 | F9: 1 | G9: 653.6 | H9: 0.689 | I9: 450.3304
A10: 电表 | B10: 4号冷却泵 | D10: 270500.1 | E10: 270958.6 | F10: 1 | G10: 458.5 | H10: 0.689 | I10: =G10*H10 -> 315.9065
A11: 电表 | B11: 变频1号冷却塔 | D11: 148459.9 | E11: 148607.6 | F11: 1 | G11: 147.7 | H11: 0.689 | I11: 101.7653
A12: 电表 | B12: 变频2号冷却塔 | D12: 324131.2 | E12: 324297.8 | F12: 1 | G12: 166.6 | H12: 0.689 | I12: 114.7874
A13: 电表 | B13: 变频3号冷却塔 | D13: 301838.2 | E13: 301994.2 | F13: 1 | G13: 156 | H13: 0.689 | I13: 107.484
A14: 空调系统用电总合计： | G14: =G6+G7+G8+G9+G10+G11+G12+G13 -> 4968 | H14: 0.689 | I14: =I6+I7+I8+I9+I10+I11+I12+I13 -> 3422.952
A16: 电表 | B16: 三楼热泵控制柜 | C16: 2025020 50017 | D16: 177.4 | E16: 179 | F16: 80 | G16: =(E16-D16)*F16 -> 128 | H16: 0.689 | I16: 88.192
A17: 电表 | B17: 三楼变频水泵控制柜 | C17: 2024085 00211 | D17: 685.7 | E17: 694.6 | F17: 20 | G17: 178 | H17: 0.689 | I17: 122.642
A18: 电表 | B18: 洗衣房热泵控制柜 | C18: 202502 05102 | D18: 568.2 | E18: 572.4 | F18: 20 | G18: 84 | H18: 0.689 | I18: 57.876
A19: 电表 | B19: 群楼中厨水泵控制柜 | C19: 2025020 50063 | D19: 300.8 | E19: 304.4 | F19: 20 | G19: 72 | H19: 0.689 | I19: 49.608
A20: 热水热泵系统用电总合计： | G20: =G16+G17+G18+G19 -> 462 | H20: 0.689 | I20: =I16+I17+I18+I19 -> 318.318
A22: 水表 | B22: 空调冷冻水 | D22: 0 | E22: 0 | F22: 1 | G22: =E22-D22 -> 0 | H22: 4.39 | I22: =G22*H22 -> 0
A23: 水表 | B23: 空调冷却水 | D23: 0 | E23: 0 | F23: 1 | G23: =E23-D23 -> 0 | H23: 4.39 | I23: =G23*H23 -> 0
A24: 水表 | B24: 三楼中、高区热水 | C24: M9A25024017786 | D24: 2122 | E24: 2154 | F24: 1 | G24: =E24-D24 -> 32 | H24: 4.39 | I24: =G24*H24 -> 140.48
A25: 水表 | B25: 群楼、中厨房热水 | C25: M9A25024017857 | D25: 2138 | E25: 2164 | F25: 1 | G25: =E25-D25 -> 26 | H25: 4.39 | I25: =G25*H25 -> 114.14
A26: 热水热泵系统用水总合计: | G26: =G24+G25+G23+G22 -> 58 | H26: 4.39 | I26: =I24+I25+I23+I22 -> 254.62
A28: 燃气表（常用） | B28: 蒸汽发生器+采暖 | D28: 25049 | E28: 25295 | F28: 1 | G28: =E28-D28 -> 246 | H28: 5.54 | I28: =G28*H28 -> 1362.84
A29: 燃气表（备用） | B29: 蒸汽发生器+采暖 | D29: 18871 | E29: 18871 | F29: 1 | G29: =(E29-D29)*F29 -> 0 | H29: 5.54 | I29: =G29*H29 -> 0
A30: 蒸汽发生器+采暖用气总合计： | G30: =G28+G29 -> 246 | H30: 5.54 | I30: =I28+I29 -> 1362.84
A31: 电表 | B31: 蒸汽发生器+采暖 | C31: 202011 500026 | D31: 1275.4 | E31: 1313 | F31: 1 | G31: =(E31-D31)*F31 -> 37.6 | H31: 0.689 | I31: =G31*H31 -> 25.9064
A32: 蒸汽发生器+采暖用电总合计： | G32: =G31 -> 37.6 | H32: 0.689 | I32: =G32*H32 -> 25.9064
A33: 水表 | B33: 蒸汽发生器+采暖 | C33: F1A150610796 | D33: 700 | E33: 720 | F33: 1 | G33: =E33-D33 -> 20 | H33: 4.39 | I33: =G33*H33 -> 87.8
A34: 蒸汽发生器用水总合计: | G34: =G33 -> 20 | H34: 4.39 | I34: =G34*H34 -> 87.8
A35: 水、电、气费用总合计（水/电/气价预估单价,单价需以实际缴费为准）： | G35: =I14++I20+I26+I30+I32+I34 -> 5472.4364
A36: 638
A37: 流量计量表 | B37: 分项 | C37: 昨日流量 | E37: 今日流量 | G37: 用量 | H37: 备注
B38: 中央空调冷冻流量 | C38: 0 | E38: 0 | G38: =E38-C38 -> 0
B39: 中央空调冷却流量 | C39: 0 | E39: 0 | G39: =E39-C39 -> 0
B40: 中央空调采暖流量 | C40: 0 | E40: 0 | G40: =E40-C40 -> 0
B41: 蒸汽流量 | C41: 0 | E41: 0 | G41: =E41-C41 -> 0

Sheet 2025.7.4
A2: 2025年 7月 4日
A3: 最低气温：26 ℃，最高气温：37 ℃ ， 住房量：235间
A4: 宴会/会议信息 中餐厅.昆西有午宴 中餐厅以及昆西有晚宴 中餐厅以及昆西有早餐 .乔治亚上午有会议
A5: 名称 | B5: 位置 | C5: 编号 | D5: 昨日读数 | E5: 今日读数 | F5: 倍率 | G5: 合计 | H5: 单价 | I5: 费用
A6: 电表 | B6: 磁悬浮3号空调主机 | D6: 226630 | E6: 229172 | F6: 1 | G6: =(E6-D6)*F6 -> 2542 | H6: 0.689 | I6: =G6*H6 -> 1751.438
A7: 电表 | B7: 变频5号冷冻泵 | D7: 73324.7 | E7: 74407.5 | F7: 1 | G7: 1082.8 | H7: 0.689 | I7: 746.0492
A8: 电表 | B8: 4号冷冻泵 | D8: 211856.7 | E8: 211856.7 | F8: 1 | G8: 0 | H8: 0.689 | I8: =G8*H8 -> 0
A9: 电表 | B9: 变频5号冷却泵 | D9: 77432 | E9: 77993.6 | F9: 1 | G9: 561.6 | H9: 0.689 | I9: 386.9424
A10: 电表 | B10: 4号冷却泵 | D10: 270958.6 | E10: 271418.9 | F10: 1 | G10: 460.3 | H10: 0.689 | I10: =G10*H10 -> 317.1467
A11: 电表 | B11: 变频1号冷却塔 | D11: 148607.6 | E11: 148764.4 | F11: 1 | G11: 156.8 | H11: 0.689 | I11: 108.0352
A12: 电表 | B12: 变频2号冷却塔 | D12: 324297.8 | E12: 324421.9 | F12: 1 | G12: 124.1 | H12: 0.689 | I12: 85.5049
A13: 电表 | B13: 变频3号冷却塔 | D13: 301994.2 | E13: 302161 | F13: 1 | G13: 166.8 | H13: 0.689 | I13: 114.9252
A14: 空调系统用电总合计： | G14: =G6+G7+G8+G9+G10+G11+G12+G13 -> 5094.4 | H14: 0.689 | I14: =I6+I7+I8+I9+I10+I11+I12+I13 -> 3510.0416
A16: 电表 | B16: 三楼热泵控制柜 | C16: 2025020 50017 | D16: 179 | E16: 180.5 | F16: 80 | G16: =(E16-D16)*F16 -> 120 | H16: 0.689 | I16: 82.68
A17: 电表 | B17: 三楼变频水泵控制柜 | C17: 2024085 00211 | D17: 694.6 | E17: 703.3 | F17: 20 | G17: 174 | H17: 0.689 | I17: 119.886
A18: 电表 | B18: 洗衣房热泵控制柜 | C18: 202502 05102 | D18: 572.4 | E18: 577.7 | F18: 20 | G18: 106 | H18: 0.689 | I18: 73.034
A19: 电表 | B19: 群楼中厨水泵控制柜 | C19: 2025020 50063 | D19: 304.4 | E19: 308 | F19: 20 | G19: 72 | H19: 0.689 | I19: 49.608
A20: 热水热泵系统用电总合计： | G20: =G16+G17+G18+G19 -> 472 | H20: 0.689 | I20: =I16+I17+I18+I19 -> 325.208
A22: 水表 | B22: 空调冷冻水 | D22: 0 | E22: 0 | F22: 1 | G22: =E22-D22 -> 0 | H22: 4.39 | I22: =G22*H22 -> 0
A23: 水表 | B23: 空调冷却水 | D23: 0 | E23: 0 | F23: 1 | G23: =E23-D23 -> 0 | H23: 4.39 | I23: =G23*H23 -> 0
A24: 水表 | B24: 三楼中、高区热水 | C24: M9A25024017786 | D24: 2154 | E24: 2169 | F24: 1 | G24: =E24-D24 -> 15 | H24: 4.39 | I24: =G24*H24 -> 65.85
A25: 水表 | B25: 群楼、中厨房热水 | C25: M9A25024017857 | D25: 2164 | E25: 2197 | F25: 1 | G25: =E25-D25 -> 33 | H25: 4.39 | I25: =G25*H25 -> 144.87
A26: 热水热泵系统用水总合计: | G26: =G24+G25+G23+G22 -> 48 | H26: 4.39 | I26: =I24+I25+I23+I22 -> 210.72
A28: 燃气表（常用） | B28: 蒸汽发生器+采暖 | D28: 25295 | E28: 25547 | F28: 1 | G28: =E28-D28 -> 252 | H28: 5.54 | I28: =G28*H28 -> 1396.08
A29: 燃气表（备用） | B29: 蒸汽发生器+采暖 | D29: 18871 | E29: 18871 | F29: 1 | G29: =(E29-D29)*F29 -> 0 | H29: 5.54 | I29: =G29*H29 -> 0
A30: 蒸汽发生器+采暖用气总合计： | G30: =G28+G29 -> 252 | H30: 5.54 | I30: =I28+I29 -> 1396.08
A31: 电表 | B31: 蒸汽发生器+采暖 | C31: 202011 500026 | D31: 1313 | E31: 1331.9 | F31: 1 | G31: =(E31-D31)*F31 -> 18.9 | H31: 0.689 | I31: =G31*H31 -> 13.0221
A32: 蒸汽发生器+采暖用电总合计： | G32: =G31 -> 18.9 | H32: 0.689 | I32: =G32*H32 -> 13.0221
A33: 水表 | B33: 蒸汽发生器+采暖 | C33: F1A150610796 | D33: 720 | E33: 729 | F33: 1 | G33: =E33-D33 -> 9 | H33: 4.39 | I33: =G33*H33 -> 39.51
A34: 蒸汽发生器用水总合计: | G34: =G33 -> 9 | H34: 4.39 | I34: =G34*H34 -> 39.51
A35: 水、电、气费用总合计（水/电/气价预估单价,单价需以实际缴费为准）： | G35: =I14++I20+I26+I30+I32+I34 -> 5494.5817
A36: 638
A37: 流量计量表 | B37: 分项 | C37: 昨日流量 | E37: 今日流量 | G37: 用量 | H37: 备注
B38: 中央空调冷冻流量 | C38: 0 | E38: 0 | G38: =E38-C38 -> 0
B39: 中央空调冷却流量 | C39: 0 | E39: 0 | G39: =E39-C39 -> 0
B40: 中央空调采暖流量 | C40: 0 | E40: 0 | G40: =E40-C40 -> 0
B41: 蒸汽流量 | C41: 0 | E41: 0 | G41: =E41-C41 -> 0

Sheet 2025.7.5
A2: 2025年 7月 5日
A3: 最低气温：25 ℃，最高气温：36 ℃ ， 住房量：266间
A4: 宴会/会议信息 中餐厅.昆西有午宴 中餐厅以及昆西有晚宴 中餐厅以及昆西有早餐 .乔治亚上午有会议
A5: 名称 | B5: 位置 | C5: 编号 | D5: 昨日读数 | E5: 今日读数 | F5: 倍率 | G5: 合计 | H5: 单价 | I5: 费用
A6: 电表 | B6: 磁悬浮3号空调主机 | D6: 229172 | E6: 231815 | F6: 1 | G6: =(E6-D6)*F6 -> 2643 | H6: 0.689 | I6: =G6*H6 -> 1821.027
A7: 电表 | B7: 变频5号冷冻泵 | D7: 74407.5 | E7: 75453.3 | F7: 1 | G7: 1045.8 | H7: 0.689 | I7: 720.5562
A8: 电表 | B8: 4号冷冻泵 | D8: 211856.7 | E8: 211856.7 | F8: 1 | G8: 0 | H8: 0.689 | I8: =G8*H8 -> 0
A9: 电表 | B9: 变频5号冷却泵 | D9: 77993.6 | E9: 78618.8 | F9: 1 | G9: 625.2 | H9: 0.689 | I9: 430.7628
A10: 电表 | B10: 4号冷却泵 | D10: 271418.9 | E10: 271842.3 | F10: 1 | G10: 423.4 | H10: 0.689 | I10: =G10*H10 -> 291.7226
A11: 电表 | B11: 变频1号冷却塔 | D11: 148764.4 | E11: 148906.1 | F11: 1 | G11: 141.7 | H11: 0.689 | I11: 97.6313
A12: 电表 | B12: 变频2号冷却塔 | D12: 324421.9 | E12: 324581.3 | F12: 1 | G12: 159.4 | H12: 0.689 | I12: 109.8266
A13: 电表 | B13: 变频3号冷却塔 | D13: 302161 | E13: 302286.2 | F13: 1 | G13: 125.2 | H13: 0.689 | I13: 86.2628
A14: 空调系统用电总合计： | G14: =G6+G7+G8+G9+G10+G11+G12+G13 -> 5163.7 | H14: 0.689 | I14: =I6+I7+I8+I9+I10+I11+I12+I13 -> 3557.7893
A16: 电表 | B16: 三楼热泵控制柜 | C16: 2025020 50017 | D16: 180.5 | E16: 182.2 | F16: 80 | G16: =(E16-D16)*F16 -> 136 | H16: 0.689 | I16: 93.704
A17: 电表 | B17: 三楼变频水泵控制柜 | C17: 2024085 00211 | D17: 703.3 | E17: 712.1 | F17: 20 | G17: =(E17-D17)*F17 -> 176 | H17: 0.689 | I17: 121.264
A18: 电表 | B18: 洗衣房热泵控制柜 | C18: 202502 05102 | D18: 577.7 | E18: 580.8 | F18: 20 | G18: =(E18-D18)*F18 -> 62 | H18: 0.689 | I18: 42.718
A19: 电表 | B19: 群楼中厨水泵控制柜 | C19: 2025020 50063 | D19: 308 | E19: 311.7 | F19: 20 | G19: =(E19-D19)*F19 -> 74 | H19: 0.689 | I19: 50.986
A20: 热水热泵系统用电总合计： | G20: =G16+G17+G18+G19 -> 448 | H20: 0.689 | I20: =I16+I17+I18+I19 -> 308.672
A22: 水表 | B22: 空调冷冻水 | D22: 0 | F22: 1 | G22: =E22-D22 -> 0 | H22: 4.39 | I22: =G22*H22 -> 0
A23: 水表 | B23: 空调冷却水 | D23: 0 | F23: 1 | G23: =E23-D23 -> 0 | H23: 4.39 | I23: =G23*H23 -> 0
A24: 水表 | B24: 三楼中、高区热水 | C24: M9A25024017786 | D24: 2169 | E24: 2223 | F24: 1 | G24: =E24-D24 -> 54 | H24: 4.39 | I24: =G24*H24 -> 237.06
A25: 水表 | B25: 群楼、中厨房热水 | C25: M9A25024017857 | D25: 2197 | E25: 2235 | F25: 1 | G25: =E25-D25 -> 38 | H25: 4.39 | I25: =G25*H25 -> 166.82
A26: 热水热泵系统用水总合计: | G26: =G24+G25+G23+G22 -> 92 | H26: 4.39 | I26: =I24+I25+I23+I22 -> 403.88
A28: 燃气表（常用） | B28: 蒸汽发生器+采暖 | D28: 25547 | E28: 25802 | F28: 1 | G28: =E28-D28 -> 255 | H28: 5.54 | I28: =G28*H28 -> 1412.7
A29: 燃气表（备用） | B29: 蒸汽发生器+采暖 | D29: 18871 | E29: 18871 | F29: 1 | G29: =(E29-D29)*F29 -> 0 | H29: 5.54 | I29: =G29*H29 -> 0
A30: 蒸汽发生器+采暖用气总合计： | G30: =G28+G29 -> 255 | H30: 5.54 | I30: =I28+I29 -> 1412.7
A31: 电表 | B31: 蒸汽发生器+采暖 | C31: 202011 500026 | D31: 1331.9 | E31: 1351.6 | F31: 1 | G31: =(E31-D31)*F31 -> 19.7 | H31: 0.689 | I31: =G31*H31 -> 13.5733
A32: 蒸汽发生器+采暖用电总合计： | G32: =G31 -> 19.7 | H32: 0.689 | I32: =G32*H32 -> 13.5733
A33: 水表 | B33: 蒸汽发生器+采暖 | C33: F1A150610796 | D33: 729 | E33: 739 | F33: 1 | G33: =E33-D33 -> 10 | H33: 4.39 | I33: =G33*H33 -> 43.9
A34: 蒸汽发生器用水总合计: | G34: =G33 -> 10 | H34: 4.39 | I34: =G34*H34 -> 43.9
A35: 水、电、气费用总合计（水/电/气价预估单价,单价需以实际缴费为准）： | G35: =I14++I20+I26+I30+I32+I34 -> 5740.5146
A36: 638
A37: 流量计量表 | B37: 分项 | C37: 昨日流量 | E37: 今日流量 | G37: 用量 | H37: 备注
B38: 中央空调冷冻流量 | C38: 0 | E38: 0 | G38: =E38-C38 -> 0
B39: 中央空调冷却流量 | C39: 0 | E39: 0 | G39: =E39-C39 -> 0
B40: 中央空调采暖流量 | C40: 0 | E40: 0 | G40: =E40-C40 -> 0
B41: 蒸汽流量 | C41: 0 | E41: 0 | G41: =E41-C41 -> 0

Sheet 2025.7.6
A2: 2025年 7月 6日
A3: 最低气温：26 ℃，最高气温：37 ℃ ， 住房量：186间
A4: 宴会/会议信息 中餐厅.昆西有午宴 中餐厅以及昆西有晚宴 中餐厅以及昆西有早餐 .1.2厅.3厅有午宴
A5: 名称 | B5: 位置 | C5: 编号 | D5: 昨日读数 | E5: 今日读数 | F5: 倍率 | G5: 合计 | H5: 单价 | I5: 费用
A6: 电表 | B6: 磁悬浮3号空调主机 | D6: 231815 | E6: 235054 | F6: 1 | G6: =(E6-D6)*F6 -> 3239 | H6: 0.689 | I6: =G6*H6 -> 2231.671
A7: 电表 | B7: 变频5号冷冻泵 | D7: 75453.3 | E7: 76419.2 | F7: 1 | G7: 965.9 | H7: 0.689 | I7: 665.5051
A8: 电表 | B8: 4号冷冻泵 | D8: 211856.7 | E8: 211856.7 | F8: 1 | G8: 0 | H8: 0.689 | I8: =G8*H8 -> 0
A9: 电表 | B9: 变频5号冷却泵 | D9: 78618.8 | E9: 79240.1 | F9: 1 | G9: 621.3 | H9: 0.689 | I9: 428.0757
A10: 电表 | B10: 4号冷却泵 | D10: 271842.3 | E10: 272425.6 | F10: 1 | G10: 583.3 | H10: 0.689 | I10: =G10*H10 -> 401.8937
A11: 电表 | B11: 变频1号冷却塔 | D11: 148906.1 | E11: 149053.3 | F11: 1 | G11: 147.2 | H11: 0.689 | I11: 101.4208
A12: 电表 | B12: 变频2号冷却塔 | D12: 324581.3 | E12: 324747.5 | F12: 1 | G12: 166.2 | H12: 0.689 | I12: 114.5118
A13: 电表 | B13: 变频3号冷却塔 | D13: 302286.2 | E13: 302440 | F13: 1 | G13: 153.8 | H13: 0.689 | I13: 105.9682
A14: 空调系统用电总合计： | G14: =G6+G7+G8+G9+G10+G11+G12+G13 -> 5876.7 | H14: 0.689 | I14: =I6+I7+I8+I9+I10+I11+I12+I13 -> 4049.0463
A16: 电表 | B16: 三楼热泵控制柜 | C16: 2025020 50017 | D16: 182.2 | E16: 183.6 | F16: 80 | G16: =(E16-D16)*F16 -> 112 | H16: 0.689 | I16: 77.168
A17: 电表 | B17: 三楼变频水泵控制柜 | C17: 2024085 00211 | D17: 712.1 | E17: 721.1 | F17: 20 | G17: =(E17-D17)*F17 -> 180 | H17: 0.689 | I17: 124.02
A18: 电表 | B18: 洗衣房热泵控制柜 | C18: 202502 05102 | D18: 580.8 | E18: 585 | F18: 20 | G18: =(E18-D18)*F18 -> 84 | H18: 0.689 | I18: 57.876
A19: 电表 | B19: 群楼中厨水泵控制柜 | C19: 2025020 50063 | D19: 311.7 | E19: 315.4 | F19: 20 | G19: =(E19-D19)*F19 -> 74 | H19: 0.689 | I19: 50.986
A20: 热水热泵系统用电总合计： | G20: =G16+G17+G18+G19 -> 450 | H20: 0.689 | I20: =I16+I17+I18+I19 -> 310.05
A22: 水表 | B22: 空调冷冻水 | D22: 0 | F22: 1 | G22: =E22-D22 -> 0 | H22: 4.39 | I22: =G22*H22 -> 0
A23: 水表 | B23: 空调冷却水 | D23: 0 | F23: 1 | G23: =E23-D23 -> 0 | H23: 4.39 | I23: =G23*H23 -> 0
A24: 水表 | B24: 三楼中、高区热水 | C24: M9A25024017786 | D24: 2223 | E24: 2250 | F24: 1 | G24: =E24-D24 -> 27 | H24: 4.39 | I24: =G24*H24 -> 118.53
A25: 水表 | B25: 群楼、中厨房热水 | C25: M9A25024017857 | D25: 2235 | E25: 2276 | F25: 1 | G25: =E25-D25 -> 41 | H25: 4.39 | I25: =G25*H25 -> 179.99
A26: 热水热泵系统用水总合计: | G26: =G24+G25+G23+G22 -> 68 | H26: 4.39 | I26: =I24+I25+I23+I22 -> 298.52
A28: 燃气表（常用） | B28: 蒸汽发生器+采暖 | D28: 25802 | E28: 26072 | F28: 1 | G28: =E28-D28 -> 270 | H28: 5.54 | I28: =G28*H28 -> 1495.8
A29: 燃气表（备用） | B29: 蒸汽发生器+采暖 | D29: 18871 | E29: 18871 | F29: 1 | G29: =(E29-D29)*F29 -> 0 | H29: 5.54 | I29: =G29*H29 -> 0
A30: 蒸汽发生器+采暖用气总合计： | G30: =G28+G29 -> 270 | H30: 5.54 | I30: =I28+I29 -> 1495.8
A31: 电表 | B31: 蒸汽发生器+采暖 | C31: 202011 500026 | D31: 1351.6 | E31: 1372.1 | F31: 1 | G31: =(E31-D31)*F31 -> 20.5 | H31: 0.689 | I31: =G31*H31 -> 14.1245
A32: 蒸汽发生器+采暖用电总合计： | G32: =G31 -> 20.5 | H32: 0.689 | I32: =G32*H32 -> 14.1245
A33: 水表 | B33: 蒸汽发生器+采暖 | C33: F1A150610796 | D33: 739 | E33: 750 | F33: 1 | G33: =E33-D33 -> 11 | H33: 4.39 | I33: =G33*H33 -> 48.29
A34: 蒸汽发生器用水总合计: | G34: =G33 -> 11 | H34: 4.39 | I34: =G34*H34 -> 48.29
A35: 水、电、气费用总合计（水/电/气价预估单价,单价需以实际缴费为准）： | G35: =I14++I20+I26+I30+I32+I34 -> 6215.8308
A36: 638
A37: 流量计量表 | B37: 分项 | C37: 昨日流量 | E37: 今日流量 | G37: 用量 | H37: 备注
B38: 中央空调冷冻流量 | C38: 0 | E38: 0 | G38: =E38-C38 -> 0
B39: 中央空调冷却流量 | C39: 0 | E39: 0 | G39: =E39-C39 -> 0
B40: 中央空调采暖流量 | C40: 0 | E40: 0 | G40: =E40-C40 -> 0
B41: 蒸汽流量 | C41: 0 | E41: 0 | G41: =E41-C41 -> 0

Sheet 2025.7.7
A2: 2025年 7月 7日
A3: 最低气温：27 ℃，最高气温：38 ℃ ， 住房量：205间
A4: 宴会/会议信息 中餐厅.昆西有午宴 中餐厅以及昆西有晚宴 中餐厅以及昆西有早餐
A5: 名称 | B5: 位置 | C5: 编号 | D5: 昨日读数 | E5: 今日读数 | F5: 倍率 | G5: 合计 | H5: 单价 | I5: 费用
A6: 电表 | B6: 磁悬浮3号空调主机 | D6: 235054 | E6: 238247 | F6: 1 | G6: =(E6-D6)*F6 -> 3193 | H6: 0.689 | I6: =G6*H6 -> 2199.977
A7: 电表 | B7: 变频5号冷冻泵 | D7: 76419.2 | E7: 77491.1 | F7: 1 | G7: 1071.9 | H7: 0.689 | I7: 738.5391
A8: 电表 | B8: 4号冷冻泵 | D8: 211856.7 | E8: 211856.7 | F8: 1 | G8: 0 | H8: 0.689 | I8: =G8*H8 -> 0
A9: 电表 | B9: 变频5号冷却泵 | D9: 79240.1 | E9: 79800 | F9: 1 | G9: 559.9 | H9: 0.689 | I9: 385.7711
A10: 电表 | B10: 4号冷却泵 | D10: 272425.6 | E10: 272983.7 | F10: 1 | G10: 558.1 | H10: 0.689 | I10: =G10*H10 -> 384.5309
A11: 电表 | B11: 变频1号冷却塔 | D11: 149053.3 | E11: 149185.7 | F11: 1 | G11: 132.4 | H11: 0.689 | I11: 91.2236
A12: 电表 | B12: 变频2号冷却塔 | D12: 324747.5 | E12: 324889.2 | F12: 1 | G12: 141.7 | H12: 0.689 | I12: 97.6313
A13: 电表 | B13: 变频3号冷却塔 | D13: 302440 | E13: 302564.9 | F13: 1 | G13: 124.9 | H13: 0.689 | I13: 86.0561
A14: 空调系统用电总合计： | G14: =G6+G7+G8+G9+G10+G11+G12+G13 -> 5781.9 | H14: 0.689 | I14: =I6+I7+I8+I9+I10+I11+I12+I13 -> 3983.7291
A16: 电表 | B16: 三楼热泵控制柜 | C16: 2025020 50017 | D16: 183.6 | E16: 184.9 | F16: 80 | G16: =(E16-D16)*F16 -> 104 | H16: 0.689 | I16: 71.656
A17: 电表 | B17: 三楼变频水泵控制柜 | C17: 2024085 00211 | D17: 721.1 | E17: 729.7 | F17: 20 | G17: =(E17-D17)*F17 -> 172 | H17: 0.689 | I17: 118.508
A18: 电表 | B18: 洗衣房热泵控制柜 | C18: 202502 05102 | D18: 585 | E18: 588.4 | F18: 20 | G18: =(E18-D18)*F18 -> 68 | H18: 0.689 | I18: 46.852
A19: 电表 | B19: 群楼中厨水泵控制柜 | C19: 2025020 50063 | D19: 315.4 | E19: 319 | F19: 20 | G19: =(E19-D19)*F19 -> 72 | H19: 0.689 | I19: 49.608
A20: 热水热泵系统用电总合计： | G20: =G16+G17+G18+G19 -> 416 | H20: 0.689 | I20: =I16+I17+I18+I19 -> 286.624
A22: 水表 | B22: 空调冷冻水 | D22: 0 | F22: 1 | G22: =E22-D22 -> 0 | H22: 4.39 | I22: =G22*H22 -> 0
A23: 水表 | B23: 空调冷却水 | D23: 0 | F23: 1 | G23: =E23-D23 -> 0 | H23: 4.39 | I23: =G23*H23 -> 0
A24: 水表 | B24: 三楼中、高区热水 | C24: M9A25024017786 | D24: 2250 | E24: 2272 | F24: 1 | G24: =E24-D24 -> 22 | H24: 4.39 | I24: =G24*H24 -> 96.58
A25: 水表 | B25: 群楼、中厨房热水 | C25: M9A25024017857 | D25: 2276 | E25: 2306 | F25: 1 | G25: =E25-D25 -> 30 | H25: 4.39 | I25: =G25*H25 -> 131.7
A26: 热水热泵系统用水总合计: | G26: =G24+G25+G23+G22 -> 52 | H26: 4.39 | I26: =I24+I25+I23+I22 -> 228.28
A28: 燃气表（常用） | B28: 蒸汽发生器+采暖 | D28: 26072 | E28: 26333 | F28: 1 | G28: =E28-D28 -> 261 | H28: 5.54 | I28: =G28*H28 -> 1445.94
A29: 燃气表（备用） | B29: 蒸汽发生器+采暖 | D29: 18871 | E29: 18871 | F29: 1 | G29: =(E29-D29)*F29 -> 0 | H29: 5.54 | I29: =G29*H29 -> 0
A30: 蒸汽发生器+采暖用气总合计： | G30: =G28+G29 -> 261 | H30: 5.54 | I30: =I28+I29 -> 1445.94
A31: 电表 | B31: 蒸汽发生器+采暖 | C31: 202011 500026 | D31: 1372.1 | E31: 1393 | F31: 1 | G31: =(E31-D31)*F31 -> 20.9 | H31: 0.689 | I31: =G31*H31 -> 14.4001
A32: 蒸汽发生器+采暖用电总合计： | G32: =G31 -> 20.9 | H32: 0.689 | I32: =G32*H32 -> 14.4001
A33: 水表 | B33: 蒸汽发生器+采暖 | C33: F1A150610796 | D33: 750 | E33: 761 | F33: 1 | G33: =E33-D33 -> 11 | H33: 4.39 | I33: =G33*H33 -> 48.29
A34: 蒸汽发生器用水总合计: | G34: =G33 -> 11 | H34: 4.39 | I34: =G34*H34 -> 48.29
A35: 水、电、气费用总合计（水/电/气价预估单价,单价需以实际缴费为准）： | G35: =I14++I20+I26+I30+I32+I34 -> 6007.2632
A36: 638
A37: 流量计量表 | B37: 分项 | C37: 昨日流量 | E37: 今日流量 | G37: 用量 | H37: 备注
B38: 中央空调冷冻流量 | C38: 0 | E38: 0 | G38: =E38-C38 -> 0
B39: 中央空调冷却流量 | C39: 0 | E39: 0 | G39: =E39-C39 -> 0
B40: 中央空调采暖流量 | C40: 0 | E40: 0 | G40: =E40-C40 -> 0
B41: 蒸汽流量 | C41: 0 | E41: 0 | G41: =E41-C41 -> 0

Sheet 2025.7.8
A2: 2025年 7月 8日
A3: 最低气温：26 ℃，最高气温：37 ℃ ， 住房量：202间
A4: 宴会/会议信息 中餐厅.昆西有午宴 中餐厅以及昆西有晚宴 中餐厅以及昆西有早餐 1.2厅有午宴
A5: 名称 | B5: 位置 | C5: 编号 | D5: 昨日读数 | E5: 今日读数 | F5: 倍率 | G5: 合计 | H5: 单价 | I5: 费用
A6: 电表 | B6: 磁悬浮3号空调主机 | D6: 238247 | E6: 241260 | F6: 1 | G6: =(E6-D6)*F6 -> 3013 | H6: 0.689 | I6: =G6*H6 -> 2075.957
A7: 电表 | B7: 变频5号冷冻泵 | D7: 77491.1 | E7: 78577.5 | F7: 1 | G7: 1086.4 | H7: 0.689 | I7: 748.5296
A8: 电表 | B8: 4号冷冻泵 | D8: 211856.7 | E8: 211856.7 | F8: 1 | G8: 0 | H8: 0.689 | I8: =G8*H8 -> 0
A9: 电表 | B9: 变频5号冷却泵 | D9: 79800 | E9: 80352.4 | F9: 1 | G9: 552.4 | H9: 0.689 | I9: 380.6036
A10: 电表 | B10: 4号冷却泵 | D10: 272983.7 | E10: 273567.2 | F10: 1 | G10: 583.5 | H10: 0.689 | I10: =G10*H10 -> 402.0315
A11: 电表 | B11: 变频1号冷却塔 | D11: 149185.7 | E11: 149352.9 | F11: 1 | G11: 167.2 | H11: 0.689 | I11: 115.2008
A12: 电表 | B12: 变频2号冷却塔 | D12: 324889.2 | E12: 325078.2 | F12: 1 | G12: 189 | H12: 0.689 | I12: 130.221
A13: 电表 | B13: 变频3号冷却塔 | D13: 302564.9 | E13: 302689.2 | F13: 1 | G13: 124.3 | H13: 0.689 | I13: 85.6427
A14: 空调系统用电总合计： | G14: =G6+G7+G8+G9+G10+G11+G12+G13 -> 5715.8 | H14: 0.689 | I14: =I6+I7+I8+I9+I10+I11+I12+I13 -> 3938.1862
A16: 电表 | B16: 三楼热泵控制柜 | C16: 2025020 50017 | D16: 183.6 | E16: 186.2 | F16: 80 | G16: =(E16-D16)*F16 -> 208 | H16: 0.689 | I16: 143.312
A17: 电表 | B17: 三楼变频水泵控制柜 | C17: 2024085 00211 | D17: 721.1 | E17: 738.6 | F17: 20 | G17: =(E17-D17)*F17 -> 350 | H17: 0.689 | I17: 241.15
A18: 电表 | B18: 洗衣房热泵控制柜 | C18: 202502 05102 | D18: 585 | E18: 591.4 | F18: 20 | G18: =(E18-D18)*F18 -> 128 | H18: 0.689 | I18: 88.192
A19: 电表 | B19: 群楼中厨水泵控制柜 | C19: 2025020 50063 | D19: 315.4 | E19: 322.7 | F19: 20 | G19: =(E19-D19)*F19 -> 146 | H19: 0.689 | I19: 100.594
A20: 热水热泵系统用电总合计： | G20: =G16+G17+G18+G19 -> 832 | H20: 0.689 | I20: =I16+I17+I18+I19 -> 573.248
A22: 水表 | B22: 空调冷冻水 | D22: 0 | F22: 1 | G22: =E22-D22 -> 0 | H22: 4.39 | I22: =G22*H22 -> 0
A23: 水表 | B23: 空调冷却水 | D23: 0 | F23: 1 | G23: =E23-D23 -> 0 | H23: 4.39 | I23: =G23*H23 -> 0
A24: 水表 | B24: 三楼中、高区热水 | C24: M9A25024017786 | D24: 2250 | E24: 2297 | F24: 1 | G24: =E24-D24 -> 47 | H24: 4.39 | I24: =G24*H24 -> 206.33
A25: 水表 | B25: 群楼、中厨房热水 | C25: M9A25024017857 | D25: 2276 | E25: 2342 | F25: 1 | G25: =E25-D25 -> 66 | H25: 4.39 | I25: =G25*H25 -> 289.74
A26: 热水热泵系统用水总合计: | G26: =G24+G25+G23+G22 -> 113 | H26: 4.39 | I26: =I24+I25+I23+I22 -> 496.07
A28: 燃气表（常用） | B28: 蒸汽发生器+采暖 | D28: 26072 | E28: 26593 | F28: 1 | G28: =E28-D28 -> 521 | H28: 5.54 | I28: =G28*H28 -> 2886.34
A29: 燃气表（备用） | B29: 蒸汽发生器+采暖 | D29: 18871 | E29: 18871 | F29: 1 | G29: =(E29-D29)*F29 -> 0 | H29: 5.54 | I29: =G29*H29 -> 0
A30: 蒸汽发生器+采暖用气总合计： | G30: =G28+G29 -> 521 | H30: 5.54 | I30: =I28+I29 -> 2886.34
A31: 电表 | B31: 蒸汽发生器+采暖 | C31: 202011 500026 | D31: 1372.1 | E31: 1413.3 | F31: 1 | G31: =(E31-D31)*F31 -> 41.2 | H31: 0.689 | I31: =G31*H31 -> 28.3868
A32: 蒸汽发生器+采暖用电总合计： | G32: =G31 -> 41.2 | H32: 0.689 | I32: =G32*H32 -> 28.3868
A33: 水表 | B33: 蒸汽发生器+采暖 | C33: F1A150610796 | D33: 750 | E33: 771 | F33: 1 | G33: =E33-D33 -> 21 | H33: 4.39 | I33: =G33*H33 -> 92.19
A34: 蒸汽发生器用水总合计: | G34: =G33 -> 21 | H34: 4.39 | I34: =G34*H34 -> 92.19
A35: 水、电、气费用总合计（水/电/气价预估单价,单价需以实际缴费为准）： | G35: =I14++I20+I26+I30+I32+I34 -> 8014.421
A36: 638
A37: 流量计量表 | B37: 分项 | C37: 昨日流量 | E37: 今日流量 | G37: 用量 | H37: 备注
B38: 中央空调冷冻流量 | C38: 0 | E38: 0 | G38: =E38-C38 -> 0
B39: 中央空调冷却流量 | C39: 0 | E39: 0 | G39: =E39-C39 -> 0
B40: 中央空调采暖流量 | C40: 0 | E40: 0 | G40: =E40-C40 -> 0
B41: 蒸汽流量 | C41: 0 | E41: 0 | G41: =E41-C41 -> 0

Sheet 2025.7.9
A2: 2025年 7月 9日
A3: 最低气温：23 ℃，最高气温：35 ℃ ， 住房量：232间
A4: 宴会/会议信息 中餐厅.昆西有午宴 中餐厅以及昆西有晚宴 中餐厅以及昆西有早餐 乔治亚有全天会议
A5: 名称 | B5: 位置 | C5: 编号 | D5: 昨日读数 | E5: 今日读数 | F5: 倍率 | G5: 合计 | H5: 单价 | I5: 费用
A6: 电表 | B6: 磁悬浮3号空调主机 | D6: 65.28 | E6: 3269.92 | F6: 1 | G6: =(E6-D6)*F6 -> 3204.64 | H6: 0.689 | I6: =G6*H6 -> 2207.99696
A7: 电表 | B7: 变频5号冷冻泵 | D7: 127.85 | E7: 1110.96 | F7: 1 | G7: 983.11 | H7: 0.689 | I7: 677.36279
A8: 电表 | B8: 4号冷冻泵 | D8: 211856.7 | E8: 211856.7 | F8: 1 | G8: 0 | H8: 0.689 | I8: =G8*H8 -> 0
A9: 电表 | B9: 变频5号冷却泵 | D9: 357.53 | E9: 1023.36 | F9: 1 | G9: 665.83 | H9: 0.689 | I9: 458.75687
A10: 电表 | B10: 4号冷却泵 | D10: 65.01 | E10: 190.41 | F10: 1 | G10: 125.4 | H10: 0.689 | I10: =G10*H10 -> 86.4006
A11: 电表 | B11: 变频1号冷却塔 | D11: 149352.9 | E11: 149518.1 | F11: 1 | G11: 165.2 | H11: 0.689 | I11: 113.8228
A12: 电表 | B12: 变频2号冷却塔 | D12: 325078.2 | E12: 325265.4 | F12: 1 | G12: 187.2 | H12: 0.689 | I12: 128.9808
A13: 电表 | B13: 变频3号冷却塔 | D13: 302689.2 | E13: 302801.2 | F13: 1 | G13: 112 | H13: 0.689 | I13: 77.168
A14: 空调系统用电总合计： | G14: =G6+G7+G8+G9+G10+G11+G12+G13 -> 5443.38 | H14: 0.689 | I14: =I6+I7+I8+I9+I10+I11+I12+I13 -> 3750.48882
A16: 电表 | B16: 三楼热泵控制柜 | C16: 2025020 50017 | D16: 186.2 | E16: 187.6 | F16: 80 | G16: =(E16-D16)*F16 -> 112 | H16: 0.689 | I16: 77.168
A17: 电表 | B17: 三楼变频水泵控制柜 | C17: 2024085 00211 | D17: 738.6 | E17: 747.3 | F17: 20 | G17: =(E17-D17)*F17 -> 174 | H17: 0.689 | I17: 119.886
A18: 电表 | B18: 洗衣房热泵控制柜 | C18: 202502 05102 | D18: 591.4 | E18: 593.4 | F18: 20 | G18: =(E18-D18)*F18 -> 40 | H18: 0.689 | I18: 27.56
A19: 电表 | B19: 群楼中厨水泵控制柜 | C19: 2025020 50063 | D19: 322.7 | E19: 326.2 | F19: 20 | G19: =(E19-D19)*F19 -> 70 | H19: 0.689 | I19: 48.23
A20: 热水热泵系统用电总合计： | G20: =G16+G17+G18+G19 -> 396 | H20: 0.689 | I20: =I16+I17+I18+I19 -> 272.844
A22: 水表 | B22: 空调冷冻水 | D22: 0 | F22: 1 | G22: =E22-D22 -> 0 | H22: 4.39 | I22: =G22*H22 -> 0
A23: 水表 | B23: 空调冷却水 | D23: 0 | F23: 1 | G23: =E23-D23 -> 0 | H23: 4.39 | I23: =G23*H23 -> 0
A24: 水表 | B24: 三楼中、高区热水 | C24: M9A25024017786 | D24: 2297 | E24: 2321 | F24: 1 | G24: =E24-D24 -> 24 | H24: 4.39 | I24: =G24*H24 -> 105.36
A25: 水表 | B25: 群楼、中厨房热水 | C25: M9A25024017857 | D25: 2342 | E25: 2369 | F25: 1 | G25: =E25-D25 -> 27 | H25: 4.39 | I25: =G25*H25 -> 118.53
A26: 热水热泵系统用水总合计: | G26: =G24+G25+G23+G22 -> 51 | H26: 4.39 | I26: =I24+I25+I23+I22 -> 223.89
A28: 燃气表（常用） | B28: 蒸汽发生器+采暖 | D28: 26593 | E28: 26857 | F28: 1 | G28: =E28-D28 -> 264 | H28: 5.54 | I28: =G28*H28 -> 1462.56
A29: 燃气表（备用） | B29: 蒸汽发生器+采暖 | D29: 18871 | E29: 18871 | F29: 1 | G29: =(E29-D29)*F29 -> 0 | H29: 5.54 | I29: =G29*H29 -> 0
A30: 蒸汽发生器+采暖用气总合计： | G30: =G28+G29 -> 264 | H30: 5.54 | I30: =I28+I29 -> 1462.56
A31: 电表 | B31: 蒸汽发生器+采暖 | C31: 202011 500026 | D31: 1413.3 | E31: 1433.1 | F31: 1 | G31: =(E31-D31)*F31 -> 19.8 | H31: 0.689 | I31: =G31*H31 -> 13.6422
A32: 蒸汽发生器+采暖用电总合计： | G32: =G31 -> 19.8 | H32: 0.689 | I32: =G32*H32 -> 13.6422
A33: 水表 | B33: 蒸汽发生器+采暖 | C33: F1A150610796 | D33: 771 | E33: 782 | F33: 1 | G33: =E33-D33 -> 11 | H33: 4.39 | I33: =G33*H33 -> 48.29
A34: 蒸汽发生器用水总合计: | G34: =G33 -> 11 | H34: 4.39 | I34: =G34*H34 -> 48.29
A35: 水、电、气费用总合计（水/电/气价预估单价,单价需以实际缴费为准）： | G35: =I14++I20+I26+I30+I32+I34 -> 5771.71502
A36: 638
A37: 流量计量表 | B37: 分项 | C37: 昨日流量 | E37: 今日流量 | G37: 用量 | H37: 备注
B38: 中央空调冷冻流量 | C38: 0 | E38: 0 | G38: =E38-C38 -> 0
B39: 中央空调冷却流量 | C39: 0 | E39: 0 | G39: =E39-C39 -> 0
B40: 中央空调采暖流量 | C40: 0 | E40: 0 | G40: =E40-C40 -> 0
B41: 蒸汽流量 | C41: 0 | E41: 0 | G41: =E41-C41 -> 0

Sheet 2025.7.10
A2: 2025年 7月 10日
A3: 最低气温：24 ℃，最高气温：29 ℃ ， 住房量：186间
A4: 宴会/会议:中餐厅以及昆西有早餐 西餐厅有晚宴 乔治亚有全天会议
A5: 名称 | B5: 位置 | C5: 编号 | D5: 昨日读数 | E5: 今日读数 | F5: 倍率 | G5: 合计 | H5: 单价 | I5: 费用
A6: 电表 | B6: 磁悬浮3号空调主机 | D6: 3269.92 | E6: 5315.52 | F6: 1 | G6: =(E6-D6)*F6 -> 2045.6 | H6: 0.689 | I6: =G6*H6 -> 1409.4184
A7: 电表 | B7: 变频5号冷冻泵 | D7: 1110.96 | E7: 1307.04 | F7: 1 | G7: 196.08 | H7: 0.689 | I7: 135.09912
A8: 电表 | B8: 4号冷冻泵 | D8: 211856.7 | E8: 211856.7 | F8: 1 | G8: 0 | H8: 0.689 | I8: =G8*H8 -> 0
A9: 电表 | B9: 变频5号冷却泵 | D9: 1023.36 | E9: 1173.9 | F9: 1 | G9: 150.54 | H9: 0.689 | I9: 103.72206
A10: 电表 | B10: 4号冷却泵 | D10: 190.41 | E10: 191.28 | F10: 1 | G10: 0.87 | H10: 0.689 | I10: =G10*H10 -> 0.59943
A11: 电表 | B11: 变频1号冷却塔 | D11: 149518.1 | E11: 149668.1 | F11: 1 | G11: 150 | H11: 0.689 | I11: 103.35
A12: 电表 | B12: 变频2号冷却塔 | D12: 325265.4 | E12: 325391 | F12: 1 | G12: 125.6 | H12: 0.689 | I12: 86.5384
A13: 电表 | B13: 变频3号冷却塔 | D13: 302801.2 | E13: 302979 | F13: 1 | G13: 177.8 | H13: 0.689 | I13: 122.5042
A14: 空调系统用电总合计： | G14: =G6+G7+G8+G9+G10+G11+G12+G13 -> 2846.49 | H14: 0.689 | I14: =I6+I7+I8+I9+I10+I11+I12+I13 -> 1961.23161
A16: 电表 | B16: 三楼热泵控制柜 | C16: 2025020 50017 | D16: 187.6 | E16: 189.2 | F16: 80 | G16: =(E16-D16)*F16 -> 128 | H16: 0.689 | I16: 88.192
A17: 电表 | B17: 三楼变频水泵控制柜 | C17: 2024085 00211 | D17: 747.3 | E17: 756 | F17: 20 | G17: =(E17-D17)*F17 -> 174 | H17: 0.689 | I17: 119.886
A18: 电表 | B18: 洗衣房热泵控制柜 | C18: 202502 05102 | D18: 593.4 | E18: 597.1 | F18: 20 | G18: =(E18-D18)*F18 -> 74 | H18: 0.689 | I18: 50.986
A19: 电表 | B19: 群楼中厨水泵控制柜 | C19: 2025020 50063 | D19: 326.2 | E19: 329.9 | F19: 20 | G19: =(E19-D19)*F19 -> 74 | H19: 0.689 | I19: 50.986
A20: 热水热泵系统用电总合计： | G20: =G16+G17+G18+G19 -> 450 | H20: 0.689 | I20: =I16+I17+I18+I19 -> 310.05
A22: 水表 | B22: 空调冷冻水 | D22: 0 | F22: 1 | G22: =E22-D22 -> 0 | H22: 4.39 | I22: =G22*H22 -> 0
A23: 水表 | B23: 空调冷却水 | D23: 0 | F23: 1 | G23: =E23-D23 -> 0 | H23: 4.39 | I23: =G23*H23 -> 0
A24: 水表 | B24: 三楼中、高区热水 | C24: M9A25024017786 | D24: 2297 | E24: 2345 | F24: 1 | G24: =E24-D24 -> 48 | H24: 4.39 | I24: =G24*H24 -> 210.72
A25: 水表 | B25: 群楼、中厨房热水 | C25: M9A25024017857 | D25: 2342 | E25: 2401 | F25: 1 | G25: =E25-D25 -> 59 | H25: 4.39 | I25: =G25*H25 -> 259.01
A26: 热水热泵系统用水总合计: | G26: =G24+G25+G23+G22 -> 107 | H26: 4.39 | I26: =I24+I25+I23+I22 -> 469.73
A28: 燃气表（常用） | B28: 蒸汽发生器+采暖 | D28: 26857 | E28: 27123 | F28: 1 | G28: =E28-D28 -> 266 | H28: 5.54 | I28: =G28*H28 -> 1473.64
A29: 燃气表（备用） | B29: 蒸汽发生器+采暖 | D29: 18871 | E29: 18871 | F29: 1 | G29: =(E29-D29)*F29 -> 0 | H29: 5.54 | I29: =G29*H29 -> 0
A30: 蒸汽发生器+采暖用气总合计： | G30: =G28+G29 -> 266 | H30: 5.54 | I30: =I28+I29 -> 1473.64
A31: 电表 | B31: 蒸汽发生器+采暖 | C31: 202011 500026 | D31: 1433.1 | E31: 1453.5 | F31: 1 | G31: =(E31-D31)*F31 -> 20.4 | H31: 0.689 | I31: =G31*H31 -> 14.0556
A32: 蒸汽发生器+采暖用电总合计： | G32: =G31 -> 20.4 | H32: 0.689 | I32: =G32*H32 -> 14.0556
A33: 水表 | B33: 蒸汽发生器+采暖 | C33: F1A150610796 | D33: 782 | E33: 792 | F33: 1 | G33: =E33-D33 -> 10 | H33: 4.39 | I33: =G33*H33 -> 43.9
A34: 蒸汽发生器用水总合计: | G34: =G33 -> 10 | H34: 4.39 | I34: =G34*H34 -> 43.9
A35: 水、电、气费用总合计（水/电/气价预估单价,单价需以实际缴费为准）： | G35: =I14++I20+I26+I30+I32+I34 -> 4272.60721
A36: 638
A37: 流量计量表 | B37: 分项 | C37: 昨日流量 | E37: 今日流量 | G37: 用量 | H37: 备注
B38: 中央空调冷冻流量 | C38: 0 | E38: 0 | G38: =E38-C38 -> 0
B39: 中央空调冷却流量 | C39: 0 | E39: 0 | G39: =E39-C39 -> 0
B40: 中央空调采暖流量 | C40: 0 | E40: 0 | G40: =E40-C40 -> 0
B41: 蒸汽流量 | C41: 0 | E41: 0 | G41: =E41-C41 -> 0

Sheet 2025.7.11
A2: 2025年 7月 11日
A3: 最低气温：25 ℃，最高气温：32 ℃ ， 住房量：186间
A4: 宴会/会议:西餐厅有午宴 三厅有下午会议
A5: 名称 | B5: 位置 | C5: 编号 | D5: 昨日读数 | E5: 今日读数 | F5: 倍率 | G5: 合计 | H5: 单价 | I5: 费用
A6: 电表 | B6: 磁悬浮3号空调主机 | D6: 5315.52 | E6: 7167.84 | F6: 1 | G6: =(E6-D6)*F6 -> 1852.32 | H6: 0.689 | I6: =G6*H6 -> 1276.24848
A7: 电表 | B7: 变频5号冷冻泵 | D7: 1307.04 | E7: 2221.05 | F7: 1 | G7: 914.01 | H7: 0.689 | I7: 629.75289
A8: 电表 | B8: 4号冷冻泵 | D8: 211856.7 | E8: 211856.7 | F8: 1 | G8: 0 | H8: 0.689 | I8: =G8*H8 -> 0
A9: 电表 | B9: 变频5号冷却泵 | D9: 1173.9 | E9: 2142.21 | F9: 1 | G9: 968.31 | H9: 0.689 | I9: 667.16559
A10: 电表 | B10: 4号冷却泵 | D10: 191.28 | E10: 551.58 | F10: 1 | G10: 360.3 | H10: 0.689 | I10: =G10*H10 -> 248.2467
A11: 电表 | B11: 变频1号冷却塔 | D11: 149668.1 | E11: 149814.4 | F11: 1 | G11: 146.3 | H11: 0.689 | I11: 100.8007
A12: 电表 | B12: 变频2号冷却塔 | D12: 325391 | E12: 325590.3 | F12: 1 | G12: 199.3 | H12: 0.689 | I12: 137.3177
A13: 电表 | B13: 变频3号冷却塔 | D13: 302979 | E13: 303106.3 | F13: 1 | G13: 127.3 | H13: 0.689 | I13: 87.7097
A14: 空调系统用电总合计： | G14: =G6+G7+G8+G9+G10+G11+G12+G13 -> 4567.84 | H14: 0.689 | I14: =I6+I7+I8+I9+I10+I11+I12+I13 -> 3147.24176
A16: 电表 | B16: 三楼热泵控制柜 | C16: 2025020 50017 | D16: 189.2 | E16: 190.5 | F16: 80 | G16: =(E16-D16)*F16 -> 104 | H16: 0.689 | I16: 71.656
A17: 电表 | B17: 三楼变频水泵控制柜 | C17: 2024085 00211 | D17: 756 | E17: 762.7 | F17: 20 | G17: =(E17-D17)*F17 -> 134 | H17: 0.689 | I17: 92.326
A18: 电表 | B18: 洗衣房热泵控制柜 | C18: 202502 05102 | D18: 597.1 | E18: 600.3 | F18: 20 | G18: =(E18-D18)*F18 -> 64 | H18: 0.689 | I18: 44.096
A19: 电表 | B19: 群楼中厨水泵控制柜 | C19: 2025020 50063 | D19: 329.9 | E19: 332.8 | F19: 20 | G19: =(E19-D19)*F19 -> 58 | H19: 0.689 | I19: 39.962
A20: 热水热泵系统用电总合计： | G20: =G16+G17+G18+G19 -> 360 | H20: 0.689 | I20: =I16+I17+I18+I19 -> 248.04
A22: 水表 | B22: 空调冷冻水 | D22: 0 | F22: 1 | G22: =E22-D22 -> 0 | H22: 4.39 | I22: =G22*H22 -> 0
A23: 水表 | B23: 空调冷却水 | D23: 0 | F23: 1 | G23: =E23-D23 -> 0 | H23: 4.39 | I23: =G23*H23 -> 0
A24: 水表 | B24: 三楼中、高区热水 | C24: M9A25024017786 | D24: 2345 | E24: 2363 | F24: 1 | G24: =E24-D24 -> 18 | H24: 4.39 | I24: =G24*H24 -> 79.02
A25: 水表 | B25: 群楼、中厨房热水 | C25: M9A25024017857 | D25: 2401 | E25: 2430 | F25: 1 | G25: =E25-D25 -> 29 | H25: 4.39 | I25: =G25*H25 -> 127.31
A26: 热水热泵系统用水总合计: | G26: =G24+G25+G23+G22 -> 47 | H26: 4.39 | I26: =I24+I25+I23+I22 -> 206.33
A28: 燃气表（常用） | B28: 蒸汽发生器+采暖 | D28: 27123 | E28: 27372 | F28: 1 | G28: =E28-D28 -> 249 | H28: 5.54 | I28: =G28*H28 -> 1379.46
A29: 燃气表（备用） | B29: 蒸汽发生器+采暖 | D29: 18871 | E29: 18871 | F29: 1 | G29: =(E29-D29)*F29 -> 0 | H29: 5.54 | I29: =G29*H29 -> 0
A30: 蒸汽发生器+采暖用气总合计： | G30: =G28+G29 -> 249 | H30: 5.54 | I30: =I28+I29 -> 1379.46
A31: 电表 | B31: 蒸汽发生器+采暖 | C31: 202011 500026 | D31: 1453.5 | E31: 1472.1 | F31: 1 | G31: =(E31-D31)*F31 -> 18.6 | H31: 0.689 | I31: =G31*H31 -> 12.8154
A32: 蒸汽发生器+采暖用电总合计： | G32: =G31 -> 18.6 | H32: 0.689 | I32: =G32*H32 -> 12.8154
A33: 水表 | B33: 蒸汽发生器+采暖 | C33: F1A150610796 | D33: 792 | E33: 801 | F33: 1 | G33: =E33-D33 -> 9 | H33: 4.39 | I33: =G33*H33 -> 39.51
A34: 蒸汽发生器用水总合计: | G34: =G33 -> 9 | H34: 4.39 | I34: =G34*H34 -> 39.51
A35: 水、电、气费用总合计（水/电/气价预估单价,单价需以实际缴费为准）： | G35: =I14++I20+I26+I30+I32+I34 -> 5033.39716
A36: 638
A37: 流量计量表 | B37: 分项 | C37: 昨日流量 | E37: 今日流量 | G37: 用量 | H37: 备注
B38: 中央空调冷冻流量 | C38: 0 | E38: 0 | G38: =E38-C38 -> 0
B39: 中央空调冷却流量 | C39: 0 | E39: 0 | G39: =E39-C39 -> 0
B40: 中央空调采暖流量 | C40: 0 | E40: 0 | G40: =E40-C40 -> 0
B41: 蒸汽流量 | C41: 0 | E41: 0 | G41: =E41-C41 -> 0

Sheet 2025.7.12
A2: 2025年 7月 12日
A3: 最低气温：24 ℃，最高气温：35 ℃ ， 住房量：142间
A4: 宴会/会议: 三厅有下午会议，昌盛轩有午宴，奥尔良波士顿有晚宴
A5: 名称 | B5: 位置 | C5: 编号 | D5: 昨日读数 | E5: 今日读数 | F5: 倍率 | G5: 合计 | H5: 单价 | I5: 费用
A6: 电表 | B6: 磁悬浮3号空调主机 | D6: 7167.84 | E6: 9065.6 | F6: 1 | G6: =(E6-D6)*F6 -> 1897.76 | H6: 0.689 | I6: =G6*H6 -> 1307.55664
A7: 电表 | B7: 变频5号冷冻泵 | D7: 2221.05 | E7: 3020.8 | F7: 1 | G7: 799.75 | H7: 0.689 | I7: 551.02775
A8: 电表 | B8: 4号冷冻泵 | D8: 211856.7 | E8: 211856.7 | F8: 1 | G8: 0 | H8: 0.689 | I8: =G8*H8 -> 0
A9: 电表 | B9: 变频5号冷却泵 | D9: 2142.21 | E9: 3256.5 | F9: 1 | G9: 1114.29 | H9: 0.689 | I9: 767.74581
A10: 电表 | B10: 4号冷却泵 | D10: 551.58 | E10: 878.1 | F10: 1 | G10: 326.52 | H10: 0.689 | I10: =G10*H10 -> 224.97228
A11: 电表 | B11: 变频1号冷却塔 | D11: 149814.4 | E11: 149974 | F11: 1 | G11: 159.6 | H11: 0.689 | I11: 109.9644
A12: 电表 | B12: 变频2号冷却塔 | D12: 325590.3 | E12: 325794 | F12: 1 | G12: 203.7 | H12: 0.689 | I12: 140.3493
A13: 电表 | B13: 变频3号冷却塔 | D13: 303106.3 | E13: 303222 | F13: 1 | G13: 115.7 | H13: 0.689 | I13: 79.7173
A14: 空调系统用电总合计： | G14: =G6+G7+G8+G9+G10+G11+G12+G13 -> 4617.32 | H14: 0.689 | I14: =I6+I7+I8+I9+I10+I11+I12+I13 -> 3181.33348
A16: 电表 | B16: 三楼热泵控制柜 | C16: 2025020 50017 | D16: 190.5 | E16: 192.5 | F16: 80 | G16: =(E16-D16)*F16 -> 160 | H16: 0.689 | I16: 110.24
A17: 电表 | B17: 三楼变频水泵控制柜 | C17: 2024085 00211 | D17: 762.7 | E17: 768.8 | F17: 20 | G17: =(E17-D17)*F17 -> 122 | H17: 0.689 | I17: 84.058
A18: 电表 | B18: 洗衣房热泵控制柜 | C18: 202502 05102 | D18: 600.3 | E18: 605.3 | F18: 20 | G18: =(E18-D18)*F18 -> 100 | H18: 0.689 | I18: 68.9
A19: 电表 | B19: 群楼中厨水泵控制柜 | C19: 2025020 50063 | D19: 332.8 | E19: 336.5 | F19: 20 | G19: =(E19-D19)*F19 -> 74 | H19: 0.689 | I19: 50.986
A20: 热水热泵系统用电总合计： | G20: =G16+G17+G18+G19 -> 456 | H20: 0.689 | I20: =I16+I17+I18+I19 -> 314.184
A22: 水表 | B22: 空调冷冻水 | D22: 0 | F22: 1 | G22: =E22-D22 -> 0 | H22: 4.39 | I22: =G22*H22 -> 0
A23: 水表 | B23: 空调冷却水 | D23: 0 | F23: 1 | G23: =E23-D23 -> 0 | H23: 4.39 | I23: =G23*H23 -> 0
A24: 水表 | B24: 三楼中、高区热水 | C24: M9A25024017786 | D24: 2363 | E24: 2380 | F24: 1 | G24: =E24-D24 -> 17 | H24: 4.39 | I24: =G24*H24 -> 74.63
A25: 水表 | B25: 群楼、中厨房热水 | C25: M9A25024017857 | D25: 2430 | E25: 2461 | F25: 1 | G25: =E25-D25 -> 31 | H25: 4.39 | I25: =G25*H25 -> 136.09
A26: 热水热泵系统用水总合计: | G26: =G24+G25+G23+G22 -> 48 | H26: 4.39 | I26: =I24+I25+I23+I22 -> 210.72
A28: 燃气表（常用） | B28: 蒸汽发生器+采暖 | D28: 27372 | E28: 27610 | F28: 1 | G28: =E28-D28 -> 238 | H28: 5.54 | I28: =G28*H28 -> 1318.52
A29: 燃气表（备用） | B29: 蒸汽发生器+采暖 | D29: 18871 | E29: 18871 | F29: 1 | G29: =(E29-D29)*F29 -> 0 | H29: 5.54 | I29: =G29*H29 -> 0
A30: 蒸汽发生器+采暖用气总合计： | G30: =G28+G29 -> 238 | H30: 5.54 | I30: =I28+I29 -> 1318.52
A31: 电表 | B31: 蒸汽发生器+采暖 | C31: 202011 500026 | D31: 1472.1 | E31: 1490.3 | F31: 1 | G31: =(E31-D31)*F31 -> 18.2 | H31: 0.689 | I31: =G31*H31 -> 12.5398
A32: 蒸汽发生器+采暖用电总合计： | G32: =G31 -> 18.2 | H32: 0.689 | I32: =G32*H32 -> 12.5398
A33: 水表 | B33: 蒸汽发生器+采暖 | C33: F1A150610796 | D33: 801 | E33: 811 | F33: 1 | G33: =E33-D33 -> 10 | H33: 4.39 | I33: =G33*H33 -> 43.9
A34: 蒸汽发生器用水总合计: | G34: =G33 -> 10 | H34: 4.39 | I34: =G34*H34 -> 43.9
A35: 水、电、气费用总合计（水/电/气价预估单价,单价需以实际缴费为准）： | G35: =I14++I20+I26+I30+I32+I34 -> 5081.19728
A36: 638
A37: 流量计量表 | B37: 分项 | C37: 昨日流量 | E37: 今日流量 | G37: 用量 | H37: 备注
B38: 中央空调冷冻流量 | C38: 0 | E38: 0 | G38: =E38-C38 -> 0
B39: 中央空调冷却流量 | C39: 0 | E39: 0 | G39: =E39-C39 -> 0
B40: 中央空调采暖流量 | C40: 0 | E40: 0 | G40: =E40-C40 -> 0
B41: 蒸汽流量 | C41: 0 | E41: 0 | G41: =E41-C41 -> 0

Sheet 2025.7.13
A2: 2025年 7月 13日
A3: 最低气温：25 ℃，最高气温：34 ℃ ， 住房量：95间
A4: 宴会/会议: 昌盛轩有午宴
A5: 名称 | B5: 位置 | C5: 编号 | D5: 昨日读数 | E5: 今日读数 | F5: 倍率 | G5: 合计 | H5: 单价 | I5: 费用
A6: 电表 | B6: 磁悬浮3号空调主机 | D6: 9065.6 | E6: 10970.56 | F6: 1 | G6: =(E6-D6)*F6 -> 1904.96 | H6: 0.689 | I6: =G6*H6 -> 1312.51744
A7: 电表 | B7: 变频5号冷冻泵 | D7: 3020.8 | E7: 3760.5 | F7: 1 | G7: 739.7 | H7: 0.689 | I7: 509.6533
A8: 电表 | B8: 4号冷冻泵 | D8: 211856.7 | E8: 211856.7 | F8: 1 | G8: 0 | H8: 0.689 | I8: =G8*H8 -> 0
A9: 电表 | B9: 变频5号冷却泵 | D9: 3256.5 | E9: 4175.79 | F9: 1 | G9: 919.29 | H9: 0.689 | I9: 633.39081
A10: 电表 | B10: 4号冷却泵 | D10: 878.1 | E10: 1095.09 | F10: 1 | G10: 216.99 | H10: 0.689 | I10: =G10*H10 -> 149.50611
A11: 电表 | B11: 变频1号冷却塔 | D11: 149974 | E11: 150123.4 | F11: 1 | G11: 149.4 | H11: 0.689 | I11: 102.9366
A12: 电表 | B12: 变频2号冷却塔 | D12: 325794 | E12: 325897.8 | F12: 1 | G12: 103.8 | H12: 0.689 | I12: 71.5182
A13: 电表 | B13: 变频3号冷却塔 | D13: 303222 | E13: 303410.1 | F13: 1 | G13: 188.1 | H13: 0.689 | I13: 129.6009
A14: 空调系统用电总合计： | G14: =G6+G7+G8+G9+G10+G11+G12+G13 -> 4222.24 | H14: 0.689 | I14: =I6+I7+I8+I9+I10+I11+I12+I13 -> 2909.12336
A16: 电表 | B16: 三楼热泵控制柜 | C16: 2025020 50017 | D16: 192.5 | E16: 193.4 | F16: 80 | G16: =(E16-D16)*F16 -> 72 | H16: 0.689 | I16: 49.608
A17: 电表 | B17: 三楼变频水泵控制柜 | C17: 2024085 00211 | D17: 768.8 | E17: 782 | F17: 20 | G17: =(E17-D17)*F17 -> 264 | H17: 0.689 | I17: 181.896
A18: 电表 | B18: 洗衣房热泵控制柜 | C18: 202502 05102 | D18: 605.3 | E18: 610.8 | F18: 20 | G18: =(E18-D18)*F18 -> 110 | H18: 0.689 | I18: 75.79
A19: 电表 | B19: 群楼中厨水泵控制柜 | C19: 2025020 50063 | D19: 336.5 | E19: 340 | F19: 20 | G19: =(E19-D19)*F19 -> 70 | H19: 0.689 | I19: 48.23
A20: 热水热泵系统用电总合计： | G20: =G16+G17+G18+G19 -> 516 | H20: 0.689 | I20: =I16+I17+I18+I19 -> 355.524
A22: 水表 | B22: 空调冷冻水 | D22: 0 | F22: 1 | G22: =E22-D22 -> 0 | H22: 4.39 | I22: =G22*H22 -> 0
A23: 水表 | B23: 空调冷却水 | D23: 0 | F23: 1 | G23: =E23-D23 -> 0 | H23: 4.39 | I23: =G23*H23 -> 0
A24: 水表 | B24: 三楼中、高区热水 | C24: M9A25024017786 | D24: 2380 | E24: 2399 | F24: 1 | G24: =E24-D24 -> 19 | H24: 4.39 | I24: =G24*H24 -> 83.41
A25: 水表 | B25: 群楼、中厨房热水 | C25: M9A25024017857 | D25: 2461 | E25: 2491 | F25: 1 | G25: =E25-D25 -> 30 | H25: 4.39 | I25: =G25*H25 -> 131.7
A26: 热水热泵系统用水总合计: | G26: =G24+G25+G23+G22 -> 49 | H26: 4.39 | I26: =I24+I25+I23+I22 -> 215.11
A28: 燃气表（常用） | B28: 蒸汽发生器+采暖 | D28: 27610 | E28: 27799 | F28: 1 | G28: =E28-D28 -> 189 | H28: 5.54 | I28: =G28*H28 -> 1047.06
A29: 燃气表（备用） | B29: 蒸汽发生器+采暖 | D29: 18871 | E29: 18871 | F29: 1 | G29: =(E29-D29)*F29 -> 0 | H29: 5.54 | I29: =G29*H29 -> 0
A30: 蒸汽发生器+采暖用气总合计： | G30: =G28+G29 -> 189 | H30: 5.54 | I30: =I28+I29 -> 1047.06
A31: 电表 | B31: 蒸汽发生器+采暖 | C31: 202011 500026 | D31: 1490.3 | E31: 1506.8 | F31: 1 | G31: =(E31-D31)*F31 -> 16.5 | H31: 0.689 | I31: =G31*H31 -> 11.3685
A32: 蒸汽发生器+采暖用电总合计： | G32: =G31 -> 16.5 | H32: 0.689 | I32: =G32*H32 -> 11.3685
A33: 水表 | B33: 蒸汽发生器+采暖 | C33: F1A150610796 | D33: 811 | E33: 819 | F33: 1 | G33: =E33-D33 -> 8 | H33: 4.39 | I33: =G33*H33 -> 35.12
A34: 蒸汽发生器用水总合计: | G34: =G33 -> 8 | H34: 4.39 | I34: =G34*H34 -> 35.12
A35: 水、电、气费用总合计（水/电/气价预估单价,单价需以实际缴费为准）： | G35: =I14++I20+I26+I30+I32+I34 -> 4573.30586
A36: 638
A37: 流量计量表 | B37: 分项 | C37: 昨日流量 | E37: 今日流量 | G37: 用量 | H37: 备注
B38: 中央空调冷冻流量 | C38: 0 | E38: 0 | G38: =E38-C38 -> 0
B39: 中央空调冷却流量 | C39: 0 | E39: 0 | G39: =E39-C39 -> 0
B40: 中央空调采暖流量 | C40: 0 | E40: 0 | G40: =E40-C40 -> 0
B41: 蒸汽流量 | C41: 0 | E41: 0 | G41: =E41-C41 -> 0

Sheet 2025.7.14
A2: 2025年 7月 14日
A3: 最低气温：25 ℃，最高气温：35 ℃ ， 住房量：95间
A4: 宴会/会议: 1.2厅 .3厅有午宴
A5: 名称 | B5: 位置 | C5: 编号 | D5: 昨日读数 | E5: 今日读数 | F5: 倍率 | G5: 合计 | H5: 单价 | I5: 费用
A6: 电表 | B6: 磁悬浮3号空调主机 | D6: 10970.56 | E6: 13749.76 | F6: 1 | G6: =(E6-D6)*F6 -> 2779.2 | H6: 0.689 | I6: =G6*H6 -> 1914.8688
